{"text_format":"1","workbook":"xlsx","n_sheets":9,"sheets":["Benvenuto","Lotto6_R940_1","Lotto6_R940_2","Lotto6_R940_3","Altre_Opzioni","Riepilogo_Ordine","Config","ConfTS4L6","Tabella_prezzi"],"not_rendered":{"charts":0,"images":8,"macros":1,"external_links":0,"defined_names":38,"comments":0,"pivot_tables":0},"unopened":[],"bounds":{"document_bytes":16777216,"sheet_cells":100000,"rows_first":2000,"rows_last":500,"rows_between":2000,"halvings":0,"cell_chars":16384,"cell_head_chars":4096},"cells_cut":0,"cells_raw":0,"read":"whole","date_system":"1900"}

{"sheet":"Benvenuto","index":0,"n_rows":8,"n_cols":17,"rows_kept":8,"cut":false,"hidden":false,"merged":[[2,4,42,13],[2,15,2,16],[4,15,4,16],[6,15,6,16]]}
[]
[]
[null,null,null,null,null,null,null,null,null,null,null,null,null,null,null,"LEGENDA"]
[null,null,null,null,null,null,null,null,null,null,null,null,null,null,null,"Campi Non Editabili","Campi Editabili"]
[]
[null,null,null,null,null,null,null,null,null,null,null,null,null,null,null,"Opzioni 20%","Qtà 20%"]
[]
[null,null,null,null,null,null,null,null,null,null,null,null,null,null,null,"Errore nella Selezione","Verifica Positiva"]

{"sheet":"Lotto6_R940_1","index":1,"n_rows":142,"n_cols":25,"rows_kept":142,"cut":false,"hidden":false,"merged":[[103,7,107,7],[24,13,25,13],[39,11,39,13],[76,13,78,14],[130,9,131,9],[42,8,43,8],[133,9,134,9],[77,9,78,9],[74,9,75,9],[142,8,153,11],[58,10,58,11],[60,10,60,11],[82,10,82,11],[3,8,5,8],[1,8,2,8],[141,8,141,11],[5,10,6,10],[94,10,94,11],[85,10,85,11],[91,10,91,11],[100,10,100,11],[103,10,103,11],[112,10,112,11],[115,10,115,11],[11,9,12,9],[14,9,15,9],[17,9,18,9],[39,9,40,9],[3,10,4,10]]}
[]
[null,null,null,null,null,null,null,null,"Convenzione Tecnologie Server 4 - Lotto 6",null,{"$f":"IF(U105>1,\"ERRORE NELLA CONFIGURAZIONE\",\"\")","v":""},null,null,{"$f":"IF(N6<0,\"Superata Quota 20%\",\"\")","v":""}]
[null,null,null,null,null,null,null,null,null,null,null,null,null,"Articoli 20% Totali",null,null,null,null,"Check CPU","Check RAM","Check NVME","Check PCI","Check Win","Check Tot"]
[null,null,null,null,null,null,null,null,{"$f":"IF(W13=\"vsan\",\"Selezionando la soluzione vSAN si accetta la sostituzione del controller 745 con il HBA355, comprensivo di BOSS Card Certificati per vSAN\",IF(W13=\"v2tb\",\"Selezionando la soluzione vSAN si accetta la sostituzione del controller 745 con il HBA355, comprensivo di BOSS Card Certificati per vSAN\",\"\"))","v":""},null,{"$f":"IF(X4>1,\"Errori nella Configurazione\",IF(S4>0,\"Errore nella Selezione della CPU\",IF(T4>0,\"Errore Nella Selezione della RAM\",IF(U4>0,\"Errore Nella selezione dello Chassis per Dischi nVME\",IF(V4>0,\"Errore nella Selezione Slot PCI\",IF(W4>0,\"Errore nella Selezione Licenze Windows\",\"\"))))))","v":""},"Totale Altre Opzioni",null,{"$f":"Riepilogo_Ordine!K140","v":0},null,null,null,null,{"$f":"IF(L19<>\"\",1,0)","v":0},{"$f":"IF(L24<>\"\",1,0)","v":0},{"$f":"IF(I14<>\"\",1,0)","v":0},{"$f":"IF(K83<>\"\",1,0)","v":0},{"$f":"IF(L27<>\"\",1,0)","v":0},{"$f":"SUM(S4:W4)","v":0}]
[null,null,null,null,null,null,null,null,null,null,null,{"$f":"Altre_Opzioni!H3","v":0},null,"Quota residua 20 %"]
[null,null,null,null,null,null,null,null,null,null,"Guida alla Convenzione","Totale Configurazione",null,{"$f":"Riepilogo_Ordine!G141","v":0}]
[null,null,null,null,null,null,null,null,{"$f":"IF(Riepilogo_Ordine!Q3>0,\"Compilare i Dati Necessari all'Ordine per Stampare in PDF o Controllare le Configurazioni\",\"Dati Completi\")","v":"Compilare i Dati Necessari all'Ordine per Stampare in PDF o Controllare le Configurazioni"},null,null,{"$f":"$L$140","v":0},null,"Totale Ordine Iva Esclusa",null,null,null,null,{"$f":"IF(AND($W$13=\"vsan64GB\",L22=0),ConfTS4L6!$A$47:$A$48,IF(AND($W$13=\"vsan64GB\",$L$22=1),ConfTS4L6!$A$51:$A$52,\"\"))","v":""}]
[null,null,null,null,null,null,null,null,"DELL POWEREDGE R940",null,"Quantità Server",0,null,{"$f":"Riepilogo_Ordine!K141","v":0}]
[]
[]
[]
[null,null,null,null,null,null,null,null,"Base",null,null,null,null,null,null,null,null,null,null,null,null,"PowerEdge R940 Server (General Purpose)"]
[null,null,null,null,null,null,null,null,"PowerEdge R940 Server (General Purpose)",null,{"$f":"IF($L$8>0,VLOOKUP(I13,ConfTS4L6!A3:M7,13,FALSE),\"\")","v":""},{"$f":"IF($L$8>0,1,\"\")","v":""},null,{"$f":"R13","v":5754.51},null,null,null,{"$f":"VLOOKUP($I$13,TSL6_ALL,10,FALSE)","v":5754.51},null,{"$f":"VLOOKUP($I13,TS4L6_BASE,12,FALSE)","v":"L6N01"},null,{"$f":"IF(AND(I13=ConfTS4L6!A12,L22=0),\"nVME1\",IF(AND(I13=ConfTS4L6!A12,L22=1),\"NVME2\",\"\"))","v":""},{"$f":"IF(I13=ConfTS4L6!A13,\"vsan\",IF(I13=ConfTS4L6!A15,\"Boss3TB\",IF(I13=ConfTS4L6!A14,\"vsan64GB\",\"\")))","v":""},{"$f":"IF(I13=ConfTS4L6!A15,\"Boss3TB\",\"\")","v":""}]
[null,null,null,null,null,null,null,null,{"$f":"IF(AND($K$63>0,$I$13=\"PowerEdge R940 Server (General Purpose)\"),\"▲ Per Selezionare dischi nVME selezionare Chassis nVME o vSAN ▲\",\"\")","v":""},null,null,null,null,null,null,null,null,null,null,null,null,null,{"$f":"IF(AND(I13=\"PowerEdge R940 Server (General Purpose)\",L22=0),\"GP1\",IF(AND(I13=\"PowerEdge R940 Server (General Purpose)\",L22=1),\"GP2\",\"\"))","v":"GP2"}]
[null,null,null,null,null,null,null,null,"Chassis Configuration",null,{"$f":"IF($V$82=\"SW\",\"MAX 4 GPU\",IF($V$82=\"DW\",\"MAX 2 GPU\",\"\"))","v":""}]
[null,null,null,null,null,null,null,null,{"$f":"IF($L$22=1,VLOOKUP($I$13,TS4L6_Chassis,3,FALSE),VLOOKUP($I$13,TS4L6_Chassis,2,FALSE))","v":"Chassis with Up to 12X 2.5 SAS/SATA + 12X 2.5 for 4CPU Configuration"},null,{"$f":"IF(T16=\"L6N122\",Tabella_prezzi!F85,IF(T16=\"L6N123\",Tabella_prezzi!F86,IF(T16=\"L6N124\",Tabella_prezzi!F87,IF(T16=\"L6N125\",Tabella_prezzi!F88,IF($L$22=1,VLOOKUP($I$13,TS4L6_Chassis,13,FALSE),VLOOKUP($I$13,TS4L6_Chassis,13,FALSE))))))","v":""},{"$f":"IF(I13=V12,VLOOKUP($I$13,TS4L6_Chassis,6,FALSE),VLOOKUP($I$13,TS4L6_Chassis,7,FALSE))","v":""},null,{"$f":"R16+S16","v":0},null,null,null,{"$f":"VLOOKUP($I$13,TS4L6_Chassis,10,FALSE)","v":0},{"$f":"IF(T16=\"L6N125\",Tabella_prezzi!D88,IF(T16=\"L6N122\",Tabella_prezzi!D85,IF(T16=\"L6N123\",Tabella_prezzi!D86,IF(T16=\"L6N124\",Tabella_prezzi!D87,VLOOKUP(I13,TS4L6_Chassis,11,FALSE)))))","v":0},{"$f":"IF(AND(W13=\"vsan64GB\",I26=1024),\"L6N123\",IF(AND(W13=\"vsan64GB\",I26=1536),\"L6N122\",IF(AND(W13=\"vsan64GB\",I26=2048),\"L6N124\",IF(AND(W13=\"Boss3TB\",I26=3072),\"L6N125\",VLOOKUP($I13,TS4L6_Chassis,12,FALSE)))))","v":0},null,"Chassis with Up to 24 x 2.5'' Hard Drives for 2CPU Configuration",1]
[]
[null,null,null,null,null,null,null,null,"Processor"]
[null,null,null,null,null,null,null,null,"2 x Intel Xeon Gold 6252N, 2.3G, 24C/48T, 10.4GT/s, 35.75M Cache, Turbo, HT (150W) DDR4-2933",null,null,{"$f":"IF(AND(W13=\"boss3TB\",L22=0),\"Selezionare Processori Aggiuntivi per Configurazione BOSS 3TB\",IF(AND(W13=\"vsan64GBb\",L22=0),\"Selezionare Processori Aggiuntivi per Configurazione vSAN 2 TB\",IF(AND(V13=\"nVME\",L22=0),\"Selezionare Processori Aggiuntivi per Configurazione nVME\",IF(AND(W13=2048,L22=\"\"),\"Selezionare Processore Aggiuntivo per Configurazione vSAN\",IF(AND(X13=\"Nutanix\",L22=\"\"),\"Selezionare Processore Aggiuntivo per Configurazione Nutanix\",\"\")))))","v":""},null,null,null,null,null,{"$f":"IF(L16=1,VLOOKUP($I$19,TS4L6_CPU,11,FALSE),VLOOKUP($I$19,TS4L6_CPU,11,FALSE))","v":0},{"$f":"IF(L16=1,VLOOKUP($I$19,TS4L6_CPU,11,FALSE),VLOOKUP($I$19,TS4L6_CPU,11,FALSE))","v":0},{"$f":"IF(S19=0,0,VLOOKUP($I19,TS4L6_CPU,12,FALSE))","v":0}]
[]
[null,null,null,null,null,null,null,null,"Additional Processor"]
[null,null,null,null,null,null,null,null,"2 x Intel Xeon Gold 6252N, 2.3G, 24C/48T, 10.4GT/s, 35.75M Cache, Turbo, HT (150W) DDR4-2933",null,{"$f":"IF(L16=1,VLOOKUP($I$19,TS4L6_CPU,13,FALSE),VLOOKUP($I$22,TS4L6_CPU,13,FALSE))","v":"TS4L6-CPU"},{"$f":"IF(L16=1,VLOOKUP($I$22,TS4L6_CPU,7,FALSE),VLOOKUP($I$22,TS4L6_CPU,7,FALSE))","v":1},null,{"$f":"R22","v":1908.9},null,null,null,{"$f":"IF(L22=1,VLOOKUP($I$19,TS4L6_CPU,10,FALSE),VLOOKUP($I$22,TS4L6_CPU,10,FALSE))","v":1908.9},{"$f":"IF(L16=1,VLOOKUP($I$19,TS4L6_CPU,11,FALSE),VLOOKUP($I$22,TS4L6_CPU,11,FALSE))","v":0},{"$f":"IF(L22=1,VLOOKUP(I19,TSL6_ALL,12,FALSE),VLOOKUP($I22,TS4L6_CPU,12,FALSE))","v":"L6N02"},null,{"$f":"IF(L16=1,\"2 x Intel Xeon Gold 6252N, 2.3G, 24C/48T, 10.4GT/s, 35.75M Cache, Turbo, HT (150W) DDR4-2933\",I22)","v":"2 x Intel Xeon Gold 6252N, 2.3G, 24C/48T, 10.4GT/s, 35.75M Cache, Turbo, HT (150W) DDR4-2933"}]
[]
[null,null,null,null,null,null,null,null,"Memory Capacity (GB)",null,null,{"$f":"IF(AND(W13=\"vsan\",L22=0,I25<>512,I25<>768),\"Selezionare RAM Corretta\",IF(AND(W13=\"vsan\",L22=1,I25<>1024,I25<>1536),\"Selezionare RAM Corretta\",IF(AND(W13=\"v2tb\",I25<>2048),\"Selezionare 2 TB RAM\",IF(AND(W13=\"v2tb\",L22=0),\"Selezionare Processori\",IF(AND(X13=\"vsan\",L22=\"\",I25>768),\"Selezionare RAM Corretta\",IF(AND(W14=\"GP1\",I25>768),\"Selezionare RAM Corretta\",IF(AND(W14=\"GP2\",I25>1536),\"Selezionare RAM Corretta\",IF(AND(V13=\"nVME1\",I25>768),\"Selezionare RAM Corretta\",IF(AND(V13=\"NVME2\",I25>1536),\"Selezionare RAM Corretta\",IF(AND(I25<>\"\",I26>2000,W13=\"vsan64GB\"),\"Deselezionare RAM 32GB e Aggiungere RAM 64GB\",IF(AND(W13<>\"vsan64GB\",W13<>\"Boss3TB\",I26<>\"\",I25=0),\"Deselezionare RAM 64 GB\",IF(AND(W13=\"Boss3TB\",I26=\"\",I25=\"\"),\"Selezionare RAM 64\",IF(AND(W13<>\"vsan64GB\",I26=\"\",I25=\"\"),\"Selezionare RAM 32\",IF(AND(I25=\"\",I26=\"\",W13=\"vsan64GB\"),\"Selezionare RAM 64\",IF(AND(L22=1,W13=\"vsan64GB\",I26<2000),\"Selezionare RAM 64 GB Corretta\",IF(AND(L22=0,W13=\"vsan64GB\",I26>2000),\"Selezionare Processore Aggiuntivo per 2TB\",IF(AND(L22=1,W13=\"Boss3TB\",I26<3000),\"Selezionare RAM 64 Corretta\",IF(AND(L22=1,W13=\"Boss3TB\",I25<>\"\"),\"Deselezionare RAM 32\",IF(AND(L22=1,W13=\"vsan64GB\",I26>3000),\"Selezionare RAM 64 Corretta\",IF(AND(W13=\"vsan\",I26<>\"\"),\"Deselezionare RAM 64\",\"\"))))))))))))))))))))","v":""}]
[null,null,null,null,null,null,null,null,512,null,"TS4L6-RAM32",{"$f":"W25","v":0},null,{"$f":"R25+R26","v":0},null,null,null,{"$f":"X25","v":0},null,{"$f":"Y25","v":"L6N03"},null,null,{"$f":"IF(Lotto6_R940_1!L24<>\"\",0,IF(OR(W13=\"vsan64GB\",W13=\"Boss3TB\"),0,IF(AND(W13=\"v2tb\",L22=1),VLOOKUP(I25,ConfTS4L6!A51:S51,11,FALSE),IF($L$22=1,VLOOKUP($I$25,TS4L6_RAM2CPU,7,FALSE),VLOOKUP($I$25,TS4L6_RAM1CPU,7,FALSE)))))","v":0},{"$f":"IF(Lotto6_R940_1!L24<>\"\",0,IF(OR(W13=\"vsan64GB\",W13=\"Boss3TB\"),0,IF(AND(W13=\"v2tb\",L22=1),VLOOKUP(I25,ConfTS4L6!A51:S51,11,FALSE),IF($L$22=1,VLOOKUP($I$25,TS4L6_RAM2CPU,10,FALSE),VLOOKUP($I$25,TS4L6_RAM1CPU,10,FALSE)))))","v":0},{"$f":"IF(Lotto6_R940_1!L24<>\"\",\"\",IF(OR(W13=\"vsan64GB\",W13=\"Boss3TB\"),0,IF($L$22=1,VLOOKUP($I$25,ConfTS4L6!A56:M75,12,FALSE),VLOOKUP($I$25,TS4L6_RAM1CPU,12,FALSE))))","v":"L6N03"}]
[null,null,null,null,null,null,null,null,"",null,"TS4L6-RAM64",{"$f":"W26","v":0},null,null,null,null,null,{"$f":"X26","v":0},null,{"$f":"Y26","v":0},null,null,{"$f":"IF(L19<>\"\",\"\",IF(L24<>\"\",0,IF(W13=\"vsan\",0,IF(W13=\"\",0,IF(W13=\"Boss3TB\",VLOOKUP(I26,TS4L6_64GB,7,FALSE),IF(AND(W13=\"vsan64GB\",L22<>0),VLOOKUP(I26,TS4L6_64GB,7,FALSE),IF(AND(W13=\"vsan64GB\",L22=0),VLOOKUP(I26,TS4L6_2cpu64gb,7,FALSE))))))))","v":0},{"$f":"IF(L19<>\"\",0,IF(L24<>\"\",0,IF(W13=\"vsan\",0,IF(W13=\"\",0,IF(W13=\"Boss3TB\",VLOOKUP(I26,TS4L6_64GB,10,FALSE),IF(AND(W13=\"vsan64GB\",L22<>0),VLOOKUP(I26,TS4L6_64GB,10,FALSE),IF(AND(W13=\"vsan64GB\",L22=0),VLOOKUP(I26,TS4L6_2cpu64gb,10,FALSE))))))))","v":0},{"$f":"IF(L19<>\"\",\"\",IF(L24<>\"\",0,IF(W13=\"vsan\",0,IF(W13=\"\",0,IF(W13=\"Boss3TB\",VLOOKUP(I26,TS4L6_64GB,12,FALSE),IF(AND(W13=\"vsan64GB\",L22<>0),VLOOKUP(I26,TS4L6_64GB,12,FALSE),IF(AND(W13=\"vsan64GB\",L22=0),VLOOKUP(I26,TS4L6_2cpu64gb,12,FALSE))))))))","v":0}]
[]
[null,null,null,null,null,null,null,null,"Operating System STANDARD",null,null,{"$f":"IF(AND(I29=\"Ubuntu Server 22.04 LTS 64 Bit\",L30<>\"\"),\"Deselezionare Licenze 2 Core\",IF(I29=\"Ubuntu Server 22.04 LTS 64 Bit\",\"\",IF(AND(L29=1,L30=0),\"Selezionare Licenze 2 Core\",IF(AND(L22=0,L30>64),\"Selezionare Licenze 2 Core Corrette\",IF(AND(L22=1,L30=16),\"Selezionare Licenze 2 Core Corrette\",IF(AND(L29=0,L30>0),\"Deselezionare Licenze 2 Core\",\"\"))))))","v":""}]
[null,null,null,null,null,null,null,null,"No Operating System",null,{"$f":"VLOOKUP($I$29,TS4L6_OS,13,FALSE)","v":""},{"$f":"IF(I29=\"Windows Server 2022,Standard,ROK,16CORE\",1,IF(I29=\"Ubuntu Server 22.04 LTS 64 Bit\",1,0))","v":0},null,{"$f":"R29","v":0},null,null,null,{"$f":"VLOOKUP($I$29,TS4L6_OS,10,FALSE)*L29","v":0},{"$f":"VLOOKUP($I$29,TS4L6_OS,11,FALSE)","v":0},{"$f":"VLOOKUP($I29,TSL6_ALL,12,FALSE)","v":""}]
[null,null,null,null,null,null,null,null,"Windows Server 2022 Standard Edition, Add License,2CORE",null,{"$f":"VLOOKUP($I$30,TS4L6_OS,13,FALSE)","v":"TS4L6-WINSRV2C"},null,null,{"$f":"R30","v":0},null,null,null,{"$f":"IF(L28<>\"\",0,VLOOKUP($I$30,TS4L6_OS,10,FALSE))*L30","v":0},{"$f":"VLOOKUP($I$29,TS4L6_OS,11,FALSE)","v":0},{"$f":"IF(L28<>\"\",\"\",VLOOKUP($I30,TSL6_ALL,12,FALSE))","v":"L6N25"}]
[]
[null,null,null,null,null,null,null,null,"Operating System DATACENTER"]
[null,null,null,null,null,null,null,null,"No Operating System",null,{"$f":"VLOOKUP($I$33,ConfTS4L6!A79:X88,13,FALSE)","v":""},{"$f":"IF(I33=\"Windows Server 2022,Datacenter,ROK,16CORE\",1,0)","v":0},null,{"$f":"R33","v":0},null,null,null,{"$f":"VLOOKUP($I$33,ConfTS4L6!A79:X86,10,FALSE)*L33","v":0},{"$f":"VLOOKUP($I$29,TS4L6_OS,11,FALSE)","v":0},{"$f":"VLOOKUP($I33,TSL6_ALL,12,FALSE)","v":""}]
[null,null,null,null,null,null,null,null,"Windows Server 2022 / 2019 Datacenter Edition,Add License,2CORE",null,{"$f":"VLOOKUP($I$34,TS4L6_OS,13,FALSE)","v":"TS4L6-WinServDC2core"},{"$f":"IF(AND(L22=1,L33=1),40,IF(AND(L22=1,L33=0),0,IF(AND(L22=0,L33=1),16,IF(AND(L22=\"\",L33=\"\"),0,0))))","v":0},null,{"$f":"R34","v":0},null,null,null,{"$f":"VLOOKUP($I$34,TS4L6_OS,10,FALSE)*L34","v":0},{"$f":"VLOOKUP($I$29,TS4L6_OS,11,FALSE)","v":0},{"$f":"VLOOKUP($I34,TS4L6_OS,12,FALSE)","v":"L6N27"}]
[]
[null,null,null,null,null,null,null,null,"Operating System Device CAL / User CAL"]
[null,null,null,null,null,null,null,null,"1-pack of Windows Server 2022/2019 Device CALs (STD or DC)",null,{"$f":"VLOOKUP($I$37,ConfTS4L6!A83:X84,13,FALSE)","v":"TS4L6-WINDEVCAL"},0,null,{"$f":"R37","v":0},null,null,null,{"$f":"VLOOKUP($I$37,ConfTS4L6!A83:O84,10,FALSE)*L37","v":0},{"$f":"VLOOKUP($I$29,TS4L6_OS,11,FALSE)","v":0},{"$f":"VLOOKUP($I37,TSL6_ALL,12,FALSE)","v":"L6N23"}]
[null,null,null,null,null,null,null,null,"1-pack of Windows Server 2022/2019 User CALs (STD or DC)",null,{"$f":"VLOOKUP($I$38,ConfTS4L6!A84:X85,13,FALSE)","v":"TS4L6-WINUSRCAL"},0,null,{"$f":"R38","v":0},null,null,null,{"$f":"VLOOKUP($I$38,ConfTS4L6!A84:O85,10,FALSE)*L38","v":0},{"$f":"VLOOKUP($I$29,TS4L6_OS,11,FALSE)","v":0},{"$f":"VLOOKUP($I38,TSL6_ALL,12,FALSE)","v":"L6N24"}]
[]
[null,null,null,null,null,null,null,null,"Disk Controller  (PCI SLOT 1)"]
[null,null,null,null,null,null,{"$f":"IF($K$16=\"TS3L4-VSAN\",\"vSAN HCL\",\"\")","v":""},null,{"$f":"IF(W13=\"vsan64GB\",ConfTS4L6!A116,IF(W13=\"vsan\",ConfTS4L6!A116,ConfTS4L6!A115))","v":"PERC H740P RAID Controller, 8Gb NV Cache, Adapter, Full Height"},null,{"$f":"IF($W$13<>\"\",\"\",IF(L41>0,VLOOKUP($I41,TS4L6_CRTL,13,FALSE),\"\"))","v":""},{"$f":"IF($W$13<>\"\",\"\",VLOOKUP($I41,TS4L6_CRTL,7,FALSE))","v":""},null,{"$f":"R41+S41","v":0},null,null,null,{"$f":"IF(I41=ConfTS4L6!A59,0,VLOOKUP($I41,TS4L6_CRTL,10,FALSE))","v":0},{"$f":"IF(W13=\"v2tb\",0,IF(W13=\"v512\",0,VLOOKUP($I41,TS4L6_CRTL,11,FALSE)))","v":0},{"$f":"IF(W13=\"v2tb\",\"\",IF(W13=\"vsan\",\"\",IF(W13=\"v512\",\"\",VLOOKUP($I41,TSL6_ALL,12,FALSE))))","v":"L6N44"},null,{"$f":"IF(K41=\"TS3L4-HBA330-L\",1,0)","v":0},{"$f":"IF(I41=\"PERC H740P RAID Controller, 8GB NV Cache\",1,0)","v":0},{"$f":"IF(Y41=1,Y41*V41,W41*V41)","v":0},{"$f":"IF(N7=\"\",1,0)","v":0}]
[]
[null,null,null,null,null,null,null,null,"Hard Drivers Bays n° 12 - 2 bay occupate dai dischi 960GB SSD di base",null,"Usati","Disponibili"]
[null,null,null,null,null,null,null,null,null,null,{"$f":"L46+L48+L50+L56+L58+L52+L54+L60","v":2},{"$f":"12-K44","v":10}]
[]
[null,null,null,null,null,null,null,null,{"$f":"ConfTS4L6!A91","v":"2.4TB 10k SAS ISE 12Gbps"},null,{"$f":"VLOOKUP($I46,TS4L6_HDD,13,FALSE)","v":"TS4L6-HDD2TB"},0,null,{"$f":"R46","v":0},null,null,null,{"$f":"VLOOKUP($I46,TS4L6_HDD,10,FALSE)*L46","v":0},{"$f":"VLOOKUP($I46,TS4L6_HDD,11,FALSE)","v":0},{"$f":"VLOOKUP($I46,TSL6_ALL,12,FALSE)","v":"L6N11"}]
[]
[null,null,null,null,null,null,null,null,{"$f":"ConfTS4L6!A92","v":"1.2TB 10K RPM SAS ISE 12Gbps"},null,{"$f":"VLOOKUP($I48,TS4L6_HDD,13,FALSE)","v":"TS4L6-HDD1TB"},0,null,{"$f":"R48","v":0},null,null,null,{"$f":"VLOOKUP($I48,TS4L6_HDD,10,FALSE)*L48","v":0},{"$f":"VLOOKUP($I48,TS4L6_HDD,11,FALSE)","v":0},{"$f":"VLOOKUP($I48,TSL6_ALL,12,FALSE)","v":"L6N12"}]
[]
[null,null,null,null,null,null,null,null,{"$f":"ConfTS4L6!A93","v":"3.84TB SSD SAS ISE RI 12Gbps"},null,{"$f":"VLOOKUP($I50,TS4L6_HDD,13,FALSE)","v":"TS4L6-SSD-RI3,8TB"},0,null,{"$f":"R50","v":0},null,null,null,{"$f":"VLOOKUP($I50,TS4L6_HDD,10,FALSE)*L50","v":0},{"$f":"VLOOKUP($I50,TS4L6_HDD,11,FALSE)","v":0},{"$f":"VLOOKUP($I50,TSL6_ALL,12,FALSE)","v":"L6N13"}]
[]
[null,null,null,null,null,null,null,null,{"$f":"ConfTS4L6!A94","v":"1.92TB SSD SAS ISE RI 12Gbps"},null,{"$f":"VLOOKUP($I52,TS4L6_HDD,13,FALSE)","v":"TS4L6-SSD-RI1,6TB"},0,null,{"$f":"R52","v":0},null,null,null,{"$f":"VLOOKUP($I52,TS4L6_HDD,10,FALSE)*L52","v":0},{"$f":"VLOOKUP($I52,TS4L6_HDD,11,FALSE)","v":0},{"$f":"VLOOKUP($I52,TSL6_ALL,12,FALSE)","v":"L6N14"}]
[]
[null,null,null,null,null,null,null,null,{"$f":"ConfTS4L6!A95","v":"1.6TB SSD SAS ISE MU 12Gbps"},null,{"$f":"VLOOKUP($I54,TS4L6_HDD,13,FALSE)","v":"TS4L6-SSD-MU1,6TB"},0,null,{"$f":"R54","v":0},null,null,null,{"$f":"VLOOKUP($I54,TS4L6_HDD,10,FALSE)*L54","v":0},{"$f":"VLOOKUP($I54,TS4L6_HDD,11,FALSE)","v":0},{"$f":"VLOOKUP($I54,TSL6_ALL,12,FALSE)","v":"L6N15"}]
[]
[null,null,null,null,null,null,null,null,{"$f":"ConfTS4L6!A96","v":"960GB SSD SAS ISE RI 12Gbps"},null,{"$f":"VLOOKUP($I56,TS4L6_HDD,13,FALSE)","v":"TS4L6-SSD-RI800GB"},2,null,{"$f":"R56","v":0},null,null,null,{"$f":"IF(L56>2,(VLOOKUP($I56,TS4L6_HDD,10,FALSE)*(L56-2)),0)","v":0},{"$f":"VLOOKUP($I56,TS4L6_HDD,11,FALSE)*L56","v":0},{"$f":"VLOOKUP($I56,TSL6_ALL,12,FALSE)","v":"L6N16"}]
[]
[null,null,null,null,null,null,null,null,{"$f":"ConfTS4L6!A97","v":"800GB SSD SAS ISE Mix Use 12Gbps"},null,{"$f":"VLOOKUP($I58,TS4L6_HDD,13,FALSE)","v":"TS4L6-SSD-MU800GB"},0,null,{"$f":"R58","v":0},null,null,null,{"$f":"VLOOKUP($I58,TS4L6_HDD,10,FALSE)*L58","v":0},{"$f":"VLOOKUP($I58,TS4L6_HDD,11,FALSE)*L58","v":0},{"$f":"VLOOKUP($I58,TSL6_ALL,12,FALSE)","v":"L6N17"}]
[]
[null,null,null,null,null,null,null,null,{"$f":"ConfTS4L6!A99","v":"7.68TB SSD RI SAS ISE 12Gbps"},null,{"$f":"VLOOKUP($I60,TS4L6_HDD,13,FALSE)","v":"TS4L6-SSD7.68RI"},0,null,{"$f":"R60+S60","v":0},null,null,null,{"$f":"VLOOKUP($I60,TS4L6_HDD,11,FALSE)*L60","v":0},{"$f":"VLOOKUP($I60,TS4L6_HDD,10,FALSE)*L60","v":0},{"$f":"VLOOKUP($I60,TSL6_ALL,12,FALSE)","v":"L6N32"}]
[]
[null,null,null,null,null,null,null,null,"NVMe Bays N° 12",null,"Usati","Disponibili"]
[null,null,null,null,null,null,null,null,{"$f":"IF(AND($K$63>0,$I$13=\"PowerEdge R940 Server (General Purpose)\"),\"▲ Per Selezionare dischi nVME selezionare Chassis nVME o vSAN ▲\",\"\")","v":""},null,{"$f":"SUM(L64:L70)","v":0},{"$f":"12-K63","v":12}]
[null,null,null,null,null,null,null,null,{"$f":"ConfTS4L6!A98","v":"1.6TB Enterprise NVMe Mixed Use Drive U.2"},null,{"$f":"VLOOKUP($I64,TS4L6_HDD,13,FALSE)","v":"TS4L6-NVME1,6TB"},0,null,{"$f":"R64","v":0},null,null,null,{"$f":"VLOOKUP($I64,TS4L6_HDD,10,FALSE)*L64","v":0},{"$f":"VLOOKUP($I64,TS4L6_HDD,11,FALSE)","v":0},{"$f":"VLOOKUP($I64,TSL6_ALL,12,FALSE)","v":"L6N18"}]
[]
[null,null,null,null,null,null,null,null,{"$f":"ConfTS4L6!A100","v":"3.2TB, Enterprise, NVMe, Mixed Use"},null,{"$f":"VLOOKUP($I66,TS4L6_HDD,13,FALSE)","v":"TS4L6-NVMe3.2MU"},0,null,{"$f":"R66","v":0},null,null,null,{"$f":"VLOOKUP($I66,TS4L6_HDD,10,FALSE)*L66","v":0},{"$f":"VLOOKUP($I66,TS4L6_HDD,11,FALSE)","v":0},{"$f":"VLOOKUP($I66,TSL6_ALL,12,FALSE)","v":"L6N33"}]
[]
[null,null,null,null,null,null,null,null,{"$f":"ConfTS4L6!A101","v":"1.92TB, Enterprise, NVMe, Read Intensive"},null,{"$f":"VLOOKUP($I68,TS4L6_HDD,13,FALSE)","v":"TS4L6-NVMe1.92RI"},0,null,{"$f":"R68","v":0},null,null,null,{"$f":"VLOOKUP($I68,TS4L6_HDD,10,FALSE)*L68","v":0},{"$f":"VLOOKUP($I68,TS4L6_HDD,11,FALSE)","v":0},{"$f":"VLOOKUP($I68,TSL6_ALL,12,FALSE)","v":"L6N34"}]
[]
[null,null,null,null,null,null,null,null,{"$f":"ConfTS4L6!A102","v":"3.84TB, Enterprise, NVMe, Read Intensive"},null,{"$f":"VLOOKUP($I70,TS4L6_HDD,13,FALSE)","v":"TS4L6-NVMe3.84RI"},0,null,{"$f":"R70","v":0},null,null,null,{"$f":"VLOOKUP($I70,TS4L6_HDD,10,FALSE)*L70","v":0},{"$f":"VLOOKUP($I70,TS4L6_HDD,11,FALSE)","v":0},{"$f":"VLOOKUP($I70,TSL6_ALL,12,FALSE)","v":"L6N35"}]
[]
[null,null,null,null,null,null,null,null,"BOSS controller card"]
[null,null,null,null,null,null,null,null,{"$f":"IF(W13=\"\",ConfTS4L6!A119,IF(W13<>\"\",ConfTS4L6!A121,ConfTS4L6!A119))","v":"No Boss card"},null,{"$f":"IF(L73>0,VLOOKUP($I73,TS4L6_ISDM,13,FALSE),\"\")","v":""},{"$f":"VLOOKUP($I73,TS4L6_ISDM,7,FALSE)","v":""},null,{"$f":"R73+S73","v":0},null,null,null,{"$f":"VLOOKUP($I73,TS4L6_ISDM,10,FALSE)","v":0},{"$f":"IF(W13=\"v2tb\",0,IF(W13=\"v512\",0,VLOOKUP($I73,TS4L6_ISDM,11,FALSE)))","v":0},{"$f":"IF(W13=\"v2tb\",0,IF(W13=\"vsan\",0,IF(W13=\"v512\",0,VLOOKUP($I73,TSL6_ALL,12,FALSE))))","v":""}]
[]
[null,null,null,null,null,null,null,null,"Power Supply",{"$f":"IF(N75=\"\",\"\",U76)","v":""}]
[null,null,null,null,null,null,null,null,{"$f":"IF(W16=1,\"Dual, Hot-plug Power Supply (1+1), 1400W\",IF($K$16=\"TS3L4-GPUDW\",\"Dual, Hot-plug Power Supply (1+1), 2000W\",IF($K$16=\"TS3L4-GPUSW\",\"Dual, Hot-plug Power Supply (1+1), 2000W\",\"Dual, Hot-plug, Redundant Power Supply (1+1), 750W\")))","v":"Dual, Hot-plug Power Supply (1+1), 1400W"},null,{"$f":"VLOOKUP($I76,TS4L6_PSU,13,FALSE)","v":"TS4L6-PSU1400W"},{"$f":"VLOOKUP($I76,TS4L6_PSU,7,FALSE)","v":1},null,null,null,null,null,{"$f":"VLOOKUP($I76,TS4L6_PSU,10,FALSE)","v":0},{"$f":"VLOOKUP($I76,TS4L6_PSU,11,FALSE)","v":0},{"$f":"VLOOKUP($I76,TSL6_ALL,12,FALSE)","v":"L6N49"},"⚠"]
[]
[null,null,null,null,null,null,null,null,"Embedded Systems Management"]
[null,null,null,null,null,null,null,null,"iDRAC9,Enterprise"]
[]
[]
[null,null,null,null,null,null,null,null,null,null,null,null,null,null,null,null,null,null,null,null,{"$f":"IF($K$16=\"TS3L4-GPUDW\",\"1\",IF($K$16=\"TS3L4-GPUSW\",\"20\",IF($L$22=1,\"300\",\"4000\")))","v":"300"}]
[null,null,null,null,null,null,null,null,"PCI Slot 1 Processor 1 x8 PCIe for HL/FH",null,{"$f":"IF(AND(L22=0,SUM(L105:L120)>0),\"Selezionare Processore Aggiuntivo o Deselezionare\n Schede PCI\",\"\")","v":""}]
[null,null,null,null,null,null,null,null,"Riservato per PERC"]
[]
[null,null,null,null,null,null,null,null,"PCI Slot 2 Processor 1 x16 PCIe  for HL/FH",null,{"$f":"IF(OR($W$14=\"GP1\",$V$13=\"nVME1\"),\"Slot non utilizzabile in Configurazione 2 CPU\",IF(AND($W$14<>\"GP1\",I102=\"Non utilizzabile in configrazione 2CPU\"),\"Slot Utilizzabile\",IF(AND($V$13=\"NVME2\",I102=\"Non utilizzabile in Configurazione 2CPU\"),\"Slot Utilizzabile\",IF(AND($W$13=\"vsan64GB\",$I$22=\"No Additional Processor\"),\"Non utilizzabile in configurazione 2CPU\",IF(AND($W$13=\"vsan\",$I$22=\"No Additional Processor\"),\"Non utilizzabile in configurazione 2CPU\",\"\")))))","v":""}]
[null,null,null,null,null,null,null,null,null,null,{"$f":"IF(K86<>\"\",\"\",VLOOKUP($I87,TSL6_ALL,13,FALSE))","v":0},{"$f":"IF(K86<>\"\",0,VLOOKUP($I87,TSL6_ALL,7,FALSE))","v":0},null,{"$f":"R87+S87","v":0},null,null,null,{"$f":"IF(K86<>\"\",0,VLOOKUP($I87,TSL6_ALL,10,FALSE))","v":0},{"$f":"IF(K86<>\"\",0,VLOOKUP($I87,TSL6_ALL,11,FALSE))","v":0},{"$f":"VLOOKUP($I87,TSL6_ALL,12,FALSE)","v":0}]
[]
[null,null,null,null,null,null,null,null,"PCI Slot 3 Processor 1 x16 PCIe  for HL/FH"]
[null,null,null,null,null,null,null,null,"",null,{"$f":"VLOOKUP($I90,TSL6_ALL,13,FALSE)","v":0},{"$f":"VLOOKUP($I90,TSL6_ALL,7,FALSE)","v":0},null,{"$f":"R90+S90","v":0},null,null,null,{"$f":"VLOOKUP($I90,TSL6_ALL,10,FALSE)","v":0},{"$f":"VLOOKUP($I90,TSL6_ALL,11,FALSE)","v":0},{"$f":"VLOOKUP($I90,TSL6_ALL,12,FALSE)","v":0}]
[]
[null,null,null,null,null,null,null,null,"PCI Slot 4 Processor 2 x16 PCIe  for HL/FH",{"$f":"IF($V$82=\"SW\",\"GPU Slot\",IF($V$82=\"DW\",\"GPU Slot\",\"\"))","v":""},{"$f":"IF(OR($W$14=\"GP1\",$V$13=\"nVME1\"),\"Slot non utilizzabile in Configurazione 2 CPU\",IF(AND($W$14<>\"GP1\",I102=\"Non utilizzabile in configrazione 2CPU\"),\"Slot Utilizzabile\",IF(AND($V$13=\"NVME2\",I102=\"Non utilizzabile in Configurazione 2CPU\"),\"Slot Utilizzabile\",IF(AND($W$13=\"vsan64GB\",$I$22=\"No Additional Processor\"),\"Non utilizzabile in configurazione 2CPU\",IF(AND($W$13=\"vsan\",$I$22=\"No Additional Processor\"),\"Non utilizzabile in configurazione 2CPU\",\"\")))))","v":""}]
[null,null,null,null,null,null,null,null,"",null,{"$f":"VLOOKUP($I93,TSL6_ALL,13,FALSE)","v":0},{"$f":"VLOOKUP($I93,TSL6_ALL,7,FALSE)","v":0},null,{"$f":"R93+S93","v":0},null,null,null,{"$f":"VLOOKUP($I93,TSL6_ALL,10,FALSE)","v":0},{"$f":"VLOOKUP($I93,TSL6_ALL,11,FALSE)","v":0},{"$f":"VLOOKUP($I93,TSL6_ALL,12,FALSE)","v":0}]
[]
[null,null,null,null,null,null,null,null,"PCI Slot 5 Processor 2 x8 PCIe  for HL/FH",{"$f":"IF($V$82=\"SW\",\"GPU Slot\",\"\")","v":""},{"$f":"IF(AND(I96<>\"\",I96<>\"Riservato BOSS Card\",W13=\"v2tb\"),\"Slot dedicato a BOSS Card\",IF(AND(I96<>\"\",I96<>\"Riservato BOSS Card\",W13=\"vsan\"),\"Slot dedicato a BOSS Card\",IF(AND(I96=\"Riservato BOSS Card\",W14=\"GP1\"),\"← E' Possibile utilizzare lo SLOT PCI\",IF(AND(I96=\"Riservato BOSS Card\",W14=\"GP2\"),\"← E' Possibile utilizzare lo SLOT PCI\",IF(AND(I96=\"Riservato BOSS Card\",V13=\"NVME1\"),\"← E' Possibile utilizzare lo SLOT PCI\",IF(AND(I96=\"Riservato BOSS Card\",V13=\"NVME2\"),\"← E' Possibile utilizzare lo SLOT PCI\",\"\"))))))","v":""}]
[null,null,null,null,null,null,null,null,"",null,{"$f":"VLOOKUP($I96,TSL6_ALL,13,FALSE)","v":0},{"$f":"VLOOKUP($I96,TSL6_ALL,7,FALSE)","v":0},null,{"$f":"R96+S96","v":0},null,null,null,{"$f":"IF(K95=\"Slot dedicato a BOSS Card\",0,VLOOKUP($I96,TSL6_ALL,10,FALSE))","v":0},{"$f":"VLOOKUP($I96,TSL6_ALL,11,FALSE)","v":0},{"$f":"IF(K95=\"Slot dedicato a BOSS card\",\"\",VLOOKUP($I96,TSL6_ALL,12,FALSE))","v":0}]
[]
[null,null,null,null,null,null,null,null,"PCI Slot 6 Processor 2 x8 PCIe  for HL/FH"]
[null,null,null,null,null,null,null,null,"",null,{"$f":"VLOOKUP($I99,TSL6_ALL,13,FALSE)","v":0},{"$f":"IF($V$13=\"VxFlex\",1,VLOOKUP($I99,TSL6_ALL,7,FALSE))","v":0},null,{"$f":"R99+S99","v":0},null,null,null,{"$f":"IF($V$13=\"VxFlex\",419,VLOOKUP($I99,TSL6_ALL,10,FALSE))","v":0},null,{"$f":"VLOOKUP($I99,TSL6_ALL,12,FALSE)","v":0}]
[]
[null,null,null,null,null,null,null,null,"PCI Slot 7 Processor 2 x16 PCIe  for HL/FH",{"$f":"IF($V$82=\"SW\",\"GPU Slot\",\"\")","v":""},{"$f":"IF(OR($W$14=\"GP1\",$V$13=\"nVME1\"),\"Slot non utilizzabile in Configurazione 2 CPU\",IF(AND($W$14<>\"GP1\",I102=\"Non utilizzabile in configrazione 2CPU\"),\"Slot Utilizzabile\",IF(AND($V$13=\"NVME2\",I102=\"Non utilizzabile in Configurazione 2CPU\"),\"Slot Utilizzabile\",IF(AND($W$13=\"vsan64GB\",$I$22=\"No Additional Processor\"),\"Non utilizzabile in configurazione 2CPU\",IF(AND($W$13=\"vsan\",$I$22=\"No Additional Processor\"),\"Non utilizzabile in configurazione 2CPU\",\"\")))))","v":""}]
[null,null,null,null,null,null,null,null,"",null,{"$f":"VLOOKUP($I102,TSL6_ALL,13,FALSE)","v":0},{"$f":"VLOOKUP($I102,TSL6_ALL,7,FALSE)","v":0},null,{"$f":"R102+S102","v":0},null,null,null,{"$f":"VLOOKUP($I102,TSL6_ALL,10,FALSE)","v":0},{"$f":"VLOOKUP($I102,TSL6_ALL,11,FALSE)","v":0},{"$f":"VLOOKUP($I102,TSL6_ALL,12,FALSE)","v":0}]
[]
[null,null,null,null,null,null,null,{"$f":"IF($I$22=\"No Additional Processor\",\"Gli Slot 8-13 sono disponibili aggiungendo Terzo e Quarto Processore\",\"\")","v":""},"PCI Slot 8 Processor 3 x16 PCIe  for HL/FH",{"$f":"IF($V$82=\"SW\",\"GPU Slot\",\"\")","v":""},{"$f":"IF(AND(W13=\"vsan\",I22<>\"No Additional Processor\"),\"Non utilizzabile in configurazione 4CPU\",IF(AND(W13=\"boss3TB\",I22<>\"No Additional Processor\"),\"Non utilizzabile in configurazione 4CPU\",IF(AND(W13=\"vsan64GB\",I22<>\"No Additional Processor\"),\"Non utilizzabile in configurazione 4CPU\",IF(OR($W$14=\"GP2\",$V$13=\"nVME2\"),\"Slot non utilizzabile in Configurazione 4 CPU\",IF(AND($W$14<>\"GP2\",I105=\"Non utilizzabile in configurazione 4CPU\"),\"Aggiungere Terzo e Quarto Processore\",IF(AND($V$13<>\"nVME2\",I105=\"Non utilizzabile in configurazione 4CPU\"),\"Aggiungere Terzo e Quarto Processore\",\"\"))))))","v":"Slot non utilizzabile in Configurazione 4 CPU"}]
[null,null,null,null,null,null,null,null,null,null,{"$f":"VLOOKUP($I105,TSL6_ALL,13,FALSE)","v":0},{"$f":"VLOOKUP($I105,TSL6_ALL,7,FALSE)","v":0},null,{"$f":"R105+S105","v":0},null,null,null,{"$f":"VLOOKUP($I105,TSL6_ALL,10,FALSE)","v":0},{"$f":"VLOOKUP($I105,TSL6_ALL,11,FALSE)","v":0},{"$f":"VLOOKUP($I105,TSL6_ALL,12,FALSE)","v":0}]
[]
[null,null,null,null,null,null,null,null,"PCI Slot 9 Processor 3 x16 PCIe  for HL/FH",{"$f":"IF($V$82=\"SW\",\"GPU Slot\",IF($V$82=\"DW\",\"GPU Slot\",\"\"))","v":""}]
[null,null,null,null,null,null,null,null,"",null,{"$f":"VLOOKUP($I108,TSL6_ALL,13,FALSE)","v":0},{"$f":"VLOOKUP($I108,TSL6_ALL,7,FALSE)","v":0},null,{"$f":"R108+S108","v":0},null,null,null,{"$f":"VLOOKUP($I108,TSL6_ALL,10,FALSE)","v":0},{"$f":"VLOOKUP($I108,TSL6_ALL,11,FALSE)","v":0},{"$f":"VLOOKUP($I108,TSL6_ALL,12,FALSE)","v":0}]
[]
[null,null,null,null,null,null,null,null,"PCI Slot 10 Processor 3 x16 PCIe  for HL/FH",{"$f":"IF($V$82=\"SW\",\"GPU Slot\",IF($V$82=\"DW\",\"GPU Slot\",\"\"))","v":""}]
[null,null,null,null,null,null,null,null,"",null,{"$f":"VLOOKUP($I111,TSL6_ALL,13,FALSE)","v":0},{"$f":"VLOOKUP($I111,TSL6_ALL,7,FALSE)","v":0},null,{"$f":"R111+S111","v":0},null,null,null,{"$f":"VLOOKUP($I111,TSL6_ALL,10,FALSE)","v":0},{"$f":"VLOOKUP($I111,TSL6_ALL,11,FALSE)","v":0},{"$f":"VLOOKUP($I111,TSL6_ALL,12,FALSE)","v":0}]
[]
[null,null,null,null,null,null,null,null,"PCI Slot 11 Processor 4 x16 PCIe  for HL/FH",{"$f":"IF($V$82=\"SW\",\"GPU Slot\",IF($V$82=\"DW\",\"GPU Slot\",\"\"))","v":""},{"$f":"IF(AND(W13=\"vsan\",I22<>\"No Additional Processor\"),\"Non utilizzabile in configurazione 4CPU\",IF(AND($W$13=\"boss3TB\",$I$22<>\"No Additional Processor\"),\"Non utilizzabile in configurazione 4CPU\",IF(AND($W$13=\"vsan64GB\",$I$22<>\"No Additional Processor\"),\"Non utilizzabile in configurazione 4CPU\",IF(OR($W$14=\"GP2\",$V$13=\"nVME2\"),\"Slot non utilizzabile in Configurazione 4 CPU\",IF(AND($W$14<>\"GP2\",$I$105=\"Non utilizzabile in configurazione 4CPU\"),\"Aggiungere Terzo e Quarto Processore\",IF(AND($V$13<>\"nVME2\",$I$105=\"Non utilizzabile in configurazione 4CPU\"),\"Aggiungere Terzo e Quarto Processore\",\"\"))))))","v":"Slot non utilizzabile in Configurazione 4 CPU"}]
[null,null,null,null,null,null,null,null,"",null,{"$f":"VLOOKUP($I114,TSL6_ALL,13,FALSE)","v":0},{"$f":"VLOOKUP($I114,TSL6_ALL,7,FALSE)","v":0},null,{"$f":"R114+S114","v":0},null,null,null,{"$f":"VLOOKUP($I114,TSL6_ALL,10,FALSE)","v":0},{"$f":"VLOOKUP($I114,TSL6_ALL,11,FALSE)","v":0},{"$f":"VLOOKUP($I114,TSL6_ALL,12,FALSE)","v":0}]
[]
[null,null,null,null,null,null,null,null,"PCI Slot 12 Processor 4 x16 PCIe  for HL/FH",{"$f":"IF($V$82=\"SW\",\"GPU Slot\",IF($V$82=\"DW\",\"GPU Slot\",\"\"))","v":""},{"$f":"IF(AND(W13=\"vsan\",I22<>\"No Additional Processor\"),\"Non utilizzabile in configurazione 4CPU\",IF(AND($W$13=\"boss3TB\",$I$22<>\"No Additional Processor\"),\"Non utilizzabile in configurazione 4CPU\",IF(AND($W$13=\"vsan64GB\",$I$22<>\"No Additional Processor\"),\"Non utilizzabile in configurazione 4CPU\",IF(OR($W$14=\"GP2\",$V$13=\"nVME2\"),\"Slot non utilizzabile in Configurazione 4 CPU\",IF(AND($W$14<>\"GP2\",$I$105=\"Non utilizzabile in configurazione 4CPU\"),\"Aggiungere Terzo e Quarto Processore\",IF(AND($V$13<>\"nVME2\",$I$105=\"Non utilizzabile in configurazione 4CPU\"),\"Aggiungere Terzo e Quarto Processore\",\"\"))))))","v":"Slot non utilizzabile in Configurazione 4 CPU"}]
[null,null,null,null,null,null,null,null,"",null,{"$f":"VLOOKUP($I117,TSL6_ALL,13,FALSE)","v":0},{"$f":"VLOOKUP($I117,TSL6_ALL,7,FALSE)","v":0},null,{"$f":"R117+S117","v":0},null,null,null,{"$f":"VLOOKUP($I117,TSL6_ALL,10,FALSE)","v":0},{"$f":"VLOOKUP($I117,TSL6_ALL,11,FALSE)","v":0},{"$f":"VLOOKUP($I117,TSL6_ALL,12,FALSE)","v":0}]
[null,null,null,null,null,null,null,null,null,null,null,null,null,{"$f":"IF(T117=\"L4N33\",IF($U$105>1,\"ERRORE: SOLO UNA BOSS CARD PUO' ESSERE CONFIGURATA\",\"\"),\"\")","v":""}]
[null,null,null,null,null,null,null,null,"PCI Slot 13 Processor 4 x16 PCIe  for HL/FH",{"$f":"IF($V$82=\"SW\",\"GPU Slot\",IF($V$82=\"DW\",\"GPU Slot\",\"\"))","v":""}]
[null,null,null,null,null,null,null,null,"",null,{"$f":"VLOOKUP($I120,TSL6_ALL,13,FALSE)","v":0},{"$f":"VLOOKUP($I120,TSL6_ALL,7,FALSE)","v":0},null,{"$f":"R120+S120","v":0},null,null,null,{"$f":"VLOOKUP($I120,TSL6_ALL,10,FALSE)","v":0},{"$f":"VLOOKUP($I120,TSL6_ALL,11,FALSE)","v":0},{"$f":"VLOOKUP($I120,TSL6_ALL,12,FALSE)","v":0}]
[]
[null,null,null,null,null,null,null,null,"SFP+ Transceivers 10 Gbps"]
[null,null,null,null,null,null,null,null,{"$f":"ConfTS4L6!A165","v":"SFP+ SR Optic for all SFP+ ports except high temp validation warning cards"},null,{"$f":"VLOOKUP($I123,TS4L6_SFP,13,FALSE)","v":"TS4L6-OT10GB"},0,null,{"$f":"R123+S123","v":0},null,null,null,{"$f":"VLOOKUP($I123,TS4L6_SFP,10,FALSE)","v":0},{"$f":"VLOOKUP($I123,TS4L6_SFP,11,FALSE)*L123","v":0},{"$f":"IF(L123>0,VLOOKUP($I123,TS4L6_SFP,12,FALSE),\"\")","v":""}]
[]
[null,null,null,null,null,null,null,null,"SFP28 - 25GbE"]
[null,null,null,null,null,null,null,null,{"$f":"ConfTS4L6!A166","v":"SFP28 SR Optic, 25GbE, 85C, for all SFP28 ports"},null,{"$f":"VLOOKUP($I126,TS4L6_SFP,13,FALSE)","v":"TS4L6-OT25GB"},0,null,{"$f":"R126+S126","v":0},null,null,null,{"$f":"VLOOKUP($I126,TS4L6_SFP,10,FALSE)","v":0},{"$f":"VLOOKUP($I126,TS4L6_SFP,11,FALSE)*L126","v":0},{"$f":"IF(L126>0,VLOOKUP($I126,TS4L6_SFP,12,FALSE),\"\")","v":""}]
[]
[null,null,null,null,null,null,null,null,"QSFP28 Transceivers"]
[null,null,null,null,null,null,null,null,{"$f":"ConfTS4L6!A167","v":"Dell EMC PowerEdge QSFP28 SR4 100GbE 85C optic"},null,{"$f":"VLOOKUP($I129,TS4L6_SFP,13,FALSE)","v":"TS4L6-OT100GB"},0,null,{"$f":"R129+S129","v":0},null,null,null,{"$f":"VLOOKUP($I129,TS4L6_SFP,10,FALSE)","v":0},{"$f":"VLOOKUP($I129,TS4L6_SFP,11,FALSE)*L129","v":0},{"$f":"IF(L129>0,VLOOKUP($I129,TS4L6_SFP,12,FALSE),\"\")","v":""}]
[]
[null,null,null,null,null,null,null,null,"Garanzia"]
[null,null,null,null,null,null,null,null,"Manutenzione in garanzia (36 mesi)",null,{"$f":"VLOOKUP($I132,TS4L6_WARRANTY,13,FALSE)","v":""},{"$f":"VLOOKUP($I132,TSL6_ALL,7,FALSE)","v":""},null,{"$f":"R132","v":0},null,null,null,{"$f":"VLOOKUP($I132,TS4L6_WARRANTY,10,FALSE)","v":0},{"$f":"VLOOKUP($I132,TS4L6_WARRANTY,11,FALSE)","v":0},{"$f":"VLOOKUP($I132,TSL6_ALL,12,FALSE)","v":""}]
[]
[null,null,null,null,null,null,null,null,"Hard Disk Retention",null,null,{"$f":"IF(AND(I135=\"Hard disk Retention 60 mesi\",L132=\"\"),\"Selezionare Estensione di Garanzia 60 Mesi\",IF(AND(L132=1,I135=\"Hard Disk Retention 36 mesi\"),\"Selezionare Hard Disk Retention 60 Mesi\",\"\"))","v":""}]
[null,null,null,null,null,null,null,null,"",null,{"$f":"VLOOKUP($I135,TS4L6_HDDRET,13,FALSE)","v":""},{"$f":"IF(I135=\"\",\"\",1)","v":""},null,{"$f":"R135","v":""},null,null,null,{"$f":"IFERROR(W135,VLOOKUP(I135,TS4L6_HDDRET,10,FALSE))","v":""},{"$f":"IFERROR(X135,VLOOKUP(I135,TSL6_ALL,11,FALSE))","v":0},{"$f":"IFERROR(Y135,VLOOKUP(I135,TS4L6_HDDRET,12,FALSE))","v":""},null,{"$f":"IF(L132+L135=2,VLOOKUP(\"Hard Disk Retention 60 mesi\",TSL6_ALL,13,FALSE),VLOOKUP(I135,TSL6_ALL,13,FALSE))","v":{"$error":"#VALUE!"}},{"$f":"IF(L132+L135=2,VLOOKUP(\"Hard Disk Retention 60 mesi\",TSL6_ALL,10,FALSE),VLOOKUP(I135,TSL6_ALL,10,FALSE))","v":{"$error":"#VALUE!"}},{"$f":"IF(L132+L135=2,VLOOKUP(\"Hard Disk Retention (60 mesi)\",TSL6_ALL,11,FALSE),VLOOKUP(I135,TSL6_ALL,11,FALSE))","v":{"$error":"#VALUE!"}},{"$f":"IF(L132+L135=2,VLOOKUP(\"Hard Disk Retention 60 mesi\",TSL6_ALL,12,FALSE),VLOOKUP(I135,TSL6_ALL,12,FALSE))","v":{"$error":"#VALUE!"}}]
[]
[]
[null,null,null,null,null,null,null,null,null,null,"Configurazione",{"$f":"SUM(R13:R135)*L8","v":0},null,null,null,null,null,{"$f":"SUM(L105:L120)","v":0}]
[null,null,null,null,null,null,null,null,null,null,0.2,{"$f":"SUM(S13:S135)*L8","v":0}]
[null,null,null,null,null,null,null,null,null,null,"Totale",{"$f":"SUM(L138:L139)","v":0}]
[]
[null,null,null,null,null,null,null,null,"NOTE"]

{"sheet":"Lotto6_R940_2","index":2,"n_rows":142,"n_cols":25,"rows_kept":142,"cut":false,"hidden":false,"merged":[[142,8,153,11],[103,10,103,11],[112,10,112,11],[115,10,115,11],[100,10,100,11],[103,7,107,7],[130,9,131,9],[133,9,134,9],[141,8,141,11],[76,13,78,14],[77,9,78,9],[82,10,82,11],[94,10,94,11],[17,9,18,9],[24,13,25,13],[39,9,40,9],[39,11,39,13],[60,10,60,11],[74,9,75,9],[85,10,85,11],[91,10,91,11],[42,8,43,8],[58,10,58,11],[14,9,15,9],[1,8,2,8],[3,8,5,8],[3,10,4,10],[5,10,6,10],[11,9,12,9]]}
[]
[null,null,null,null,null,null,null,null,"Convenzione Tecnologie Server 4 - Lotto 6",null,{"$f":"IF(U105>1,\"ERRORE NELLA CONFIGURAZIONE\",\"\")","v":""},null,null,{"$f":"IF(N6<0,\"Superata Quota 20%\",\"\")","v":""}]
[null,null,null,null,null,null,null,null,null,null,null,null,null,"Articoli 20% Totali",null,null,null,null,"Check CPU","Check RAM","Check NVME","Check PCI","Check Win","Check Tot"]
[null,null,null,null,null,null,null,null,{"$f":"IF(W13=\"vsan\",\"Selezionando la soluzione vSAN si accetta la sostituzione del controller 745 con il HBA355, comprensivo di BOSS Card Certificati per vSAN\",IF(W13=\"v2tb\",\"Selezionando la soluzione vSAN si accetta la sostituzione del controller 745 con il HBA355, comprensivo di BOSS Card Certificati per vSAN\",\"\"))","v":""},null,{"$f":"IF(X4>1,\"Errori nella Configurazione\",IF(S4>0,\"Errore nella Selezione della CPU\",IF(T4>0,\"Errore Nella Selezione della RAM\",IF(U4>0,\"Errore Nella selezione dello Chassis per Dischi nVME\",IF(V4>0,\"Errore nella Selezione Slot PCI\",IF(W4>0,\"Errore nella Selezione Licenze Windows\",\"\"))))))","v":""},"Totale Altre Opzioni",null,{"$f":"Riepilogo_Ordine!K140","v":0},null,null,null,null,{"$f":"IF(L19<>\"\",1,0)","v":0},{"$f":"IF(L24<>\"\",1,0)","v":0},{"$f":"IF(I14<>\"\",1,0)","v":0},{"$f":"IF(K83<>\"\",1,0)","v":0},{"$f":"IF(L27<>\"\",1,0)","v":0},{"$f":"SUM(S4:W4)","v":0}]
[null,null,null,null,null,null,null,null,null,null,null,{"$f":"Altre_Opzioni!H3","v":0},null,"Quota residua 20 %"]
[null,null,null,null,null,null,null,null,null,null,"Guida alla Convenzione","Totale Configurazione",null,{"$f":"Riepilogo_Ordine!G141","v":0}]
[null,null,null,null,null,null,null,null,{"$f":"IF(Riepilogo_Ordine!Q3>0,\"Compilare i Dati Necessari all'Ordine per Stampare in PDF o Controllare le Configurazioni\",\"Dati Completi\")","v":"Compilare i Dati Necessari all'Ordine per Stampare in PDF o Controllare le Configurazioni"},null,null,{"$f":"$L$140","v":0},null,"Totale Ordine Iva Esclusa",null,null,null,null,{"$f":"IF(AND($W$13=\"vsan64GB\",L22=0),ConfTS4L6!$A$47:$A$48,IF(AND($W$13=\"vsan64GB\",$L$22=1),ConfTS4L6!$A$51:$A$52,\"\"))","v":""}]
[null,null,null,null,null,null,null,null,"DELL POWEREDGE R940",null,"Quantità Server",0,null,{"$f":"Riepilogo_Ordine!K141","v":0}]
[]
[]
[]
[null,null,null,null,null,null,null,null,"Base",null,null,null,null,null,null,null,null,null,null,null,null,"PowerEdge R940 Server (General Purpose)"]
[null,null,null,null,null,null,null,null,"PowerEdge R940 Server (General Purpose)",null,{"$f":"IF($L$8>0,VLOOKUP(I13,ConfTS4L6!A3:M7,13,FALSE),\"\")","v":""},{"$f":"IF($L$8>0,1,\"\")","v":""},null,{"$f":"R13","v":5754.51},null,null,null,{"$f":"VLOOKUP($I$13,TSL6_ALL,10,FALSE)","v":5754.51},null,{"$f":"VLOOKUP($I13,TS4L6_BASE,12,FALSE)","v":"L6N01"},null,{"$f":"IF(AND(I13=ConfTS4L6!A12,L22=0),\"nVME1\",IF(AND(I13=ConfTS4L6!A12,L22=1),\"NVME2\",\"\"))","v":""},{"$f":"IF(I13=ConfTS4L6!A13,\"vsan\",IF(I13=ConfTS4L6!A15,\"Boss3TB\",IF(I13=ConfTS4L6!A14,\"vsan64GB\",\"\")))","v":""},{"$f":"IF(I13=ConfTS4L6!A15,\"Boss3TB\",\"\")","v":""}]
[null,null,null,null,null,null,null,null,{"$f":"IF(AND($K$63>0,$I$13=\"PowerEdge R940 Server (General Purpose)\"),\"▲ Per Selezionare dischi nVME selezionare Chassis nVME o vSAN ▲\",\"\")","v":""},null,null,null,null,null,null,null,null,null,null,null,null,null,{"$f":"IF(AND(I13=\"PowerEdge R940 Server (General Purpose)\",L22=0),\"GP1\",IF(AND(I13=\"PowerEdge R940 Server (General Purpose)\",L22=1),\"GP2\",\"\"))","v":"GP1"}]
[null,null,null,null,null,null,null,null,"Chassis Configuration",null,{"$f":"IF($V$82=\"SW\",\"MAX 4 GPU\",IF($V$82=\"DW\",\"MAX 2 GPU\",\"\"))","v":""}]
[null,null,null,null,null,null,null,null,{"$f":"IF($L$22=1,VLOOKUP($I$13,TS4L6_Chassis,3,FALSE),VLOOKUP($I$13,TS4L6_Chassis,2,FALSE))","v":"Chassis with Up to 12X 2.5 SAS/SATA + 12X 2.5 for 2CPU Configuration"},null,{"$f":"IF(T16=\"L6N122\",Tabella_prezzi!F85,IF(T16=\"L6N123\",Tabella_prezzi!F86,IF(T16=\"L6N124\",Tabella_prezzi!F87,IF(T16=\"L6N125\",Tabella_prezzi!F88,IF($L$22=1,VLOOKUP($I$13,TS4L6_Chassis,13,FALSE),VLOOKUP($I$13,TS4L6_Chassis,13,FALSE))))))","v":""},{"$f":"IF(I13=V12,VLOOKUP($I$13,TS4L6_Chassis,6,FALSE),VLOOKUP($I$13,TS4L6_Chassis,7,FALSE))","v":""},null,{"$f":"R16+S16","v":0},null,null,null,{"$f":"VLOOKUP($I$13,TS4L6_Chassis,10,FALSE)","v":0},{"$f":"IF(T16=\"L6N125\",Tabella_prezzi!D88,IF(T16=\"L6N122\",Tabella_prezzi!D85,IF(T16=\"L6N123\",Tabella_prezzi!D86,IF(T16=\"L6N124\",Tabella_prezzi!D87,VLOOKUP(I13,TS4L6_Chassis,11,FALSE)))))","v":0},{"$f":"IF(AND(W13=\"vsan64GB\",I26=1024),\"L6N123\",IF(AND(W13=\"vsan64GB\",I26=1536),\"L6N122\",IF(AND(W13=\"vsan64GB\",I26=2048),\"L6N124\",IF(AND(W13=\"Boss3TB\",I26=3072),\"L6N125\",VLOOKUP($I13,TS4L6_Chassis,12,FALSE)))))","v":0},null,"Chassis with Up to 24 x 2.5'' Hard Drives for 2CPU Configuration",1]
[]
[null,null,null,null,null,null,null,null,"Processor"]
[null,null,null,null,null,null,null,null,"2 x Intel Xeon Gold 6252N, 2.3G, 24C/48T, 10.4GT/s, 35.75M Cache, Turbo, HT (150W) DDR4-2933",null,null,{"$f":"IF(AND(W13=\"boss3TB\",L22=0),\"Selezionare Processori Aggiuntivi per Configurazione BOSS 3TB\",IF(AND(W13=\"vsan64GBb\",L22=0),\"Selezionare Processori Aggiuntivi per Configurazione vSAN 2 TB\",IF(AND(V13=\"nVME\",L22=0),\"Selezionare Processori Aggiuntivi per Configurazione nVME\",IF(AND(W13=2048,L22=\"\"),\"Selezionare Processore Aggiuntivo per Configurazione vSAN\",IF(AND(X13=\"Nutanix\",L22=\"\"),\"Selezionare Processore Aggiuntivo per Configurazione Nutanix\",\"\")))))","v":""},null,null,null,null,null,{"$f":"IF(L16=1,VLOOKUP($I$19,TS4L6_CPU,11,FALSE),VLOOKUP($I$19,TS4L6_CPU,11,FALSE))","v":0},{"$f":"IF(L16=1,VLOOKUP($I$19,TS4L6_CPU,11,FALSE),VLOOKUP($I$19,TS4L6_CPU,11,FALSE))","v":0},{"$f":"IF(S19=0,0,VLOOKUP($I19,TS4L6_CPU,12,FALSE))","v":0}]
[]
[null,null,null,null,null,null,null,null,"Additional Processor"]
[null,null,null,null,null,null,null,null,"No Additional Processor",null,{"$f":"IF(L16=1,VLOOKUP($I$19,TS4L6_CPU,13,FALSE),VLOOKUP($I$22,TS4L6_CPU,13,FALSE))","v":""},{"$f":"IF(L16=1,VLOOKUP($I$22,TS4L6_CPU,7,FALSE),VLOOKUP($I$22,TS4L6_CPU,7,FALSE))","v":0},null,{"$f":"R22","v":0},null,null,null,{"$f":"IF(L22=1,VLOOKUP($I$19,TS4L6_CPU,10,FALSE),VLOOKUP($I$22,TS4L6_CPU,10,FALSE))","v":0},{"$f":"IF(L16=1,VLOOKUP($I$19,TS4L6_CPU,11,FALSE),VLOOKUP($I$22,TS4L6_CPU,11,FALSE))","v":0},{"$f":"IF(L22=1,VLOOKUP(I19,TSL6_ALL,12,FALSE),VLOOKUP($I22,TS4L6_CPU,12,FALSE))","v":""},null,{"$f":"IF(L16=1,\"2 x Intel Xeon Gold 6252N, 2.3G, 24C/48T, 10.4GT/s, 35.75M Cache, Turbo, HT (150W) DDR4-2933\",I22)","v":"No Additional Processor"}]
[]
[null,null,null,null,null,null,null,null,"Memory Capacity (GB)",null,null,{"$f":"IF(AND(W13=\"vsan\",L22=0,I25<>512,I25<>768),\"Selezionare RAM Corretta\",IF(AND(W13=\"vsan\",L22=1,I25<>1024,I25<>1536),\"Selezionare RAM Corretta\",IF(AND(W13=\"v2tb\",I25<>2048),\"Selezionare 2 TB RAM\",IF(AND(W13=\"v2tb\",L22=0),\"Selezionare Processori\",IF(AND(X13=\"vsan\",L22=\"\",I25>768),\"Selezionare RAM Corretta\",IF(AND(W14=\"GP1\",I25>768),\"Selezionare RAM Corretta\",IF(AND(W14=\"GP2\",I25>1536),\"Selezionare RAM Corretta\",IF(AND(V13=\"nVME1\",I25>768),\"Selezionare RAM Corretta\",IF(AND(V13=\"NVME2\",I25>1536),\"Selezionare RAM Corretta\",IF(AND(I25<>\"\",I26>2000,W13=\"vsan64GB\"),\"Deselezionare RAM 32GB e Aggiungere RAM 64GB\",IF(AND(W13<>\"vsan64GB\",W13<>\"Boss3TB\",I26<>\"\",I25=0),\"Deselezionare RAM 64 GB\",IF(AND(W13=\"Boss3TB\",I26=\"\",I25=\"\"),\"Selezionare RAM 64\",IF(AND(W13<>\"vsan64GB\",I26=\"\",I25=\"\"),\"Selezionare RAM 32\",IF(AND(I25=\"\",I26=\"\",W13=\"vsan64GB\"),\"Selezionare RAM 64\",IF(AND(L22=1,W13=\"vsan64GB\",I26<2000),\"Selezionare RAM 64 GB Corretta\",IF(AND(L22=0,W13=\"vsan64GB\",I26>2000),\"Selezionare Processore Aggiuntivo per 2TB\",IF(AND(L22=1,W13=\"Boss3TB\",I26<3000),\"Selezionare RAM 64 Corretta\",IF(AND(L22=1,W13=\"Boss3TB\",I25<>\"\"),\"Deselezionare RAM 32\",IF(AND(L22=1,W13=\"vsan64GB\",I26>3000),\"Selezionare RAM 64 Corretta\",IF(AND(W13=\"vsan\",I26<>\"\"),\"Deselezionare RAM 64\",\"\"))))))))))))))))))))","v":""}]
[null,null,null,null,null,null,null,null,512,null,"TS4L6-RAM32",{"$f":"W25","v":0},null,{"$f":"R25+R26","v":0},null,null,null,{"$f":"X25","v":0},null,{"$f":"Y25","v":"L6N03"},null,null,{"$f":"IF(L24<>\"\",0,IF(OR(W13=\"vsan64GB\",W13=\"Boss3TB\"),0,IF(AND(W13=\"v2tb\",L22=1),VLOOKUP(I25,ConfTS4L6!A51:S51,11,FALSE),IF($L$22=1,VLOOKUP($I$25,TS4L6_RAM2CPU,7,FALSE),VLOOKUP($I$25,TS4L6_RAM1CPU,7,FALSE)))))","v":0},{"$f":"IF(L24<>\"\",0,IF(OR(W13=\"vsan64GB\",W13=\"Boss3TB\"),0,IF(AND(W13=\"v2tb\",L22=1),VLOOKUP(I25,ConfTS4L6!A51:S51,11,FALSE),IF($L$22=1,VLOOKUP($I$25,TS4L6_RAM2CPU,10,FALSE),VLOOKUP($I$25,TS4L6_RAM1CPU,10,FALSE)))))","v":0},{"$f":"IF(L24<>\"\",\"\",IF(OR(W13=\"vsan64GB\",W13=\"Boss3TB\"),0,IF($L$22=1,VLOOKUP($I$25,ConfTS4L6!A56:M75,12,FALSE),VLOOKUP($I$25,TS4L6_RAM1CPU,12,FALSE))))","v":"L6N03"}]
[null,null,null,null,null,null,null,null,"",null,"TS4L6-RAM64",{"$f":"W26","v":0},null,null,null,null,null,{"$f":"X26","v":0},null,{"$f":"Y26","v":0},null,null,{"$f":"IF(L19<>\"\",\"\",IF(L24<>\"\",0,IF(W13=\"vsan\",0,IF(W13=\"\",0,IF(W13=\"Boss3TB\",VLOOKUP(I26,TS4L6_64GB,7,FALSE),IF(AND(W13=\"vsan64GB\",L22<>0),VLOOKUP(I26,TS4L6_64GB,7,FALSE),IF(AND(W13=\"vsan64GB\",L22=0),VLOOKUP(I26,TS4L6_2cpu64gb,7,FALSE))))))))","v":0},{"$f":"IF(L19<>\"\",0,IF(L24<>\"\",0,IF(W13=\"vsan\",0,IF(W13=\"\",0,IF(W13=\"Boss3TB\",VLOOKUP(I26,TS4L6_64GB,10,FALSE),IF(AND(W13=\"vsan64GB\",L22<>0),VLOOKUP(I26,TS4L6_64GB,10,FALSE),IF(AND(W13=\"vsan64GB\",L22=0),VLOOKUP(I26,TS4L6_2cpu64gb,10,FALSE))))))))","v":0},{"$f":"IF(L19<>\"\",\"\",IF(L24<>\"\",0,IF(W13=\"vsan\",0,IF(W13=\"\",0,IF(W13=\"Boss3TB\",VLOOKUP(I26,TS4L6_64GB,12,FALSE),IF(AND(W13=\"vsan64GB\",L22<>0),VLOOKUP(I26,TS4L6_64GB,12,FALSE),IF(AND(W13=\"vsan64GB\",L22=0),VLOOKUP(I26,TS4L6_2cpu64gb,12,FALSE))))))))","v":0}]
[]
[null,null,null,null,null,null,null,null,"Operating System STANDARD",null,null,{"$f":"IF(AND(I29=\"Ubuntu Server 22.04 LTS 64 Bit\",L30<>\"\"),\"Deselezionare Licenze 2 Core\",IF(I29=\"Ubuntu Server 22.04 LTS 64 Bit\",\"\",IF(AND(L29=1,L30=0),\"Selezionare Licenze 2 Core\",IF(AND(L22=0,L30>64),\"Selezionare Licenze 2 Core Corrette\",IF(AND(L22=1,L30=16),\"Selezionare Licenze 2 Core Corrette\",IF(AND(L29=0,L30>0),\"Deselezionare Licenze 2 Core\",\"\"))))))","v":""}]
[null,null,null,null,null,null,null,null,"No Operating System",null,{"$f":"VLOOKUP($I$29,TS4L6_OS,13,FALSE)","v":""},{"$f":"IF(I29=\"Windows Server 2022,Standard,ROK,16CORE\",1,IF(I29=\"Ubuntu Server 22.04 LTS 64 Bit\",1,0))","v":0},null,{"$f":"R29","v":0},null,null,null,{"$f":"VLOOKUP($I$29,TS4L6_OS,10,FALSE)*L29","v":0},{"$f":"VLOOKUP($I$29,TS4L6_OS,11,FALSE)","v":0},{"$f":"VLOOKUP($I29,TSL6_ALL,12,FALSE)","v":""}]
[null,null,null,null,null,null,null,null,"Windows Server 2022 Standard Edition, Add License,2CORE",null,{"$f":"VLOOKUP($I$30,TS4L6_OS,13,FALSE)","v":"TS4L6-WINSRV2C"},null,null,{"$f":"R30","v":0},null,null,null,{"$f":"IF(L28<>\"\",0,VLOOKUP($I$30,TS4L6_OS,10,FALSE))*L30","v":0},{"$f":"VLOOKUP($I$29,TS4L6_OS,11,FALSE)","v":0},{"$f":"IF(L28<>\"\",\"\",VLOOKUP($I30,TSL6_ALL,12,FALSE))","v":"L6N25"}]
[]
[null,null,null,null,null,null,null,null,"Operating System DATACENTER"]
[null,null,null,null,null,null,null,null,"No Operating System",null,{"$f":"VLOOKUP($I$33,ConfTS4L6!A79:X88,13,FALSE)","v":""},{"$f":"IF(I33=\"Windows Server 2022,Datacenter,ROK,16CORE\",1,0)","v":0},null,{"$f":"R33","v":0},null,null,null,{"$f":"VLOOKUP($I$33,ConfTS4L6!A79:X86,10,FALSE)*L33","v":0},{"$f":"VLOOKUP($I$29,TS4L6_OS,11,FALSE)","v":0},{"$f":"VLOOKUP($I33,TSL6_ALL,12,FALSE)","v":""}]
[null,null,null,null,null,null,null,null,"Windows Server 2022 / 2019 Datacenter Edition,Add License,2CORE",null,{"$f":"VLOOKUP($I$34,TS4L6_OS,13,FALSE)","v":"TS4L6-WinServDC2core"},{"$f":"IF(AND(L22=1,L33=1),40,IF(AND(L22=1,L33=0),0,IF(AND(L22=0,L33=1),16,IF(AND(L22=\"\",L33=\"\"),0,0))))","v":0},null,{"$f":"R34","v":0},null,null,null,{"$f":"VLOOKUP($I$34,TS4L6_OS,10,FALSE)*L34","v":0},{"$f":"VLOOKUP($I$29,TS4L6_OS,11,FALSE)","v":0},{"$f":"VLOOKUP($I34,TS4L6_OS,12,FALSE)","v":"L6N27"}]
[]
[null,null,null,null,null,null,null,null,"Operating System Device CAL / User CAL"]
[null,null,null,null,null,null,null,null,"1-pack of Windows Server 2022/2019 Device CALs (STD or DC)",null,{"$f":"VLOOKUP($I$37,ConfTS4L6!A83:X84,13,FALSE)","v":"TS4L6-WINDEVCAL"},0,null,{"$f":"R37","v":0},null,null,null,{"$f":"VLOOKUP($I$37,ConfTS4L6!A83:O84,10,FALSE)*L37","v":0},{"$f":"VLOOKUP($I$29,TS4L6_OS,11,FALSE)","v":0},{"$f":"VLOOKUP($I37,TSL6_ALL,12,FALSE)","v":"L6N23"}]
[null,null,null,null,null,null,null,null,"1-pack of Windows Server 2022/2019 User CALs (STD or DC)",null,{"$f":"VLOOKUP($I$38,ConfTS4L6!A84:X85,13,FALSE)","v":"TS4L6-WINUSRCAL"},0,null,{"$f":"R38","v":0},null,null,null,{"$f":"VLOOKUP($I$38,ConfTS4L6!A84:O85,10,FALSE)*L38","v":0},{"$f":"VLOOKUP($I$29,TS4L6_OS,11,FALSE)","v":0},{"$f":"VLOOKUP($I38,TSL6_ALL,12,FALSE)","v":"L6N24"}]
[]
[null,null,null,null,null,null,null,null,"Disk Controller  (PCI SLOT 1)"]
[null,null,null,null,null,null,{"$f":"IF($K$16=\"TS3L4-VSAN\",\"vSAN HCL\",\"\")","v":""},null,{"$f":"IF(W13=\"vsan64GB\",ConfTS4L6!A116,IF(W13=\"vsan\",ConfTS4L6!A116,ConfTS4L6!A115))","v":"PERC H740P RAID Controller, 8Gb NV Cache, Adapter, Full Height"},null,{"$f":"IF($W$13<>\"\",\"\",IF(L41>0,VLOOKUP($I41,TS4L6_CRTL,13,FALSE),\"\"))","v":""},{"$f":"IF($W$13<>\"\",\"\",VLOOKUP($I41,TS4L6_CRTL,7,FALSE))","v":""},null,{"$f":"R41+S41","v":0},null,null,null,{"$f":"IF(I41=ConfTS4L6!A59,0,VLOOKUP($I41,TS4L6_CRTL,10,FALSE))","v":0},{"$f":"IF(W13=\"v2tb\",0,IF(W13=\"v512\",0,VLOOKUP($I41,TS4L6_CRTL,11,FALSE)))","v":0},{"$f":"IF(W13=\"v2tb\",\"\",IF(W13=\"vsan\",\"\",IF(W13=\"v512\",\"\",VLOOKUP($I41,TSL6_ALL,12,FALSE))))","v":"L6N44"},null,{"$f":"IF(K41=\"TS3L4-HBA330-L\",1,0)","v":0},{"$f":"IF(I41=\"PERC H740P RAID Controller, 8GB NV Cache\",1,0)","v":0},{"$f":"IF(Y41=1,Y41*V41,W41*V41)","v":0},{"$f":"IF(N7=\"\",1,0)","v":0}]
[]
[null,null,null,null,null,null,null,null,"Hard Drivers Bays n° 12 - 2 bay occupate dai dischi 960GB SSD di base",null,"Usati","Disponibili"]
[null,null,null,null,null,null,null,null,null,null,{"$f":"L46+L48+L50+L56+L58+L52+L54+L60","v":2},{"$f":"12-K44","v":10}]
[]
[null,null,null,null,null,null,null,null,{"$f":"ConfTS4L6!A91","v":"2.4TB 10k SAS ISE 12Gbps"},null,{"$f":"VLOOKUP($I46,TS4L6_HDD,13,FALSE)","v":"TS4L6-HDD2TB"},0,null,{"$f":"R46","v":0},null,null,null,{"$f":"VLOOKUP($I46,TS4L6_HDD,10,FALSE)*L46","v":0},{"$f":"VLOOKUP($I46,TS4L6_HDD,11,FALSE)","v":0},{"$f":"VLOOKUP($I46,TSL6_ALL,12,FALSE)","v":"L6N11"}]
[]
[null,null,null,null,null,null,null,null,{"$f":"ConfTS4L6!A92","v":"1.2TB 10K RPM SAS ISE 12Gbps"},null,{"$f":"VLOOKUP($I48,TS4L6_HDD,13,FALSE)","v":"TS4L6-HDD1TB"},0,null,{"$f":"R48","v":0},null,null,null,{"$f":"VLOOKUP($I48,TS4L6_HDD,10,FALSE)*L48","v":0},{"$f":"VLOOKUP($I48,TS4L6_HDD,11,FALSE)","v":0},{"$f":"VLOOKUP($I48,TSL6_ALL,12,FALSE)","v":"L6N12"}]
[]
[null,null,null,null,null,null,null,null,{"$f":"ConfTS4L6!A93","v":"3.84TB SSD SAS ISE RI 12Gbps"},null,{"$f":"VLOOKUP($I50,TS4L6_HDD,13,FALSE)","v":"TS4L6-SSD-RI3,8TB"},0,null,{"$f":"R50","v":0},null,null,null,{"$f":"VLOOKUP($I50,TS4L6_HDD,10,FALSE)*L50","v":0},{"$f":"VLOOKUP($I50,TS4L6_HDD,11,FALSE)","v":0},{"$f":"VLOOKUP($I50,TSL6_ALL,12,FALSE)","v":"L6N13"}]
[]
[null,null,null,null,null,null,null,null,{"$f":"ConfTS4L6!A94","v":"1.92TB SSD SAS ISE RI 12Gbps"},null,{"$f":"VLOOKUP($I52,TS4L6_HDD,13,FALSE)","v":"TS4L6-SSD-RI1,6TB"},0,null,{"$f":"R52","v":0},null,null,null,{"$f":"VLOOKUP($I52,TS4L6_HDD,10,FALSE)*L52","v":0},{"$f":"VLOOKUP($I52,TS4L6_HDD,11,FALSE)","v":0},{"$f":"VLOOKUP($I52,TSL6_ALL,12,FALSE)","v":"L6N14"}]
[]
[null,null,null,null,null,null,null,null,{"$f":"ConfTS4L6!A95","v":"1.6TB SSD SAS ISE MU 12Gbps"},null,{"$f":"VLOOKUP($I54,TS4L6_HDD,13,FALSE)","v":"TS4L6-SSD-MU1,6TB"},0,null,{"$f":"R54","v":0},null,null,null,{"$f":"VLOOKUP($I54,TS4L6_HDD,10,FALSE)*L54","v":0},{"$f":"VLOOKUP($I54,TS4L6_HDD,11,FALSE)","v":0},{"$f":"VLOOKUP($I54,TSL6_ALL,12,FALSE)","v":"L6N15"}]
[]
[null,null,null,null,null,null,null,null,{"$f":"ConfTS4L6!A96","v":"960GB SSD SAS ISE RI 12Gbps"},null,{"$f":"VLOOKUP($I56,TS4L6_HDD,13,FALSE)","v":"TS4L6-SSD-RI800GB"},2,null,{"$f":"R56","v":0},null,null,null,{"$f":"IF(L56>2,(VLOOKUP($I56,TS4L6_HDD,10,FALSE)*(L56-2)),0)","v":0},{"$f":"VLOOKUP($I56,TS4L6_HDD,11,FALSE)*L56","v":0},{"$f":"VLOOKUP($I56,TSL6_ALL,12,FALSE)","v":"L6N16"}]
[]
[null,null,null,null,null,null,null,null,{"$f":"ConfTS4L6!A97","v":"800GB SSD SAS ISE Mix Use 12Gbps"},null,{"$f":"VLOOKUP($I58,TS4L6_HDD,13,FALSE)","v":"TS4L6-SSD-MU800GB"},0,null,{"$f":"R58","v":0},null,null,null,{"$f":"VLOOKUP($I58,TS4L6_HDD,10,FALSE)*L58","v":0},{"$f":"VLOOKUP($I58,TS4L6_HDD,11,FALSE)*L58","v":0},{"$f":"VLOOKUP($I58,TSL6_ALL,12,FALSE)","v":"L6N17"}]
[]
[null,null,null,null,null,null,null,null,{"$f":"ConfTS4L6!A99","v":"7.68TB SSD RI SAS ISE 12Gbps"},null,{"$f":"VLOOKUP($I60,TS4L6_HDD,13,FALSE)","v":"TS4L6-SSD7.68RI"},0,null,{"$f":"R60+S60","v":0},null,null,null,{"$f":"VLOOKUP($I60,TS4L6_HDD,11,FALSE)*L60","v":0},{"$f":"VLOOKUP($I60,TS4L6_HDD,10,FALSE)*L60","v":0},{"$f":"VLOOKUP($I60,TSL6_ALL,12,FALSE)","v":"L6N32"}]
[]
[null,null,null,null,null,null,null,null,"NVMe Bays N° 12",null,"Usati","Disponibili"]
[null,null,null,null,null,null,null,null,{"$f":"IF(AND($K$63>0,$I$13=\"PowerEdge R940 Server (General Purpose)\"),\"▲ Per Selezionare dischi nVME selezionare Chassis nVME o vSAN ▲\",\"\")","v":""},null,{"$f":"SUM(L64:L70)","v":0},{"$f":"12-K63","v":12}]
[null,null,null,null,null,null,null,null,{"$f":"ConfTS4L6!A98","v":"1.6TB Enterprise NVMe Mixed Use Drive U.2"},null,{"$f":"VLOOKUP($I64,TS4L6_HDD,13,FALSE)","v":"TS4L6-NVME1,6TB"},0,null,{"$f":"R64","v":0},null,null,null,{"$f":"VLOOKUP($I64,TS4L6_HDD,10,FALSE)*L64","v":0},{"$f":"VLOOKUP($I64,TS4L6_HDD,11,FALSE)","v":0},{"$f":"VLOOKUP($I64,TSL6_ALL,12,FALSE)","v":"L6N18"}]
[]
[null,null,null,null,null,null,null,null,{"$f":"ConfTS4L6!A100","v":"3.2TB, Enterprise, NVMe, Mixed Use"},null,{"$f":"VLOOKUP($I66,TS4L6_HDD,13,FALSE)","v":"TS4L6-NVMe3.2MU"},0,null,{"$f":"R66","v":0},null,null,null,{"$f":"VLOOKUP($I66,TS4L6_HDD,10,FALSE)*L66","v":0},{"$f":"VLOOKUP($I66,TS4L6_HDD,11,FALSE)","v":0},{"$f":"VLOOKUP($I66,TSL6_ALL,12,FALSE)","v":"L6N33"}]
[]
[null,null,null,null,null,null,null,null,{"$f":"ConfTS4L6!A101","v":"1.92TB, Enterprise, NVMe, Read Intensive"},null,{"$f":"VLOOKUP($I68,TS4L6_HDD,13,FALSE)","v":"TS4L6-NVMe1.92RI"},0,null,{"$f":"R68","v":0},null,null,null,{"$f":"VLOOKUP($I68,TS4L6_HDD,10,FALSE)*L68","v":0},{"$f":"VLOOKUP($I68,TS4L6_HDD,11,FALSE)","v":0},{"$f":"VLOOKUP($I68,TSL6_ALL,12,FALSE)","v":"L6N34"}]
[]
[null,null,null,null,null,null,null,null,{"$f":"ConfTS4L6!A102","v":"3.84TB, Enterprise, NVMe, Read Intensive"},null,{"$f":"VLOOKUP($I70,TS4L6_HDD,13,FALSE)","v":"TS4L6-NVMe3.84RI"},0,null,{"$f":"R70","v":0},null,null,null,{"$f":"VLOOKUP($I70,TS4L6_HDD,10,FALSE)*L70","v":0},{"$f":"VLOOKUP($I70,TS4L6_HDD,11,FALSE)","v":0},{"$f":"VLOOKUP($I70,TSL6_ALL,12,FALSE)","v":"L6N35"}]
[]
[null,null,null,null,null,null,null,null,"BOSS controller card"]
[null,null,null,null,null,null,null,null,{"$f":"IF(W13=\"\",ConfTS4L6!A119,IF(W13<>\"\",ConfTS4L6!A121,ConfTS4L6!A119))","v":"No Boss card"},null,{"$f":"IF(L73>0,VLOOKUP($I73,TS4L6_ISDM,13,FALSE),\"\")","v":""},{"$f":"VLOOKUP($I73,TS4L6_ISDM,7,FALSE)","v":""},null,{"$f":"R73+S73","v":0},null,null,null,{"$f":"VLOOKUP($I73,TS4L6_ISDM,10,FALSE)","v":0},{"$f":"IF(W13=\"v2tb\",0,IF(W13=\"v512\",0,VLOOKUP($I73,TS4L6_ISDM,11,FALSE)))","v":0},{"$f":"IF(W13=\"v2tb\",0,IF(W13=\"vsan\",0,IF(W13=\"v512\",0,VLOOKUP($I73,TSL6_ALL,12,FALSE))))","v":""}]
[]
[null,null,null,null,null,null,null,null,"Power Supply",{"$f":"IF(N75=\"\",\"\",U76)","v":""}]
[null,null,null,null,null,null,null,null,{"$f":"IF(W16=1,\"Dual, Hot-plug Power Supply (1+1), 1400W\",IF($K$16=\"TS3L4-GPUDW\",\"Dual, Hot-plug Power Supply (1+1), 2000W\",IF($K$16=\"TS3L4-GPUSW\",\"Dual, Hot-plug Power Supply (1+1), 2000W\",\"Dual, Hot-plug, Redundant Power Supply (1+1), 750W\")))","v":"Dual, Hot-plug Power Supply (1+1), 1400W"},null,{"$f":"VLOOKUP($I76,TS4L6_PSU,13,FALSE)","v":"TS4L6-PSU1400W"},{"$f":"VLOOKUP($I76,TS4L6_PSU,7,FALSE)","v":1},null,null,null,null,null,{"$f":"VLOOKUP($I76,TS4L6_PSU,10,FALSE)","v":0},{"$f":"VLOOKUP($I76,TS4L6_PSU,11,FALSE)","v":0},{"$f":"VLOOKUP($I76,TSL6_ALL,12,FALSE)","v":"L6N49"},"⚠"]
[]
[null,null,null,null,null,null,null,null,"Embedded Systems Management"]
[null,null,null,null,null,null,null,null,"iDRAC9,Enterprise"]
[]
[]
[null,null,null,null,null,null,null,null,null,null,null,null,null,null,null,null,null,null,null,null,{"$f":"IF($K$16=\"TS3L4-GPUDW\",\"1\",IF($K$16=\"TS3L4-GPUSW\",\"20\",IF($L$22=1,\"300\",\"4000\")))","v":"4000"}]
[null,null,null,null,null,null,null,null,"PCI Slot 1 Processor 1 x8 PCIe for HL/FH",null,{"$f":"IF(AND(L22=0,SUM(L105:L120)>0),\"Selezionare Processore Aggiuntivo o Deselezionare\n Schede PCI\",\"\")","v":""}]
[null,null,null,null,null,null,null,null,"Riservato per PERC"]
[]
[null,null,null,null,null,null,null,null,"PCI Slot 2 Processor 1 x16 PCIe  for HL/FH",null,{"$f":"IF(OR($W$14=\"GP1\",$V$13=\"nVME1\"),\"Slot non utilizzabile in Configurazione 2 CPU\",IF(AND($W$14<>\"GP1\",I102=\"Non utilizzabile in configrazione 2CPU\"),\"Slot Utilizzabile\",IF(AND($V$13=\"NVME2\",I102=\"Non utilizzabile in Configurazione 2CPU\"),\"Slot Utilizzabile\",IF(AND($W$13=\"vsan64GB\",$I$22=\"No Additional Processor\"),\"Non utilizzabile in configurazione 2CPU\",IF(AND($W$13=\"vsan\",$I$22=\"No Additional Processor\"),\"Non utilizzabile in configurazione 2CPU\",\"\")))))","v":"Slot non utilizzabile in Configurazione 2 CPU"}]
[null,null,null,null,null,null,null,null,null,null,{"$f":"IF(K86<>\"\",\"\",VLOOKUP($I87,TSL6_ALL,13,FALSE))","v":""},{"$f":"IF(K86<>\"\",0,VLOOKUP($I87,TSL6_ALL,7,FALSE))","v":0},null,{"$f":"R87+S87","v":0},null,null,null,{"$f":"IF(K86<>\"\",0,VLOOKUP($I87,TSL6_ALL,10,FALSE))","v":0},{"$f":"IF(K86<>\"\",0,VLOOKUP($I87,TSL6_ALL,11,FALSE))","v":0},{"$f":"VLOOKUP($I87,TSL6_ALL,12,FALSE)","v":0}]
[]
[null,null,null,null,null,null,null,null,"PCI Slot 3 Processor 1 x16 PCIe  for HL/FH"]
[null,null,null,null,null,null,null,null,"",null,{"$f":"VLOOKUP($I90,TSL6_ALL,13,FALSE)","v":0},{"$f":"VLOOKUP($I90,TSL6_ALL,7,FALSE)","v":0},null,{"$f":"R90+S90","v":0},null,null,null,{"$f":"VLOOKUP($I90,TSL6_ALL,10,FALSE)","v":0},{"$f":"VLOOKUP($I90,TSL6_ALL,11,FALSE)","v":0},{"$f":"VLOOKUP($I90,TSL6_ALL,12,FALSE)","v":0}]
[]
[null,null,null,null,null,null,null,null,"PCI Slot 4 Processor 2 x16 PCIe  for HL/FH",{"$f":"IF($V$82=\"SW\",\"GPU Slot\",IF($V$82=\"DW\",\"GPU Slot\",\"\"))","v":""},{"$f":"IF(OR($W$14=\"GP1\",$V$13=\"nVME1\"),\"Slot non utilizzabile in Configurazione 2 CPU\",IF(AND($W$14<>\"GP1\",I102=\"Non utilizzabile in configrazione 2CPU\"),\"Slot Utilizzabile\",IF(AND($V$13=\"NVME2\",I102=\"Non utilizzabile in Configurazione 2CPU\"),\"Slot Utilizzabile\",IF(AND($W$13=\"vsan64GB\",$I$22=\"No Additional Processor\"),\"Non utilizzabile in configurazione 2CPU\",IF(AND($W$13=\"vsan\",$I$22=\"No Additional Processor\"),\"Non utilizzabile in configurazione 2CPU\",\"\")))))","v":"Slot non utilizzabile in Configurazione 2 CPU"}]
[null,null,null,null,null,null,null,null,"",null,{"$f":"VLOOKUP($I93,TSL6_ALL,13,FALSE)","v":0},{"$f":"VLOOKUP($I93,TSL6_ALL,7,FALSE)","v":0},null,{"$f":"R93+S93","v":0},null,null,null,{"$f":"VLOOKUP($I93,TSL6_ALL,10,FALSE)","v":0},{"$f":"VLOOKUP($I93,TSL6_ALL,11,FALSE)","v":0},{"$f":"VLOOKUP($I93,TSL6_ALL,12,FALSE)","v":0}]
[]
[null,null,null,null,null,null,null,null,"PCI Slot 5 Processor 2 x8 PCIe  for HL/FH",{"$f":"IF($V$82=\"SW\",\"GPU Slot\",\"\")","v":""},{"$f":"IF(AND(I96<>\"\",I96<>\"Riservato BOSS Card\",W13=\"v2tb\"),\"Slot dedicato a BOSS Card\",IF(AND(I96<>\"\",I96<>\"Riservato BOSS Card\",W13=\"vsan\"),\"Slot dedicato a BOSS Card\",IF(AND(I96=\"Riservato BOSS Card\",W14=\"GP1\"),\"← E' Possibile utilizzare lo SLOT PCI\",IF(AND(I96=\"Riservato BOSS Card\",W14=\"GP2\"),\"← E' Possibile utilizzare lo SLOT PCI\",IF(AND(I96=\"Riservato BOSS Card\",V13=\"NVME1\"),\"← E' Possibile utilizzare lo SLOT PCI\",IF(AND(I96=\"Riservato BOSS Card\",V13=\"NVME2\"),\"← E' Possibile utilizzare lo SLOT PCI\",\"\"))))))","v":""}]
[null,null,null,null,null,null,null,null,"",null,{"$f":"VLOOKUP($I96,TSL6_ALL,13,FALSE)","v":0},{"$f":"VLOOKUP($I96,TSL6_ALL,7,FALSE)","v":0},null,{"$f":"R96+S96","v":0},null,null,null,{"$f":"IF(K95=\"Slot dedicato a BOSS Card\",0,VLOOKUP($I96,TSL6_ALL,10,FALSE))","v":0},{"$f":"VLOOKUP($I96,TSL6_ALL,11,FALSE)","v":0},{"$f":"IF(K95=\"Slot dedicato a BOSS card\",\"\",VLOOKUP($I96,TSL6_ALL,12,FALSE))","v":0}]
[]
[null,null,null,null,null,null,null,null,"PCI Slot 6 Processor 2 x8 PCIe  for HL/FH"]
[null,null,null,null,null,null,null,null,"",null,{"$f":"VLOOKUP($I99,TSL6_ALL,13,FALSE)","v":0},{"$f":"IF($V$13=\"VxFlex\",1,VLOOKUP($I99,TSL6_ALL,7,FALSE))","v":0},null,{"$f":"R99+S99","v":0},null,null,null,{"$f":"IF($V$13=\"VxFlex\",419,VLOOKUP($I99,TSL6_ALL,10,FALSE))","v":0},null,{"$f":"VLOOKUP($I99,TSL6_ALL,12,FALSE)","v":0}]
[]
[null,null,null,null,null,null,null,null,"PCI Slot 7 Processor 2 x16 PCIe  for HL/FH",{"$f":"IF($V$82=\"SW\",\"GPU Slot\",\"\")","v":""},{"$f":"IF(OR($W$14=\"GP1\",$V$13=\"nVME1\"),\"Slot non utilizzabile in Configurazione 2 CPU\",IF(AND($W$14<>\"GP1\",I102=\"Non utilizzabile in configrazione 2CPU\"),\"Slot Utilizzabile\",IF(AND($V$13=\"NVME2\",I102=\"Non utilizzabile in Configurazione 2CPU\"),\"Slot Utilizzabile\",IF(AND($W$13=\"vsan64GB\",$I$22=\"No Additional Processor\"),\"Non utilizzabile in configurazione 2CPU\",IF(AND($W$13=\"vsan\",$I$22=\"No Additional Processor\"),\"Non utilizzabile in configurazione 2CPU\",\"\")))))","v":"Slot non utilizzabile in Configurazione 2 CPU"}]
[null,null,null,null,null,null,null,null,"",null,{"$f":"VLOOKUP($I102,TSL6_ALL,13,FALSE)","v":0},{"$f":"VLOOKUP($I102,TSL6_ALL,7,FALSE)","v":0},null,{"$f":"R102+S102","v":0},null,null,null,{"$f":"VLOOKUP($I102,TSL6_ALL,10,FALSE)","v":0},{"$f":"VLOOKUP($I102,TSL6_ALL,11,FALSE)","v":0},{"$f":"VLOOKUP($I102,TSL6_ALL,12,FALSE)","v":0}]
[]
[null,null,null,null,null,null,null,{"$f":"IF($I$22=\"No Additional Processor\",\"Gli Slot 8-13 sono disponibili aggiungendo Terzo e Quarto Processore\",\"\")","v":"Gli Slot 8-13 sono disponibili aggiungendo Terzo e Quarto Processore"},"PCI Slot 8 Processor 32 x16 PCIe  for HL/FH",{"$f":"IF($V$82=\"SW\",\"GPU Slot\",\"\")","v":""},{"$f":"IF(AND(W13=\"vsan\",I22<>\"No Additional Processor\"),\"Non utilizzabile in configurazione 4CPU\",IF(AND(W13=\"boss3TB\",I22<>\"No Additional Processor\"),\"Non utilizzabile in configurazione 4CPU\",IF(AND(W13=\"vsan64GB\",I22<>\"No Additional Processor\"),\"Non utilizzabile in configurazione 4CPU\",IF(OR($W$14=\"GP2\",$V$13=\"nVME2\"),\"Slot non utilizzabile in Configurazione 4 CPU\",IF(AND($W$14<>\"GP2\",I105=\"Non utilizzabile in configurazione 4CPU\"),\"Aggiungere Terzo e Quarto Processore\",IF(AND($V$13<>\"nVME2\",I105=\"Non utilizzabile in configurazione 4CPU\"),\"Aggiungere Terzo e Quarto Processore\",\"\"))))))","v":""}]
[null,null,null,null,null,null,null,null,null,null,{"$f":"VLOOKUP($I105,TSL6_ALL,13,FALSE)","v":0},{"$f":"VLOOKUP($I105,TSL6_ALL,7,FALSE)","v":0},null,{"$f":"R105+S105","v":0},null,null,null,{"$f":"VLOOKUP($I105,TSL6_ALL,10,FALSE)","v":0},{"$f":"VLOOKUP($I105,TSL6_ALL,11,FALSE)","v":0},{"$f":"VLOOKUP($I105,TSL6_ALL,12,FALSE)","v":0}]
[]
[null,null,null,null,null,null,null,null,"PCI Slot 9 Processor 3 x16 PCIe  for HL/FH",{"$f":"IF($V$82=\"SW\",\"GPU Slot\",IF($V$82=\"DW\",\"GPU Slot\",\"\"))","v":""}]
[null,null,null,null,null,null,null,null,"",null,{"$f":"VLOOKUP($I108,TSL6_ALL,13,FALSE)","v":0},{"$f":"VLOOKUP($I108,TSL6_ALL,7,FALSE)","v":0},null,{"$f":"R108+S108","v":0},null,null,null,{"$f":"VLOOKUP($I108,TSL6_ALL,10,FALSE)","v":0},{"$f":"VLOOKUP($I108,TSL6_ALL,11,FALSE)","v":0},{"$f":"VLOOKUP($I108,TSL6_ALL,12,FALSE)","v":0}]
[]
[null,null,null,null,null,null,null,null,"PCI Slot 10 Processor 3 x16 PCIe  for HL/FH",{"$f":"IF($V$82=\"SW\",\"GPU Slot\",IF($V$82=\"DW\",\"GPU Slot\",\"\"))","v":""}]
[null,null,null,null,null,null,null,null,"",null,{"$f":"VLOOKUP($I111,TSL6_ALL,13,FALSE)","v":0},{"$f":"VLOOKUP($I111,TSL6_ALL,7,FALSE)","v":0},null,{"$f":"R111+S111","v":0},null,null,null,{"$f":"VLOOKUP($I111,TSL6_ALL,10,FALSE)","v":0},{"$f":"VLOOKUP($I111,TSL6_ALL,11,FALSE)","v":0},{"$f":"VLOOKUP($I111,TSL6_ALL,12,FALSE)","v":0}]
[]
[null,null,null,null,null,null,null,null,"PCI Slot 11 Processor 4 x16 PCIe  for HL/FH",{"$f":"IF($V$82=\"SW\",\"GPU Slot\",IF($V$82=\"DW\",\"GPU Slot\",\"\"))","v":""},{"$f":"IF(AND(W13=\"vsan\",I22<>\"No Additional Processor\"),\"Non utilizzabile in configurazione 4CPU\",IF(AND($W$13=\"boss3TB\",$I$22<>\"No Additional Processor\"),\"Non utilizzabile in configurazione 4CPU\",IF(AND($W$13=\"vsan64GB\",$I$22<>\"No Additional Processor\"),\"Non utilizzabile in configurazione 4CPU\",IF(OR($W$14=\"GP2\",$V$13=\"nVME2\"),\"Slot non utilizzabile in Configurazione 4 CPU\",IF(AND($W$14<>\"GP2\",$I$105=\"Non utilizzabile in configurazione 4CPU\"),\"Aggiungere Terzo e Quarto Processore\",IF(AND($V$13<>\"nVME2\",$I$105=\"Non utilizzabile in configurazione 4CPU\"),\"Aggiungere Terzo e Quarto Processore\",\"\"))))))","v":""}]
[null,null,null,null,null,null,null,null,"",null,{"$f":"VLOOKUP($I114,TSL6_ALL,13,FALSE)","v":0},{"$f":"VLOOKUP($I114,TSL6_ALL,7,FALSE)","v":0},null,{"$f":"R114+S114","v":0},null,null,null,{"$f":"VLOOKUP($I114,TSL6_ALL,10,FALSE)","v":0},{"$f":"VLOOKUP($I114,TSL6_ALL,11,FALSE)","v":0},{"$f":"VLOOKUP($I114,TSL6_ALL,12,FALSE)","v":0}]
[]
[null,null,null,null,null,null,null,null,"PCI Slot 12 Processor 4 x16 PCIe  for HL/FH",{"$f":"IF($V$82=\"SW\",\"GPU Slot\",IF($V$82=\"DW\",\"GPU Slot\",\"\"))","v":""},{"$f":"IF(AND(W13=\"vsan\",I22<>\"No Additional Processor\"),\"Non utilizzabile in configurazione 4CPU\",IF(AND($W$13=\"boss3TB\",$I$22<>\"No Additional Processor\"),\"Non utilizzabile in configurazione 4CPU\",IF(AND($W$13=\"vsan64GB\",$I$22<>\"No Additional Processor\"),\"Non utilizzabile in configurazione 4CPU\",IF(OR($W$14=\"GP2\",$V$13=\"nVME2\"),\"Slot non utilizzabile in Configurazione 4 CPU\",IF(AND($W$14<>\"GP2\",$I$105=\"Non utilizzabile in configurazione 4CPU\"),\"Aggiungere Terzo e Quarto Processore\",IF(AND($V$13<>\"nVME2\",$I$105=\"Non utilizzabile in configurazione 4CPU\"),\"Aggiungere Terzo e Quarto Processore\",\"\"))))))","v":""}]
[null,null,null,null,null,null,null,null,"",null,{"$f":"VLOOKUP($I117,TSL6_ALL,13,FALSE)","v":0},{"$f":"VLOOKUP($I117,TSL6_ALL,7,FALSE)","v":0},null,{"$f":"R117+S117","v":0},null,null,null,{"$f":"VLOOKUP($I117,TSL6_ALL,10,FALSE)","v":0},{"$f":"VLOOKUP($I117,TSL6_ALL,11,FALSE)","v":0},{"$f":"VLOOKUP($I117,TSL6_ALL,12,FALSE)","v":0}]
[null,null,null,null,null,null,null,null,null,null,null,null,null,{"$f":"IF(T117=\"L4N33\",IF($U$105>1,\"ERRORE: SOLO UNA BOSS CARD PUO' ESSERE CONFIGURATA\",\"\"),\"\")","v":""}]
[null,null,null,null,null,null,null,null,"PCI Slot 13 Processor 4 x16 PCIe  for HL/FH",{"$f":"IF($V$82=\"SW\",\"GPU Slot\",IF($V$82=\"DW\",\"GPU Slot\",\"\"))","v":""}]
[null,null,null,null,null,null,null,null,"",null,{"$f":"VLOOKUP($I120,TSL6_ALL,13,FALSE)","v":0},{"$f":"VLOOKUP($I120,TSL6_ALL,7,FALSE)","v":0},null,{"$f":"R120+S120","v":0},null,null,null,{"$f":"VLOOKUP($I120,TSL6_ALL,10,FALSE)","v":0},{"$f":"VLOOKUP($I120,TSL6_ALL,11,FALSE)","v":0},{"$f":"VLOOKUP($I120,TSL6_ALL,12,FALSE)","v":0}]
[]
[null,null,null,null,null,null,null,null,"SFP+ Transceivers 10 Gbps"]
[null,null,null,null,null,null,null,null,{"$f":"ConfTS4L6!A165","v":"SFP+ SR Optic for all SFP+ ports except high temp validation warning cards"},null,{"$f":"VLOOKUP($I123,TS4L6_SFP,13,FALSE)","v":"TS4L6-OT10GB"},0,null,{"$f":"R123+S123","v":0},null,null,null,{"$f":"VLOOKUP($I123,TS4L6_SFP,10,FALSE)","v":0},{"$f":"VLOOKUP($I123,TS4L6_SFP,11,FALSE)*L123","v":0},{"$f":"IF(L123>0,VLOOKUP($I123,TS4L6_SFP,12,FALSE),\"\")","v":""}]
[]
[null,null,null,null,null,null,null,null,"SFP28 - 25GbE"]
[null,null,null,null,null,null,null,null,{"$f":"ConfTS4L6!A166","v":"SFP28 SR Optic, 25GbE, 85C, for all SFP28 ports"},null,{"$f":"VLOOKUP($I126,TS4L6_SFP,13,FALSE)","v":"TS4L6-OT25GB"},0,null,{"$f":"R126+S126","v":0},null,null,null,{"$f":"VLOOKUP($I126,TS4L6_SFP,10,FALSE)","v":0},{"$f":"VLOOKUP($I126,TS4L6_SFP,11,FALSE)*L126","v":0},{"$f":"IF(L126>0,VLOOKUP($I126,TS4L6_SFP,12,FALSE),\"\")","v":""}]
[]
[null,null,null,null,null,null,null,null,"QSFP28 Transceivers"]
[null,null,null,null,null,null,null,null,{"$f":"ConfTS4L6!A167","v":"Dell EMC PowerEdge QSFP28 SR4 100GbE 85C optic"},null,{"$f":"VLOOKUP($I129,TS4L6_SFP,13,FALSE)","v":"TS4L6-OT100GB"},0,null,{"$f":"R129+S129","v":0},null,null,null,{"$f":"VLOOKUP($I129,TS4L6_SFP,10,FALSE)","v":0},{"$f":"VLOOKUP($I129,TS4L6_SFP,11,FALSE)*L129","v":0},{"$f":"IF(L129>0,VLOOKUP($I129,TS4L6_SFP,12,FALSE),\"\")","v":""}]
[]
[null,null,null,null,null,null,null,null,"Garanzia"]
[null,null,null,null,null,null,null,null,"Manutenzione in garanzia (36 mesi)",null,{"$f":"VLOOKUP($I132,TS4L6_WARRANTY,13,FALSE)","v":""},{"$f":"VLOOKUP($I132,TSL6_ALL,7,FALSE)","v":""},null,{"$f":"R132","v":0},null,null,null,{"$f":"VLOOKUP($I132,TS4L6_WARRANTY,10,FALSE)","v":0},{"$f":"VLOOKUP($I132,TS4L6_WARRANTY,11,FALSE)","v":0},{"$f":"VLOOKUP($I132,TSL6_ALL,12,FALSE)","v":""}]
[]
[null,null,null,null,null,null,null,null,"Hard Disk Retention",null,null,{"$f":"IF(AND(I135=\"Hard disk Retention 60 mesi\",L132=\"\"),\"Selezionare Estensione di Garanzia 60 Mesi\",IF(AND(L132=1,I135=\"Hard Disk Retention 36 mesi\"),\"Selezionare Hard Disk Retention 60 Mesi\",\"\"))","v":""}]
[null,null,null,null,null,null,null,null,"",null,{"$f":"VLOOKUP($I135,TS4L6_HDDRET,13,FALSE)","v":""},{"$f":"IF(I135=\"\",\"\",1)","v":""},null,{"$f":"R135","v":""},null,null,null,{"$f":"IFERROR(W135,VLOOKUP(I135,TS4L6_HDDRET,10,FALSE))","v":""},{"$f":"IFERROR(X135,VLOOKUP(I135,TSL6_ALL,11,FALSE))","v":0},{"$f":"IFERROR(Y135,VLOOKUP(I135,TS4L6_HDDRET,12,FALSE))","v":""},null,{"$f":"IF(L132+L135=2,VLOOKUP(\"Hard Disk Retention 60 mesi\",TSL6_ALL,13,FALSE),VLOOKUP(I135,TSL6_ALL,13,FALSE))","v":{"$error":"#VALUE!"}},{"$f":"IF(L132+L135=2,VLOOKUP(\"Hard Disk Retention 60 mesi\",TSL6_ALL,10,FALSE),VLOOKUP(I135,TSL6_ALL,10,FALSE))","v":{"$error":"#VALUE!"}},{"$f":"IF(L132+L135=2,VLOOKUP(\"Hard Disk Retention (60 mesi)\",TSL6_ALL,11,FALSE),VLOOKUP(I135,TSL6_ALL,11,FALSE))","v":{"$error":"#VALUE!"}},{"$f":"IF(L132+L135=2,VLOOKUP(\"Hard Disk Retention 60 mesi\",TSL6_ALL,12,FALSE),VLOOKUP(I135,TSL6_ALL,12,FALSE))","v":{"$error":"#VALUE!"}}]
[]
[]
[null,null,null,null,null,null,null,null,null,null,"Configurazione",{"$f":"SUM(R13:R135)*L8","v":0},null,null,null,null,null,{"$f":"SUM(L105:L120)","v":0}]
[null,null,null,null,null,null,null,null,null,null,0.2,{"$f":"SUM(S13:S135)*L8","v":0}]
[null,null,null,null,null,null,null,null,null,null,"Totale",{"$f":"SUM(L138:L139)","v":0}]
[]
[null,null,null,null,null,null,null,null,"NOTE"]

{"sheet":"Lotto6_R940_3","index":3,"n_rows":142,"n_cols":25,"rows_kept":142,"cut":false,"hidden":false,"merged":[[142,8,153,11],[103,10,103,11],[112,10,112,11],[115,10,115,11],[100,10,100,11],[103,7,107,7],[130,9,131,9],[133,9,134,9],[141,8,141,11],[76,13,78,14],[77,9,78,9],[82,10,82,11],[94,10,94,11],[17,9,18,9],[24,13,25,13],[39,9,40,9],[39,11,39,13],[60,10,60,11],[74,9,75,9],[85,10,85,11],[91,10,91,11],[42,8,43,8],[58,10,58,11],[14,9,15,9],[1,8,2,8],[3,8,5,8],[3,10,4,10],[5,10,6,10],[11,9,12,9]]}
[]
[null,null,null,null,null,null,null,null,"Convenzione Tecnologie Server 4 - Lotto 6",null,{"$f":"IF(U105>1,\"ERRORE NELLA CONFIGURAZIONE\",\"\")","v":""},null,null,{"$f":"IF(N6<0,\"Superata Quota 20%\",\"\")","v":""}]
[null,null,null,null,null,null,null,null,null,null,null,null,null,"Articoli 20% Totali",null,null,null,null,"Check CPU","Check RAM","Check NVME","Check PCI","Check Win","Check Tot"]
[null,null,null,null,null,null,null,null,{"$f":"IF(W13=\"vsan\",\"Selezionando la soluzione vSAN si accetta la sostituzione del controller 745 con il HBA355, comprensivo di BOSS Card Certificati per vSAN\",IF(W13=\"v2tb\",\"Selezionando la soluzione vSAN si accetta la sostituzione del controller 745 con il HBA355, comprensivo di BOSS Card Certificati per vSAN\",\"\"))","v":""},null,{"$f":"IF(X4>1,\"Errori nella Configurazione\",IF(S4>0,\"Errore nella Selezione della CPU\",IF(T4>0,\"Errore Nella Selezione della RAM\",IF(U4>0,\"Errore Nella selezione dello Chassis per Dischi nVME\",IF(V4>0,\"Errore nella Selezione Slot PCI\",IF(W4>0,\"Errore nella Selezione Licenze Windows\",\"\"))))))","v":""},"Totale Altre Opzioni",null,{"$f":"Riepilogo_Ordine!K140","v":0},null,null,null,null,{"$f":"IF(L19<>\"\",1,0)","v":0},{"$f":"IF(L24<>\"\",1,0)","v":0},{"$f":"IF(I14<>\"\",1,0)","v":0},{"$f":"IF(K83<>\"\",1,0)","v":0},{"$f":"IF(L27<>\"\",1,0)","v":0},{"$f":"SUM(S4:W4)","v":0}]
[null,null,null,null,null,null,null,null,null,null,null,{"$f":"Altre_Opzioni!H3","v":0},null,"Quota residua 20 %"]
[null,null,null,null,null,null,null,null,null,null,"Guida alla Convenzione","Totale Configurazione",null,{"$f":"Riepilogo_Ordine!G141","v":0}]
[null,null,null,null,null,null,null,null,{"$f":"IF(Riepilogo_Ordine!Q3>0,\"Compilare i Dati Necessari all'Ordine per Stampare in PDF o Controllare le Configurazioni\",\"Dati Completi\")","v":"Compilare i Dati Necessari all'Ordine per Stampare in PDF o Controllare le Configurazioni"},null,null,{"$f":"$L$140","v":0},null,"Totale Ordine Iva Esclusa",null,null,null,null,{"$f":"IF(AND($W$13=\"vsan64GB\",L22=0),ConfTS4L6!$A$47:$A$48,IF(AND($W$13=\"vsan64GB\",$L$22=1),ConfTS4L6!$A$51:$A$52,\"\"))","v":""}]
[null,null,null,null,null,null,null,null,"DELL POWEREDGE R940",null,"Quantità Server",0,null,{"$f":"Riepilogo_Ordine!K141","v":0}]
[]
[]
[]
[null,null,null,null,null,null,null,null,"Base",null,null,null,null,null,null,null,null,null,null,null,null,"PowerEdge R940 Server (General Purpose)"]
[null,null,null,null,null,null,null,null,"PowerEdge R940 Server (General Purpose)",null,{"$f":"IF($L$8>0,VLOOKUP(I13,ConfTS4L6!A3:M7,13,FALSE),\"\")","v":""},{"$f":"IF($L$8>0,1,\"\")","v":""},null,{"$f":"R13","v":5754.51},null,null,null,{"$f":"VLOOKUP($I$13,TSL6_ALL,10,FALSE)","v":5754.51},null,{"$f":"VLOOKUP($I13,TS4L6_BASE,12,FALSE)","v":"L6N01"},null,{"$f":"IF(AND(I13=ConfTS4L6!A12,L22=0),\"nVME1\",IF(AND(I13=ConfTS4L6!A12,L22=1),\"NVME2\",\"\"))","v":""},{"$f":"IF(I13=ConfTS4L6!A13,\"vsan\",IF(I13=ConfTS4L6!A15,\"Boss3TB\",IF(I13=ConfTS4L6!A14,\"vsan64GB\",\"\")))","v":""},{"$f":"IF(I13=ConfTS4L6!A15,\"Boss3TB\",\"\")","v":""}]
[null,null,null,null,null,null,null,null,{"$f":"IF(AND($K$63>0,$I$13=\"PowerEdge R940 Server (General Purpose)\"),\"▲ Per Selezionare dischi nVME selezionare Chassis nVME o vSAN ▲\",\"\")","v":""},null,null,null,null,null,null,null,null,null,null,null,null,null,{"$f":"IF(AND(I13=\"PowerEdge R940 Server (General Purpose)\",L22=0),\"GP1\",IF(AND(I13=\"PowerEdge R940 Server (General Purpose)\",L22=1),\"GP2\",\"\"))","v":"GP1"}]
[null,null,null,null,null,null,null,null,"Chassis Configuration",null,{"$f":"IF($V$82=\"SW\",\"MAX 4 GPU\",IF($V$82=\"DW\",\"MAX 2 GPU\",\"\"))","v":""}]
[null,null,null,null,null,null,null,null,{"$f":"IF($L$22=1,VLOOKUP($I$13,TS4L6_Chassis,3,FALSE),VLOOKUP($I$13,TS4L6_Chassis,2,FALSE))","v":"Chassis with Up to 12X 2.5 SAS/SATA + 12X 2.5 for 2CPU Configuration"},null,{"$f":"IF(T16=\"L6N122\",Tabella_prezzi!F85,IF(T16=\"L6N123\",Tabella_prezzi!F86,IF(T16=\"L6N124\",Tabella_prezzi!F87,IF(T16=\"L6N125\",Tabella_prezzi!F88,IF($L$22=1,VLOOKUP($I$13,TS4L6_Chassis,13,FALSE),VLOOKUP($I$13,TS4L6_Chassis,13,FALSE))))))","v":""},{"$f":"IF(I13=V12,VLOOKUP($I$13,TS4L6_Chassis,6,FALSE),VLOOKUP($I$13,TS4L6_Chassis,7,FALSE))","v":""},null,{"$f":"R16+S16","v":0},null,null,null,{"$f":"VLOOKUP($I$13,TS4L6_Chassis,10,FALSE)","v":0},{"$f":"IF(T16=\"L6N125\",Tabella_prezzi!D88,IF(T16=\"L6N122\",Tabella_prezzi!D85,IF(T16=\"L6N123\",Tabella_prezzi!D86,IF(T16=\"L6N124\",Tabella_prezzi!D87,VLOOKUP(I13,TS4L6_Chassis,11,FALSE)))))","v":0},{"$f":"IF(AND(W13=\"vsan64GB\",I26=1024),\"L6N123\",IF(AND(W13=\"vsan64GB\",I26=1536),\"L6N122\",IF(AND(W13=\"vsan64GB\",I26=2048),\"L6N124\",IF(AND(W13=\"Boss3TB\",I26=3072),\"L6N125\",VLOOKUP($I13,TS4L6_Chassis,12,FALSE)))))","v":0},null,"Chassis with Up to 24 x 2.5'' Hard Drives for 2CPU Configuration",1]
[]
[null,null,null,null,null,null,null,null,"Processor"]
[null,null,null,null,null,null,null,null,"2 x Intel Xeon Gold 6252N, 2.3G, 24C/48T, 10.4GT/s, 35.75M Cache, Turbo, HT (150W) DDR4-2933",null,null,{"$f":"IF(AND(W13=\"boss3TB\",L22=0),\"Selezionare Processori Aggiuntivi per Configurazione BOSS 3TB\",IF(AND(W13=\"vsan64GBb\",L22=0),\"Selezionare Processori Aggiuntivi per Configurazione vSAN 2 TB\",IF(AND(V13=\"nVME\",L22=0),\"Selezionare Processori Aggiuntivi per Configurazione nVME\",IF(AND(W13=2048,L22=\"\"),\"Selezionare Processore Aggiuntivo per Configurazione vSAN\",IF(AND(X13=\"Nutanix\",L22=\"\"),\"Selezionare Processore Aggiuntivo per Configurazione Nutanix\",\"\")))))","v":""},null,null,null,null,null,{"$f":"IF(L16=1,VLOOKUP($I$19,TS4L6_CPU,11,FALSE),VLOOKUP($I$19,TS4L6_CPU,11,FALSE))","v":0},{"$f":"IF(L16=1,VLOOKUP($I$19,TS4L6_CPU,11,FALSE),VLOOKUP($I$19,TS4L6_CPU,11,FALSE))","v":0},{"$f":"IF(S19=0,0,VLOOKUP($I19,TS4L6_CPU,12,FALSE))","v":0}]
[]
[null,null,null,null,null,null,null,null,"Additional Processor"]
[null,null,null,null,null,null,null,null,"No Additional Processor",null,{"$f":"IF(L16=1,VLOOKUP($I$19,TS4L6_CPU,13,FALSE),VLOOKUP($I$22,TS4L6_CPU,13,FALSE))","v":""},{"$f":"IF(L16=1,VLOOKUP($I$22,TS4L6_CPU,7,FALSE),VLOOKUP($I$22,TS4L6_CPU,7,FALSE))","v":0},null,{"$f":"R22","v":0},null,null,null,{"$f":"IF(L22=1,VLOOKUP($I$19,TS4L6_CPU,10,FALSE),VLOOKUP($I$22,TS4L6_CPU,10,FALSE))","v":0},{"$f":"IF(L16=1,VLOOKUP($I$19,TS4L6_CPU,11,FALSE),VLOOKUP($I$22,TS4L6_CPU,11,FALSE))","v":0},{"$f":"IF(L22=1,VLOOKUP(I19,TSL6_ALL,12,FALSE),VLOOKUP($I22,TS4L6_CPU,12,FALSE))","v":""},null,{"$f":"IF(L16=1,\"2 x Intel Xeon Gold 6252N, 2.3G, 24C/48T, 10.4GT/s, 35.75M Cache, Turbo, HT (150W) DDR4-2933\",I22)","v":"No Additional Processor"}]
[]
[null,null,null,null,null,null,null,null,"Memory Capacity (GB)",null,null,{"$f":"IF(AND(W13=\"vsan\",L22=0,I25<>512,I25<>768),\"Selezionare RAM Corretta\",IF(AND(W13=\"vsan\",L22=1,I25<>1024,I25<>1536),\"Selezionare RAM Corretta\",IF(AND(W13=\"v2tb\",I25<>2048),\"Selezionare 2 TB RAM\",IF(AND(W13=\"v2tb\",L22=0),\"Selezionare Processori\",IF(AND(X13=\"vsan\",L22=\"\",I25>768),\"Selezionare RAM Corretta\",IF(AND(W14=\"GP1\",I25>768),\"Selezionare RAM Corretta\",IF(AND(W14=\"GP2\",I25>1536),\"Selezionare RAM Corretta\",IF(AND(V13=\"nVME1\",I25>768),\"Selezionare RAM Corretta\",IF(AND(V13=\"NVME2\",I25>1536),\"Selezionare RAM Corretta\",IF(AND(I25<>\"\",I26>2000,W13=\"vsan64GB\"),\"Deselezionare RAM 32GB e Aggiungere RAM 64GB\",IF(AND(W13<>\"vsan64GB\",W13<>\"Boss3TB\",I26<>\"\",I25=0),\"Deselezionare RAM 64 GB\",IF(AND(W13=\"Boss3TB\",I26=\"\",I25=\"\"),\"Selezionare RAM 64\",IF(AND(W13<>\"vsan64GB\",I26=\"\",I25=\"\"),\"Selezionare RAM 32\",IF(AND(I25=\"\",I26=\"\",W13=\"vsan64GB\"),\"Selezionare RAM 64\",IF(AND(L22=1,W13=\"vsan64GB\",I26<2000),\"Selezionare RAM 64 GB Corretta\",IF(AND(L22=0,W13=\"vsan64GB\",I26>2000),\"Selezionare Processore Aggiuntivo per 2TB\",IF(AND(L22=1,W13=\"Boss3TB\",I26<3000),\"Selezionare RAM 64 Corretta\",IF(AND(L22=1,W13=\"Boss3TB\",I25<>\"\"),\"Deselezionare RAM 32\",IF(AND(L22=1,W13=\"vsan64GB\",I26>3000),\"Selezionare RAM 64 Corretta\",IF(AND(W13=\"vsan\",I26<>\"\"),\"Deselezionare RAM 64\",\"\"))))))))))))))))))))","v":""}]
[null,null,null,null,null,null,null,null,512,null,"TS4L6-RAM32",{"$f":"W25","v":0},null,{"$f":"R25+R26","v":0},null,null,null,{"$f":"X25","v":0},null,{"$f":"Y25","v":"L6N03"},null,null,{"$f":"IF(L24<>\"\",0,IF(OR(W13=\"vsan64GB\",W13=\"Boss3TB\"),0,IF(AND(W13=\"v2tb\",L22=1),VLOOKUP(I25,ConfTS4L6!A51:S51,11,FALSE),IF($L$22=1,VLOOKUP($I$25,TS4L6_RAM2CPU,7,FALSE),VLOOKUP($I$25,TS4L6_RAM1CPU,7,FALSE)))))","v":0},{"$f":"IF(L24<>\"\",0,IF(OR(W13=\"vsan64GB\",W13=\"Boss3TB\"),0,IF(AND(W13=\"v2tb\",L22=1),VLOOKUP(I25,ConfTS4L6!A51:S51,11,FALSE),IF($L$22=1,VLOOKUP($I$25,TS4L6_RAM2CPU,10,FALSE),VLOOKUP($I$25,TS4L6_RAM1CPU,10,FALSE)))))","v":0},{"$f":"IF(L24<>\"\",\"\",IF(OR(W13=\"vsan64GB\",W13=\"Boss3TB\"),0,IF($L$22=1,VLOOKUP($I$25,ConfTS4L6!A56:M75,12,FALSE),VLOOKUP($I$25,TS4L6_RAM1CPU,12,FALSE))))","v":"L6N03"}]
[null,null,null,null,null,null,null,null,"",null,"TS4L6-RAM64",{"$f":"W26","v":0},null,null,null,null,null,{"$f":"X26","v":0},null,{"$f":"Y26","v":0},null,null,{"$f":"IF(L19<>\"\",\"\",IF(L24<>\"\",0,IF(W13=\"vsan\",0,IF(W13=\"\",0,IF(W13=\"Boss3TB\",VLOOKUP(I26,TS4L6_64GB,7,FALSE),IF(AND(W13=\"vsan64GB\",L22<>0),VLOOKUP(I26,TS4L6_64GB,7,FALSE),IF(AND(W13=\"vsan64GB\",L22=0),VLOOKUP(I26,TS4L6_2cpu64gb,7,FALSE))))))))","v":0},{"$f":"IF(L19<>\"\",0,IF(L24<>\"\",0,IF(W13=\"vsan\",0,IF(W13=\"\",0,IF(W13=\"Boss3TB\",VLOOKUP(I26,TS4L6_64GB,10,FALSE),IF(AND(W13=\"vsan64GB\",L22<>0),VLOOKUP(I26,TS4L6_64GB,10,FALSE),IF(AND(W13=\"vsan64GB\",L22=0),VLOOKUP(I26,TS4L6_2cpu64gb,10,FALSE))))))))","v":0},{"$f":"IF(L19<>\"\",\"\",IF(L24<>\"\",0,IF(W13=\"vsan\",0,IF(W13=\"\",0,IF(W13=\"Boss3TB\",VLOOKUP(I26,TS4L6_64GB,12,FALSE),IF(AND(W13=\"vsan64GB\",L22<>0),VLOOKUP(I26,TS4L6_64GB,12,FALSE),IF(AND(W13=\"vsan64GB\",L22=0),VLOOKUP(I26,TS4L6_2cpu64gb,12,FALSE))))))))","v":0}]
[]
[null,null,null,null,null,null,null,null,"Operating System STANDARD",null,null,{"$f":"IF(AND(I29=\"Ubuntu Server 22.04 LTS 64 Bit\",L30<>\"\"),\"Deselezionare Licenze 2 Core\",IF(I29=\"Ubuntu Server 22.04 LTS 64 Bit\",\"\",IF(AND(L29=1,L30=0),\"Selezionare Licenze 2 Core\",IF(AND(L22=0,L30>64),\"Selezionare Licenze 2 Core Corrette\",IF(AND(L22=1,L30=16),\"Selezionare Licenze 2 Core Corrette\",IF(AND(L29=0,L30>0),\"Deselezionare Licenze 2 Core\",\"\"))))))","v":""}]
[null,null,null,null,null,null,null,null,"No Operating System",null,{"$f":"VLOOKUP($I$29,TS4L6_OS,13,FALSE)","v":""},{"$f":"IF(I29=\"Windows Server 2022,Standard,ROK,16CORE\",1,IF(I29=\"Ubuntu Server 22.04 LTS 64 Bit\",1,0))","v":0},null,{"$f":"R29","v":0},null,null,null,{"$f":"VLOOKUP($I$29,TS4L6_OS,10,FALSE)*L29","v":0},{"$f":"VLOOKUP($I$29,TS4L6_OS,11,FALSE)","v":0},{"$f":"VLOOKUP($I29,TSL6_ALL,12,FALSE)","v":""}]
[null,null,null,null,null,null,null,null,"Windows Server 2022 Standard Edition, Add License,2CORE",null,{"$f":"VLOOKUP($I$30,TS4L6_OS,13,FALSE)","v":"TS4L6-WINSRV2C"},null,null,{"$f":"R30","v":0},null,null,null,{"$f":"IF(L28<>\"\",0,VLOOKUP($I$30,TS4L6_OS,10,FALSE))*L30","v":0},{"$f":"VLOOKUP($I$29,TS4L6_OS,11,FALSE)","v":0},{"$f":"IF(L28<>\"\",\"\",VLOOKUP($I30,TSL6_ALL,12,FALSE))","v":"L6N25"}]
[]
[null,null,null,null,null,null,null,null,"Operating System DATACENTER"]
[null,null,null,null,null,null,null,null,"No Operating System",null,{"$f":"VLOOKUP($I$33,ConfTS4L6!A79:X88,13,FALSE)","v":""},{"$f":"IF(I33=\"Windows Server 2022,Datacenter,ROK,16CORE\",1,0)","v":0},null,{"$f":"R33","v":0},null,null,null,{"$f":"VLOOKUP($I$33,ConfTS4L6!A79:X86,10,FALSE)*L33","v":0},{"$f":"VLOOKUP($I$29,TS4L6_OS,11,FALSE)","v":0},{"$f":"VLOOKUP($I33,TSL6_ALL,12,FALSE)","v":""}]
[null,null,null,null,null,null,null,null,"Windows Server 2022 / 2019 Datacenter Edition,Add License,2CORE",null,{"$f":"VLOOKUP($I$34,TS4L6_OS,13,FALSE)","v":"TS4L6-WinServDC2core"},{"$f":"IF(AND(L22=1,L33=1),40,IF(AND(L22=1,L33=0),0,IF(AND(L22=0,L33=1),16,IF(AND(L22=\"\",L33=\"\"),0,0))))","v":0},null,{"$f":"R34","v":0},null,null,null,{"$f":"VLOOKUP($I$34,TS4L6_OS,10,FALSE)*L34","v":0},{"$f":"VLOOKUP($I$29,TS4L6_OS,11,FALSE)","v":0},{"$f":"VLOOKUP($I34,TS4L6_OS,12,FALSE)","v":"L6N27"}]
[]
[null,null,null,null,null,null,null,null,"Operating System Device CAL / User CAL"]
[null,null,null,null,null,null,null,null,"1-pack of Windows Server 2022/2019 Device CALs (STD or DC)",null,{"$f":"VLOOKUP($I$37,ConfTS4L6!A83:X84,13,FALSE)","v":"TS4L6-WINDEVCAL"},0,null,{"$f":"R37","v":0},null,null,null,{"$f":"VLOOKUP($I$37,ConfTS4L6!A83:O84,10,FALSE)*L37","v":0},{"$f":"VLOOKUP($I$29,TS4L6_OS,11,FALSE)","v":0},{"$f":"VLOOKUP($I37,TSL6_ALL,12,FALSE)","v":"L6N23"}]
[null,null,null,null,null,null,null,null,"1-pack of Windows Server 2022/2019 User CALs (STD or DC)",null,{"$f":"VLOOKUP($I$38,ConfTS4L6!A84:X85,13,FALSE)","v":"TS4L6-WINUSRCAL"},0,null,{"$f":"R38","v":0},null,null,null,{"$f":"VLOOKUP($I$38,ConfTS4L6!A84:O85,10,FALSE)*L38","v":0},{"$f":"VLOOKUP($I$29,TS4L6_OS,11,FALSE)","v":0},{"$f":"VLOOKUP($I38,TSL6_ALL,12,FALSE)","v":"L6N24"}]
[]
[null,null,null,null,null,null,null,null,"Disk Controller  (PCI SLOT 1)"]
[null,null,null,null,null,null,{"$f":"IF($K$16=\"TS3L4-VSAN\",\"vSAN HCL\",\"\")","v":""},null,{"$f":"IF(W13=\"vsan64GB\",ConfTS4L6!A116,IF(W13=\"vsan\",ConfTS4L6!A116,ConfTS4L6!A115))","v":"PERC H740P RAID Controller, 8Gb NV Cache, Adapter, Full Height"},null,{"$f":"IF($W$13<>\"\",\"\",IF(L41>0,VLOOKUP($I41,TS4L6_CRTL,13,FALSE),\"\"))","v":""},{"$f":"IF($W$13<>\"\",\"\",VLOOKUP($I41,TS4L6_CRTL,7,FALSE))","v":""},null,{"$f":"R41+S41","v":0},null,null,null,{"$f":"IF(I41=ConfTS4L6!A59,0,VLOOKUP($I41,TS4L6_CRTL,10,FALSE))","v":0},{"$f":"IF(W13=\"v2tb\",0,IF(W13=\"v512\",0,VLOOKUP($I41,TS4L6_CRTL,11,FALSE)))","v":0},{"$f":"IF(W13=\"v2tb\",\"\",IF(W13=\"vsan\",\"\",IF(W13=\"v512\",\"\",VLOOKUP($I41,TSL6_ALL,12,FALSE))))","v":"L6N44"},null,{"$f":"IF(K41=\"TS3L4-HBA330-L\",1,0)","v":0},{"$f":"IF(I41=\"PERC H740P RAID Controller, 8GB NV Cache\",1,0)","v":0},{"$f":"IF(Y41=1,Y41*V41,W41*V41)","v":0},{"$f":"IF(N7=\"\",1,0)","v":0}]
[]
[null,null,null,null,null,null,null,null,"Hard Drivers Bays n° 12 - 2 bay occupate dai dischi 960GB SSD di base",null,"Usati","Disponibili"]
[null,null,null,null,null,null,null,null,null,null,{"$f":"L46+L48+L50+L56+L58+L52+L54+L60","v":2},{"$f":"12-K44","v":10}]
[]
[null,null,null,null,null,null,null,null,{"$f":"ConfTS4L6!A91","v":"2.4TB 10k SAS ISE 12Gbps"},null,{"$f":"VLOOKUP($I46,TS4L6_HDD,13,FALSE)","v":"TS4L6-HDD2TB"},0,null,{"$f":"R46","v":0},null,null,null,{"$f":"VLOOKUP($I46,TS4L6_HDD,10,FALSE)*L46","v":0},{"$f":"VLOOKUP($I46,TS4L6_HDD,11,FALSE)","v":0},{"$f":"VLOOKUP($I46,TSL6_ALL,12,FALSE)","v":"L6N11"}]
[]
[null,null,null,null,null,null,null,null,{"$f":"ConfTS4L6!A92","v":"1.2TB 10K RPM SAS ISE 12Gbps"},null,{"$f":"VLOOKUP($I48,TS4L6_HDD,13,FALSE)","v":"TS4L6-HDD1TB"},0,null,{"$f":"R48","v":0},null,null,null,{"$f":"VLOOKUP($I48,TS4L6_HDD,10,FALSE)*L48","v":0},{"$f":"VLOOKUP($I48,TS4L6_HDD,11,FALSE)","v":0},{"$f":"VLOOKUP($I48,TSL6_ALL,12,FALSE)","v":"L6N12"}]
[]
[null,null,null,null,null,null,null,null,{"$f":"ConfTS4L6!A93","v":"3.84TB SSD SAS ISE RI 12Gbps"},null,{"$f":"VLOOKUP($I50,TS4L6_HDD,13,FALSE)","v":"TS4L6-SSD-RI3,8TB"},0,null,{"$f":"R50","v":0},null,null,null,{"$f":"VLOOKUP($I50,TS4L6_HDD,10,FALSE)*L50","v":0},{"$f":"VLOOKUP($I50,TS4L6_HDD,11,FALSE)","v":0},{"$f":"VLOOKUP($I50,TSL6_ALL,12,FALSE)","v":"L6N13"}]
[]
[null,null,null,null,null,null,null,null,{"$f":"ConfTS4L6!A94","v":"1.92TB SSD SAS ISE RI 12Gbps"},null,{"$f":"VLOOKUP($I52,TS4L6_HDD,13,FALSE)","v":"TS4L6-SSD-RI1,6TB"},0,null,{"$f":"R52","v":0},null,null,null,{"$f":"VLOOKUP($I52,TS4L6_HDD,10,FALSE)*L52","v":0},{"$f":"VLOOKUP($I52,TS4L6_HDD,11,FALSE)","v":0},{"$f":"VLOOKUP($I52,TSL6_ALL,12,FALSE)","v":"L6N14"}]
[]
[null,null,null,null,null,null,null,null,{"$f":"ConfTS4L6!A95","v":"1.6TB SSD SAS ISE MU 12Gbps"},null,{"$f":"VLOOKUP($I54,TS4L6_HDD,13,FALSE)","v":"TS4L6-SSD-MU1,6TB"},0,null,{"$f":"R54","v":0},null,null,null,{"$f":"VLOOKUP($I54,TS4L6_HDD,10,FALSE)*L54","v":0},{"$f":"VLOOKUP($I54,TS4L6_HDD,11,FALSE)","v":0},{"$f":"VLOOKUP($I54,TSL6_ALL,12,FALSE)","v":"L6N15"}]
[]
[null,null,null,null,null,null,null,null,{"$f":"ConfTS4L6!A96","v":"960GB SSD SAS ISE RI 12Gbps"},null,{"$f":"VLOOKUP($I56,TS4L6_HDD,13,FALSE)","v":"TS4L6-SSD-RI800GB"},2,null,{"$f":"R56","v":0},null,null,null,{"$f":"IF(L56>2,(VLOOKUP($I56,TS4L6_HDD,10,FALSE)*(L56-2)),0)","v":0},{"$f":"VLOOKUP($I56,TS4L6_HDD,11,FALSE)*L56","v":0},{"$f":"VLOOKUP($I56,TSL6_ALL,12,FALSE)","v":"L6N16"}]
[]
[null,null,null,null,null,null,null,null,{"$f":"ConfTS4L6!A97","v":"800GB SSD SAS ISE Mix Use 12Gbps"},null,{"$f":"VLOOKUP($I58,TS4L6_HDD,13,FALSE)","v":"TS4L6-SSD-MU800GB"},0,null,{"$f":"R58","v":0},null,null,null,{"$f":"VLOOKUP($I58,TS4L6_HDD,10,FALSE)*L58","v":0},{"$f":"VLOOKUP($I58,TS4L6_HDD,11,FALSE)*L58","v":0},{"$f":"VLOOKUP($I58,TSL6_ALL,12,FALSE)","v":"L6N17"}]
[]
[null,null,null,null,null,null,null,null,{"$f":"ConfTS4L6!A99","v":"7.68TB SSD RI SAS ISE 12Gbps"},null,{"$f":"VLOOKUP($I60,TS4L6_HDD,13,FALSE)","v":"TS4L6-SSD7.68RI"},0,null,{"$f":"R60+S60","v":0},null,null,null,{"$f":"VLOOKUP($I60,TS4L6_HDD,11,FALSE)*L60","v":0},{"$f":"VLOOKUP($I60,TS4L6_HDD,10,FALSE)*L60","v":0},{"$f":"VLOOKUP($I60,TSL6_ALL,12,FALSE)","v":"L6N32"}]
[]
[null,null,null,null,null,null,null,null,"NVMe Bays N° 12",null,"Usati","Disponibili"]
[null,null,null,null,null,null,null,null,{"$f":"IF(AND($K$63>0,$I$13=\"PowerEdge R940 Server (General Purpose)\"),\"▲ Per Selezionare dischi nVME selezionare Chassis nVME o vSAN ▲\",\"\")","v":""},null,{"$f":"SUM(L64:L70)","v":0},{"$f":"12-K63","v":12}]
[null,null,null,null,null,null,null,null,{"$f":"ConfTS4L6!A98","v":"1.6TB Enterprise NVMe Mixed Use Drive U.2"},null,{"$f":"VLOOKUP($I64,TS4L6_HDD,13,FALSE)","v":"TS4L6-NVME1,6TB"},0,null,{"$f":"R64","v":0},null,null,null,{"$f":"VLOOKUP($I64,TS4L6_HDD,10,FALSE)*L64","v":0},{"$f":"VLOOKUP($I64,TS4L6_HDD,11,FALSE)","v":0},{"$f":"VLOOKUP($I64,TSL6_ALL,12,FALSE)","v":"L6N18"}]
[]
[null,null,null,null,null,null,null,null,{"$f":"ConfTS4L6!A100","v":"3.2TB, Enterprise, NVMe, Mixed Use"},null,{"$f":"VLOOKUP($I66,TS4L6_HDD,13,FALSE)","v":"TS4L6-NVMe3.2MU"},0,null,{"$f":"R66","v":0},null,null,null,{"$f":"VLOOKUP($I66,TS4L6_HDD,10,FALSE)*L66","v":0},{"$f":"VLOOKUP($I66,TS4L6_HDD,11,FALSE)","v":0},{"$f":"VLOOKUP($I66,TSL6_ALL,12,FALSE)","v":"L6N33"}]
[]
[null,null,null,null,null,null,null,null,{"$f":"ConfTS4L6!A101","v":"1.92TB, Enterprise, NVMe, Read Intensive"},null,{"$f":"VLOOKUP($I68,TS4L6_HDD,13,FALSE)","v":"TS4L6-NVMe1.92RI"},0,null,{"$f":"R68","v":0},null,null,null,{"$f":"VLOOKUP($I68,TS4L6_HDD,10,FALSE)*L68","v":0},{"$f":"VLOOKUP($I68,TS4L6_HDD,11,FALSE)","v":0},{"$f":"VLOOKUP($I68,TSL6_ALL,12,FALSE)","v":"L6N34"}]
[]
[null,null,null,null,null,null,null,null,{"$f":"ConfTS4L6!A102","v":"3.84TB, Enterprise, NVMe, Read Intensive"},null,{"$f":"VLOOKUP($I70,TS4L6_HDD,13,FALSE)","v":"TS4L6-NVMe3.84RI"},0,null,{"$f":"R70","v":0},null,null,null,{"$f":"VLOOKUP($I70,TS4L6_HDD,10,FALSE)*L70","v":0},{"$f":"VLOOKUP($I70,TS4L6_HDD,11,FALSE)","v":0},{"$f":"VLOOKUP($I70,TSL6_ALL,12,FALSE)","v":"L6N35"}]
[]
[null,null,null,null,null,null,null,null,"BOSS controller card"]
[null,null,null,null,null,null,null,null,{"$f":"IF(W13=\"\",ConfTS4L6!A119,IF(W13<>\"\",ConfTS4L6!A121,ConfTS4L6!A119))","v":"No Boss card"},null,{"$f":"IF(L73>0,VLOOKUP($I73,TS4L6_ISDM,13,FALSE),\"\")","v":""},{"$f":"VLOOKUP($I73,TS4L6_ISDM,7,FALSE)","v":""},null,{"$f":"R73+S73","v":0},null,null,null,{"$f":"VLOOKUP($I73,TS4L6_ISDM,10,FALSE)","v":0},{"$f":"IF(W13=\"v2tb\",0,IF(W13=\"v512\",0,VLOOKUP($I73,TS4L6_ISDM,11,FALSE)))","v":0},{"$f":"IF(W13=\"v2tb\",0,IF(W13=\"vsan\",0,IF(W13=\"v512\",0,VLOOKUP($I73,TSL6_ALL,12,FALSE))))","v":""}]
[]
[null,null,null,null,null,null,null,null,"Power Supply",{"$f":"IF(N75=\"\",\"\",U76)","v":""}]
[null,null,null,null,null,null,null,null,{"$f":"IF(W16=1,\"Dual, Hot-plug Power Supply (1+1), 1400W\",IF($K$16=\"TS3L4-GPUDW\",\"Dual, Hot-plug Power Supply (1+1), 2000W\",IF($K$16=\"TS3L4-GPUSW\",\"Dual, Hot-plug Power Supply (1+1), 2000W\",\"Dual, Hot-plug, Redundant Power Supply (1+1), 750W\")))","v":"Dual, Hot-plug Power Supply (1+1), 1400W"},null,{"$f":"VLOOKUP($I76,TS4L6_PSU,13,FALSE)","v":"TS4L6-PSU1400W"},{"$f":"VLOOKUP($I76,TS4L6_PSU,7,FALSE)","v":1},null,null,null,null,null,{"$f":"VLOOKUP($I76,TS4L6_PSU,10,FALSE)","v":0},{"$f":"VLOOKUP($I76,TS4L6_PSU,11,FALSE)","v":0},{"$f":"VLOOKUP($I76,TSL6_ALL,12,FALSE)","v":"L6N49"},"⚠"]
[]
[null,null,null,null,null,null,null,null,"Embedded Systems Management"]
[null,null,null,null,null,null,null,null,"iDRAC9,Enterprise"]
[]
[]
[null,null,null,null,null,null,null,null,null,null,null,null,null,null,null,null,null,null,null,null,{"$f":"IF($K$16=\"TS3L4-GPUDW\",\"1\",IF($K$16=\"TS3L4-GPUSW\",\"20\",IF($L$22=1,\"300\",\"4000\")))","v":"4000"}]
[null,null,null,null,null,null,null,null,"PCI Slot 1 Processor 1 x8 PCIe for HL/FH",null,{"$f":"IF(AND(L22=0,SUM(L105:L120)>0),\"Selezionare Processore Aggiuntivo o Deselezionare\n Schede PCI\",\"\")","v":""}]
[null,null,null,null,null,null,null,null,"Riservato per PERC"]
[]
[null,null,null,null,null,null,null,null,"PCI Slot 2 Processor 1 x16 PCIe  for HL/FH",null,{"$f":"IF(OR($W$14=\"GP1\",$V$13=\"nVME1\"),\"Slot non utilizzabile in Configurazione 2 CPU\",IF(AND($W$14<>\"GP1\",I102=\"Non utilizzabile in configrazione 2CPU\"),\"Slot Utilizzabile\",IF(AND($V$13=\"NVME2\",I102=\"Non utilizzabile in Configurazione 2CPU\"),\"Slot Utilizzabile\",IF(AND($W$13=\"vsan64GB\",$I$22=\"No Additional Processor\"),\"Non utilizzabile in configurazione 2CPU\",IF(AND($W$13=\"vsan\",$I$22=\"No Additional Processor\"),\"Non utilizzabile in configurazione 2CPU\",\"\")))))","v":"Slot non utilizzabile in Configurazione 2 CPU"}]
[null,null,null,null,null,null,null,null,null,null,{"$f":"IF(K86<>\"\",\"\",VLOOKUP($I87,TSL6_ALL,13,FALSE))","v":""},{"$f":"IF(K86<>\"\",0,VLOOKUP($I87,TSL6_ALL,7,FALSE))","v":0},null,{"$f":"R87+S87","v":0},null,null,null,{"$f":"IF(K86<>\"\",0,VLOOKUP($I87,TSL6_ALL,10,FALSE))","v":0},{"$f":"IF(K86<>\"\",0,VLOOKUP($I87,TSL6_ALL,11,FALSE))","v":0},{"$f":"VLOOKUP($I87,TSL6_ALL,12,FALSE)","v":0}]
[]
[null,null,null,null,null,null,null,null,"PCI Slot 3 Processor 1 x16 PCIe  for HL/FH"]
[null,null,null,null,null,null,null,null,"",null,{"$f":"VLOOKUP($I90,TSL6_ALL,13,FALSE)","v":0},{"$f":"VLOOKUP($I90,TSL6_ALL,7,FALSE)","v":0},null,{"$f":"R90+S90","v":0},null,null,null,{"$f":"VLOOKUP($I90,TSL6_ALL,10,FALSE)","v":0},{"$f":"VLOOKUP($I90,TSL6_ALL,11,FALSE)","v":0},{"$f":"VLOOKUP($I90,TSL6_ALL,12,FALSE)","v":0}]
[]
[null,null,null,null,null,null,null,null,"PCI Slot 4 Processor 2 x16 PCIe  for HL/FH",{"$f":"IF($V$82=\"SW\",\"GPU Slot\",IF($V$82=\"DW\",\"GPU Slot\",\"\"))","v":""},{"$f":"IF(OR($W$14=\"GP1\",$V$13=\"nVME1\"),\"Slot non utilizzabile in Configurazione 2 CPU\",IF(AND($W$14<>\"GP1\",I102=\"Non utilizzabile in configrazione 2CPU\"),\"Slot Utilizzabile\",IF(AND($V$13=\"NVME2\",I102=\"Non utilizzabile in Configurazione 2CPU\"),\"Slot Utilizzabile\",IF(AND($W$13=\"vsan64GB\",$I$22=\"No Additional Processor\"),\"Non utilizzabile in configurazione 2CPU\",IF(AND($W$13=\"vsan\",$I$22=\"No Additional Processor\"),\"Non utilizzabile in configurazione 2CPU\",\"\")))))","v":"Slot non utilizzabile in Configurazione 2 CPU"}]
[null,null,null,null,null,null,null,null,"",null,{"$f":"VLOOKUP($I93,TSL6_ALL,13,FALSE)","v":0},{"$f":"VLOOKUP($I93,TSL6_ALL,7,FALSE)","v":0},null,{"$f":"R93+S93","v":0},null,null,null,{"$f":"VLOOKUP($I93,TSL6_ALL,10,FALSE)","v":0},{"$f":"VLOOKUP($I93,TSL6_ALL,11,FALSE)","v":0},{"$f":"VLOOKUP($I93,TSL6_ALL,12,FALSE)","v":0}]
[]
[null,null,null,null,null,null,null,null,"PCI Slot 5 Processor 2 x8 PCIe  for HL/FH",{"$f":"IF($V$82=\"SW\",\"GPU Slot\",\"\")","v":""},{"$f":"IF(AND(I96<>\"\",I96<>\"Riservato BOSS Card\",W13=\"v2tb\"),\"Slot dedicato a BOSS Card\",IF(AND(I96<>\"\",I96<>\"Riservato BOSS Card\",W13=\"vsan\"),\"Slot dedicato a BOSS Card\",IF(AND(I96=\"Riservato BOSS Card\",W14=\"GP1\"),\"← E' Possibile utilizzare lo SLOT PCI\",IF(AND(I96=\"Riservato BOSS Card\",W14=\"GP2\"),\"← E' Possibile utilizzare lo SLOT PCI\",IF(AND(I96=\"Riservato BOSS Card\",V13=\"NVME1\"),\"← E' Possibile utilizzare lo SLOT PCI\",IF(AND(I96=\"Riservato BOSS Card\",V13=\"NVME2\"),\"← E' Possibile utilizzare lo SLOT PCI\",\"\"))))))","v":""}]
[null,null,null,null,null,null,null,null,"",null,{"$f":"VLOOKUP($I96,TSL6_ALL,13,FALSE)","v":0},{"$f":"VLOOKUP($I96,TSL6_ALL,7,FALSE)","v":0},null,{"$f":"R96+S96","v":0},null,null,null,{"$f":"IF(K95=\"Slot dedicato a BOSS Card\",0,VLOOKUP($I96,TSL6_ALL,10,FALSE))","v":0},{"$f":"VLOOKUP($I96,TSL6_ALL,11,FALSE)","v":0},{"$f":"IF(K95=\"Slot dedicato a BOSS card\",\"\",VLOOKUP($I96,TSL6_ALL,12,FALSE))","v":0}]
[]
[null,null,null,null,null,null,null,null,"PCI Slot 6 Processor 2 x8 PCIe  for HL/FH"]
[null,null,null,null,null,null,null,null,"",null,{"$f":"VLOOKUP($I99,TSL6_ALL,13,FALSE)","v":0},{"$f":"IF($V$13=\"VxFlex\",1,VLOOKUP($I99,TSL6_ALL,7,FALSE))","v":0},null,{"$f":"R99+S99","v":0},null,null,null,{"$f":"IF($V$13=\"VxFlex\",419,VLOOKUP($I99,TSL6_ALL,10,FALSE))","v":0},null,{"$f":"VLOOKUP($I99,TSL6_ALL,12,FALSE)","v":0}]
[]
[null,null,null,null,null,null,null,null,"PCI Slot 7 Processor 2 x16 PCIe  for HL/FH",{"$f":"IF($V$82=\"SW\",\"GPU Slot\",\"\")","v":""},{"$f":"IF(OR($W$14=\"GP1\",$V$13=\"nVME1\"),\"Slot non utilizzabile in Configurazione 2 CPU\",IF(AND($W$14<>\"GP1\",I102=\"Non utilizzabile in configrazione 2CPU\"),\"Slot Utilizzabile\",IF(AND($V$13=\"NVME2\",I102=\"Non utilizzabile in Configurazione 2CPU\"),\"Slot Utilizzabile\",IF(AND($W$13=\"vsan64GB\",$I$22=\"No Additional Processor\"),\"Non utilizzabile in configurazione 2CPU\",IF(AND($W$13=\"vsan\",$I$22=\"No Additional Processor\"),\"Non utilizzabile in configurazione 2CPU\",\"\")))))","v":"Slot non utilizzabile in Configurazione 2 CPU"}]
[null,null,null,null,null,null,null,null,"",null,{"$f":"VLOOKUP($I102,TSL6_ALL,13,FALSE)","v":0},{"$f":"VLOOKUP($I102,TSL6_ALL,7,FALSE)","v":0},null,{"$f":"R102+S102","v":0},null,null,null,{"$f":"VLOOKUP($I102,TSL6_ALL,10,FALSE)","v":0},{"$f":"VLOOKUP($I102,TSL6_ALL,11,FALSE)","v":0},{"$f":"VLOOKUP($I102,TSL6_ALL,12,FALSE)","v":0}]
[]
[null,null,null,null,null,null,null,{"$f":"IF($I$22=\"No Additional Processor\",\"Gli Slot 8-13 sono disponibili aggiungendo Terzo e Quarto Processore\",\"\")","v":"Gli Slot 8-13 sono disponibili aggiungendo Terzo e Quarto Processore"},"PCI Slot 8 Processor 32 x16 PCIe  for HL/FH",{"$f":"IF($V$82=\"SW\",\"GPU Slot\",\"\")","v":""},{"$f":"IF(AND(W13=\"vsan\",I22<>\"No Additional Processor\"),\"Non utilizzabile in configurazione 4CPU\",IF(AND(W13=\"boss3TB\",I22<>\"No Additional Processor\"),\"Non utilizzabile in configurazione 4CPU\",IF(AND(W13=\"vsan64GB\",I22<>\"No Additional Processor\"),\"Non utilizzabile in configurazione 4CPU\",IF(OR($W$14=\"GP2\",$V$13=\"nVME2\"),\"Slot non utilizzabile in Configurazione 4 CPU\",IF(AND($W$14<>\"GP2\",I105=\"Non utilizzabile in configurazione 4CPU\"),\"Aggiungere Terzo e Quarto Processore\",IF(AND($V$13<>\"nVME2\",I105=\"Non utilizzabile in configurazione 4CPU\"),\"Aggiungere Terzo e Quarto Processore\",\"\"))))))","v":""}]
[null,null,null,null,null,null,null,null,null,null,{"$f":"VLOOKUP($I105,TSL6_ALL,13,FALSE)","v":0},{"$f":"VLOOKUP($I105,TSL6_ALL,7,FALSE)","v":0},null,{"$f":"R105+S105","v":0},null,null,null,{"$f":"VLOOKUP($I105,TSL6_ALL,10,FALSE)","v":0},{"$f":"VLOOKUP($I105,TSL6_ALL,11,FALSE)","v":0},{"$f":"VLOOKUP($I105,TSL6_ALL,12,FALSE)","v":0}]
[]
[null,null,null,null,null,null,null,null,"PCI Slot 9 Processor 3 x16 PCIe  for HL/FH",{"$f":"IF($V$82=\"SW\",\"GPU Slot\",IF($V$82=\"DW\",\"GPU Slot\",\"\"))","v":""}]
[null,null,null,null,null,null,null,null,"",null,{"$f":"VLOOKUP($I108,TSL6_ALL,13,FALSE)","v":0},{"$f":"VLOOKUP($I108,TSL6_ALL,7,FALSE)","v":0},null,{"$f":"R108+S108","v":0},null,null,null,{"$f":"VLOOKUP($I108,TSL6_ALL,10,FALSE)","v":0},{"$f":"VLOOKUP($I108,TSL6_ALL,11,FALSE)","v":0},{"$f":"VLOOKUP($I108,TSL6_ALL,12,FALSE)","v":0}]
[]
[null,null,null,null,null,null,null,null,"PCI Slot 10 Processor 3 x16 PCIe  for HL/FH",{"$f":"IF($V$82=\"SW\",\"GPU Slot\",IF($V$82=\"DW\",\"GPU Slot\",\"\"))","v":""}]
[null,null,null,null,null,null,null,null,"",null,{"$f":"VLOOKUP($I111,TSL6_ALL,13,FALSE)","v":0},{"$f":"VLOOKUP($I111,TSL6_ALL,7,FALSE)","v":0},null,{"$f":"R111+S111","v":0},null,null,null,{"$f":"VLOOKUP($I111,TSL6_ALL,10,FALSE)","v":0},{"$f":"VLOOKUP($I111,TSL6_ALL,11,FALSE)","v":0},{"$f":"VLOOKUP($I111,TSL6_ALL,12,FALSE)","v":0}]
[]
[null,null,null,null,null,null,null,null,"PCI Slot 11 Processor 4 x16 PCIe  for HL/FH",{"$f":"IF($V$82=\"SW\",\"GPU Slot\",IF($V$82=\"DW\",\"GPU Slot\",\"\"))","v":""},{"$f":"IF(AND(W13=\"vsan\",I22<>\"No Additional Processor\"),\"Non utilizzabile in configurazione 4CPU\",IF(AND($W$13=\"boss3TB\",$I$22<>\"No Additional Processor\"),\"Non utilizzabile in configurazione 4CPU\",IF(AND($W$13=\"vsan64GB\",$I$22<>\"No Additional Processor\"),\"Non utilizzabile in configurazione 4CPU\",IF(OR($W$14=\"GP2\",$V$13=\"nVME2\"),\"Slot non utilizzabile in Configurazione 4 CPU\",IF(AND($W$14<>\"GP2\",$I$105=\"Non utilizzabile in configurazione 4CPU\"),\"Aggiungere Terzo e Quarto Processore\",IF(AND($V$13<>\"nVME2\",$I$105=\"Non utilizzabile in configurazione 4CPU\"),\"Aggiungere Terzo e Quarto Processore\",\"\"))))))","v":""}]
[null,null,null,null,null,null,null,null,"",null,{"$f":"VLOOKUP($I114,TSL6_ALL,13,FALSE)","v":0},{"$f":"VLOOKUP($I114,TSL6_ALL,7,FALSE)","v":0},null,{"$f":"R114+S114","v":0},null,null,null,{"$f":"VLOOKUP($I114,TSL6_ALL,10,FALSE)","v":0},{"$f":"VLOOKUP($I114,TSL6_ALL,11,FALSE)","v":0},{"$f":"VLOOKUP($I114,TSL6_ALL,12,FALSE)","v":0}]
[]
[null,null,null,null,null,null,null,null,"PCI Slot 12 Processor 4 x16 PCIe  for HL/FH",{"$f":"IF($V$82=\"SW\",\"GPU Slot\",IF($V$82=\"DW\",\"GPU Slot\",\"\"))","v":""},{"$f":"IF(AND(W13=\"vsan\",I22<>\"No Additional Processor\"),\"Non utilizzabile in configurazione 4CPU\",IF(AND($W$13=\"boss3TB\",$I$22<>\"No Additional Processor\"),\"Non utilizzabile in configurazione 4CPU\",IF(AND($W$13=\"vsan64GB\",$I$22<>\"No Additional Processor\"),\"Non utilizzabile in configurazione 4CPU\",IF(OR($W$14=\"GP2\",$V$13=\"nVME2\"),\"Slot non utilizzabile in Configurazione 4 CPU\",IF(AND($W$14<>\"GP2\",$I$105=\"Non utilizzabile in configurazione 4CPU\"),\"Aggiungere Terzo e Quarto Processore\",IF(AND($V$13<>\"nVME2\",$I$105=\"Non utilizzabile in configurazione 4CPU\"),\"Aggiungere Terzo e Quarto Processore\",\"\"))))))","v":""}]
[null,null,null,null,null,null,null,null,"",null,{"$f":"VLOOKUP($I117,TSL6_ALL,13,FALSE)","v":0},{"$f":"VLOOKUP($I117,TSL6_ALL,7,FALSE)","v":0},null,{"$f":"R117+S117","v":0},null,null,null,{"$f":"VLOOKUP($I117,TSL6_ALL,10,FALSE)","v":0},{"$f":"VLOOKUP($I117,TSL6_ALL,11,FALSE)","v":0},{"$f":"VLOOKUP($I117,TSL6_ALL,12,FALSE)","v":0}]
[null,null,null,null,null,null,null,null,null,null,null,null,null,{"$f":"IF(T117=\"L4N33\",IF($U$105>1,\"ERRORE: SOLO UNA BOSS CARD PUO' ESSERE CONFIGURATA\",\"\"),\"\")","v":""}]
[null,null,null,null,null,null,null,null,"PCI Slot 13 Processor 4 x16 PCIe  for HL/FH",{"$f":"IF($V$82=\"SW\",\"GPU Slot\",IF($V$82=\"DW\",\"GPU Slot\",\"\"))","v":""}]
[null,null,null,null,null,null,null,null,"",null,{"$f":"VLOOKUP($I120,TSL6_ALL,13,FALSE)","v":0},{"$f":"VLOOKUP($I120,TSL6_ALL,7,FALSE)","v":0},null,{"$f":"R120+S120","v":0},null,null,null,{"$f":"VLOOKUP($I120,TSL6_ALL,10,FALSE)","v":0},{"$f":"VLOOKUP($I120,TSL6_ALL,11,FALSE)","v":0},{"$f":"VLOOKUP($I120,TSL6_ALL,12,FALSE)","v":0}]
[]
[null,null,null,null,null,null,null,null,"SFP+ Transceivers 10 Gbps"]
[null,null,null,null,null,null,null,null,{"$f":"ConfTS4L6!A165","v":"SFP+ SR Optic for all SFP+ ports except high temp validation warning cards"},null,{"$f":"VLOOKUP($I123,TS4L6_SFP,13,FALSE)","v":"TS4L6-OT10GB"},0,null,{"$f":"R123+S123","v":0},null,null,null,{"$f":"VLOOKUP($I123,TS4L6_SFP,10,FALSE)","v":0},{"$f":"VLOOKUP($I123,TS4L6_SFP,11,FALSE)*L123","v":0},{"$f":"IF(L123>0,VLOOKUP($I123,TS4L6_SFP,12,FALSE),\"\")","v":""}]
[]
[null,null,null,null,null,null,null,null,"SFP28 - 25GbE"]
[null,null,null,null,null,null,null,null,{"$f":"ConfTS4L6!A166","v":"SFP28 SR Optic, 25GbE, 85C, for all SFP28 ports"},null,{"$f":"VLOOKUP($I126,TS4L6_SFP,13,FALSE)","v":"TS4L6-OT25GB"},0,null,{"$f":"R126+S126","v":0},null,null,null,{"$f":"VLOOKUP($I126,TS4L6_SFP,10,FALSE)","v":0},{"$f":"VLOOKUP($I126,TS4L6_SFP,11,FALSE)*L126","v":0},{"$f":"IF(L126>0,VLOOKUP($I126,TS4L6_SFP,12,FALSE),\"\")","v":""}]
[]
[null,null,null,null,null,null,null,null,"QSFP28 Transceivers"]
[null,null,null,null,null,null,null,null,{"$f":"ConfTS4L6!A167","v":"Dell EMC PowerEdge QSFP28 SR4 100GbE 85C optic"},null,{"$f":"VLOOKUP($I129,TS4L6_SFP,13,FALSE)","v":"TS4L6-OT100GB"},0,null,{"$f":"R129+S129","v":0},null,null,null,{"$f":"VLOOKUP($I129,TS4L6_SFP,10,FALSE)","v":0},{"$f":"VLOOKUP($I129,TS4L6_SFP,11,FALSE)*L129","v":0},{"$f":"IF(L129>0,VLOOKUP($I129,TS4L6_SFP,12,FALSE),\"\")","v":""}]
[]
[null,null,null,null,null,null,null,null,"Garanzia"]
[null,null,null,null,null,null,null,null,"Manutenzione in garanzia (36 mesi)",null,{"$f":"VLOOKUP($I132,TS4L6_WARRANTY,13,FALSE)","v":""},{"$f":"VLOOKUP($I132,TSL6_ALL,7,FALSE)","v":""},null,{"$f":"R132","v":0},null,null,null,{"$f":"VLOOKUP($I132,TS4L6_WARRANTY,10,FALSE)","v":0},{"$f":"VLOOKUP($I132,TS4L6_WARRANTY,11,FALSE)","v":0},{"$f":"VLOOKUP($I132,TSL6_ALL,12,FALSE)","v":""}]
[]
[null,null,null,null,null,null,null,null,"Hard Disk Retention",null,null,{"$f":"IF(AND(I135=\"Hard disk Retention 60 mesi\",L132=\"\"),\"Selezionare Estensione di Garanzia 60 Mesi\",IF(AND(L132=1,I135=\"Hard Disk Retention 36 mesi\"),\"Selezionare Hard Disk Retention 60 Mesi\",\"\"))","v":""}]
[null,null,null,null,null,null,null,null,"",null,{"$f":"VLOOKUP($I135,TS4L6_HDDRET,13,FALSE)","v":""},{"$f":"IF(I135=\"\",\"\",1)","v":""},null,{"$f":"R135","v":""},null,null,null,{"$f":"IFERROR(W135,VLOOKUP(I135,TS4L6_HDDRET,10,FALSE))","v":""},{"$f":"IFERROR(X135,VLOOKUP(I135,TSL6_ALL,11,FALSE))","v":0},{"$f":"IFERROR(Y135,VLOOKUP(I135,TS4L6_HDDRET,12,FALSE))","v":""},null,{"$f":"IF(L132+L135=2,VLOOKUP(\"Hard Disk Retention 60 mesi\",TSL6_ALL,13,FALSE),VLOOKUP(I135,TSL6_ALL,13,FALSE))","v":{"$error":"#VALUE!"}},{"$f":"IF(L132+L135=2,VLOOKUP(\"Hard Disk Retention 60 mesi\",TSL6_ALL,10,FALSE),VLOOKUP(I135,TSL6_ALL,10,FALSE))","v":{"$error":"#VALUE!"}},{"$f":"IF(L132+L135=2,VLOOKUP(\"Hard Disk Retention (60 mesi)\",TSL6_ALL,11,FALSE),VLOOKUP(I135,TSL6_ALL,11,FALSE))","v":{"$error":"#VALUE!"}},{"$f":"IF(L132+L135=2,VLOOKUP(\"Hard Disk Retention 60 mesi\",TSL6_ALL,12,FALSE),VLOOKUP(I135,TSL6_ALL,12,FALSE))","v":{"$error":"#VALUE!"}}]
[]
[]
[null,null,null,null,null,null,null,null,null,null,"Configurazione",{"$f":"SUM(R13:R135)*L8","v":0},null,null,null,null,null,{"$f":"SUM(L105:L120)","v":0}]
[null,null,null,null,null,null,null,null,null,null,0.2,{"$f":"SUM(S13:S135)*L8","v":0}]
[null,null,null,null,null,null,null,null,null,null,"Totale",{"$f":"SUM(L138:L139)","v":0}]
[]
[null,null,null,null,null,null,null,null,"NOTE"]

{"sheet":"Altre_Opzioni","index":4,"n_rows":45,"n_cols":14,"rows_kept":45,"cut":false,"hidden":false,"merged":[[43,5,44,5],[29,5,30,5],[20,5,21,5],[23,5,24,5],[26,5,27,5],[34,5,35,5],[37,5,38,5],[40,5,41,5],[17,5,18,5],[1,7,1,9],[5,5,6,5],[8,5,9,5],[11,5,12,5],[14,5,15,5]]}
[]
[null,null,null,null,"Opzioni",null,null,"Totale altre opzioni"]
[null,null,null,null,null,null,null,{"$f":"SUM(J6:J45)","v":0}]
[]
[]
[null,null,null,null,"OpzRack DELL"]
[null,null,null,null,{"$f":"ConfTS4L6!A177","v":"Rack 42RU DellEmc"},null,{"$f":"VLOOKUP($E7,TS4L6_20X100,13,FALSE)","v":"TS4L6-RACK-D"},0,null,{"$f":"L7+M7","v":0},null,{"$f":"VLOOKUP($E7,TS4L6_20X100,10,FALSE)*H7","v":0},{"$f":"VLOOKUP($E7,TS4L6_20X100,11,FALSE)*H7","v":0},{"$f":"VLOOKUP($E7,TS4L6_20X100,12,FALSE)","v":"L6N112"}]
[]
[null,null,null,null,"OpzPDU Mono"]
[null,null,null,null,{"$f":"ConfTS4L6!A178","v":"PDU 220 mono output 20-C13 + 4-C19 IEC 320, input C20"},null,{"$f":"VLOOKUP($E10,TS4L6_20X100,13,FALSE)","v":"TS4L6-PDU-M"},0,null,{"$f":"L10+M10","v":0},null,{"$f":"VLOOKUP($E10,TS4L6_20X100,10,FALSE)*H10","v":0},{"$f":"VLOOKUP($E10,TS4L6_20X100,11,FALSE)*H10","v":0},{"$f":"VLOOKUP($E10,TS4L6_20X100,12,FALSE)","v":"L6N113"}]
[]
[null,null,null,null,"OpzPDU Trifase"]
[null,null,null,null,{"$f":"ConfTS4L6!A179","v":"PDU 220 Trifase output 6-C19 e 36-C13, input Spina 3P+T 400V 16A"},null,{"$f":"VLOOKUP($E13,TS4L6_20X100,13,FALSE)","v":"TS4L6-PDU-T"},0,null,{"$f":"L13+M13","v":0},null,{"$f":"VLOOKUP($E13,TS4L6_20X100,10,FALSE)*H13","v":0},{"$f":"VLOOKUP($E13,TS4L6_20X100,11,FALSE)*H13","v":0},{"$f":"VLOOKUP($E13,TS4L6_20X100,12,FALSE)","v":"L6N114"}]
[]
[null,null,null,null,"OpzKVM DELL"]
[null,null,null,null,{"$f":"ConfTS4L6!A180","v":"Dell KVM + Switch 8 porte + cavi "},null,{"$f":"VLOOKUP($E16,TS4L6_20X100,13,FALSE)","v":"TS4L6-KVM-D"},0,null,{"$f":"L16+M16","v":0},null,{"$f":"VLOOKUP($E16,TS4L6_20X100,10,FALSE)*H16","v":0},{"$f":"VLOOKUP($E16,TS4L6_20X100,11,FALSE)*H16","v":0},{"$f":"VLOOKUP($E16,TS4L6_20X100,12,FALSE)","v":"L6N115"}]
[]
[null,null,null,null,"Opz CMA"]
[null,null,null,null,{"$f":"ConfTS4L6!A182","v":"Cable Management Arm for PowerEdge Systems"},null,{"$f":"VLOOKUP($E19,TS4L6_20X100,13,FALSE)","v":"TS4L6-CMA"},0,null,{"$f":"L19+M19","v":0},null,{"$f":"VLOOKUP($E19,TS4L6_20X100,10,FALSE)*H19","v":0},{"$f":"VLOOKUP($E19,TS4L6_20X100,11,FALSE)*H19","v":0},{"$f":"VLOOKUP($E19,TS4L6_20X100,12,FALSE)","v":"L6N117"}]
[]
[null,null,null,null,"Opz JBOD (NO DISK)"]
[null,null,null,null,{"$f":"ConfTS4L6!A183","v":"Enclosure di espansione JBOD 12 slot 3,5'' + HBA (H840)"},null,{"$f":"VLOOKUP($E22,TS4L6_20X100,13,FALSE)","v":"TS4L6-JBOD"},0,null,{"$f":"L22+M22","v":0},null,{"$f":"VLOOKUP($E22,TS4L6_20X100,10,FALSE)*H22","v":0},{"$f":"VLOOKUP($E22,TS4L6_20X100,11,FALSE)*H22","v":0},{"$f":"VLOOKUP($E22,TS4L6_20X100,12,FALSE)","v":"L6N118"}]
[]
[null,null,null,null,"Opz 12TB 7,2 RPM - per JBOD"]
[null,null,null,null,{"$f":"ConfTS4L6!A184","v":"12TB 7.2K RPM NLSAS ISE 12Gbps 512e 3.5in Hot-plug Hard\nDrive"},null,{"$f":"VLOOKUP($E25,TS4L6_20X100,13,FALSE)","v":"TS4L6-12TBNLSAS"},0,null,{"$f":"L25+M25","v":0},null,{"$f":"VLOOKUP($E25,TS4L6_20X100,10,FALSE)*H25","v":0},{"$f":"VLOOKUP($E25,TS4L6_20X100,11,FALSE)*H25","v":0},{"$f":"VLOOKUP($E25,TS4L6_20X100,12,FALSE)","v":"L6N119"}]
[]
[null,null,null,null,"Opz 16TB 7,2 RPM - per JBOD"]
[null,null,null,null,{"$f":"ConfTS4L6!A185","v":"16TB Hard Drive SAS ISE 12Gbps 7.2K 512e 3.5in Hot-Plug"},null,{"$f":"VLOOKUP($E28,TS4L6_20X100,13,FALSE)","v":"TS4L6-16TBSAS"},0,null,{"$f":"L28+M28","v":0},null,{"$f":"VLOOKUP($E28,TS4L6_20X100,10,FALSE)*H28","v":0},{"$f":"VLOOKUP($E28,TS4L6_20X100,11,FALSE)*H28","v":0},{"$f":"VLOOKUP($E28,TS4L6_20X100,12,FALSE)","v":"L6N120"}]
[]
[null,null,null,null,"Opz 20TB 7,2 RPM - per JBOD"]
[null,null,null,null,{"$f":"ConfTS4L6!A186","v":"20TB HDD SAS ISE 12Gbps 7.2K 512e 3.5in Hot-Plug"},null,{"$f":"VLOOKUP($E31,TS4L6_20X100,13,FALSE)","v":"TS4L6-20TBSAS"},0,null,{"$f":"L31+M31","v":0},null,{"$f":"VLOOKUP($E31,TS4L6_20X100,10,FALSE)*H31","v":0},{"$f":"VLOOKUP($E31,TS4L6_20X100,11,FALSE)*H31","v":0},{"$f":"VLOOKUP($E31,TS4L6_20X100,12,FALSE)","v":"L6N121"}]
[]
[]
[]
[null,null,null,null,"OpzRack"]
[null,null,null,null,{"$f":"ConfTS4L6!A141","v":"Armadio Rack 42U"},null,{"$f":"VLOOKUP($E36,ConfTS4L6!1:1048576,13,FALSE)","v":"TS4L6-RACK"},0,null,{"$f":"L36","v":0},null,{"$f":"VLOOKUP($E36,ConfTS4L6!1:1048576,10,FALSE)*H36","v":0},{"$f":"VLOOKUP($E36,ConfTS4L6!1:1048576,11,FALSE)","v":0},{"$f":"VLOOKUP($E36,ConfTS4L6!1:1048576,12,FALSE)","v":"L6N31"}]
[]
[null,null,null,null,"OpzUps (3000VA)"]
[null,null,null,null,{"$f":"ConfTS4L6!A136","v":"Dispositivo UPS di tipo On-line doppia conversione, strutturato per il montaggio a rack da 19”"},null,{"$f":"VLOOKUP($E39,ConfTS4L6!1:1048576,13,FALSE)","v":"TS4L6-UPS"},0,null,{"$f":"L39","v":0},null,{"$f":"VLOOKUP($E39,ConfTS4L6!1:1048576,10,FALSE)*H39","v":0},{"$f":"VLOOKUP($E39,ConfTS4L6!1:1048576,11,FALSE)*I39","v":0},{"$f":"VLOOKUP($E39,ConfTS4L6!1:1048576,12,FALSE)","v":"L6N19"}]
[]
[null,null,null,null,"OpzGUI"]
[null,null,null,null,{"$f":"ConfTS4L6!A137","v":"Unità KVM - monitor 17\", cavo combi PS/2&USB da 1,8mt, tastiera italiana, touch pad"},null,{"$f":"VLOOKUP($E42,ConfTS4L6!1:1048576,13,FALSE)","v":"TS4L6-GUI"},0,null,{"$f":"L42","v":0},null,{"$f":"VLOOKUP($E42,ConfTS4L6!1:1048576,10,FALSE)*H42","v":0},{"$f":"VLOOKUP($E42,ConfTS4L6!1:1048576,11,FALSE)*H42","v":0},{"$f":"VLOOKUP($E42,ConfTS4L6!1:1048576,12,FALSE)","v":"L6N20"}]
[]
[null,null,null,null,"OpzKVM"]
[null,null,null,null,{"$f":"ConfTS4L6!A138","v":"KVM Switch IP per GUI 16P"},null,{"$f":"VLOOKUP($E45,ConfTS4L6!1:1048576,13,FALSE)","v":"TS4L6-KVM"},0,null,{"$f":"L45","v":0},null,{"$f":"VLOOKUP($E45,ConfTS4L6!1:1048576,10,FALSE)*H45","v":0},{"$f":"VLOOKUP($E45,ConfTS4L6!1:1048576,11,FALSE)*H45","v":0},{"$f":"VLOOKUP($E45,ConfTS4L6!1:1048576,12,FALSE)","v":"L6N21"}]

{"sheet":"Riepilogo_Ordine","index":5,"n_rows":143,"n_cols":25,"rows_kept":143,"cut":false,"hidden":false,"merged":[[141,5,141,6],[141,8,141,9],[87,5,87,10],[88,5,88,10],[138,5,138,6],[138,8,138,9],[139,8,139,9],[140,8,140,9],[11,5,11,10],[6,5,6,6],[6,7,6,9],[7,5,7,6],[7,7,7,9],[8,5,8,6],[8,7,8,9],[9,5,9,6],[9,7,9,9],[10,5,10,6],[10,7,10,8],[10,9,10,10],[1,5,1,7],[1,8,3,10],[2,5,2,7],[3,5,3,7],[4,5,4,7],[4,8,4,9],[4,10,5,10],[5,5,5,7],[5,8,5,9]]}
[]
[null,null,null,null,null,"Convenzione \nTecnologie Server 4 - Lotto 6",null,null,{"$f":"IF(Q3>0,\"Compilare i Dati Necessari all'Ordine per Stampare in PDF o Controllare Configurazioni\",\"Dati Completi\")","v":"Compilare i Dati Necessari all'Ordine per Stampare in PDF o Controllare Configurazioni"},null,null,null,null,null,null,null,null,null,null,null,null,null,null,null,"SI"]
[null,null,null,null,null,"Riepilogo Ordine N° (*)",null,null,null,null,null,null,null,null,null,null,{"$f":"P8+U8","v":9},{"$f":"IF(Lotto6_R940_1!L8>0,1,0)","v":0},{"$f":"IF(Lotto6_R940_2!L8>0,1,0)","v":0},{"$f":"IF(Lotto6_R940_3!L8>0,1,0)","v":0},null,{"$f":"SUM(R3:T3)","v":0},null,null,"SI"]
[null,null,null,null,null,null,null,null,null,null,null,null,null,null,null,null,null,null,null,null,null,null,null,null,"SI"]
[null,null,null,null,null,"Ente Ordinante (*)",null,null,"Data  (*)",null,null,null,null,null,null,"Ordine","Ente","data","Ref Cons","mail","tel","Ref Inst","mail","Tel","SI"]
[null,null,null,null,null,null,null,null,null,null,null,null,null,null,null,{"$f":"IF(F4>0,0,1)","v":1},{"$f":"IF(F6>0,0,1)","v":1},{"$f":"IF(I6>0,0,1)","v":1},{"$f":"IF(F8>0,0,1)","v":1},{"$f":"IF(H8>0,0,1)","v":1},{"$f":"IF(K8>0,0,1)","v":1},{"$f":"IF(F10>0,0,1)","v":1},{"$f":"IF(H10>0,0,1)","v":1},{"$f":"IF(K10>0,0,1)","v":1},"SI"]
[null,null,null,null,null,"Referente Consegna (*)",null,"Mail (*)",null,null,"Tel (*)",null,null,null,null,null,null,null,null,null,null,null,null,null,"SI"]
[null,null,null,null,null,null,null,null,null,null,null,null,null,null,null,{"$f":"SUM(P6:X6)","v":9},null,{"$f":"IF(F11<>\"\",1,0)","v":0},{"$f":"IF(H11<>\"\",1,0)","v":0},{"$f":"IF(J11<>\"\",1,0)","v":0},{"$f":"SUM(R8:T8)","v":0},null,null,null,"SI"]
[null,null,null,null,null,"Referente Installazione (*)",null,"Mail (*)",null,null,"Tel (*)",null,null,null,null,null,null,null,null,null,null,null,null,null,"SI"]
[null,null,null,null,null,null,null,null,null,null,null,null,null,null,null,null,null,null,null,null,null,null,null,null,"SI"]
[null,null,null,null,null,{"$f":"IF(Lotto6_R940_1!K4<> \"\",\"Errore Configurazione 1\",\"\")","v":""},null,{"$f":"IF(Lotto6_R940_2!K4<> \"\",\"Errore Configurazione 2\",\"\")","v":""},null,{"$f":"IF(Lotto6_R940_3!K4<> \"\",\"Errore Configurazione 3\",\"\")","v":""},null,null,null,null,null,null,null,null,null,null,null,null,null,null,"SI"]
[null,null,null,null,null,"Articoli in convenzione",null,null,null,null,null,null,null,null,null,null,null,"Config 1","Config 2","Config 3","Totale",null,null,null,"SI"]
[null,null,null,null,null,"Codice Produttore","Codice Convenzione","Descrizione","Qtà","Costo unitario","Costo Totale",null,null,null,null,"N°","Codice Convenzione",{"$f":"Lotto6_R940_1!L8","v":0},{"$f":"Lotto6_R940_2!L8","v":0},{"$f":"Lotto6_R940_3!L8","v":0},null,null,null,null,"SI"]
[null,null,null,null,null,{"$f":"IF(I14=\"\",\"\",VLOOKUP(P14,Tabella_Prezzi,10,FALSE))","v":""},{"$f":"IF(I14=\"\",\"\",VLOOKUP(P14,Tabella_Prezzi,6,FALSE))","v":""},{"$f":"IF(I14=\"\",\"\",VLOOKUP(P14,Tabella_Prezzi,8,FALSE))","v":""},{"$f":"IF(U14>0,U14,\"\")","v":""},{"$f":"IF(I14=\"\",\"\",VLOOKUP(P14,Tabella_Prezzi,4,FALSE))","v":""},{"$f":"IF(F14=\"\",\"\",J14*I14)","v":""},null,null,null,null,"L6N01","TS4L6-SRV",{"$f":"COUNTIF(TS4L6_1,P14)*$R$13","v":0},{"$f":"COUNTIF(TS4L6_2,P14)*$S$13","v":0},{"$f":"COUNTIF(TS4L6_3,P14)*$T$13","v":0},{"$f":"SUM(R14:T14)","v":0},null,null,null,{"$f":"IF(I14<>\"\",\"SI\",\"NO\")","v":"NO"}]
[null,null,null,null,null,"","","",{"$f":"IF(U15>0,U15,\"\")","v":""},"",{"$f":"IF(F15=\"\",\"\",J15*I15)","v":""},null,null,null,null,"L6N01-NVMe","TS4L6-SRV-NVME",{"$f":"COUNTIF(TS4L6_1,P15)*$R$13","v":0},{"$f":"COUNTIF(TS4L6_2,P15)*$S$13","v":0},{"$f":"COUNTIF(TS4L6_3,P15)*$T$13","v":0},0,null,null,null,{"$f":"IF(I15<>\"\",\"SI\",\"NO\")","v":"NO"}]
[null,null,null,null,null,"","","","","","",null,null,null,null,"L6N01-vSAN","TS4L6-SRV-vSAN",{"$f":"COUNTIF(TS4L6_1,P16)*$R$13","v":0},{"$f":"COUNTIF(TS4L6_2,P16)*$S$13","v":0},{"$f":"COUNTIF(TS4L6_3,P16)*$T$13","v":0},0,null,null,null,"NO"]
[null,null,null,null,null,"",{"$f":"IF(I17=\"\",\"\",VLOOKUP(P17,Tabella_Prezzi,6,FALSE))","v":""},"","","","",null,null,null,null,"L6N02","TS4L6-CPU",{"$f":"IF($R$14>0,COUNTIF(TS4L6_1,P17)*$R$13,0)","v":0},{"$f":"IF($S$14>0,COUNTIF(TS4L6_2,P17)*$S$13,0)","v":0},{"$f":"IF($T$14>0,COUNTIF(TS4L6_3,P17)*$T$13,0)","v":0},0,null,null,null,"NO"]
[null,null,null,null,null,"",{"$f":"IF(I18=\"\",\"\",VLOOKUP(P18,Tabella_Prezzi,6,FALSE))","v":""},"","","","",null,null,null,null,"L6N03","TS4L6-RAM32",{"$f":"IF($R$14>0,COUNTIF(TS4L6_1,P18)*Lotto6_R940_1!$L$25*R13,0)","v":0},{"$f":"IF($S$14>0,COUNTIF(TS4L6_2,P18)*Lotto6_R940_2!$L$25*S13,0)","v":0},{"$f":"IF($T$14>0,COUNTIF(TS4L6_3,P18)*Lotto6_R940_3!$L$25*T13,0)","v":0},0,null,null,null,"NO"]
[null,null,null,null,null,"","","","","","",null,null,null,null,"L6N04","TS4L6-RAM64",{"$f":"IF($R$14>0,COUNTIF(TS4L6_1,P19)*Lotto6_R940_1!$L$26*R13,0)","v":0},{"$f":"IF($S$14>0,COUNTIF(TS4L6_2,P19)*Lotto6_R940_2!$L$26*$S$13,0)","v":0},{"$f":"IF($T$14>0,COUNTIF(TS4L6_3,P19)*Lotto6_R940_3!$L$26*$T$13,0)","v":0},0,null,null,null,"NO"]
[null,null,null,null,null,"","","","","","",null,null,null,null,"L6N05","TS4L6-LAN1",{"$f":"IF($R$14>0,COUNTIF(TS4L6_1,P20)*$R$13,0)","v":0},{"$f":"IF($S$14>0,COUNTIF(TS4L6_2,P20)*$S$13,0)","v":0},{"$f":"IF($T$14>0,COUNTIF(TS4L6_3,P20)*$T$13,0)","v":0},0,null,null,null,"NO"]
[null,null,null,null,null,"","","","","","",null,null,null,null,"L6N75","TS4L6-LAN1-L",0,0,0,0,null,null,null,"NO"]
[null,null,null,null,null,"","","","","","",null,null,null,null,"L6N06","TS4L6-LAN10",0,0,0,0,null,null,null,"NO"]
[null,null,null,null,null,"","","","","","",null,null,null,null,"L6N76","TS4L6-LAN10-L",0,0,0,0,null,null,null,"NO"]
[null,null,null,null,null,"","","","","","",null,null,null,null,"L6N07","TS4L6-LAN25",0,0,0,0,null,null,null,"NO"]
[null,null,null,null,null,"","","","","","",null,null,null,null,"L6N77","TS4L6-LAN25-L",0,0,0,0,null,null,null,"NO"]
[null,null,null,null,null,"","","","","","",null,null,null,null,"L6N08","TS4L6-CNA10",0,0,0,0,null,null,null,"NO"]
[null,null,null,null,null,"","","","","","",null,null,null,null,"L6N78","TS4L6-CNA10-L",0,0,0,0,null,null,null,"NO"]
[null,null,null,null,null,"","","","","","",null,null,null,null,"L6N09","TS4L6-BaseT",0,0,0,0,null,null,null,"NO"]
[null,null,null,null,null,"","","","","","",null,null,null,null,"L6N79","TS4L6- BaseT-L",0,0,0,0,null,null,null,"NO"]
[null,null,null,null,null,"","","","","","",null,null,null,null,"L6N10","TS4L6- FibreChannel",0,0,0,0,null,null,null,"NO"]
[null,null,null,null,null,"","","","","","",null,null,null,null,"L6N101","TS4L6- FibreChannel",0,0,0,0,"Quantità 1","Quantità 2","Quantità 3","NO"]
[null,null,null,null,null,"","","","","","",null,null,null,null,"L6N11","TS4L6-HDD2TB",{"$f":"IF($R$14>0,COUNTIF(TS4L6_1,P32)*V32*$R$13,0)","v":0},{"$f":"IF($S$14>0,COUNTIF(TS4L6_2,P32)*W32*$S$13,0)","v":0},{"$f":"IF($T$14>0,COUNTIF(TS4L6_3,P32)*X32*$T$13,0)","v":0},0,{"$f":"Lotto6_R940_1!$L$46","v":0},{"$f":"Lotto6_R940_2!$L$46","v":0},{"$f":"Lotto6_R940_3!$L$46","v":0},"NO"]
[null,null,null,null,null,"","","","","","",null,null,null,null,"L6N12","TS4L6-HDD1TB",0,0,0,0,{"$f":"Lotto6_R940_1!$L$48","v":0},{"$f":"Lotto6_R940_2!$L$48","v":0},{"$f":"Lotto6_R940_3!$L$48","v":0},"NO"]
[null,null,null,null,null,"","","","","","",null,null,null,null,"L6N13","TS4L6-SSD-RI3,8TB",0,0,0,0,{"$f":"Lotto6_R940_1!$L$50","v":0},{"$f":"Lotto6_R940_2!$L$50","v":0},{"$f":"Lotto6_R940_3!$L$50","v":0},"NO"]
[null,null,null,null,null,"","","","","","",null,null,null,null,"L6N14","TS4L6-SSD-RI1,6TB",0,0,0,0,{"$f":"Lotto6_R940_1!$L$52","v":0},{"$f":"Lotto6_R940_2!$L$52","v":0},{"$f":"Lotto6_R940_3!$L$52","v":0},"NO"]
[null,null,null,null,null,"","","","","","",null,null,null,null,"L6N15","TS4L6-SSD-MU1,6TB",0,0,0,0,{"$f":"Lotto6_R940_1!$L$54","v":0},{"$f":"Lotto6_R940_2!$L$54","v":0},{"$f":"Lotto6_R940_3!$L$54","v":0},"NO"]
[null,null,null,null,null,"","","","","","",null,null,null,null,"L6N16","TS4L6-SSD-RI800GB",0,0,0,0,{"$f":"IF(Lotto6_R940_1!$L$56<=2,0,Lotto6_R940_1!$L$56-2)","v":0},{"$f":"IF(Lotto6_R940_2!$L$56<=2,0,Lotto6_R940_2!$L$56-2)","v":0},{"$f":"IF(Lotto6_R940_3!$L$56<=2,0,Lotto6_R940_3!$L$56-2)","v":0},"NO"]
[null,null,null,null,null,"","","","","","",null,null,null,null,"L6N17","TS4L6-SSD-MU800GB",0,0,0,0,{"$f":"Lotto6_R940_1!$L$58","v":0},{"$f":"Lotto6_R940_2!$L$58","v":0},{"$f":"Lotto6_R940_3!$L$58","v":0},"NO"]
[null,null,null,null,null,"","","","","","",null,null,null,null,"L6N18","TS4L6-NVME1,6TB",0,0,0,0,{"$f":"Lotto6_R940_1!$L$64","v":0},{"$f":"Lotto6_R940_2!$L$64","v":0},{"$f":"Lotto6_R940_3!$L$64","v":0},"NO"]
[null,null,null,null,null,"","","","","","",null,null,null,null,"L6N19","TS4L6-UPS",null,null,null,{"$f":"Altre_Opzioni!H39","v":0},null,null,null,"NO"]
[null,null,null,null,null,"","","","","","",null,null,null,null,"L6N20","TS4L6-GUI",null,null,null,{"$f":"Altre_Opzioni!H42","v":0},null,null,null,"NO"]
[null,null,null,null,null,"","","","","","",null,null,null,null,"L6N21","TS4L6-SWKVM",null,null,null,{"$f":"Altre_Opzioni!H45","v":0},null,null,null,"NO"]
[null,null,null,null,null,"","","","","","",null,null,null,null,"L6N22","TS4L6-WINSRVSTD",{"$f":"IF($R$14>0,COUNTIF(TS4L6_1,P43)*V43*$R$13,0)","v":0},{"$f":"IF($S$14>0,COUNTIF(TS4L6_2,P43)*W43*$S$13,0)","v":0},{"$f":"IF($T$14>0,COUNTIF(TS4L6_3,P43)*X43*$T$13,0)","v":0},{"$f":"SUM(R43:T43)","v":0},{"$f":"Lotto6_R940_1!$L$29","v":0},{"$f":"Lotto6_R940_2!$L$29","v":0},{"$f":"Lotto6_R940_3!$L$29","v":0},"NO"]
[null,null,null,null,null,"","","","","","",null,null,null,null,"L6N23","TS4L6-WINDEVCAL",0,0,0,0,{"$f":"Lotto6_R940_1!$L$37","v":0},{"$f":"Lotto6_R940_2!$L$37","v":0},{"$f":"Lotto6_R940_3!$L$37","v":0},"NO"]
[null,null,null,null,null,"","","","","","",null,null,null,null,"L6N24","TS4L6-WINUSRCAL",0,0,0,0,{"$f":"Lotto6_R940_1!$L$38","v":0},{"$f":"Lotto6_R940_2!$L$38","v":0},{"$f":"Lotto6_R940_3!$L$38","v":0},"NO"]
[null,null,null,null,null,"","","","","","",null,null,null,null,"L6N25","TS4L6-WINSRV2C",0,0,0,0,{"$f":"Lotto6_R940_1!$L$30","v":0},{"$f":"Lotto6_R940_2!$L$30","v":0},{"$f":"Lotto6_R940_3!$L$30","v":0},"NO"]
[null,null,null,null,null,"","","","","","",null,null,null,null,"L6N26","TS4L6-WinServDC",0,0,0,0,{"$f":"Lotto6_R940_1!$L$33","v":0},{"$f":"Lotto6_R940_2!$L$33","v":0},{"$f":"Lotto6_R940_3!$L$33","v":0},"NO"]
[null,null,null,null,null,"","","","","","",null,null,null,null,"L6N27","TS4L6-WinServDC2core",0,0,0,0,{"$f":"Lotto6_R940_1!$L$34","v":0},{"$f":"Lotto6_R940_2!$L$34","v":0},{"$f":"Lotto6_R940_3!$L$34","v":0},"NO"]
[null,null,null,null,null,"","","","","","",null,null,null,null,"L6N28","TS4L6-LINUX",0,0,0,0,{"$f":"Lotto6_R940_1!L33","v":0},{"$f":"Lotto6_R940_2!M33","v":0},{"$f":"Lotto6_R940_3!N33","v":0},"NO"]
[null,null,null,null,null,"","","","","","",null,null,null,null,"L6N29","TS4L6-HDRTN36",{"$f":"IF($R$14>0,COUNTIF(TS4L6_1,P50)*$R$13,0)","v":0},{"$f":"IF($S$14>0,COUNTIF(TS4L6_2,P50)*$S$13,0)","v":0},{"$f":"IF($T$14>0,COUNTIF(TS4L6_3,P50)*$T$13,0)","v":0},0,null,null,null,"NO"]
[null,null,null,null,null,"","","","","","",null,null,null,null,"L6N29b","TS4L6-HDRTN60",{"$f":"IF($R$14>0,COUNTIF(TS4L6_1,P51)*$R$13,0)","v":0},{"$f":"IF($S$14>0,COUNTIF(TS4L6_2,P51)*$S$13,0)","v":0},{"$f":"IF($T$14>0,COUNTIF(TS4L6_3,P51)*$T$13,0)","v":0},0,null,null,null,"NO"]
[null,null,null,null,null,"","","","","","",null,null,null,null,"L6N30","TS4L6-OpzEst24",{"$f":"IF($R$14>0,COUNTIF(TS4L6_1,P52)*$R$13,0)","v":0},{"$f":"IF($S$14>0,COUNTIF(TS4L6_2,P52)*$S$13,0)","v":0},{"$f":"IF($T$14>0,COUNTIF(TS4L6_3,P52)*$T$13,0)","v":0},0,null,null,null,"NO"]
[null,null,null,null,null,"","","","","","",null,null,null,null,"L6N31","TS4L6-RACK",null,null,null,{"$f":"Altre_Opzioni!H36","v":0},null,null,null,"NO"]
[null,null,null,null,null,{"$f":"IF(I54=\"\",\"\",VLOOKUP(P54,Tabella_Prezzi,10,FALSE))","v":""},{"$f":"IF(I54=\"\",\"\",VLOOKUP(P54,Tabella_Prezzi,13,FALSE))","v":""},{"$f":"IF(I54=\"\",\"\",VLOOKUP(P54,Tabella_Prezzi,8,FALSE))","v":""},{"$f":"IF(U54>0,U54,\"\")","v":""},{"$f":"IF(I54=\"\",\"\",VLOOKUP(P54,Tabella_Prezzi,4,FALSE))","v":""},{"$f":"IF(F54=\"\",\"\",J54*I54)","v":""},null,null,null,null,"L6N02","TS4L6-CPU-NVME",{"$f":"IF($R$15>0,COUNTIF(TS4L6_1,P54)*$R$13,0)","v":0},{"$f":"IF($S$15>0,COUNTIF(TS4L6_2,P54)*$S$13,0)","v":0},{"$f":"IF($T$15>0,COUNTIF(TS4L6_3,P54)*$T$13,0)","v":0},{"$f":"SUM(R54:T54)","v":0},null,null,null,{"$f":"IF(I54<>\"\",\"SI\",\"NO\")","v":"NO"}]
[null,null,null,null,null,"","","","","","",null,null,null,null,"L6N03","TS4L6-RAM32-NVME",{"$f":"IF($R$15>0,COUNTIF(TS4L6_1,P55)*Lotto6_R940_1!$L$25*R15,0)","v":0},{"$f":"IF($S$15>0,COUNTIF(TS4L6_2,P55)*Lotto6_R940_2!$L$25*S15,0)","v":0},{"$f":"IF($T$15>0,COUNTIF(TS4L6_3,P55)*Lotto6_R940_3!$L$25*T15,0)","v":0},0,null,null,null,"NO"]
[null,null,null,null,null,"","","","","","",null,null,null,null,"L6N04","TS4L6-RAM64-NVME",{"$f":"IF($R$15>0,COUNTIF(TS4L6_1,P56)*Lotto6_R940_1!$L$26*R15,0)","v":0},{"$f":"IF($S$15>0,COUNTIF(TS4L6_2,P56)*Lotto6_R940_2!$L$26*$S$15,0)","v":0},{"$f":"IF($T$15>0,COUNTIF(TS4L6_3,P56)*Lotto6_R940_3!$L$26*$T$15,0)","v":0},0,null,null,null,"NO"]
[null,null,null,null,null,"","","","","","",null,null,null,null,"L6N05","TS4L6-LAN1-NVME",{"$f":"IF($R$15>0,COUNTIF(TS4L6_1,P57)*$R$13,0)","v":0},{"$f":"IF($S$15>0,COUNTIF(TS4L6_2,P57)*$S$13,0)","v":0},{"$f":"IF($T$15>0,COUNTIF(TS4L6_3,P57)*$T$13,0)","v":0},0,null,null,null,"NO"]
[null,null,null,null,null,"","","","","","",null,null,null,null,"L6N75","TS4L6-LAN1-L-NVME",0,0,0,0,null,null,null,"NO"]
[null,null,null,null,null,"","","","","","",null,null,null,null,"L6N06","TS4L6-LAN10-NVME",0,0,0,0,null,null,null,"NO"]
[null,null,null,null,null,"","","","","","",null,null,null,null,"L6N76","TS4L6-LAN10-L-NVME",0,0,0,0,null,null,null,"NO"]
[null,null,null,null,null,"","","","","","",null,null,null,null,"L6N07","TS4L6-LAN25-NVME",0,0,0,0,null,null,null,"NO"]
[null,null,null,null,null,"","","","","","",null,null,null,null,"L6N77","TS4L6-LAN25-L-NVME",0,0,0,0,null,null,null,"NO"]
[null,null,null,null,null,"","","","","","",null,null,null,null,"L6N08","TS4L6-CNA10-NVME",0,0,0,0,null,null,null,"NO"]
[null,null,null,null,null,"","","","","","",null,null,null,null,"L6N78","TS4L6-CNA10-L-NVME",0,0,0,0,null,null,null,"NO"]
[null,null,null,null,null,"","","","","","",null,null,null,null,"L6N09","TS4L6-BaseT-NVME",0,0,0,0,null,null,null,"NO"]
[null,null,null,null,null,"","","","","","",null,null,null,null,"L6N79","TS4L6- BaseT-L-NVME",0,0,0,0,null,null,null,"NO"]
[null,null,null,null,null,"","","","","","",null,null,null,null,"L6N10","TS4L6- FibreChannel-NVME",0,0,0,0,null,null,null,"NO"]
[null,null,null,null,null,"","","","","","",null,null,null,null,"L6N101","TS4L6- FibreChannel-NVME",0,0,0,0,"Quantità 1","Quantità 2","Quantità 3","NO"]
[null,null,null,null,null,"","","","","","",null,null,null,null,"L6N11","TS4L6-HDD2TB-NVME",{"$f":"IF($R$15>0,COUNTIF(TS4L6_1,P69)*V69*$R$13,0)","v":0},{"$f":"IF($S$15>0,COUNTIF(TS4L6_2,P69)*W69*$S$13,0)","v":0},{"$f":"IF($T$15>0,COUNTIF(TS4L6_3,P69)*X69*$T$13,0)","v":0},0,{"$f":"Lotto6_R940_1!$L$46","v":0},{"$f":"Lotto6_R940_2!$L$46","v":0},{"$f":"Lotto6_R940_3!$L$46","v":0},"NO"]
[null,null,null,null,null,"","","","","","",null,null,null,null,"L6N12","TS4L6-HDD1TB-NVME",0,0,0,0,{"$f":"Lotto6_R940_1!$L$48","v":0},{"$f":"Lotto6_R940_2!$L$48","v":0},{"$f":"Lotto6_R940_3!$L$48","v":0},"NO"]
[null,null,null,null,null,"","","","","","",null,null,null,null,"L6N13","TS4L6-SSD-RI3,8TB-NVME",0,0,0,0,{"$f":"Lotto6_R940_1!$L$50","v":0},{"$f":"Lotto6_R940_2!$L$50","v":0},{"$f":"Lotto6_R940_3!$L$50","v":0},"NO"]
[null,null,null,null,null,"","","","","","",null,null,null,null,"L6N14","TS4L6-SSD-RI1,6TB-NVME",0,0,0,0,{"$f":"Lotto6_R940_1!$L$52","v":0},{"$f":"Lotto6_R940_2!$L$52","v":0},{"$f":"Lotto6_R940_3!$L$52","v":0},"NO"]
[null,null,null,null,null,"","","","","","",null,null,null,null,"L6N15","TS4L6-SSD-MU1,6TB-NVME",0,0,0,0,{"$f":"Lotto6_R940_1!$L$54","v":0},{"$f":"Lotto6_R940_2!$L$54","v":0},{"$f":"Lotto6_R940_3!$L$54","v":0},"NO"]
[null,null,null,null,null,"","","","","","",null,null,null,null,"L6N16","TS4L6-SSD-RI800GB-NVME",0,0,0,0,{"$f":"IF(Lotto6_R940_1!$L$56<=2,0,Lotto6_R940_1!$L$56-2)","v":0},{"$f":"IF(Lotto6_R940_2!$L$56<=2,0,Lotto6_R940_2!$L$56-2)","v":0},{"$f":"IF(Lotto6_R940_3!$L$56<=2,0,Lotto6_R940_3!$L$56-2)","v":0},"NO"]
[null,null,null,null,null,"","","","","","",null,null,null,null,"L6N17","TS4L6-SSD-MU800GB-NVME",0,0,0,0,{"$f":"Lotto6_R940_1!$L$58","v":0},{"$f":"Lotto6_R940_2!$L$58","v":0},{"$f":"Lotto6_R940_3!$L$58","v":0},"NO"]
[null,null,null,null,null,"","","","","","",null,null,null,null,"L6N18","TS4L6-NVME1,6TB-NVME",0,0,0,0,{"$f":"Lotto6_R940_1!$L$64","v":0},{"$f":"Lotto6_R940_2!$L$64","v":0},{"$f":"Lotto6_R940_3!$L$64","v":0},"NO"]
[null,null,null,null,null,"","","","","","",null,null,null,null,"L6N22","TS4L6-WINSRVSTD-NVME",0,0,0,0,{"$f":"Lotto6_R940_1!$L$29","v":0},{"$f":"Lotto6_R940_2!$L$29","v":0},{"$f":"Lotto6_R940_3!$L$29","v":0},"NO"]
[null,null,null,null,null,"","","","","","",null,null,null,null,"L6N23","TS4L6-WINDEVCAL-NVME",0,0,0,0,{"$f":"Lotto6_R940_1!$L$37","v":0},{"$f":"Lotto6_R940_2!$L$37","v":0},{"$f":"Lotto6_R940_3!$L$37","v":0},"NO"]
[null,null,null,null,null,"","","","","","",null,null,null,null,"L6N24","TS4L6-WINUSRCAL-NVME",0,0,0,0,{"$f":"Lotto6_R940_1!$L$38","v":0},{"$f":"Lotto6_R940_2!$L$38","v":0},{"$f":"Lotto6_R940_3!$L$38","v":0},"NO"]
[null,null,null,null,null,"","","","","","",null,null,null,null,"L6N25","TS4L6-WINSRV2C-NVME",0,0,0,0,{"$f":"Lotto6_R940_1!$L$30","v":0},{"$f":"Lotto6_R940_2!$L$30","v":0},{"$f":"Lotto6_R940_3!$L$30","v":0},"NO"]
[null,null,null,null,null,"","","","","","",null,null,null,null,"L6N26","TS4L6-WinServDC-NVME",0,0,0,0,{"$f":"Lotto6_R940_1!$L$33","v":0},{"$f":"Lotto6_R940_2!$L$33","v":0},{"$f":"Lotto6_R940_3!$L$33","v":0},"NO"]
[null,null,null,null,null,"","","","","","",null,null,null,null,"L6N27","TS4L6-WinServDC2core-NVME",0,0,0,0,{"$f":"Lotto6_R940_1!$L$34","v":0},{"$f":"Lotto6_R940_2!$L$34","v":0},{"$f":"Lotto6_R940_3!$L$34","v":0},"NO"]
[null,null,null,null,null,"","","","","","",null,null,null,null,"L6N28","TS4L6-LINUX-NVME",0,0,0,0,{"$f":"Lotto6_R940_1!L67","v":0},{"$f":"Lotto6_R940_2!M67","v":0},{"$f":"Lotto6_R940_3!N67","v":0},"NO"]
[null,null,null,null,null,"","","","","","",null,null,null,null,"L6N29","TS4L6-HDRTN36",{"$f":"IF($R$15>0,COUNTIF(TS4L6_1,P84)*$R$13,0)","v":0},{"$f":"IF($S$15>0,COUNTIF(TS4L6_2,P84)*$S$13,0)","v":0},{"$f":"IF($T$15>0,COUNTIF(TS4L6_3,P84)*$T$13,0)","v":0},0,null,null,null,"NO"]
[null,null,null,null,null,"","","","","","",null,null,null,null,"L6N29b","TS4L6-HDRTN60",{"$f":"IF($R$15>0,COUNTIF(TS4L6_1,P85)*$R$13,0)","v":0},{"$f":"IF($S$15>0,COUNTIF(TS4L6_2,P85)*$S$13,0)","v":0},{"$f":"IF($T$15>0,COUNTIF(TS4L6_3,P85)*$T$13,0)","v":0},0,null,null,null,"NO"]
[null,null,null,null,null,"","","","","","",null,null,null,null,"L6N30","TS4L6-OpzEst24",{"$f":"IF($R$15>0,COUNTIF(TS4L6_1,P86)*$R$13,0)","v":0},{"$f":"IF($S$15>0,COUNTIF(TS4L6_2,P86)*$S$13,0)","v":0},{"$f":"IF($T$15>0,COUNTIF(TS4L6_3,P86)*$T$13,0)","v":0},0,null,null,null,"NO"]
[null,null,null,null,null,null,null,null,null,null,null,null,null,null,null,null,null,null,null,null,null,null,null,null,"SI"]
[null,null,null,null,null,{"$f":"IF(G141<0,\"Superata Quota 20%\",\"\")","v":""},null,null,null,null,null,null,null,null,null,null,null,null,null,null,null,null,null,null,"SI"]
[null,null,null,null,null,"Opzioni 20 %",null,null,null,null,null,null,null,null,null,null,null,null,null,null,null,null,null,null,{"$f":"IF(K140>0,\"SI\",\"NO\")","v":"NO"}]
[null,null,null,null,null,"Codice Produttore","Codice Convenzione","Descrizione","Qtà","Costo unitario","Costo Totale",null,null,null,null,"N°","Codice Convenzione",null,null,null,{"$f":"SUM(R90:T90)","v":0},null,null,null,{"$f":"IF(K140>0,\"SI\",\"NO\")","v":"NO"}]
[null,null,null,null,null,{"$f":"IF(I91=\"\",\"\",VLOOKUP(P91,Tabella_Prezzi,10,FALSE))","v":""},{"$f":"IF(I91=\"\",\"\",VLOOKUP(P91,Tabella_Prezzi,6,FALSE))","v":""},{"$f":"IF(I91=\"\",\"\",VLOOKUP(P91,Tabella_Prezzi,8,FALSE))","v":""},{"$f":"IF(U91>0,U91,\"\")","v":""},{"$f":"IF(I91=\"\",\"\",VLOOKUP(P91,Tabella_Prezzi,4,FALSE))","v":""},{"$f":"IF(F91=\"\",\"\",J91*I91)","v":""},null,null,null,null,"L6N32","TS4L6-SSD7.68RI",{"$f":"IF($R$14>0,COUNTIF(TS4L6_1,P91)*V91*$R$13,0)","v":0},{"$f":"IF($S$14>0,COUNTIF(TS4L6_2,P91)*W91*$S$13,0)","v":0},{"$f":"IF($T$14>0,COUNTIF(TS4L6_3,P91)*X91*$T$13,0)","v":0},0,{"$f":"Lotto6_R940_1!$L$60","v":0},{"$f":"Lotto6_R940_2!$L$60","v":0},{"$f":"Lotto6_R940_3!$L$60","v":0},{"$f":"IF($I91<>\"\",\"SI\",\"NO\")","v":"NO"}]
[null,null,null,null,null,"","","","","","",null,null,null,null,"L6N33","TS4L6-NVMe3.2MU",{"$f":"IF($R$14>0,COUNTIF(TS4L6_1,P92)*V92*$R$13,0)","v":0},{"$f":"IF($S$14>0,COUNTIF(TS4L6_2,P92)*W92*$S$13,0)","v":0},{"$f":"IF($T$14>0,COUNTIF(TS4L6_3,P92)*X92*$T$13,0)","v":0},0,{"$f":"Lotto6_R940_1!$L$66","v":0},{"$f":"Lotto6_R940_2!$L$66","v":0},{"$f":"Lotto6_R940_3!$L$66","v":0},{"$f":"IF($I92<>\"\",\"SI\",\"NO\")","v":"NO"}]
[null,null,null,null,null,"","","","","","",null,null,null,null,"L6N34","TS4L6-NVMe1.92RI",{"$f":"IF($R$14>0,COUNTIF(TS4L6_1,P93)*V93*$R$13,0)","v":0},{"$f":"IF($S$14>0,COUNTIF(TS4L6_2,P93)*W93*$S$13,0)","v":0},{"$f":"IF($T$14>0,COUNTIF(TS4L6_3,P93)*X93*$T$13,0)","v":0},0,{"$f":"Lotto6_R940_1!$L$68","v":0},{"$f":"Lotto6_R940_2!$L$68","v":0},{"$f":"Lotto6_R940_3!$L$68","v":0},"NO"]
[null,null,null,null,null,"","","","","","",null,null,null,null,"L6N35","TS4L6-NVMe3.84RI",{"$f":"IF($R$14>0,COUNTIF(TS4L6_1,P94)*V94*$R$13,0)","v":0},{"$f":"IF($S$14>0,COUNTIF(TS4L6_2,P94)*W94*$S$13,0)","v":0},{"$f":"IF($T$14>0,COUNTIF(TS4L6_3,P94)*X94*$T$13,0)","v":0},0,{"$f":"Lotto6_R940_1!$L$70","v":0},{"$f":"Lotto6_R940_2!$L$70","v":0},{"$f":"Lotto6_R940_3!$L$70","v":0},"NO"]
[null,null,null,null,null,"","","","","","",null,null,null,null,"L6N36","TS4L6-10GBs-INTQP",{"$f":"IF($R$14>0,COUNTIF(TS4L6_1,P95)*$R$13,0)","v":0},{"$f":"IF($S$14>0,COUNTIF(TS4L6_2,P95)*$S$13,0)","v":0},{"$f":"IF($T$14>0,COUNTIF(TS4L6_3,P95)*$T$13,0)","v":0},0,null,null,null,{"$f":"IF($I95<>\"\",\"SI\",\"NO\")","v":"NO"}]
[null,null,null,null,null,"","","","","","",null,null,null,null,"L6N38","TS4L6-100GBs-M",{"$f":"IF($R$14>0,COUNTIF(TS4L6_1,P96)*$R$13,0)","v":0},{"$f":"IF($S$14>0,COUNTIF(TS4L6_2,P96)*$S$13,0)","v":0},{"$f":"IF($T$14>0,COUNTIF(TS4L6_3,P96)*$T$13,0)","v":0},0,null,null,null,"NO"]
[null,null,null,null,null,"","","","","","",null,null,null,null,"L6N39","TS4L6-100GBs-B",{"$f":"IF($R$14>0,COUNTIF(TS4L6_1,P97)*$R$13,0)","v":0},{"$f":"IF($S$14>0,COUNTIF(TS4L6_2,P97)*$S$13,0)","v":0},{"$f":"IF($T$14>0,COUNTIF(TS4L6_3,P97)*$T$13,0)","v":0},0,null,null,null,"NO"]
[null,null,null,null,null,"","","","","","",null,null,null,null,"L6N40","TS4L6-100GBs-INT",{"$f":"IF($R$14>0,COUNTIF(TS4L6_1,P98)*$R$13,0)","v":0},{"$f":"IF($S$14>0,COUNTIF(TS4L6_2,P98)*$S$13,0)","v":0},{"$f":"IF($T$14>0,COUNTIF(TS4L6_3,P98)*$T$13,0)","v":0},0,null,null,null,"NO"]
[null,null,null,null,null,"","","","","","",null,null,null,null,"L6N41","TS4L6-100GBs-INF",{"$f":"IF($R$14>0,COUNTIF(TS4L6_1,P99)*$R$13,0)","v":0},{"$f":"IF($S$14>0,COUNTIF(TS4L6_2,P99)*$S$13,0)","v":0},{"$f":"IF($T$14>0,COUNTIF(TS4L6_3,P99)*$T$13,0)","v":0},0,null,null,null,"NO"]
[null,null,null,null,null,"","","","","","",null,null,null,null,"L6N42","TS4L6-OpzBOSS",{"$f":"IF($R$14>0,COUNTIF(TS4L6_1,P100)*$R$90,0)","v":0},{"$f":"IF($S$14>0,COUNTIF(TS4L6_2,P100)*$S$90,0)","v":0},{"$f":"IF($T$14>0,COUNTIF(TS4L6_3,P100)*$T$90,0)","v":0},{"$f":"SUM(R100:T100)","v":0},null,null,null,"NO"]
[null,null,null,null,null,"","","","","","",null,null,null,null,"L6N50","TS4L6-OT10GB",{"$f":"IF($R$14>0,COUNTIF(TS4L6_1,P101)*V101*$R$13,0)","v":0},{"$f":"IF($S$14>0,COUNTIF(TS4L6_2,P101)*W101*$S$13,0)","v":0},{"$f":"IF($T$14>0,COUNTIF(TS4L6_3,P101)*X101*$T$13,0)","v":0},0,{"$f":"Lotto6_R940_1!L123","v":0},{"$f":"Lotto6_R940_2!L123","v":0},{"$f":"Lotto6_R940_3!L123","v":0},"NO"]
[null,null,null,null,null,"","","","","","",null,null,null,null,"L6N51","TS4L6-OT25GB",{"$f":"IF($R$14>0,COUNTIF(TS4L6_1,P102)*V102*$R$13,0)","v":0},{"$f":"IF($S$14>0,COUNTIF(TS4L6_2,P102)*W102*$S$13,0)","v":0},{"$f":"IF($T$14>0,COUNTIF(TS4L6_3,P102)*X102*$T$13,0)","v":0},0,{"$f":"Lotto6_R940_1!L126","v":0},{"$f":"Lotto6_R940_2!L126","v":0},{"$f":"Lotto6_R940_3!L126","v":0},"NO"]
[null,null,null,null,null,"","","","","","",null,null,null,null,"L6N52","TS4L6-OT100GB",{"$f":"IF($R$14>0,COUNTIF(TS4L6_1,P103)*V103*$R$13,0)","v":0},{"$f":"IF($S$14>0,COUNTIF(TS4L6_2,P103)*W103*$S$13,0)","v":0},{"$f":"IF($T$14>0,COUNTIF(TS4L6_3,P103)*X103*$T$13,0)","v":0},0,{"$f":"Lotto6_R940_1!L129","v":0},{"$f":"Lotto6_R940_2!L129","v":0},{"$f":"Lotto6_R940_3!L129","v":0},"NO"]
[null,null,null,null,null,{"$f":"IF(I104=\"\",\"\",VLOOKUP(P104,Tabella_Prezzi,10,FALSE))","v":""},{"$f":"IF(I104=\"\",\"\",VLOOKUP(P104,Tabella_Prezzi,13,FALSE))","v":""},{"$f":"IF(I104=\"\",\"\",VLOOKUP(P104,Tabella_Prezzi,8,FALSE))","v":""},{"$f":"IF(U104>0,U104,\"\")","v":""},{"$f":"IF(I104=\"\",\"\",VLOOKUP(P104,Tabella_Prezzi,4,FALSE))","v":""},{"$f":"IF(F104=\"\",\"\",J104*I104)","v":""},null,null,null,null,"L6N32","TS4L6-SSD7.68RI-NVME",{"$f":"IF($R$15>0,COUNTIF(TS4L6_1,P104)*V104*$R$13,0)","v":0},{"$f":"IF($S$15>0,COUNTIF(TS4L6_2,P104)*W104*$S$13,0)","v":0},{"$f":"IF($T$15>0,COUNTIF(TS4L6_3,P104)*X104*$T$13,0)","v":0},0,{"$f":"Lotto6_R940_1!$L$60","v":0},{"$f":"Lotto6_R940_2!$L$60","v":0},{"$f":"Lotto6_R940_3!$L$60","v":0},{"$f":"IF($I104<>\"\",\"SI\",\"NO\")","v":"NO"}]
[null,null,null,null,null,"","","","","","",null,null,null,null,"L6N33","TS4L6-NVMe3.2MU-NVME",{"$f":"IF($R$15>0,COUNTIF(TS4L6_1,P105)*V105*$R$13,0)","v":0},{"$f":"IF($S$15>0,COUNTIF(TS4L6_2,P105)*W105*$S$13,0)","v":0},{"$f":"IF($T$15>0,COUNTIF(TS4L6_3,P105)*X105*$T$13,0)","v":0},0,{"$f":"Lotto6_R940_1!$L$66","v":0},{"$f":"Lotto6_R940_2!$L$66","v":0},{"$f":"Lotto6_R940_3!$L$66","v":0},"NO"]
[null,null,null,null,null,"","","","","","",null,null,null,null,"L6N34","TS4L6-NVMe1.92RI-NVME",{"$f":"IF($R$15>0,COUNTIF(TS4L6_1,P106)*V106*$R$13,0)","v":0},{"$f":"IF($S$15>0,COUNTIF(TS4L6_2,P106)*W106*$S$13,0)","v":0},{"$f":"IF($T$15>0,COUNTIF(TS4L6_3,P106)*X106*$T$13,0)","v":0},0,{"$f":"Lotto6_R940_1!$L$68","v":0},{"$f":"Lotto6_R940_2!$L$68","v":0},{"$f":"Lotto6_R940_3!$L$68","v":0},"NO"]
[null,null,null,null,null,"","","","","","",null,null,null,null,"L6N35","TS4L6-NVMe3.84RI-NVME",{"$f":"IF($R$15>0,COUNTIF(TS4L6_1,P107)*V107*$R$13,0)","v":0},{"$f":"IF($S$15>0,COUNTIF(TS4L6_2,P107)*W107*$S$13,0)","v":0},{"$f":"IF($T$15>0,COUNTIF(TS4L6_3,P107)*X107*$T$13,0)","v":0},0,{"$f":"Lotto6_R940_1!$L$70","v":0},{"$f":"Lotto6_R940_2!$L$70","v":0},{"$f":"Lotto6_R940_3!$L$70","v":0},"NO"]
[null,null,null,null,null,"","","","","","",null,null,null,null,"L6N36","TS4L6-10GBs-INTQP-NVME",{"$f":"IF($R$15>0,COUNTIF(TS4L6_1,P108)*$R$13,0)","v":0},{"$f":"IF($S$15>0,COUNTIF(TS4L6_2,P108)*$S$13,0)","v":0},{"$f":"IF($T$15>0,COUNTIF(TS4L6_3,P108)*$T$13,0)","v":0},0,null,null,null,{"$f":"IF($I108<>\"\",\"SI\",\"NO\")","v":"NO"}]
[null,null,null,null,null,"","","","","","",null,null,null,null,"L6N38","TS4L6-100GBs-M-NVME",{"$f":"IF($R$15>0,COUNTIF(TS4L6_1,P109)*$R$13,0)","v":0},{"$f":"IF($S$15>0,COUNTIF(TS4L6_2,P109)*$S$13,0)","v":0},{"$f":"IF($T$15>0,COUNTIF(TS4L6_3,P109)*$T$13,0)","v":0},0,null,null,null,"NO"]
[null,null,null,null,null,"","","","","","",null,null,null,null,"L6N39","TS4L6-100GBs-B-NVME",{"$f":"IF($R$15>0,COUNTIF(TS4L6_1,P110)*$R$13,0)","v":0},{"$f":"IF($S$15>0,COUNTIF(TS4L6_2,P110)*$S$13,0)","v":0},{"$f":"IF($T$15>0,COUNTIF(TS4L6_3,P110)*$T$13,0)","v":0},0,null,null,null,"NO"]
[null,null,null,null,null,"","","","","","",null,null,null,null,"L6N40","TS4L6-100GBs-INT-NVME",{"$f":"IF($R$15>0,COUNTIF(TS4L6_1,P111)*$R$13,0)","v":0},{"$f":"IF($S$15>0,COUNTIF(TS4L6_2,P111)*$S$13,0)","v":0},{"$f":"IF($T$15>0,COUNTIF(TS4L6_3,P111)*$T$13,0)","v":0},0,null,null,null,"NO"]
[null,null,null,null,null,"","","","","","",null,null,null,null,"L6N41","TS4L6-100GBs-INF-NVME",{"$f":"IF($R$15>0,COUNTIF(TS4L6_1,P112)*$R$13,0)","v":0},{"$f":"IF($S$15>0,COUNTIF(TS4L6_2,P112)*$S$13,0)","v":0},{"$f":"IF($T$15>0,COUNTIF(TS4L6_3,P112)*$T$13,0)","v":0},0,null,null,null,"NO"]
[null,null,null,null,null,"","","","","","",null,null,null,null,"L6N42","TS4L6-OpzBOSS-NVME",{"$f":"IF($R$15>0,COUNTIF(TS4L6_1,P113)*$R$90,0)","v":0},{"$f":"IF($S$15>0,COUNTIF(TS4L6_2,P113)*$S$90,0)","v":0},{"$f":"IF($T$15>0,COUNTIF(TS4L6_3,P113)*$T$90,0)","v":0},{"$f":"SUM(R113:T113)","v":0},null,null,null,"NO"]
[null,null,null,null,null,"","","","","","",null,null,null,null,"L6N50","TS4L6-OT10GB-NVME",{"$f":"IF($R$15>0,COUNTIF(TS4L6_1,P114)*V114*$R$13,0)","v":0},{"$f":"IF($S$15>0,COUNTIF(TS4L6_2,P114)*W114*$S$13,0)","v":0},{"$f":"IF($T$15>0,COUNTIF(TS4L6_3,P114)*X114*$T$13,0)","v":0},0,{"$f":"Lotto6_R940_1!L123","v":0},{"$f":"Lotto6_R940_2!L123","v":0},{"$f":"Lotto6_R940_3!L123","v":0},"NO"]
[null,null,null,null,null,"","","","","","",null,null,null,null,"L6N51","TS4L6-OT25GB-NVME",{"$f":"IF($R$15>0,COUNTIF(TS4L6_1,P115)*V115*$R$13,0)","v":0},{"$f":"IF($S$15>0,COUNTIF(TS4L6_2,P115)*W115*$S$13,0)","v":0},{"$f":"IF($T$15>0,COUNTIF(TS4L6_3,P115)*X115*$T$13,0)","v":0},0,{"$f":"Lotto6_R940_1!L126","v":0},{"$f":"Lotto6_R940_2!L126","v":0},{"$f":"Lotto6_R940_3!L126","v":0},"NO"]
[null,null,null,null,null,"","","","","","",null,null,null,null,"L6N52","TS4L6-OT100GB-NVME",{"$f":"IF($R$15>0,COUNTIF(TS4L6_1,P116)*V116*$R$13,0)","v":0},{"$f":"IF($S$15>0,COUNTIF(TS4L6_2,P116)*W116*$S$13,0)","v":0},{"$f":"IF($T$15>0,COUNTIF(TS4L6_3,P116)*X116*$T$13,0)","v":0},0,{"$f":"Lotto6_R940_1!L129","v":0},{"$f":"Lotto6_R940_2!L129","v":0},{"$f":"Lotto6_R940_3!L129","v":0},"NO"]
[null,null,null,null,null,"","","","","","",null,null,null,null,"L6N53","TS4L6-HBA",{"$f":"COUNTIF(TS4L6_1,P117)*$R$90","v":0},{"$f":"COUNTIF(TS4L6_2,P117)*$S$90","v":0},{"$f":"COUNTIF(TS4L6_3,P117)*$T$90","v":0},0,null,null,null,"NO"]
[null,null,null,null,null,"","","","","","",null,null,null,null,"L6N54","TS4L6-OpzCMA",{"$f":"COUNTIF(TS4L6_1,P118)*$R$90","v":0},{"$f":"COUNTIF(TS4L6_2,P118)*$S$90","v":0},{"$f":"COUNTIF(TS4L6_3,P118)*$T$90","v":0},0,null,null,null,"NO"]
[null,null,null,null,null,"","","","","","",null,null,null,null,"L6N110","TS4L6-2CPU-vSAN-NVMe",{"$f":"COUNTIF(TS4L6_1,P119)*$R$13","v":0},{"$f":"COUNTIF(TS4L6_2,P119)*$S$13","v":0},{"$f":"COUNTIF(TS4L6_3,P119)*$T$13","v":0},0,null,null,null,"NO"]
[null,null,null,null,null,"","","","","","",null,null,null,null,"L6N111","TS4L6-4CPU-vSAN-2TB-NVMe",{"$f":"COUNTIF(TS4L6_1,P120)*$R$13","v":0},{"$f":"COUNTIF(TS4L6_2,P120)*$S$13","v":0},{"$f":"COUNTIF(TS4L6_3,P120)*$T$13","v":0},0,null,null,null,"NO"]
[null,null,null,null,null,"",{"$f":"IF(I121=\"\",\"\",VLOOKUP(P121,Tabella_Prezzi,13,FALSE))","v":""},"","","","",null,null,null,null,"L6N112","TS4L6-RACK-D",null,null,null,{"$f":"Altre_Opzioni!H7","v":0},null,null,null,"NO"]
[null,null,null,null,null,"","","","","","",null,null,null,null,"L6N113","TS4L6-PDU-M",null,null,null,{"$f":"Altre_Opzioni!H10","v":0},null,null,null,{"$f":"IF($I122<>\"\",\"SI\",\"NO\")","v":"NO"}]
[null,null,null,null,null,"","","","","","",null,null,null,null,"L6N114","TS4L6-PDU-T",null,null,null,{"$f":"Altre_Opzioni!H13","v":0},null,null,null,"NO"]
[null,null,null,null,null,"","","","","","",null,null,null,null,"L6N115","TS4L6-KVM-D",null,null,null,{"$f":"Altre_Opzioni!H16","v":0},null,null,null,"NO"]
[null,null,null,null,null,"","","","","","",null,null,null,null,"L6N116","TS4L6-ROCK",{"$f":"IF($R$15>0,COUNTIF(TS4L6_1,P125)*$R$13,0)","v":0},{"$f":"IF($S$15>0,COUNTIF(TS4L6_2,P125)*$S$13,0)","v":0},{"$f":"IF($T$15>0,COUNTIF(TS4L6_3,P125)*$T$13,0)","v":0},{"$f":"SUM(R125:T125)","v":0},null,null,null,"NO"]
[null,null,null,null,null,"","","","","","",null,null,null,null,"L6N117","TS4L6-CMA",null,null,null,{"$f":"Altre_Opzioni!H19","v":0},null,null,null,"NO"]
[null,null,null,null,null,"","","","","","",null,null,null,null,"L6N118","TS4L6-JBOD",null,null,null,{"$f":"Altre_Opzioni!H22","v":0},null,null,null,"NO"]
[null,null,null,null,null,"","","","","","",null,null,null,null,"L6N119","TS4L6-12TBNLSAS",null,null,null,{"$f":"Altre_Opzioni!H25","v":0},null,null,null,"NO"]
[null,null,null,null,null,"","","","","","",null,null,null,null,"L6N120","TS4L6-16TBSAS",null,null,null,{"$f":"Altre_Opzioni!H28","v":0},null,null,null,"NO"]
[null,null,null,null,null,"","","","","","",null,null,null,null,"L6N121","TS4L6-20TBSAS",null,null,null,{"$f":"Altre_Opzioni!H31","v":0},null,null,null,"NO"]
[null,null,null,null,null,{"$f":"IF(I131=\"\",\"\",VLOOKUP(P131,Tabella_Prezzi,10,FALSE))","v":""},"",{"$f":"IF(I131=\"\",\"\",VLOOKUP(P131,Tabella_Prezzi,8,FALSE))","v":""},{"$f":"IF(U131>0,U131,\"\")","v":""},{"$f":"IF(I131=\"\",\"\",VLOOKUP(P131,Tabella_Prezzi,4,FALSE))","v":""},{"$f":"IF(F131=\"\",\"\",J131*I131)","v":""},null,null,null,null,"L6N122","TS4L6-vSAN-2CPU-1.5TB",{"$f":"COUNTIF(TS4L6_1,P131)*$R$13","v":0},{"$f":"COUNTIF(TS4L6_2,P131)*$S$13","v":0},{"$f":"COUNTIF(TS4L6_3,P131)*$T$13","v":0},0,null,null,null,"NO"]
[null,null,null,null,null,"","","","","","",null,null,null,null,"L6N123","TS4L6-vSAN-2CPU-1TB",{"$f":"COUNTIF(TS4L6_1,P132)*$R$13","v":0},{"$f":"COUNTIF(TS4L6_2,P132)*$S$13","v":0},{"$f":"COUNTIF(TS4L6_3,P132)*$T$13","v":0},0,null,null,null,"NO"]
[null,null,null,null,null,"","","","","","",null,null,null,null,"L6N124","TS4L6-vSAN-4CPU-2TB",{"$f":"COUNTIF(TS4L6_1,P133)*$R$13","v":0},{"$f":"COUNTIF(TS4L6_2,P133)*$S$13","v":0},{"$f":"COUNTIF(TS4L6_3,P133)*$T$13","v":0},0,null,null,null,"NO"]
[null,null,null,null,null,"","","","","","",null,null,null,null,"L6N125","TS4L6-BOSS-4CPU-3TB",{"$f":"COUNTIF(TS4L6_1,P134)*$R$13","v":0},{"$f":"COUNTIF(TS4L6_2,P134)*$S$13","v":0},{"$f":"COUNTIF(TS4L6_3,P134)*$T$13","v":0},0,null,null,null,"NO"]
[null,null,null,null,null,null,null,null,null,null,null,null,null,null,null,null,null,null,null,null,null,null,null,null,"SI"]
[]
[]
[null,null,null,null,null,null,null,null,null,null,null,null,null,null,null,null,null,null,null,null,null,null,null,null,"SI"]
[null,null,null,null,null,null,null,null,"Totale Convenzione",null,{"$f":"SUM(K14:K86)","v":0},null,null,null,null,null,null,null,null,null,null,null,null,null,"SI"]
[null,null,null,null,null,"Quota Massima 20%",{"$f":"K142*0.2","v":0},null,"Totale 20%",null,{"$f":"SUM(K91:K134)","v":0},null,null,null,null,null,null,null,null,null,null,null,null,null,"SI"]
[null,null,null,null,null,"Quota Residua 20%",{"$f":"G140-K140","v":0},null,"Totale Iva Esclusa",null,{"$f":"K139+K140","v":0},null,null,null,null,null,null,null,null,null,null,null,null,null,"SI"]
[null,null,null,null,null,null,null,null,"Totale Ordine",null,{"$f":"(K141*1.22)","v":0},null,null,null,null,null,null,null,null,null,null,null,null,null,"SI"]
[null,null,null,null,null,null,null,null,null,null,null,null,null,null,null,null,null,null,null,null,null,null,null,null,"SI"]

{"sheet":"Config","index":6,"n_rows":148,"n_cols":18,"rows_kept":148,"cut":false,"hidden":true,"merged":[[9,3,9,4],[9,6,9,7],[10,3,10,4],[10,6,10,7],[10,9,10,10],[7,3,7,4],[7,6,7,7],[7,9,7,10],[8,3,8,4],[8,6,8,7],[8,9,8,10],[6,3,6,4],[6,6,6,7],[1,3,1,10],[3,3,3,4],[4,3,4,4],[5,3,5,4],[5,6,5,7]]}
[]
[null,null,null,"Informazioni di Servizio per processamento Ordine",null,null,null,null,null,null,null,null,null,null,null,null,null,"SI"]
[null,null,null,null,null,null,null,null,null,null,null,null,null,null,null,null,null,"SI"]
[null,null,null,{"$f":"Riepilogo_Ordine!F3","v":"Riepilogo Ordine N° (*)"},null,null,null,null,null,null,null,null,null,null,null,null,null,"SI"]
[null,null,null,{"$f":"Riepilogo_Ordine!F4","v":0},null,null,null,null,null,null,null,null,null,null,null,null,null,"SI"]
[null,null,null,{"$f":"Riepilogo_Ordine!F5","v":"Ente Ordinante (*)"},null,null,{"$f":"Riepilogo_Ordine!I5","v":"Data  (*)"},null,null,null,null,null,null,null,null,null,null,"SI"]
[null,null,null,{"$f":"Riepilogo_Ordine!F6","v":0},null,null,{"$f":"Riepilogo_Ordine!I6","v":"00:00:00"},null,null,null,null,null,null,null,null,null,null,"SI"]
[null,null,null,{"$f":"Riepilogo_Ordine!F7","v":"Referente Consegna (*)"},null,null,{"$f":"Riepilogo_Ordine!H7","v":"Mail (*)"},null,null,{"$f":"Riepilogo_Ordine!K7","v":"Tel (*)"},null,null,null,null,null,null,null,"SI"]
[null,null,null,{"$f":"Riepilogo_Ordine!F8","v":0},null,null,{"$f":"Riepilogo_Ordine!I8","v":0},null,null,{"$f":"Riepilogo_Ordine!K8","v":0},null,null,null,null,null,null,null,"SI"]
[null,null,null,{"$f":"Riepilogo_Ordine!F9","v":"Referente Installazione (*)"},null,null,{"$f":"Riepilogo_Ordine!H9","v":"Mail (*)"},null,null,{"$f":"Riepilogo_Ordine!K9","v":"Tel (*)"},null,null,null,null,null,null,null,"SI"]
[null,null,null,{"$f":"Riepilogo_Ordine!F10","v":0},null,null,{"$f":"Riepilogo_Ordine!I10","v":0},null,null,{"$f":"Riepilogo_Ordine!K10","v":0},null,null,null,null,null,null,null,"SI"]
[null,null,null,null,null,null,null,null,null,null,null,null,null,null,null,null,null,"SI"]
[null,null,null,null,null,null,null,null,null,null,null,null,null,null,null,null,null,"SI"]
[]
[]
[]
[null,null,null,{"$f":"Lotto6_R940_1!L8","v":0},"Configurazione 1",null,{"$f":"Lotto6_R940_2!L8","v":0},"Configurazione 2",null,{"$f":"Lotto6_R940_3!L8","v":0},"Configurazione 3",null,null,null,null,null,null,"SI"]
[null,null,null,null,null,null,null,null,null,null,null,null,null,"conf1","conf2","conf3","tot"]
[null,null,{"$f":"IF(D19<>\"\",1,0)","v":0},{"$f":"IF(Riepilogo_Ordine!R14>0,Riepilogo_Ordine!R14,\"\")","v":""},{"$f":"IF(E71<>\"\",\"\",IF(D19=\"\",\"\",CONCATENATE(Riepilogo_Ordine!Q14)))","v":""},{"$f":"IF(G19<>\"\",1,0)","v":0},{"$f":"IF(Riepilogo_Ordine!S14>0,Riepilogo_Ordine!S14,\"\")","v":""},{"$f":"IF(H71<>\"\",\"\",IF(G19=\"\",\"\",CONCATENATE(Riepilogo_Ordine!Q14)))","v":""},{"$f":"IF(J19<>\"\",1,0)","v":0},{"$f":"IF(Riepilogo_Ordine!T14>0,Riepilogo_Ordine!T14,\"\")","v":""},{"$f":"IF(K71<>\"\",\"\",IF(J19=\"\",\"\",CONCATENATE(Riepilogo_Ordine!Q14)))","v":""},null,null,{"$f":"IF(D19=\"\",0,D19)","v":0},{"$f":"IF(G19=\"\",0,G19)","v":0},{"$f":"IF(J19=\"\",0,J19)","v":0},{"$f":"SUM(N19:P19)","v":0},{"$f":"IF(Q19>0,\"SI\",\"NO\")","v":"NO"}]
[null,{"$f":"IF(AND(D20=1,E20=\"\"),1,\"\")","v":""},{"$f":"IF(D20<>\"\",1,0)","v":0},{"$f":"IF(D70<>\"\",\"\",IF(Riepilogo_Ordine!R17>0,Riepilogo_Ordine!R17,\"\"))","v":""},{"$f":"IF(E69<>\"\",\"\",IF(E70<>\"\",\"\",IF(E71<>\"\",\"\",IF(E72<>\"\",\"\",IF(E73<>\"\",\"\",IF(D20=\"\",\"\",CONCATENATE(Riepilogo_Ordine!Q17)))))))","v":""},{"$f":"IF(G20<>\"\",1,0)","v":0},{"$f":"IF(G70<>\"\",\"\",IF(Riepilogo_Ordine!S17>0,Riepilogo_Ordine!S17,\"\"))","v":""},{"$f":"IF(H69<>\"\",\"\",IF(H70<>\"\",\"\",IF(H71<>\"\",\"\",IF(H72<>\"\",\"\",IF(H73<>\"\",\"\",IF(G20=\"\",\"\",CONCATENATE(Riepilogo_Ordine!Q17)))))))","v":""},{"$f":"IF(J20<>\"\",1,0)","v":0},{"$f":"IF(J70<>\"\",\"\",IF(Riepilogo_Ordine!T17>0,Riepilogo_Ordine!T17,\"\"))","v":""},{"$f":"IF(K69<>\"\",\"\",IF(K70<>\"\",\"\",IF(K71<>\"\",\"\",IF(K72<>\"\",\"\",IF(K73<>\"\",\"\",IF(J20=\"\",\"\",CONCATENATE(Riepilogo_Ordine!Q17)))))))","v":""},null,null,{"$f":"IF(D20=\"\",0,D20)","v":0},{"$f":"IF(G20=\"\",0,G20)","v":0},{"$f":"IF(J20=\"\",0,J20)","v":0},{"$f":"SUM(N20:P20)","v":0},{"$f":"IF(Q20>0,\"SI\",\"NO\")","v":"NO"}]
[null,{"$f":"IF(AND(D21=1,E21=\"\"),1,\"\")","v":""},{"$f":"IF(D21<>\"\",1,0)","v":0},{"$f":"IF(D141<>\"\",\"\",IF(D139<>\"\",\"\",IF(D142<>\"\",\"\",IF(D140<>\"\",\"\",IF(D70<>\"\",\"\",IF(Riepilogo_Ordine!R15>0,Riepilogo_Ordine!R15,\"\"))))))","v":""},{"$f":"IF(E70<>\"\",\"\",IF(E71<>\"\",\"\",IF(E69<>\"\",\"\",IF(E72<>\"\",\"\",IF(E73<>\"\",\"\",IF(D21=\"\",\"\",CONCATENATE(Riepilogo_Ordine!Q15)))))))","v":""},{"$f":"IF(G21<>\"\",1,0)","v":0},{"$f":"IF(G141<>\"\",\"\",IF(G139<>\"\",\"\",IF(G142<>\"\",\"\",IF(G140<>\"\",\"\",IF(G70<>\"\",\"\",IF(Riepilogo_Ordine!S15>0,Riepilogo_Ordine!S15,\"\"))))))","v":""},{"$f":"IF(H70<>\"\",\"\",IF(H71<>\"\",\"\",IF(H69<>\"\",\"\",IF(H72<>\"\",\"\",IF(H73<>\"\",\"\",IF(G21=\"\",\"\",CONCATENATE(Riepilogo_Ordine!Q15)))))))","v":""},{"$f":"IF(J21<>\"\",1,0)","v":0},{"$f":"IF(J141<>\"\",\"\",IF(J139<>\"\",\"\",IF(J142<>\"\",\"\",IF(J140<>\"\",\"\",IF(J70<>\"\",\"\",IF(Riepilogo_Ordine!T15>0,Riepilogo_Ordine!T15,\"\"))))))","v":""},{"$f":"IF(K70<>\"\",\"\",IF(K71<>\"\",\"\",IF(K69<>\"\",\"\",IF(K72<>\"\",\"\",IF(K73<>\"\",\"\",IF(J21=\"\",\"\",CONCATENATE(Riepilogo_Ordine!Q15)))))))","v":""},null,null,0,0,0,0,"NO"]
[null,null,null,{"$f":"IF(D70<>\"\",\"\",IF(Riepilogo_Ordine!R18>0,Riepilogo_Ordine!R18,\"\"))","v":""},{"$f":"IF(D22=\"\",\"\",CONCATENATE(Riepilogo_Ordine!Q18))","v":""},null,{"$f":"IF(G70<>\"\",\"\",IF(Riepilogo_Ordine!S18>0,Riepilogo_Ordine!S18,\"\"))","v":""},{"$f":"IF(G22=\"\",\"\",CONCATENATE(Riepilogo_Ordine!Q18))","v":""},null,{"$f":"IF(J70<>\"\",\"\",IF(Riepilogo_Ordine!T18>0,Riepilogo_Ordine!T18,\"\"))","v":""},{"$f":"IF(J22=\"\",\"\",CONCATENATE(Riepilogo_Ordine!Q18))","v":""},null,null,0,0,0,0,"NO"]
[null,null,null,{"$f":"IF(D70<>\"\",\"\",IF(Riepilogo_Ordine!R19>0,Riepilogo_Ordine!R19,\"\"))","v":""},{"$f":"IF(D23=\"\",\"\",CONCATENATE(Riepilogo_Ordine!Q19))","v":""},null,{"$f":"IF(G70<>\"\",\"\",IF(Riepilogo_Ordine!S19>0,Riepilogo_Ordine!S19,\"\"))","v":""},{"$f":"IF(G23=\"\",\"\",CONCATENATE(Riepilogo_Ordine!Q19))","v":""},null,{"$f":"IF(J70<>\"\",\"\",IF(Riepilogo_Ordine!T19>0,Riepilogo_Ordine!T19,\"\"))","v":""},{"$f":"IF(J23=\"\",\"\",CONCATENATE(Riepilogo_Ordine!Q19))","v":""},null,null,0,0,0,0,"NO"]
[null,null,null,{"$f":"IF(Riepilogo_Ordine!R20>0,Riepilogo_Ordine!R20,\"\")","v":""},{"$f":"IF(D24=\"\",\"\",CONCATENATE(Riepilogo_Ordine!Q20))","v":""},null,{"$f":"IF(Riepilogo_Ordine!S20>0,Riepilogo_Ordine!S20,\"\")","v":""},{"$f":"IF(G24=\"\",\"\",CONCATENATE(Riepilogo_Ordine!Q20))","v":""},null,{"$f":"IF(Riepilogo_Ordine!T20>0,Riepilogo_Ordine!T20,\"\")","v":""},{"$f":"IF(J24=\"\",\"\",CONCATENATE(Riepilogo_Ordine!Q20))","v":""},null,null,0,0,0,0,"NO"]
[null,null,null,{"$f":"IF(Riepilogo_Ordine!R21>0,Riepilogo_Ordine!R21,\"\")","v":""},{"$f":"IF(D25=\"\",\"\",CONCATENATE(Riepilogo_Ordine!Q21))","v":""},null,{"$f":"IF(Riepilogo_Ordine!S21>0,Riepilogo_Ordine!S21,\"\")","v":""},{"$f":"IF(G25=\"\",\"\",CONCATENATE(Riepilogo_Ordine!Q21))","v":""},null,{"$f":"IF(Riepilogo_Ordine!T21>0,Riepilogo_Ordine!T21,\"\")","v":""},{"$f":"IF(J25=\"\",\"\",CONCATENATE(Riepilogo_Ordine!Q21))","v":""},null,null,0,0,0,0,"NO"]
[null,null,null,{"$f":"IF(Riepilogo_Ordine!R22>0,Riepilogo_Ordine!R22,\"\")","v":""},{"$f":"IF(D26=\"\",\"\",CONCATENATE(Riepilogo_Ordine!Q22))","v":""},null,{"$f":"IF(Riepilogo_Ordine!S22>0,Riepilogo_Ordine!S22,\"\")","v":""},{"$f":"IF(G26=\"\",\"\",CONCATENATE(Riepilogo_Ordine!Q22))","v":""},null,{"$f":"IF(Riepilogo_Ordine!T22>0,Riepilogo_Ordine!T22,\"\")","v":""},{"$f":"IF(J26=\"\",\"\",CONCATENATE(Riepilogo_Ordine!Q22))","v":""},null,null,0,0,0,0,"NO"]
[null,null,null,{"$f":"IF(Riepilogo_Ordine!R23>0,Riepilogo_Ordine!R23,\"\")","v":""},{"$f":"IF(D27=\"\",\"\",CONCATENATE(Riepilogo_Ordine!Q23))","v":""},null,{"$f":"IF(Riepilogo_Ordine!S23>0,Riepilogo_Ordine!S23,\"\")","v":""},{"$f":"IF(G27=\"\",\"\",CONCATENATE(Riepilogo_Ordine!Q23))","v":""},null,{"$f":"IF(Riepilogo_Ordine!T23>0,Riepilogo_Ordine!T23,\"\")","v":""},{"$f":"IF(J27=\"\",\"\",CONCATENATE(Riepilogo_Ordine!Q23))","v":""},null,null,0,0,0,0,"NO"]
[null,null,null,{"$f":"IF(Riepilogo_Ordine!R24>0,Riepilogo_Ordine!R24,\"\")","v":""},{"$f":"IF(D28=\"\",\"\",CONCATENATE(Riepilogo_Ordine!Q24))","v":""},null,{"$f":"IF(Riepilogo_Ordine!S24>0,Riepilogo_Ordine!S24,\"\")","v":""},{"$f":"IF(G28=\"\",\"\",CONCATENATE(Riepilogo_Ordine!Q24))","v":""},null,{"$f":"IF(Riepilogo_Ordine!T24>0,Riepilogo_Ordine!T24,\"\")","v":""},{"$f":"IF(J28=\"\",\"\",CONCATENATE(Riepilogo_Ordine!Q24))","v":""},null,null,0,0,0,0,"NO"]
[null,null,null,{"$f":"IF(Riepilogo_Ordine!R25>0,Riepilogo_Ordine!R25,\"\")","v":""},{"$f":"IF(D29=\"\",\"\",CONCATENATE(Riepilogo_Ordine!Q25))","v":""},null,{"$f":"IF(Riepilogo_Ordine!S25>0,Riepilogo_Ordine!S25,\"\")","v":""},{"$f":"IF(G29=\"\",\"\",CONCATENATE(Riepilogo_Ordine!Q25))","v":""},null,{"$f":"IF(Riepilogo_Ordine!T25>0,Riepilogo_Ordine!T25,\"\")","v":""},{"$f":"IF(J29=\"\",\"\",CONCATENATE(Riepilogo_Ordine!Q25))","v":""},null,null,0,0,0,0,"NO"]
[null,null,null,{"$f":"IF(Riepilogo_Ordine!R26>0,Riepilogo_Ordine!R26,\"\")","v":""},{"$f":"IF(D30=\"\",\"\",CONCATENATE(Riepilogo_Ordine!Q26))","v":""},null,{"$f":"IF(Riepilogo_Ordine!S26>0,Riepilogo_Ordine!S26,\"\")","v":""},{"$f":"IF(G30=\"\",\"\",CONCATENATE(Riepilogo_Ordine!Q26))","v":""},null,{"$f":"IF(Riepilogo_Ordine!T26>0,Riepilogo_Ordine!T26,\"\")","v":""},{"$f":"IF(J30=\"\",\"\",CONCATENATE(Riepilogo_Ordine!Q26))","v":""},null,null,0,0,0,0,"NO"]
[null,null,null,{"$f":"IF(Riepilogo_Ordine!R27>0,Riepilogo_Ordine!R27,\"\")","v":""},{"$f":"IF(D31=\"\",\"\",CONCATENATE(Riepilogo_Ordine!Q27))","v":""},null,{"$f":"IF(Riepilogo_Ordine!S27>0,Riepilogo_Ordine!S27,\"\")","v":""},{"$f":"IF(G31=\"\",\"\",CONCATENATE(Riepilogo_Ordine!Q27))","v":""},null,{"$f":"IF(Riepilogo_Ordine!T27>0,Riepilogo_Ordine!T27,\"\")","v":""},{"$f":"IF(J31=\"\",\"\",CONCATENATE(Riepilogo_Ordine!Q27))","v":""},null,null,0,0,0,0,"NO"]
[null,null,null,{"$f":"IF(Riepilogo_Ordine!R28>0,Riepilogo_Ordine!R28,\"\")","v":""},{"$f":"IF(D32=\"\",\"\",CONCATENATE(Riepilogo_Ordine!Q28))","v":""},null,{"$f":"IF(Riepilogo_Ordine!S28>0,Riepilogo_Ordine!S28,\"\")","v":""},{"$f":"IF(G32=\"\",\"\",CONCATENATE(Riepilogo_Ordine!Q28))","v":""},null,{"$f":"IF(Riepilogo_Ordine!T28>0,Riepilogo_Ordine!T28,\"\")","v":""},{"$f":"IF(J32=\"\",\"\",CONCATENATE(Riepilogo_Ordine!Q28))","v":""},null,null,0,0,0,0,"NO"]
[null,null,null,{"$f":"IF(Riepilogo_Ordine!R29>0,Riepilogo_Ordine!R29,\"\")","v":""},{"$f":"IF(D33=\"\",\"\",CONCATENATE(Riepilogo_Ordine!Q29))","v":""},null,{"$f":"IF(Riepilogo_Ordine!S29>0,Riepilogo_Ordine!S29,\"\")","v":""},{"$f":"IF(G33=\"\",\"\",CONCATENATE(Riepilogo_Ordine!Q29))","v":""},null,{"$f":"IF(Riepilogo_Ordine!T29>0,Riepilogo_Ordine!T29,\"\")","v":""},{"$f":"IF(J33=\"\",\"\",CONCATENATE(Riepilogo_Ordine!Q29))","v":""},null,null,0,0,0,0,"NO"]
[null,null,null,{"$f":"IF(Riepilogo_Ordine!R30>0,Riepilogo_Ordine!R30,\"\")","v":""},{"$f":"IF(D34=\"\",\"\",CONCATENATE(Riepilogo_Ordine!Q30))","v":""},null,{"$f":"IF(Riepilogo_Ordine!S30>0,Riepilogo_Ordine!S30,\"\")","v":""},{"$f":"IF(G34=\"\",\"\",CONCATENATE(Riepilogo_Ordine!Q30))","v":""},null,{"$f":"IF(Riepilogo_Ordine!T30>0,Riepilogo_Ordine!T30,\"\")","v":""},{"$f":"IF(J34=\"\",\"\",CONCATENATE(Riepilogo_Ordine!Q30))","v":""},null,null,0,0,0,0,"NO"]
[null,null,null,{"$f":"IF(Riepilogo_Ordine!R31>0,Riepilogo_Ordine!R31,\"\")","v":""},{"$f":"IF(D35=\"\",\"\",CONCATENATE(Riepilogo_Ordine!Q31))","v":""},null,{"$f":"IF(Riepilogo_Ordine!S31>0,Riepilogo_Ordine!S31,\"\")","v":""},{"$f":"IF(G35=\"\",\"\",CONCATENATE(Riepilogo_Ordine!Q31))","v":""},null,{"$f":"IF(Riepilogo_Ordine!T31>0,Riepilogo_Ordine!T31,\"\")","v":""},{"$f":"IF(J35=\"\",\"\",CONCATENATE(Riepilogo_Ordine!Q31))","v":""},null,null,0,0,0,0,"NO"]
[null,null,null,{"$f":"IF(Riepilogo_Ordine!R32>0,Riepilogo_Ordine!R32,\"\")","v":""},{"$f":"IF(D36=\"\",\"\",CONCATENATE(Riepilogo_Ordine!Q32))","v":""},null,{"$f":"IF(Riepilogo_Ordine!S32>0,Riepilogo_Ordine!S32,\"\")","v":""},{"$f":"IF(G36=\"\",\"\",CONCATENATE(Riepilogo_Ordine!Q32))","v":""},null,{"$f":"IF(Riepilogo_Ordine!T32>0,Riepilogo_Ordine!T32,\"\")","v":""},{"$f":"IF(J36=\"\",\"\",CONCATENATE(Riepilogo_Ordine!Q32))","v":""},null,null,0,0,0,0,"NO"]
[null,null,null,{"$f":"IF(Riepilogo_Ordine!R33>0,Riepilogo_Ordine!R33,\"\")","v":""},{"$f":"IF(D37=\"\",\"\",CONCATENATE(Riepilogo_Ordine!Q33))","v":""},null,{"$f":"IF(Riepilogo_Ordine!S33>0,Riepilogo_Ordine!S33,\"\")","v":""},{"$f":"IF(G37=\"\",\"\",CONCATENATE(Riepilogo_Ordine!Q33))","v":""},null,{"$f":"IF(Riepilogo_Ordine!T33>0,Riepilogo_Ordine!T33,\"\")","v":""},{"$f":"IF(J37=\"\",\"\",CONCATENATE(Riepilogo_Ordine!Q33))","v":""},null,null,0,0,0,0,"NO"]
[null,null,null,{"$f":"IF(Riepilogo_Ordine!R34>0,Riepilogo_Ordine!R34,\"\")","v":""},{"$f":"IF(D38=\"\",\"\",CONCATENATE(Riepilogo_Ordine!Q34))","v":""},null,{"$f":"IF(Riepilogo_Ordine!S34>0,Riepilogo_Ordine!S34,\"\")","v":""},{"$f":"IF(G38=\"\",\"\",CONCATENATE(Riepilogo_Ordine!Q34))","v":""},null,{"$f":"IF(Riepilogo_Ordine!T34>0,Riepilogo_Ordine!T34,\"\")","v":""},{"$f":"IF(J38=\"\",\"\",CONCATENATE(Riepilogo_Ordine!Q34))","v":""},null,null,0,0,0,0,"NO"]
[null,null,null,{"$f":"IF(Riepilogo_Ordine!R35>0,Riepilogo_Ordine!R35,\"\")","v":""},{"$f":"IF(D39=\"\",\"\",CONCATENATE(Riepilogo_Ordine!Q35))","v":""},null,{"$f":"IF(Riepilogo_Ordine!S35>0,Riepilogo_Ordine!S35,\"\")","v":""},{"$f":"IF(G39=\"\",\"\",CONCATENATE(Riepilogo_Ordine!Q35))","v":""},null,{"$f":"IF(Riepilogo_Ordine!T35>0,Riepilogo_Ordine!T35,\"\")","v":""},{"$f":"IF(J39=\"\",\"\",CONCATENATE(Riepilogo_Ordine!Q35))","v":""},null,null,0,0,0,0,"NO"]
[null,null,null,{"$f":"IF(Riepilogo_Ordine!R36>0,Riepilogo_Ordine!R36,\"\")","v":""},{"$f":"IF(D40=\"\",\"\",CONCATENATE(Riepilogo_Ordine!Q36))","v":""},null,{"$f":"IF(Riepilogo_Ordine!S36>0,Riepilogo_Ordine!S36,\"\")","v":""},{"$f":"IF(G40=\"\",\"\",CONCATENATE(Riepilogo_Ordine!Q36))","v":""},null,{"$f":"IF(Riepilogo_Ordine!T36>0,Riepilogo_Ordine!T36,\"\")","v":""},{"$f":"IF(J40=\"\",\"\",CONCATENATE(Riepilogo_Ordine!Q36))","v":""},null,null,0,0,0,0,"NO"]
[null,null,null,{"$f":"IF(Riepilogo_Ordine!R37>0,Riepilogo_Ordine!R37,\"\")","v":""},{"$f":"IF(D41=\"\",\"\",CONCATENATE(Riepilogo_Ordine!Q37))","v":""},null,{"$f":"IF(Riepilogo_Ordine!S37>0,Riepilogo_Ordine!S37,\"\")","v":""},{"$f":"IF(G41=\"\",\"\",CONCATENATE(Riepilogo_Ordine!Q37))","v":""},null,{"$f":"IF(Riepilogo_Ordine!T37>0,Riepilogo_Ordine!T37,\"\")","v":""},{"$f":"IF(J41=\"\",\"\",CONCATENATE(Riepilogo_Ordine!Q37))","v":""},null,null,0,0,0,0,"NO"]
[null,null,null,{"$f":"IF(Riepilogo_Ordine!R38>0,Riepilogo_Ordine!R38,\"\")","v":""},{"$f":"IF(D42=\"\",\"\",CONCATENATE(Riepilogo_Ordine!Q38))","v":""},null,{"$f":"IF(Riepilogo_Ordine!S38>0,Riepilogo_Ordine!S38,\"\")","v":""},{"$f":"IF(G42=\"\",\"\",CONCATENATE(Riepilogo_Ordine!Q38))","v":""},null,{"$f":"IF(Riepilogo_Ordine!T38>0,Riepilogo_Ordine!T38,\"\")","v":""},{"$f":"IF(J42=\"\",\"\",CONCATENATE(Riepilogo_Ordine!Q38))","v":""},null,null,0,0,0,0,"NO"]
[null,null,null,{"$f":"IF(Riepilogo_Ordine!R39>0,Riepilogo_Ordine!R39,\"\")","v":""},{"$f":"IF(D43=\"\",\"\",CONCATENATE(Riepilogo_Ordine!Q39))","v":""},null,{"$f":"IF(Riepilogo_Ordine!S39>0,Riepilogo_Ordine!S39,\"\")","v":""},{"$f":"IF(G43=\"\",\"\",CONCATENATE(Riepilogo_Ordine!Q39))","v":""},null,{"$f":"IF(Riepilogo_Ordine!T39>0,Riepilogo_Ordine!T39,\"\")","v":""},{"$f":"IF(J43=\"\",\"\",CONCATENATE(Riepilogo_Ordine!Q39))","v":""},null,null,0,0,0,0,"NO"]
[null,null,null,{"$f":"IF(Riepilogo_Ordine!R43>0,Riepilogo_Ordine!R43,\"\")","v":""},{"$f":"IF(D44=\"\",\"\",CONCATENATE(Riepilogo_Ordine!Q43))","v":""},null,{"$f":"IF(Riepilogo_Ordine!S43>0,Riepilogo_Ordine!S43,\"\")","v":""},{"$f":"IF(G44=\"\",\"\",CONCATENATE(Riepilogo_Ordine!Q43))","v":""},null,{"$f":"IF(Riepilogo_Ordine!T43>0,Riepilogo_Ordine!T43,\"\")","v":""},{"$f":"IF(J44=\"\",\"\",CONCATENATE(Riepilogo_Ordine!Q43))","v":""},null,null,0,0,0,0,"NO"]
[null,null,null,{"$f":"IF(Riepilogo_Ordine!R44>0,Riepilogo_Ordine!R44,\"\")","v":""},{"$f":"IF(D45=\"\",\"\",CONCATENATE(Riepilogo_Ordine!Q44))","v":""},null,{"$f":"IF(Riepilogo_Ordine!S44>0,Riepilogo_Ordine!S44,\"\")","v":""},{"$f":"IF(G45=\"\",\"\",CONCATENATE(Riepilogo_Ordine!Q44))","v":""},null,{"$f":"IF(Riepilogo_Ordine!T44>0,Riepilogo_Ordine!T44,\"\")","v":""},{"$f":"IF(J45=\"\",\"\",CONCATENATE(Riepilogo_Ordine!Q44))","v":""},null,null,0,0,0,0,"NO"]
[null,null,null,{"$f":"IF(Riepilogo_Ordine!R45>0,Riepilogo_Ordine!R45,\"\")","v":""},{"$f":"IF(D46=\"\",\"\",CONCATENATE(Riepilogo_Ordine!Q45))","v":""},null,{"$f":"IF(Riepilogo_Ordine!S45>0,Riepilogo_Ordine!S45,\"\")","v":""},{"$f":"IF(G46=\"\",\"\",CONCATENATE(Riepilogo_Ordine!Q45))","v":""},null,{"$f":"IF(Riepilogo_Ordine!T45>0,Riepilogo_Ordine!T45,\"\")","v":""},{"$f":"IF(J46=\"\",\"\",CONCATENATE(Riepilogo_Ordine!Q45))","v":""},null,null,0,0,0,0,"NO"]
[null,null,null,{"$f":"IF(Riepilogo_Ordine!R46>0,Riepilogo_Ordine!R46,\"\")","v":""},{"$f":"IF(D47=\"\",\"\",CONCATENATE(Riepilogo_Ordine!Q46))","v":""},null,{"$f":"IF(Riepilogo_Ordine!S46>0,Riepilogo_Ordine!S46,\"\")","v":""},{"$f":"IF(G47=\"\",\"\",CONCATENATE(Riepilogo_Ordine!Q46))","v":""},null,{"$f":"IF(Riepilogo_Ordine!T46>0,Riepilogo_Ordine!T46,\"\")","v":""},{"$f":"IF(J47=\"\",\"\",CONCATENATE(Riepilogo_Ordine!Q46))","v":""},null,null,0,0,0,0,"NO"]
[null,null,null,{"$f":"IF(Riepilogo_Ordine!R47>0,Riepilogo_Ordine!R47,\"\")","v":""},{"$f":"IF(D48=\"\",\"\",CONCATENATE(Riepilogo_Ordine!Q47))","v":""},null,{"$f":"IF(Riepilogo_Ordine!S47>0,Riepilogo_Ordine!S47,\"\")","v":""},{"$f":"IF(G48=\"\",\"\",CONCATENATE(Riepilogo_Ordine!Q47))","v":""},null,{"$f":"IF(Riepilogo_Ordine!T47>0,Riepilogo_Ordine!T47,\"\")","v":""},{"$f":"IF(J48=\"\",\"\",CONCATENATE(Riepilogo_Ordine!Q47))","v":""},null,null,0,0,0,0,"NO"]
[null,null,null,{"$f":"IF(Riepilogo_Ordine!R48>0,Riepilogo_Ordine!R48,\"\")","v":""},{"$f":"IF(D49=\"\",\"\",CONCATENATE(Riepilogo_Ordine!Q48))","v":""},null,{"$f":"IF(Riepilogo_Ordine!S48>0,Riepilogo_Ordine!S48,\"\")","v":""},{"$f":"IF(G49=\"\",\"\",CONCATENATE(Riepilogo_Ordine!Q48))","v":""},null,{"$f":"IF(Riepilogo_Ordine!T48>0,Riepilogo_Ordine!T48,\"\")","v":""},{"$f":"IF(J49=\"\",\"\",CONCATENATE(Riepilogo_Ordine!Q48))","v":""},null,null,0,0,0,0,"NO"]
[null,null,null,{"$f":"IF(Riepilogo_Ordine!R49>0,Riepilogo_Ordine!R49,\"\")","v":""},{"$f":"IF(D50=\"\",\"\",CONCATENATE(Riepilogo_Ordine!Q49))","v":""},null,{"$f":"IF(Riepilogo_Ordine!S49>0,Riepilogo_Ordine!S49,\"\")","v":""},{"$f":"IF(G50=\"\",\"\",CONCATENATE(Riepilogo_Ordine!Q49))","v":""},null,{"$f":"IF(Riepilogo_Ordine!T49>0,Riepilogo_Ordine!T49,\"\")","v":""},{"$f":"IF(J50=\"\",\"\",CONCATENATE(Riepilogo_Ordine!Q49))","v":""},null,null,0,0,0,0,"NO"]
[null,null,null,{"$f":"IF(Riepilogo_Ordine!R50>0,Riepilogo_Ordine!R50,\"\")","v":""},{"$f":"IF(D51=\"\",\"\",CONCATENATE(Riepilogo_Ordine!Q50))","v":""},null,{"$f":"IF(Riepilogo_Ordine!S50>0,Riepilogo_Ordine!S50,\"\")","v":""},{"$f":"IF(G51=\"\",\"\",CONCATENATE(Riepilogo_Ordine!Q50))","v":""},null,{"$f":"IF(Riepilogo_Ordine!T50>0,Riepilogo_Ordine!T50,\"\")","v":""},{"$f":"IF(J51=\"\",\"\",CONCATENATE(Riepilogo_Ordine!Q50))","v":""},null,null,0,0,0,0,"NO"]
[null,null,null,{"$f":"IF(Riepilogo_Ordine!R51>0,Riepilogo_Ordine!R51,\"\")","v":""},{"$f":"IF(D52=\"\",\"\",CONCATENATE(Riepilogo_Ordine!Q51))","v":""},null,{"$f":"IF(Riepilogo_Ordine!S51>0,Riepilogo_Ordine!S51,\"\")","v":""},{"$f":"IF(G52=\"\",\"\",CONCATENATE(Riepilogo_Ordine!Q51))","v":""},null,{"$f":"IF(Riepilogo_Ordine!T51>0,Riepilogo_Ordine!T51,\"\")","v":""},{"$f":"IF(J52=\"\",\"\",CONCATENATE(Riepilogo_Ordine!Q51))","v":""},null,null,0,0,0,0,"NO"]
[null,null,null,{"$f":"IF(Riepilogo_Ordine!R52>0,Riepilogo_Ordine!R52,\"\")","v":""},{"$f":"IF(D53=\"\",\"\",CONCATENATE(Riepilogo_Ordine!Q52))","v":""},null,{"$f":"IF(Riepilogo_Ordine!S52>0,Riepilogo_Ordine!S52,\"\")","v":""},{"$f":"IF(G53=\"\",\"\",CONCATENATE(Riepilogo_Ordine!Q52))","v":""},null,{"$f":"IF(Riepilogo_Ordine!T52>0,Riepilogo_Ordine!T52,\"\")","v":""},{"$f":"IF(J53=\"\",\"\",CONCATENATE(Riepilogo_Ordine!Q52))","v":""},null,null,0,0,0,0,"NO"]
[null,null,null,{"$f":"IF(Riepilogo_Ordine!R91>0,Riepilogo_Ordine!R91,\"\")","v":""},{"$f":"IF(D54=\"\",\"\",CONCATENATE(Riepilogo_Ordine!Q91))","v":""},null,{"$f":"IF(Riepilogo_Ordine!S91>0,Riepilogo_Ordine!S91,\"\")","v":""},{"$f":"IF(G54=\"\",\"\",CONCATENATE(Riepilogo_Ordine!Q91))","v":""},null,{"$f":"IF(Riepilogo_Ordine!T91>0,Riepilogo_Ordine!T91,\"\")","v":""},{"$f":"IF(J54=\"\",\"\",CONCATENATE(Riepilogo_Ordine!Q91))","v":""},null,null,0,0,0,0,"NO"]
[null,null,null,{"$f":"IF(Riepilogo_Ordine!R92>0,Riepilogo_Ordine!R92,\"\")","v":""},{"$f":"IF(D55=\"\",\"\",CONCATENATE(Riepilogo_Ordine!Q92))","v":""},null,{"$f":"IF(Riepilogo_Ordine!S92>0,Riepilogo_Ordine!S92,\"\")","v":""},{"$f":"IF(G55=\"\",\"\",CONCATENATE(Riepilogo_Ordine!Q92))","v":""},null,{"$f":"IF(Riepilogo_Ordine!T92>0,Riepilogo_Ordine!T92,\"\")","v":""},{"$f":"IF(J55=\"\",\"\",CONCATENATE(Riepilogo_Ordine!Q92))","v":""},null,null,0,0,0,0,"NO"]
[null,null,null,{"$f":"IF(Riepilogo_Ordine!R93>0,Riepilogo_Ordine!R93,\"\")","v":""},{"$f":"IF(D56=\"\",\"\",CONCATENATE(Riepilogo_Ordine!Q93))","v":""},null,{"$f":"IF(Riepilogo_Ordine!S93>0,Riepilogo_Ordine!S93,\"\")","v":""},{"$f":"IF(G56=\"\",\"\",CONCATENATE(Riepilogo_Ordine!Q93))","v":""},null,{"$f":"IF(Riepilogo_Ordine!T93>0,Riepilogo_Ordine!T93,\"\")","v":""},{"$f":"IF(J56=\"\",\"\",CONCATENATE(Riepilogo_Ordine!Q93))","v":""},null,null,0,0,0,0,"NO"]
[null,null,null,{"$f":"IF(Riepilogo_Ordine!R94>0,Riepilogo_Ordine!R94,\"\")","v":""},{"$f":"IF(D57=\"\",\"\",CONCATENATE(Riepilogo_Ordine!Q94))","v":""},null,{"$f":"IF(Riepilogo_Ordine!S94>0,Riepilogo_Ordine!S94,\"\")","v":""},{"$f":"IF(G57=\"\",\"\",CONCATENATE(Riepilogo_Ordine!Q94))","v":""},null,{"$f":"IF(Riepilogo_Ordine!T94>0,Riepilogo_Ordine!T94,\"\")","v":""},{"$f":"IF(J57=\"\",\"\",CONCATENATE(Riepilogo_Ordine!Q94))","v":""},null,null,0,0,0,0,"NO"]
[null,null,null,{"$f":"IF(Riepilogo_Ordine!R95>0,Riepilogo_Ordine!R95,\"\")","v":""},{"$f":"IF(D58=\"\",\"\",CONCATENATE(Riepilogo_Ordine!Q95))","v":""},null,{"$f":"IF(Riepilogo_Ordine!S95>0,Riepilogo_Ordine!S95,\"\")","v":""},{"$f":"IF(G58=\"\",\"\",CONCATENATE(Riepilogo_Ordine!Q95))","v":""},null,{"$f":"IF(Riepilogo_Ordine!T95>0,Riepilogo_Ordine!T95,\"\")","v":""},{"$f":"IF(J58=\"\",\"\",CONCATENATE(Riepilogo_Ordine!Q95))","v":""},null,null,0,0,0,0,"NO"]
[null,null,null,{"$f":"IF(Riepilogo_Ordine!R96>0,Riepilogo_Ordine!R96,\"\")","v":""},{"$f":"IF(D59=\"\",\"\",CONCATENATE(Riepilogo_Ordine!Q96))","v":""},null,{"$f":"IF(Riepilogo_Ordine!S96>0,Riepilogo_Ordine!S96,\"\")","v":""},{"$f":"IF(G59=\"\",\"\",CONCATENATE(Riepilogo_Ordine!Q96))","v":""},null,{"$f":"IF(Riepilogo_Ordine!T96>0,Riepilogo_Ordine!T96,\"\")","v":""},{"$f":"IF(J59=\"\",\"\",CONCATENATE(Riepilogo_Ordine!Q96))","v":""},null,null,0,0,0,0,"NO"]
[null,null,null,{"$f":"IF(Riepilogo_Ordine!R97>0,Riepilogo_Ordine!R97,\"\")","v":""},{"$f":"IF(D60=\"\",\"\",CONCATENATE(Riepilogo_Ordine!Q97))","v":""},null,{"$f":"IF(Riepilogo_Ordine!S97>0,Riepilogo_Ordine!S97,\"\")","v":""},{"$f":"IF(G60=\"\",\"\",CONCATENATE(Riepilogo_Ordine!Q97))","v":""},null,{"$f":"IF(Riepilogo_Ordine!T97>0,Riepilogo_Ordine!T97,\"\")","v":""},{"$f":"IF(J60=\"\",\"\",CONCATENATE(Riepilogo_Ordine!Q97))","v":""},null,null,0,0,0,0,"NO"]
[null,null,null,{"$f":"IF(Riepilogo_Ordine!R98>0,Riepilogo_Ordine!R98,\"\")","v":""},{"$f":"IF(D61=\"\",\"\",CONCATENATE(Riepilogo_Ordine!Q98))","v":""},null,{"$f":"IF(Riepilogo_Ordine!S98>0,Riepilogo_Ordine!S98,\"\")","v":""},{"$f":"IF(G61=\"\",\"\",CONCATENATE(Riepilogo_Ordine!Q98))","v":""},null,{"$f":"IF(Riepilogo_Ordine!T98>0,Riepilogo_Ordine!T98,\"\")","v":""},{"$f":"IF(J61=\"\",\"\",CONCATENATE(Riepilogo_Ordine!Q98))","v":""},null,null,0,0,0,0,"NO"]
[null,null,null,{"$f":"IF(Riepilogo_Ordine!R99>0,Riepilogo_Ordine!R99,\"\")","v":""},{"$f":"IF(D62=\"\",\"\",CONCATENATE(Riepilogo_Ordine!Q99))","v":""},null,{"$f":"IF(Riepilogo_Ordine!S99>0,Riepilogo_Ordine!S99,\"\")","v":""},{"$f":"IF(G62=\"\",\"\",CONCATENATE(Riepilogo_Ordine!Q99))","v":""},null,{"$f":"IF(Riepilogo_Ordine!T99>0,Riepilogo_Ordine!T99,\"\")","v":""},{"$f":"IF(J62=\"\",\"\",CONCATENATE(Riepilogo_Ordine!Q99))","v":""},null,null,0,0,0,0,"NO"]
[null,null,null,{"$f":"IF(Riepilogo_Ordine!R100>0,Riepilogo_Ordine!R100,\"\")","v":""},{"$f":"IF(D63=\"\",\"\",CONCATENATE(Riepilogo_Ordine!Q100))","v":""},null,{"$f":"IF(Riepilogo_Ordine!S100>0,Riepilogo_Ordine!S100,\"\")","v":""},{"$f":"IF(G63=\"\",\"\",CONCATENATE(Riepilogo_Ordine!Q100))","v":""},null,{"$f":"IF(Riepilogo_Ordine!T100>0,Riepilogo_Ordine!T100,\"\")","v":""},{"$f":"IF(J63=\"\",\"\",CONCATENATE(Riepilogo_Ordine!Q100))","v":""},null,null,0,0,0,0,"NO"]
[null,null,null,{"$f":"IF(Riepilogo_Ordine!R101>0,Riepilogo_Ordine!R101,\"\")","v":""},{"$f":"IF(D64=\"\",\"\",CONCATENATE(Riepilogo_Ordine!Q101))","v":""},null,{"$f":"IF(Riepilogo_Ordine!S101>0,Riepilogo_Ordine!S101,\"\")","v":""},{"$f":"IF(G64=\"\",\"\",CONCATENATE(Riepilogo_Ordine!Q101))","v":""},null,{"$f":"IF(Riepilogo_Ordine!T101>0,Riepilogo_Ordine!T101,\"\")","v":""},{"$f":"IF(J64=\"\",\"\",CONCATENATE(Riepilogo_Ordine!Q101))","v":""},null,null,0,0,0,0,"NO"]
[null,null,null,{"$f":"IF(Riepilogo_Ordine!R102>0,Riepilogo_Ordine!R102,\"\")","v":""},{"$f":"IF(D65=\"\",\"\",CONCATENATE(Riepilogo_Ordine!Q102))","v":""},null,{"$f":"IF(Riepilogo_Ordine!S102>0,Riepilogo_Ordine!S102,\"\")","v":""},{"$f":"IF(G65=\"\",\"\",CONCATENATE(Riepilogo_Ordine!Q102))","v":""},null,{"$f":"IF(Riepilogo_Ordine!T102>0,Riepilogo_Ordine!T102,\"\")","v":""},{"$f":"IF(J65=\"\",\"\",CONCATENATE(Riepilogo_Ordine!Q102))","v":""},null,null,0,0,0,0,"NO"]
[null,null,null,{"$f":"IF(Riepilogo_Ordine!R103>0,Riepilogo_Ordine!R103,\"\")","v":""},{"$f":"IF(D66=\"\",\"\",CONCATENATE(Riepilogo_Ordine!Q103))","v":""},null,{"$f":"IF(Riepilogo_Ordine!S103>0,Riepilogo_Ordine!S103,\"\")","v":""},{"$f":"IF(G66=\"\",\"\",CONCATENATE(Riepilogo_Ordine!Q103))","v":""},null,{"$f":"IF(Riepilogo_Ordine!T103>0,Riepilogo_Ordine!T103,\"\")","v":""},{"$f":"IF(J66=\"\",\"\",CONCATENATE(Riepilogo_Ordine!Q103))","v":""},null,null,0,0,0,0,"NO"]
[null,null,null,{"$f":"IF(Riepilogo_Ordine!R117>0,Riepilogo_Ordine!R117,\"\")","v":""},{"$f":"IF(D67=\"\",\"\",CONCATENATE(Riepilogo_Ordine!Q117))","v":""},null,{"$f":"IF(Riepilogo_Ordine!S117>0,Riepilogo_Ordine!S117,\"\")","v":""},{"$f":"IF(G67=\"\",\"\",CONCATENATE(Riepilogo_Ordine!Q117))","v":""},null,{"$f":"IF(Riepilogo_Ordine!T117>0,Riepilogo_Ordine!T117,\"\")","v":""},{"$f":"IF(J67=\"\",\"\",CONCATENATE(Riepilogo_Ordine!Q117))","v":""},null,null,0,0,0,0,"NO"]
[null,null,null,{"$f":"IF(Riepilogo_Ordine!R118>0,Riepilogo_Ordine!R118,\"\")","v":""},{"$f":"IF(D68=\"\",\"\",CONCATENATE(Riepilogo_Ordine!Q118))","v":""},null,{"$f":"IF(Riepilogo_Ordine!S118>0,Riepilogo_Ordine!S118,\"\")","v":""},{"$f":"IF(G68=\"\",\"\",CONCATENATE(Riepilogo_Ordine!Q118))","v":""},null,{"$f":"IF(Riepilogo_Ordine!T118>0,Riepilogo_Ordine!T118,\"\")","v":""},{"$f":"IF(J68=\"\",\"\",CONCATENATE(Riepilogo_Ordine!Q118))","v":""},null,null,0,0,0,0,"NO"]
[null,null,{"$f":"IF(D69=1,1,0)","v":0},{"$f":"IF(Riepilogo_Ordine!R119>0,Riepilogo_Ordine!R119,\"\")","v":""},{"$f":"IF(E73<>\"\",\"\",IF(E72<>\"\",\"\",IF(D69=\"\",\"\",CONCATENATE(Riepilogo_Ordine!Q119))))","v":""},{"$f":"IF(G69=1,1,0)","v":0},{"$f":"IF(Riepilogo_Ordine!S119>0,Riepilogo_Ordine!S119,\"\")","v":""},{"$f":"IF(H73<>\"\",\"\",IF(H72<>\"\",\"\",IF(G69=\"\",\"\",CONCATENATE(Riepilogo_Ordine!Q119))))","v":""},{"$f":"IF(J69=1,1,0)","v":0},{"$f":"IF(Riepilogo_Ordine!T119>0,Riepilogo_Ordine!T119,\"\")","v":""},{"$f":"IF(K73<>\"\",\"\",IF(K72<>\"\",\"\",IF(J69=\"\",\"\",CONCATENATE(Riepilogo_Ordine!Q119))))","v":""},null,null,0,0,0,0,"NO"]
[null,null,null,{"$f":"IF(Riepilogo_Ordine!R120>0,Riepilogo_Ordine!R120,\"\")","v":""},{"$f":"IF(D70=\"\",\"\",CONCATENATE(Riepilogo_Ordine!Q120))","v":""},null,{"$f":"IF(Riepilogo_Ordine!S120>0,Riepilogo_Ordine!S120,\"\")","v":""},{"$f":"IF(G70=\"\",\"\",CONCATENATE(Riepilogo_Ordine!Q120))","v":""},null,{"$f":"IF(Riepilogo_Ordine!T120>0,Riepilogo_Ordine!T120,\"\")","v":""},{"$f":"IF(J70=\"\",\"\",CONCATENATE(Riepilogo_Ordine!Q120))","v":""},null,null,0,0,0,0,"NO"]
[null,null,{"$f":"IF(D71=1,1,0)","v":0},{"$f":"IF(D69<>\"\",\"\",IF(SUM(C19:C20)=2,1*D17,\"\"))","v":""},{"$f":"IF(E72<>\"\",\"\",IF(D71<>\"\",\"SERVER BASE 4 CPU\",\"\"))","v":""},{"$f":"IF(G71=1,1,0)","v":0},{"$f":"IF(G69<>\"\",\"\",IF(SUM(F19:F20)=2,1*G17,\"\"))","v":""},{"$f":"IF(H72<>\"\",\"\",IF(G71<>\"\",\"SERVER BASE 4 CPU\",\"\"))","v":""},{"$f":"IF(J71=1,1,0)","v":0},{"$f":"IF(J69<>\"\",\"\",IF(SUM(I19:I20)=2,1*J17,\"\"))","v":""},{"$f":"IF(K72<>\"\",\"\",IF(J71<>\"\",\"SERVER BASE 4 CPU\",\"\"))","v":""},null,null,null,null,null,{"$f":"SUM(D144:D147)","v":0},"NO"]
[null,null,{"$f":"IF(C69+C71=2,1,0)","v":0},{"$f":"IF(D71<>\"\",\"\",IF(AND(SUM(C21,C74)=2,D69<>\"\"),1*D17,\"\"))","v":""},{"$f":"IF(D72<>\"\",\"SERVER vSAN 4 CPU\",\"\")","v":""},{"$f":"IF(F69+F71=2,1,0)","v":0},{"$f":"IF(G71<>\"\",\"\",IF(AND(SUM(F21,F74)=2,G69<>\"\"),1*G17,\"\"))","v":""},{"$f":"IF(G72<>\"\",\"SERVER vSAN 4 CPU\",\"\")","v":""},{"$f":"IF(I69+I71=2,1,0)","v":0},{"$f":"IF(J71<>\"\",\"\",IF(AND(SUM(I21,I74)=2,J69<>\"\"),1*J17,\"\"))","v":""},{"$f":"IF(J72<>\"\",\"SERVER vSAN 4 CPU\",\"\")","v":""},null,null,{"$f":"IF(D72=\"\",0,D72)","v":0},{"$f":"IF(G72=\"\",0,G72)","v":0},{"$f":"IF(J72=\"\",0,J72)","v":0},{"$f":"SUM(N72:P72)","v":0},{"$f":"IF(Q72>0,\"SI\",\"NO\")","v":"NO"}]
[null,null,null,{"$f":"IF(D141<>\"\",\"\",IF(D142<>\"\",\"\",IF(E72<>\"\",\"\",IF(SUM(C21,C74)=2,1*D17,\"\"))))","v":""},{"$f":"IF(D73<>\"\",\"SERVER nVME 4 CPU\",\"\")","v":""},null,{"$f":"IF(G141<>\"\",\"\",IF(G142<>\"\",\"\",IF(H72<>\"\",\"\",IF(SUM(F21,F74)=2,1*G17,\"\"))))","v":""},{"$f":"IF(G73<>\"\",\"SERVER nVME 4 CPU\",\"\")","v":""},null,{"$f":"IF(J141<>\"\",\"\",IF(J142<>\"\",\"\",IF(K72<>\"\",\"\",IF(SUM(I21,I74)=2,1*J17,\"\"))))","v":""},{"$f":"IF(J73<>\"\",\"SERVER nVME 4 CPU\",\"\")","v":""},null,null,null,null,null,{"$f":"SUM(D146:D149)","v":0},"NO"]
[null,null,{"$f":"IF(D74<>\"\",1,0)","v":0},{"$f":"IF(D141<>\"\",\"\",IF(D142<>\"\",\"\",IF(Riepilogo_Ordine!R54>0,Riepilogo_Ordine!R54,\"\")))","v":""},{"$f":"IF(E70<>\"\",\"\",IF(E71<>\"\",\"\",IF(E69<>\"\",\"\",IF(E72<>\"\",\"\",IF(E73<>\"\",\"\",IF(D74=\"\",\"\",CONCATENATE(Riepilogo_Ordine!Q54)))))))","v":""},{"$f":"IF(G74<>\"\",1,0)","v":0},{"$f":"IF(G141<>\"\",\"\",IF(G142<>\"\",\"\",IF(Riepilogo_Ordine!S54>0,Riepilogo_Ordine!S54,\"\")))","v":""},{"$f":"IF(H70<>\"\",\"\",IF(H71<>\"\",\"\",IF(H69<>\"\",\"\",IF(H72<>\"\",\"\",IF(H73<>\"\",\"\",IF(G74=\"\",\"\",CONCATENATE(Riepilogo_Ordine!Q54)))))))","v":""},{"$f":"IF(J74<>\"\",1,0)","v":0},{"$f":"IF(J141<>\"\",\"\",IF(J142<>\"\",\"\",IF(Riepilogo_Ordine!T54>0,Riepilogo_Ordine!T54,\"\")))","v":""},{"$f":"IF(K70<>\"\",\"\",IF(K71<>\"\",\"\",IF(K69<>\"\",\"\",IF(K72<>\"\",\"\",IF(K73<>\"\",\"\",IF(J74=\"\",\"\",CONCATENATE(Riepilogo_Ordine!Q54)))))))","v":""},null,null,{"$f":"IF(D74=\"\",0,D74)","v":0},{"$f":"IF(G74=\"\",0,G74)","v":0},{"$f":"IF(J74=\"\",0,J74)","v":0},{"$f":"SUM(N74:P74)","v":0},"NO"]
[null,null,null,{"$f":"IF(E70<>\"\",\"\",IF(Riepilogo_Ordine!R55>0,Riepilogo_Ordine!R55,\"\"))","v":""},{"$f":"IF(D75=\"\",\"\",CONCATENATE(Riepilogo_Ordine!Q55))","v":""},null,{"$f":"IF(H70<>\"\",\"\",IF(Riepilogo_Ordine!S55>0,Riepilogo_Ordine!S55,\"\"))","v":""},{"$f":"IF(G75=\"\",\"\",CONCATENATE(Riepilogo_Ordine!Q55))","v":""},null,{"$f":"IF(K70<>\"\",\"\",IF(Riepilogo_Ordine!T55>0,Riepilogo_Ordine!T55,\"\"))","v":""},{"$f":"IF(J75=\"\",\"\",CONCATENATE(Riepilogo_Ordine!Q55))","v":""},null,null,0,0,0,0,"NO"]
[null,null,null,{"$f":"IF(D142<>\"\",\"\",IF(D141<>\"\",\"\",IF(D140<>\"\",\"\",IF(D139<>\"\",\"\",IF(E70<>\"\",\"\",IF(Riepilogo_Ordine!R56>0,Riepilogo_Ordine!R56,\"\"))))))","v":""},{"$f":"IF(D76=\"\",\"\",CONCATENATE(Riepilogo_Ordine!Q56))","v":""},null,{"$f":"IF(G142<>\"\",\"\",IF(G141<>\"\",\"\",IF(G140<>\"\",\"\",IF(G139<>\"\",\"\",IF(H70<>\"\",\"\",IF(Riepilogo_Ordine!S56>0,Riepilogo_Ordine!S56,\"\"))))))","v":""},{"$f":"IF(G76=\"\",\"\",CONCATENATE(Riepilogo_Ordine!Q56))","v":""},null,{"$f":"IF(J142<>\"\",\"\",IF(J141<>\"\",\"\",IF(J140<>\"\",\"\",IF(J139<>\"\",\"\",IF(K70<>\"\",\"\",IF(Riepilogo_Ordine!T56>0,Riepilogo_Ordine!T56,\"\"))))))","v":""},{"$f":"IF(J76=\"\",\"\",CONCATENATE(Riepilogo_Ordine!Q56))","v":""},null,null,0,0,0,0,"NO"]
[null,null,null,{"$f":"IF(Riepilogo_Ordine!R57>0,Riepilogo_Ordine!R57,\"\")","v":""},{"$f":"IF(D77=\"\",\"\",CONCATENATE(Riepilogo_Ordine!Q57))","v":""},null,{"$f":"IF(Riepilogo_Ordine!S57>0,Riepilogo_Ordine!S57,\"\")","v":""},{"$f":"IF(G77=\"\",\"\",CONCATENATE(Riepilogo_Ordine!Q57))","v":""},null,{"$f":"IF(Riepilogo_Ordine!T57>0,Riepilogo_Ordine!T57,\"\")","v":""},{"$f":"IF(J77=\"\",\"\",CONCATENATE(Riepilogo_Ordine!Q57))","v":""},null,null,0,0,0,0,"NO"]
[null,null,null,{"$f":"IF(Riepilogo_Ordine!R58>0,Riepilogo_Ordine!R58,\"\")","v":""},{"$f":"IF(D78=\"\",\"\",CONCATENATE(Riepilogo_Ordine!Q58))","v":""},null,{"$f":"IF(Riepilogo_Ordine!S58>0,Riepilogo_Ordine!S58,\"\")","v":""},{"$f":"IF(G78=\"\",\"\",CONCATENATE(Riepilogo_Ordine!Q58))","v":""},null,{"$f":"IF(Riepilogo_Ordine!T58>0,Riepilogo_Ordine!T58,\"\")","v":""},{"$f":"IF(J78=\"\",\"\",CONCATENATE(Riepilogo_Ordine!Q58))","v":""},null,null,0,0,0,0,"NO"]
[null,null,null,{"$f":"IF(Riepilogo_Ordine!R59>0,Riepilogo_Ordine!R59,\"\")","v":""},{"$f":"IF(D79=\"\",\"\",CONCATENATE(Riepilogo_Ordine!Q59))","v":""},null,{"$f":"IF(Riepilogo_Ordine!S59>0,Riepilogo_Ordine!S59,\"\")","v":""},{"$f":"IF(G79=\"\",\"\",CONCATENATE(Riepilogo_Ordine!Q59))","v":""},null,{"$f":"IF(Riepilogo_Ordine!T59>0,Riepilogo_Ordine!T59,\"\")","v":""},{"$f":"IF(J79=\"\",\"\",CONCATENATE(Riepilogo_Ordine!Q59))","v":""},null,null,0,0,0,0,"NO"]
[null,null,null,{"$f":"IF(Riepilogo_Ordine!R60>0,Riepilogo_Ordine!R60,\"\")","v":""},{"$f":"IF(D80=\"\",\"\",CONCATENATE(Riepilogo_Ordine!Q60))","v":""},null,{"$f":"IF(Riepilogo_Ordine!S60>0,Riepilogo_Ordine!S60,\"\")","v":""},{"$f":"IF(G80=\"\",\"\",CONCATENATE(Riepilogo_Ordine!Q60))","v":""},null,{"$f":"IF(Riepilogo_Ordine!T60>0,Riepilogo_Ordine!T60,\"\")","v":""},{"$f":"IF(J80=\"\",\"\",CONCATENATE(Riepilogo_Ordine!Q60))","v":""},null,null,0,0,0,0,"NO"]
[null,null,null,{"$f":"IF(Riepilogo_Ordine!R61>0,Riepilogo_Ordine!R61,\"\")","v":""},{"$f":"IF(D81=\"\",\"\",CONCATENATE(Riepilogo_Ordine!Q61))","v":""},null,{"$f":"IF(Riepilogo_Ordine!S61>0,Riepilogo_Ordine!S61,\"\")","v":""},{"$f":"IF(G81=\"\",\"\",CONCATENATE(Riepilogo_Ordine!Q61))","v":""},null,{"$f":"IF(Riepilogo_Ordine!T61>0,Riepilogo_Ordine!T61,\"\")","v":""},{"$f":"IF(J81=\"\",\"\",CONCATENATE(Riepilogo_Ordine!Q61))","v":""},null,null,0,0,0,0,"NO"]
[null,null,null,{"$f":"IF(Riepilogo_Ordine!R62>0,Riepilogo_Ordine!R62,\"\")","v":""},{"$f":"IF(D82=\"\",\"\",CONCATENATE(Riepilogo_Ordine!Q62))","v":""},null,{"$f":"IF(Riepilogo_Ordine!S62>0,Riepilogo_Ordine!S62,\"\")","v":""},{"$f":"IF(G82=\"\",\"\",CONCATENATE(Riepilogo_Ordine!Q62))","v":""},null,{"$f":"IF(Riepilogo_Ordine!T62>0,Riepilogo_Ordine!T62,\"\")","v":""},{"$f":"IF(J82=\"\",\"\",CONCATENATE(Riepilogo_Ordine!Q62))","v":""},null,null,0,0,0,0,"NO"]
[null,null,null,{"$f":"IF(Riepilogo_Ordine!R63>0,Riepilogo_Ordine!R63,\"\")","v":""},{"$f":"IF(D83=\"\",\"\",CONCATENATE(Riepilogo_Ordine!Q63))","v":""},null,{"$f":"IF(Riepilogo_Ordine!S63>0,Riepilogo_Ordine!S63,\"\")","v":""},{"$f":"IF(G83=\"\",\"\",CONCATENATE(Riepilogo_Ordine!Q63))","v":""},null,{"$f":"IF(Riepilogo_Ordine!T63>0,Riepilogo_Ordine!T63,\"\")","v":""},{"$f":"IF(J83=\"\",\"\",CONCATENATE(Riepilogo_Ordine!Q63))","v":""},null,null,0,0,0,0,"NO"]
[null,null,null,{"$f":"IF(Riepilogo_Ordine!R64>0,Riepilogo_Ordine!R64,\"\")","v":""},{"$f":"IF(D84=\"\",\"\",CONCATENATE(Riepilogo_Ordine!Q64))","v":""},null,{"$f":"IF(Riepilogo_Ordine!S64>0,Riepilogo_Ordine!S64,\"\")","v":""},{"$f":"IF(G84=\"\",\"\",CONCATENATE(Riepilogo_Ordine!Q64))","v":""},null,{"$f":"IF(Riepilogo_Ordine!T64>0,Riepilogo_Ordine!T64,\"\")","v":""},{"$f":"IF(J84=\"\",\"\",CONCATENATE(Riepilogo_Ordine!Q64))","v":""},null,null,0,0,0,0,"NO"]
[null,null,null,{"$f":"IF(Riepilogo_Ordine!R65>0,Riepilogo_Ordine!R65,\"\")","v":""},{"$f":"IF(D85=\"\",\"\",CONCATENATE(Riepilogo_Ordine!Q65))","v":""},null,{"$f":"IF(Riepilogo_Ordine!S65>0,Riepilogo_Ordine!S65,\"\")","v":""},{"$f":"IF(G85=\"\",\"\",CONCATENATE(Riepilogo_Ordine!Q65))","v":""},null,{"$f":"IF(Riepilogo_Ordine!T65>0,Riepilogo_Ordine!T65,\"\")","v":""},{"$f":"IF(J85=\"\",\"\",CONCATENATE(Riepilogo_Ordine!Q65))","v":""},null,null,0,0,0,0,"NO"]
[null,null,null,{"$f":"IF(Riepilogo_Ordine!R66>0,Riepilogo_Ordine!R66,\"\")","v":""},{"$f":"IF(D86=\"\",\"\",CONCATENATE(Riepilogo_Ordine!Q66))","v":""},null,{"$f":"IF(Riepilogo_Ordine!S66>0,Riepilogo_Ordine!S66,\"\")","v":""},{"$f":"IF(G86=\"\",\"\",CONCATENATE(Riepilogo_Ordine!Q66))","v":""},null,{"$f":"IF(Riepilogo_Ordine!T66>0,Riepilogo_Ordine!T66,\"\")","v":""},{"$f":"IF(J86=\"\",\"\",CONCATENATE(Riepilogo_Ordine!Q66))","v":""},null,null,0,0,0,0,"NO"]
[null,null,null,{"$f":"IF(Riepilogo_Ordine!R67>0,Riepilogo_Ordine!R67,\"\")","v":""},{"$f":"IF(D87=\"\",\"\",CONCATENATE(Riepilogo_Ordine!Q67))","v":""},null,{"$f":"IF(Riepilogo_Ordine!S67>0,Riepilogo_Ordine!S67,\"\")","v":""},{"$f":"IF(G87=\"\",\"\",CONCATENATE(Riepilogo_Ordine!Q67))","v":""},null,{"$f":"IF(Riepilogo_Ordine!T67>0,Riepilogo_Ordine!T67,\"\")","v":""},{"$f":"IF(J87=\"\",\"\",CONCATENATE(Riepilogo_Ordine!Q67))","v":""},null,null,0,0,0,0,"NO"]
[null,null,null,{"$f":"IF(Riepilogo_Ordine!R68>0,Riepilogo_Ordine!R68,\"\")","v":""},{"$f":"IF(D88=\"\",\"\",CONCATENATE(Riepilogo_Ordine!Q68))","v":""},null,{"$f":"IF(Riepilogo_Ordine!S68>0,Riepilogo_Ordine!S68,\"\")","v":""},{"$f":"IF(G88=\"\",\"\",CONCATENATE(Riepilogo_Ordine!Q68))","v":""},null,{"$f":"IF(Riepilogo_Ordine!T68>0,Riepilogo_Ordine!T68,\"\")","v":""},{"$f":"IF(J88=\"\",\"\",CONCATENATE(Riepilogo_Ordine!Q68))","v":""},null,null,0,0,0,0,"NO"]
[null,null,null,{"$f":"IF(Riepilogo_Ordine!R69>0,Riepilogo_Ordine!R69,\"\")","v":""},{"$f":"IF(D89=\"\",\"\",CONCATENATE(Riepilogo_Ordine!Q69))","v":""},null,{"$f":"IF(Riepilogo_Ordine!S69>0,Riepilogo_Ordine!S69,\"\")","v":""},{"$f":"IF(G89=\"\",\"\",CONCATENATE(Riepilogo_Ordine!Q69))","v":""},null,{"$f":"IF(Riepilogo_Ordine!T69>0,Riepilogo_Ordine!T69,\"\")","v":""},{"$f":"IF(J89=\"\",\"\",CONCATENATE(Riepilogo_Ordine!Q69))","v":""},null,null,0,0,0,0,"NO"]
[null,null,null,{"$f":"IF(Riepilogo_Ordine!R70>0,Riepilogo_Ordine!R70,\"\")","v":""},{"$f":"IF(D90=\"\",\"\",CONCATENATE(Riepilogo_Ordine!Q70))","v":""},null,{"$f":"IF(Riepilogo_Ordine!S70>0,Riepilogo_Ordine!S70,\"\")","v":""},{"$f":"IF(G90=\"\",\"\",CONCATENATE(Riepilogo_Ordine!Q70))","v":""},null,{"$f":"IF(Riepilogo_Ordine!T70>0,Riepilogo_Ordine!T70,\"\")","v":""},{"$f":"IF(J90=\"\",\"\",CONCATENATE(Riepilogo_Ordine!Q70))","v":""},null,null,0,0,0,0,"NO"]
[null,null,null,{"$f":"IF(Riepilogo_Ordine!R71>0,Riepilogo_Ordine!R71,\"\")","v":""},{"$f":"IF(D91=\"\",\"\",CONCATENATE(Riepilogo_Ordine!Q71))","v":""},null,{"$f":"IF(Riepilogo_Ordine!S71>0,Riepilogo_Ordine!S71,\"\")","v":""},{"$f":"IF(G91=\"\",\"\",CONCATENATE(Riepilogo_Ordine!Q71))","v":""},null,{"$f":"IF(Riepilogo_Ordine!T71>0,Riepilogo_Ordine!T71,\"\")","v":""},{"$f":"IF(J91=\"\",\"\",CONCATENATE(Riepilogo_Ordine!Q71))","v":""},null,null,0,0,0,0,"NO"]
[null,null,null,{"$f":"IF(Riepilogo_Ordine!R72>0,Riepilogo_Ordine!R72,\"\")","v":""},{"$f":"IF(D92=\"\",\"\",CONCATENATE(Riepilogo_Ordine!Q72))","v":""},null,{"$f":"IF(Riepilogo_Ordine!S72>0,Riepilogo_Ordine!S72,\"\")","v":""},{"$f":"IF(G92=\"\",\"\",CONCATENATE(Riepilogo_Ordine!Q72))","v":""},null,{"$f":"IF(Riepilogo_Ordine!T72>0,Riepilogo_Ordine!T72,\"\")","v":""},{"$f":"IF(J92=\"\",\"\",CONCATENATE(Riepilogo_Ordine!Q72))","v":""},null,null,0,0,0,0,"NO"]
[null,null,null,{"$f":"IF(Riepilogo_Ordine!R73>0,Riepilogo_Ordine!R73,\"\")","v":""},{"$f":"IF(D93=\"\",\"\",CONCATENATE(Riepilogo_Ordine!Q73))","v":""},null,{"$f":"IF(Riepilogo_Ordine!S73>0,Riepilogo_Ordine!S73,\"\")","v":""},{"$f":"IF(G93=\"\",\"\",CONCATENATE(Riepilogo_Ordine!Q73))","v":""},null,{"$f":"IF(Riepilogo_Ordine!T73>0,Riepilogo_Ordine!T73,\"\")","v":""},{"$f":"IF(J93=\"\",\"\",CONCATENATE(Riepilogo_Ordine!Q73))","v":""},null,null,0,0,0,0,"NO"]
[null,null,null,{"$f":"IF(Riepilogo_Ordine!R74>0,Riepilogo_Ordine!R74,\"\")","v":""},{"$f":"IF(D94=\"\",\"\",CONCATENATE(Riepilogo_Ordine!Q74))","v":""},null,{"$f":"IF(Riepilogo_Ordine!S74>0,Riepilogo_Ordine!S74,\"\")","v":""},{"$f":"IF(G94=\"\",\"\",CONCATENATE(Riepilogo_Ordine!Q74))","v":""},null,{"$f":"IF(Riepilogo_Ordine!T74>0,Riepilogo_Ordine!T74,\"\")","v":""},{"$f":"IF(J94=\"\",\"\",CONCATENATE(Riepilogo_Ordine!Q74))","v":""},null,null,0,0,0,0,"NO"]
[null,null,null,{"$f":"IF(Riepilogo_Ordine!R75>0,Riepilogo_Ordine!R75,\"\")","v":""},{"$f":"IF(D95=\"\",\"\",CONCATENATE(Riepilogo_Ordine!Q75))","v":""},null,{"$f":"IF(Riepilogo_Ordine!S75>0,Riepilogo_Ordine!S75,\"\")","v":""},{"$f":"IF(G95=\"\",\"\",CONCATENATE(Riepilogo_Ordine!Q75))","v":""},null,{"$f":"IF(Riepilogo_Ordine!T75>0,Riepilogo_Ordine!T75,\"\")","v":""},{"$f":"IF(J95=\"\",\"\",CONCATENATE(Riepilogo_Ordine!Q75))","v":""},null,null,0,0,0,0,"NO"]
[null,null,null,{"$f":"IF(Riepilogo_Ordine!R76>0,Riepilogo_Ordine!R76,\"\")","v":""},{"$f":"IF(D96=\"\",\"\",CONCATENATE(Riepilogo_Ordine!Q76))","v":""},null,{"$f":"IF(Riepilogo_Ordine!S76>0,Riepilogo_Ordine!S76,\"\")","v":""},{"$f":"IF(G96=\"\",\"\",CONCATENATE(Riepilogo_Ordine!Q76))","v":""},null,{"$f":"IF(Riepilogo_Ordine!T76>0,Riepilogo_Ordine!T76,\"\")","v":""},{"$f":"IF(J96=\"\",\"\",CONCATENATE(Riepilogo_Ordine!Q76))","v":""},null,null,0,0,0,0,"NO"]
[null,null,null,{"$f":"IF(Riepilogo_Ordine!R77>0,Riepilogo_Ordine!R77,\"\")","v":""},{"$f":"IF(D97=\"\",\"\",CONCATENATE(Riepilogo_Ordine!Q77))","v":""},null,{"$f":"IF(Riepilogo_Ordine!S77>0,Riepilogo_Ordine!S77,\"\")","v":""},{"$f":"IF(G97=\"\",\"\",CONCATENATE(Riepilogo_Ordine!Q77))","v":""},null,{"$f":"IF(Riepilogo_Ordine!T77>0,Riepilogo_Ordine!T77,\"\")","v":""},{"$f":"IF(J97=\"\",\"\",CONCATENATE(Riepilogo_Ordine!Q77))","v":""},null,null,0,0,0,0,"NO"]
[null,null,null,{"$f":"IF(Riepilogo_Ordine!R78>0,Riepilogo_Ordine!R78,\"\")","v":""},{"$f":"IF(D98=\"\",\"\",CONCATENATE(Riepilogo_Ordine!Q78))","v":""},null,{"$f":"IF(Riepilogo_Ordine!S78>0,Riepilogo_Ordine!S78,\"\")","v":""},{"$f":"IF(G98=\"\",\"\",CONCATENATE(Riepilogo_Ordine!Q78))","v":""},null,{"$f":"IF(Riepilogo_Ordine!T78>0,Riepilogo_Ordine!T78,\"\")","v":""},{"$f":"IF(J98=\"\",\"\",CONCATENATE(Riepilogo_Ordine!Q78))","v":""},null,null,0,0,0,0,"NO"]
[null,null,null,{"$f":"IF(Riepilogo_Ordine!R79>0,Riepilogo_Ordine!R79,\"\")","v":""},{"$f":"IF(D99=\"\",\"\",CONCATENATE(Riepilogo_Ordine!Q79))","v":""},null,{"$f":"IF(Riepilogo_Ordine!S79>0,Riepilogo_Ordine!S79,\"\")","v":""},{"$f":"IF(G99=\"\",\"\",CONCATENATE(Riepilogo_Ordine!Q79))","v":""},null,{"$f":"IF(Riepilogo_Ordine!T79>0,Riepilogo_Ordine!T79,\"\")","v":""},{"$f":"IF(J99=\"\",\"\",CONCATENATE(Riepilogo_Ordine!Q79))","v":""},null,null,0,0,0,0,"NO"]
[null,null,null,{"$f":"IF(Riepilogo_Ordine!R80>0,Riepilogo_Ordine!R80,\"\")","v":""},{"$f":"IF(D100=\"\",\"\",CONCATENATE(Riepilogo_Ordine!Q80))","v":""},null,{"$f":"IF(Riepilogo_Ordine!S80>0,Riepilogo_Ordine!S80,\"\")","v":""},{"$f":"IF(G100=\"\",\"\",CONCATENATE(Riepilogo_Ordine!Q80))","v":""},null,{"$f":"IF(Riepilogo_Ordine!T80>0,Riepilogo_Ordine!T80,\"\")","v":""},{"$f":"IF(J100=\"\",\"\",CONCATENATE(Riepilogo_Ordine!Q80))","v":""},null,null,0,0,0,0,"NO"]
[null,null,null,{"$f":"IF(Riepilogo_Ordine!R81>0,Riepilogo_Ordine!R81,\"\")","v":""},{"$f":"IF(D101=\"\",\"\",CONCATENATE(Riepilogo_Ordine!Q81))","v":""},null,{"$f":"IF(Riepilogo_Ordine!S81>0,Riepilogo_Ordine!S81,\"\")","v":""},{"$f":"IF(G101=\"\",\"\",CONCATENATE(Riepilogo_Ordine!Q81))","v":""},null,{"$f":"IF(Riepilogo_Ordine!T81>0,Riepilogo_Ordine!T81,\"\")","v":""},{"$f":"IF(J101=\"\",\"\",CONCATENATE(Riepilogo_Ordine!Q81))","v":""},null,null,0,0,0,0,"NO"]
[null,null,null,{"$f":"IF(Riepilogo_Ordine!R82>0,Riepilogo_Ordine!R82,\"\")","v":""},{"$f":"IF(D102=\"\",\"\",CONCATENATE(Riepilogo_Ordine!Q82))","v":""},null,{"$f":"IF(Riepilogo_Ordine!S82>0,Riepilogo_Ordine!S82,\"\")","v":""},{"$f":"IF(G102=\"\",\"\",CONCATENATE(Riepilogo_Ordine!Q82))","v":""},null,{"$f":"IF(Riepilogo_Ordine!T82>0,Riepilogo_Ordine!T82,\"\")","v":""},{"$f":"IF(J102=\"\",\"\",CONCATENATE(Riepilogo_Ordine!Q82))","v":""},null,null,0,0,0,0,"NO"]
[null,null,null,{"$f":"IF(Riepilogo_Ordine!R83>0,Riepilogo_Ordine!R83,\"\")","v":""},{"$f":"IF(D103=\"\",\"\",CONCATENATE(Riepilogo_Ordine!Q83))","v":""},null,{"$f":"IF(Riepilogo_Ordine!S83>0,Riepilogo_Ordine!S83,\"\")","v":""},{"$f":"IF(G103=\"\",\"\",CONCATENATE(Riepilogo_Ordine!Q83))","v":""},null,{"$f":"IF(Riepilogo_Ordine!T83>0,Riepilogo_Ordine!T83,\"\")","v":""},{"$f":"IF(J103=\"\",\"\",CONCATENATE(Riepilogo_Ordine!Q83))","v":""},null,null,0,0,0,0,"NO"]
[null,null,null,{"$f":"IF(Riepilogo_Ordine!R84>0,Riepilogo_Ordine!R84,\"\")","v":""},{"$f":"IF(D104=\"\",\"\",CONCATENATE(Riepilogo_Ordine!Q84))","v":""},null,{"$f":"IF(Riepilogo_Ordine!S84>0,Riepilogo_Ordine!S84,\"\")","v":""},{"$f":"IF(G104=\"\",\"\",CONCATENATE(Riepilogo_Ordine!Q84))","v":""},null,{"$f":"IF(Riepilogo_Ordine!T84>0,Riepilogo_Ordine!T84,\"\")","v":""},{"$f":"IF(J104=\"\",\"\",CONCATENATE(Riepilogo_Ordine!Q84))","v":""},null,null,0,0,0,0,"NO"]
[null,null,null,{"$f":"IF(Riepilogo_Ordine!R85>0,Riepilogo_Ordine!R85,\"\")","v":""},{"$f":"IF(D105=\"\",\"\",CONCATENATE(Riepilogo_Ordine!Q85))","v":""},null,{"$f":"IF(Riepilogo_Ordine!S85>0,Riepilogo_Ordine!S85,\"\")","v":""},{"$f":"IF(G105=\"\",\"\",CONCATENATE(Riepilogo_Ordine!Q85))","v":""},null,{"$f":"IF(Riepilogo_Ordine!T85>0,Riepilogo_Ordine!T85,\"\")","v":""},{"$f":"IF(J105=\"\",\"\",CONCATENATE(Riepilogo_Ordine!Q85))","v":""},null,null,0,0,0,0,"NO"]
[null,null,null,{"$f":"IF(Riepilogo_Ordine!R86>0,Riepilogo_Ordine!R86,\"\")","v":""},{"$f":"IF(D106=\"\",\"\",CONCATENATE(Riepilogo_Ordine!Q86))","v":""},null,{"$f":"IF(Riepilogo_Ordine!S86>0,Riepilogo_Ordine!S86,\"\")","v":""},{"$f":"IF(G106=\"\",\"\",CONCATENATE(Riepilogo_Ordine!Q86))","v":""},null,{"$f":"IF(Riepilogo_Ordine!T86>0,Riepilogo_Ordine!T86,\"\")","v":""},{"$f":"IF(J106=\"\",\"\",CONCATENATE(Riepilogo_Ordine!Q86))","v":""},null,null,0,0,0,0,"NO"]
[null,null,null,{"$f":"IF(Riepilogo_Ordine!R87>0,Riepilogo_Ordine!R87,\"\")","v":""},{"$f":"IF(D107=\"\",\"\",CONCATENATE(Riepilogo_Ordine!Q87))","v":""},null,{"$f":"IF(Riepilogo_Ordine!S87>0,Riepilogo_Ordine!S87,\"\")","v":""},{"$f":"IF(G107=\"\",\"\",CONCATENATE(Riepilogo_Ordine!Q87))","v":""},null,{"$f":"IF(Riepilogo_Ordine!T87>0,Riepilogo_Ordine!T87,\"\")","v":""},{"$f":"IF(J107=\"\",\"\",CONCATENATE(Riepilogo_Ordine!Q87))","v":""},null,null,0,0,0,0,"NO"]
[null,null,null,{"$f":"IF(Riepilogo_Ordine!R88>0,Riepilogo_Ordine!R88,\"\")","v":""},{"$f":"IF(D108=\"\",\"\",CONCATENATE(Riepilogo_Ordine!Q88))","v":""},null,{"$f":"IF(Riepilogo_Ordine!S88>0,Riepilogo_Ordine!S88,\"\")","v":""},{"$f":"IF(G108=\"\",\"\",CONCATENATE(Riepilogo_Ordine!Q88))","v":""},null,{"$f":"IF(Riepilogo_Ordine!T88>0,Riepilogo_Ordine!T88,\"\")","v":""},{"$f":"IF(J108=\"\",\"\",CONCATENATE(Riepilogo_Ordine!Q88))","v":""},null,null,0,0,0,0,"NO"]
[null,null,null,{"$f":"IF(Riepilogo_Ordine!R89>0,Riepilogo_Ordine!R89,\"\")","v":""},{"$f":"IF(D109=\"\",\"\",CONCATENATE(Riepilogo_Ordine!Q89))","v":""},null,{"$f":"IF(Riepilogo_Ordine!S89>0,Riepilogo_Ordine!S89,\"\")","v":""},{"$f":"IF(G109=\"\",\"\",CONCATENATE(Riepilogo_Ordine!Q89))","v":""},null,{"$f":"IF(Riepilogo_Ordine!T89>0,Riepilogo_Ordine!T89,\"\")","v":""},{"$f":"IF(J109=\"\",\"\",CONCATENATE(Riepilogo_Ordine!Q89))","v":""},null,null,0,0,0,0,"NO"]
[null,null,null,{"$f":"IF(Riepilogo_Ordine!R90>0,Riepilogo_Ordine!R90,\"\")","v":""},{"$f":"IF(D110=\"\",\"\",CONCATENATE(Riepilogo_Ordine!Q90))","v":""},null,{"$f":"IF(Riepilogo_Ordine!S90>0,Riepilogo_Ordine!S90,\"\")","v":""},{"$f":"IF(G110=\"\",\"\",CONCATENATE(Riepilogo_Ordine!Q90))","v":""},null,{"$f":"IF(Riepilogo_Ordine!T90>0,Riepilogo_Ordine!T90,\"\")","v":""},{"$f":"IF(J110=\"\",\"\",CONCATENATE(Riepilogo_Ordine!Q90))","v":""},null,null,0,0,0,0,"NO"]
[null,null,null,{"$f":"IF(Riepilogo_Ordine!R91>0,Riepilogo_Ordine!R91,\"\")","v":""},{"$f":"IF(D111=\"\",\"\",CONCATENATE(Riepilogo_Ordine!Q91))","v":""},null,{"$f":"IF(Riepilogo_Ordine!S91>0,Riepilogo_Ordine!S91,\"\")","v":""},{"$f":"IF(G111=\"\",\"\",CONCATENATE(Riepilogo_Ordine!Q91))","v":""},null,{"$f":"IF(Riepilogo_Ordine!T91>0,Riepilogo_Ordine!T91,\"\")","v":""},{"$f":"IF(J111=\"\",\"\",CONCATENATE(Riepilogo_Ordine!Q91))","v":""},null,null,0,0,0,0,"NO"]
[null,null,null,{"$f":"IF(Riepilogo_Ordine!R104>0,Riepilogo_Ordine!R104,\"\")","v":""},{"$f":"IF(D112=\"\",\"\",CONCATENATE(Riepilogo_Ordine!Q104))","v":""},null,{"$f":"IF(Riepilogo_Ordine!S104>0,Riepilogo_Ordine!S104,\"\")","v":""},{"$f":"IF(G112=\"\",\"\",CONCATENATE(Riepilogo_Ordine!Q104))","v":""},null,{"$f":"IF(Riepilogo_Ordine!T104>0,Riepilogo_Ordine!T104,\"\")","v":""},{"$f":"IF(J112=\"\",\"\",CONCATENATE(Riepilogo_Ordine!Q104))","v":""},null,null,{"$f":"IF(D112=\"\",0,D112)","v":0},{"$f":"IF(G112=\"\",0,G112)","v":0},{"$f":"IF(J112=\"\",0,J112)","v":0},{"$f":"SUM(N112:P112)","v":0},{"$f":"IF(Q112>0,\"SI\",\"NO\")","v":"NO"}]
[null,null,null,{"$f":"IF(Riepilogo_Ordine!R105>0,Riepilogo_Ordine!R105,\"\")","v":""},{"$f":"IF(D113=\"\",\"\",CONCATENATE(Riepilogo_Ordine!Q105))","v":""},null,{"$f":"IF(Riepilogo_Ordine!S105>0,Riepilogo_Ordine!S105,\"\")","v":""},{"$f":"IF(G113=\"\",\"\",CONCATENATE(Riepilogo_Ordine!Q105))","v":""},null,{"$f":"IF(Riepilogo_Ordine!T105>0,Riepilogo_Ordine!T105,\"\")","v":""},{"$f":"IF(J113=\"\",\"\",CONCATENATE(Riepilogo_Ordine!Q105))","v":""},null,null,0,0,0,0,"NO"]
[null,null,null,{"$f":"IF(Riepilogo_Ordine!R106>0,Riepilogo_Ordine!R106,\"\")","v":""},{"$f":"IF(D114=\"\",\"\",CONCATENATE(Riepilogo_Ordine!Q106))","v":""},null,{"$f":"IF(Riepilogo_Ordine!S106>0,Riepilogo_Ordine!S106,\"\")","v":""},{"$f":"IF(G114=\"\",\"\",CONCATENATE(Riepilogo_Ordine!Q106))","v":""},null,{"$f":"IF(Riepilogo_Ordine!T106>0,Riepilogo_Ordine!T106,\"\")","v":""},{"$f":"IF(J114=\"\",\"\",CONCATENATE(Riepilogo_Ordine!Q106))","v":""},null,null,0,0,0,0,"NO"]
[null,null,null,{"$f":"IF(Riepilogo_Ordine!R107>0,Riepilogo_Ordine!R107,\"\")","v":""},{"$f":"IF(D115=\"\",\"\",CONCATENATE(Riepilogo_Ordine!Q107))","v":""},null,{"$f":"IF(Riepilogo_Ordine!S107>0,Riepilogo_Ordine!S107,\"\")","v":""},{"$f":"IF(G115=\"\",\"\",CONCATENATE(Riepilogo_Ordine!Q107))","v":""},null,{"$f":"IF(Riepilogo_Ordine!T107>0,Riepilogo_Ordine!T107,\"\")","v":""},{"$f":"IF(J115=\"\",\"\",CONCATENATE(Riepilogo_Ordine!Q107))","v":""},null,null,0,0,0,0,"NO"]
[null,null,null,{"$f":"IF(Riepilogo_Ordine!R108>0,Riepilogo_Ordine!R108,\"\")","v":""},{"$f":"IF(D116=\"\",\"\",CONCATENATE(Riepilogo_Ordine!Q108))","v":""},null,{"$f":"IF(Riepilogo_Ordine!S108>0,Riepilogo_Ordine!S108,\"\")","v":""},{"$f":"IF(G116=\"\",\"\",CONCATENATE(Riepilogo_Ordine!Q108))","v":""},null,{"$f":"IF(Riepilogo_Ordine!T108>0,Riepilogo_Ordine!T108,\"\")","v":""},{"$f":"IF(J116=\"\",\"\",CONCATENATE(Riepilogo_Ordine!Q108))","v":""},null,null,0,0,0,0,"NO"]
[null,null,null,{"$f":"IF(Riepilogo_Ordine!R109>0,Riepilogo_Ordine!R109,\"\")","v":""},{"$f":"IF(D117=\"\",\"\",CONCATENATE(Riepilogo_Ordine!Q109))","v":""},null,{"$f":"IF(Riepilogo_Ordine!S109>0,Riepilogo_Ordine!S109,\"\")","v":""},{"$f":"IF(G117=\"\",\"\",CONCATENATE(Riepilogo_Ordine!Q109))","v":""},null,{"$f":"IF(Riepilogo_Ordine!T109>0,Riepilogo_Ordine!T109,\"\")","v":""},{"$f":"IF(J117=\"\",\"\",CONCATENATE(Riepilogo_Ordine!Q109))","v":""},null,null,0,0,0,0,"NO"]
[null,null,null,{"$f":"IF(Riepilogo_Ordine!R110>0,Riepilogo_Ordine!R110,\"\")","v":""},{"$f":"IF(D118=\"\",\"\",CONCATENATE(Riepilogo_Ordine!Q110))","v":""},null,{"$f":"IF(Riepilogo_Ordine!S110>0,Riepilogo_Ordine!S110,\"\")","v":""},{"$f":"IF(G118=\"\",\"\",CONCATENATE(Riepilogo_Ordine!Q110))","v":""},null,{"$f":"IF(Riepilogo_Ordine!T110>0,Riepilogo_Ordine!T110,\"\")","v":""},{"$f":"IF(J118=\"\",\"\",CONCATENATE(Riepilogo_Ordine!Q110))","v":""},null,null,0,0,0,0,"NO"]
[null,null,null,{"$f":"IF(Riepilogo_Ordine!R111>0,Riepilogo_Ordine!R111,\"\")","v":""},{"$f":"IF(D119=\"\",\"\",CONCATENATE(Riepilogo_Ordine!Q111))","v":""},null,{"$f":"IF(Riepilogo_Ordine!S111>0,Riepilogo_Ordine!S111,\"\")","v":""},{"$f":"IF(G119=\"\",\"\",CONCATENATE(Riepilogo_Ordine!Q111))","v":""},null,{"$f":"IF(Riepilogo_Ordine!T111>0,Riepilogo_Ordine!T111,\"\")","v":""},{"$f":"IF(J119=\"\",\"\",CONCATENATE(Riepilogo_Ordine!Q111))","v":""},null,null,0,0,0,0,"NO"]
[null,null,null,{"$f":"IF(Riepilogo_Ordine!R112>0,Riepilogo_Ordine!R112,\"\")","v":""},{"$f":"IF(D120=\"\",\"\",CONCATENATE(Riepilogo_Ordine!Q112))","v":""},null,{"$f":"IF(Riepilogo_Ordine!S112>0,Riepilogo_Ordine!S112,\"\")","v":""},{"$f":"IF(G120=\"\",\"\",CONCATENATE(Riepilogo_Ordine!Q112))","v":""},null,{"$f":"IF(Riepilogo_Ordine!T112>0,Riepilogo_Ordine!T112,\"\")","v":""},{"$f":"IF(J120=\"\",\"\",CONCATENATE(Riepilogo_Ordine!Q112))","v":""},null,null,0,0,0,0,"NO"]
[null,null,null,{"$f":"IF(Riepilogo_Ordine!R113>0,Riepilogo_Ordine!R113,\"\")","v":""},{"$f":"IF(D121=\"\",\"\",CONCATENATE(Riepilogo_Ordine!Q113))","v":""},null,{"$f":"IF(Riepilogo_Ordine!S113>0,Riepilogo_Ordine!S113,\"\")","v":""},{"$f":"IF(G121=\"\",\"\",CONCATENATE(Riepilogo_Ordine!Q113))","v":""},null,{"$f":"IF(Riepilogo_Ordine!T113>0,Riepilogo_Ordine!T113,\"\")","v":""},{"$f":"IF(J121=\"\",\"\",CONCATENATE(Riepilogo_Ordine!Q113))","v":""},null,null,0,0,0,0,"NO"]
[null,null,null,{"$f":"IF(Riepilogo_Ordine!R114>0,Riepilogo_Ordine!R114,\"\")","v":""},{"$f":"IF(D122=\"\",\"\",CONCATENATE(Riepilogo_Ordine!Q114))","v":""},null,{"$f":"IF(Riepilogo_Ordine!S114>0,Riepilogo_Ordine!S114,\"\")","v":""},{"$f":"IF(G122=\"\",\"\",CONCATENATE(Riepilogo_Ordine!Q114))","v":""},null,{"$f":"IF(Riepilogo_Ordine!T114>0,Riepilogo_Ordine!T114,\"\")","v":""},{"$f":"IF(J122=\"\",\"\",CONCATENATE(Riepilogo_Ordine!Q114))","v":""},null,null,0,0,0,0,"NO"]
[null,null,null,{"$f":"IF(Riepilogo_Ordine!R115>0,Riepilogo_Ordine!R115,\"\")","v":""},{"$f":"IF(D123=\"\",\"\",CONCATENATE(Riepilogo_Ordine!Q115))","v":""},null,{"$f":"IF(Riepilogo_Ordine!S115>0,Riepilogo_Ordine!S115,\"\")","v":""},{"$f":"IF(G123=\"\",\"\",CONCATENATE(Riepilogo_Ordine!Q115))","v":""},null,{"$f":"IF(Riepilogo_Ordine!T115>0,Riepilogo_Ordine!T115,\"\")","v":""},{"$f":"IF(J123=\"\",\"\",CONCATENATE(Riepilogo_Ordine!Q115))","v":""},null,null,0,0,0,0,"NO"]
[null,null,null,{"$f":"IF(Riepilogo_Ordine!R116>0,Riepilogo_Ordine!R116,\"\")","v":""},{"$f":"IF(D124=\"\",\"\",CONCATENATE(Riepilogo_Ordine!Q116))","v":""},null,{"$f":"IF(Riepilogo_Ordine!S116>0,Riepilogo_Ordine!S116,\"\")","v":""},{"$f":"IF(G124=\"\",\"\",CONCATENATE(Riepilogo_Ordine!Q116))","v":""},null,{"$f":"IF(Riepilogo_Ordine!T116>0,Riepilogo_Ordine!T116,\"\")","v":""},{"$f":"IF(J124=\"\",\"\",CONCATENATE(Riepilogo_Ordine!Q116))","v":""},null,null,0,0,0,0,"NO"]
[null,null,null,{"$f":"IF(Riepilogo_Ordine!R117>0,Riepilogo_Ordine!R117,\"\")","v":""},{"$f":"IF(D125=\"\",\"\",CONCATENATE(Riepilogo_Ordine!Q117))","v":""},null,{"$f":"IF(Riepilogo_Ordine!S117>0,Riepilogo_Ordine!S117,\"\")","v":""},{"$f":"IF(G125=\"\",\"\",CONCATENATE(Riepilogo_Ordine!Q117))","v":""},null,{"$f":"IF(Riepilogo_Ordine!T117>0,Riepilogo_Ordine!T117,\"\")","v":""},{"$f":"IF(J125=\"\",\"\",CONCATENATE(Riepilogo_Ordine!Q117))","v":""},null,null,0,0,0,0,"NO"]
[null,null,null,{"$f":"IF(Riepilogo_Ordine!R118>0,Riepilogo_Ordine!R118,\"\")","v":""},{"$f":"IF(D126=\"\",\"\",CONCATENATE(Riepilogo_Ordine!Q118))","v":""},null,{"$f":"IF(Riepilogo_Ordine!S118>0,Riepilogo_Ordine!S118,\"\")","v":""},{"$f":"IF(G126=\"\",\"\",CONCATENATE(Riepilogo_Ordine!Q118))","v":""},null,{"$f":"IF(Riepilogo_Ordine!T118>0,Riepilogo_Ordine!T118,\"\")","v":""},{"$f":"IF(J126=\"\",\"\",CONCATENATE(Riepilogo_Ordine!Q118))","v":""},null,null,0,0,0,0,"NO"]
[null,null,null,{"$f":"IF(Riepilogo_Ordine!R107>0,Riepilogo_Ordine!R107,\"\")","v":""},{"$f":"IF(D127=\"\",\"\",CONCATENATE(Riepilogo_Ordine!Q107))","v":""},null,{"$f":"IF(Riepilogo_Ordine!S107>0,Riepilogo_Ordine!S107,\"\")","v":""},{"$f":"IF(G127=\"\",\"\",CONCATENATE(Riepilogo_Ordine!Q107))","v":""},null,{"$f":"IF(Riepilogo_Ordine!T107>0,Riepilogo_Ordine!T107,\"\")","v":""},{"$f":"IF(J127=\"\",\"\",CONCATENATE(Riepilogo_Ordine!Q107))","v":""},null,null,0,0,0,0,"NO"]
[null,null,null,{"$f":"IF(Riepilogo_Ordine!R108>0,Riepilogo_Ordine!R108,\"\")","v":""},{"$f":"IF(D128=\"\",\"\",CONCATENATE(Riepilogo_Ordine!Q108))","v":""},null,{"$f":"IF(Riepilogo_Ordine!S108>0,Riepilogo_Ordine!S108,\"\")","v":""},{"$f":"IF(G128=\"\",\"\",CONCATENATE(Riepilogo_Ordine!Q108))","v":""},null,{"$f":"IF(Riepilogo_Ordine!T108>0,Riepilogo_Ordine!T108,\"\")","v":""},{"$f":"IF(J128=\"\",\"\",CONCATENATE(Riepilogo_Ordine!Q108))","v":""},null,null,0,0,0,0,"NO"]
[null,null,null,{"$f":"IF(Riepilogo_Ordine!R121>0,Riepilogo_Ordine!R121,\"\")","v":""},{"$f":"IF(D129=\"\",\"\",CONCATENATE(Riepilogo_Ordine!Q121))","v":""},null,{"$f":"IF(Riepilogo_Ordine!S121>0,Riepilogo_Ordine!S121,\"\")","v":""},{"$f":"IF(G129=\"\",\"\",CONCATENATE(Riepilogo_Ordine!Q121))","v":""},null,{"$f":"IF(Riepilogo_Ordine!T121>0,Riepilogo_Ordine!T121,\"\")","v":""},{"$f":"IF(J129=\"\",\"\",CONCATENATE(Riepilogo_Ordine!Q121))","v":""},null,null,{"$f":"IF(D129=\"\",0,D129)","v":0},{"$f":"IF(G129=\"\",0,G129)","v":0},{"$f":"IF(J129=\"\",0,J129)","v":0},{"$f":"SUM(N129:P129)","v":0},{"$f":"IF(Q129>0,\"SI\",\"NO\")","v":"NO"}]
[null,null,null,{"$f":"IF(Riepilogo_Ordine!R122>0,Riepilogo_Ordine!R122,\"\")","v":""},{"$f":"IF(D130=\"\",\"\",CONCATENATE(Riepilogo_Ordine!Q122))","v":""},null,{"$f":"IF(Riepilogo_Ordine!S122>0,Riepilogo_Ordine!S122,\"\")","v":""},{"$f":"IF(G130=\"\",\"\",CONCATENATE(Riepilogo_Ordine!Q122))","v":""},null,{"$f":"IF(Riepilogo_Ordine!T122>0,Riepilogo_Ordine!T122,\"\")","v":""},{"$f":"IF(J130=\"\",\"\",CONCATENATE(Riepilogo_Ordine!Q122))","v":""},null,null,0,0,0,0,"NO"]
[null,null,null,{"$f":"IF(Riepilogo_Ordine!R123>0,Riepilogo_Ordine!R123,\"\")","v":""},{"$f":"IF(D131=\"\",\"\",CONCATENATE(Riepilogo_Ordine!Q123))","v":""},null,{"$f":"IF(Riepilogo_Ordine!S123>0,Riepilogo_Ordine!S123,\"\")","v":""},{"$f":"IF(G131=\"\",\"\",CONCATENATE(Riepilogo_Ordine!Q123))","v":""},null,{"$f":"IF(Riepilogo_Ordine!T123>0,Riepilogo_Ordine!T123,\"\")","v":""},{"$f":"IF(J131=\"\",\"\",CONCATENATE(Riepilogo_Ordine!Q123))","v":""},null,null,0,0,0,0,"NO"]
[null,null,null,{"$f":"IF(Riepilogo_Ordine!R124>0,Riepilogo_Ordine!R124,\"\")","v":""},{"$f":"IF(D132=\"\",\"\",CONCATENATE(Riepilogo_Ordine!Q124))","v":""},null,{"$f":"IF(Riepilogo_Ordine!S124>0,Riepilogo_Ordine!S124,\"\")","v":""},{"$f":"IF(G132=\"\",\"\",CONCATENATE(Riepilogo_Ordine!Q124))","v":""},null,{"$f":"IF(Riepilogo_Ordine!T124>0,Riepilogo_Ordine!T124,\"\")","v":""},{"$f":"IF(J132=\"\",\"\",CONCATENATE(Riepilogo_Ordine!Q124))","v":""},null,null,0,0,0,0,"NO"]
[null,null,null,{"$f":"IF(Riepilogo_Ordine!R125>0,Riepilogo_Ordine!R125,\"\")","v":""},{"$f":"IF(D133=\"\",\"\",CONCATENATE(Riepilogo_Ordine!Q125))","v":""},null,{"$f":"IF(Riepilogo_Ordine!S125>0,Riepilogo_Ordine!S125,\"\")","v":""},{"$f":"IF(G133=\"\",\"\",CONCATENATE(Riepilogo_Ordine!Q125))","v":""},null,{"$f":"IF(Riepilogo_Ordine!T125>0,Riepilogo_Ordine!T125,\"\")","v":""},{"$f":"IF(J133=\"\",\"\",CONCATENATE(Riepilogo_Ordine!Q125))","v":""},null,null,0,0,0,0,"NO"]
[null,null,null,{"$f":"IF(Riepilogo_Ordine!R126>0,Riepilogo_Ordine!R126,\"\")","v":""},{"$f":"IF(D134=\"\",\"\",CONCATENATE(Riepilogo_Ordine!Q126))","v":""},null,{"$f":"IF(Riepilogo_Ordine!S126>0,Riepilogo_Ordine!S126,\"\")","v":""},{"$f":"IF(G134=\"\",\"\",CONCATENATE(Riepilogo_Ordine!Q126))","v":""},null,{"$f":"IF(Riepilogo_Ordine!T126>0,Riepilogo_Ordine!T126,\"\")","v":""},{"$f":"IF(J134=\"\",\"\",CONCATENATE(Riepilogo_Ordine!Q126))","v":""},null,null,0,0,0,0,"NO"]
[null,null,null,{"$f":"IF(Riepilogo_Ordine!R127>0,Riepilogo_Ordine!R127,\"\")","v":""},{"$f":"IF(D135=\"\",\"\",CONCATENATE(Riepilogo_Ordine!Q127))","v":""},null,{"$f":"IF(Riepilogo_Ordine!S127>0,Riepilogo_Ordine!S127,\"\")","v":""},{"$f":"IF(G135=\"\",\"\",CONCATENATE(Riepilogo_Ordine!Q127))","v":""},null,{"$f":"IF(Riepilogo_Ordine!T127>0,Riepilogo_Ordine!T127,\"\")","v":""},{"$f":"IF(J135=\"\",\"\",CONCATENATE(Riepilogo_Ordine!Q127))","v":""},null,null,0,0,0,0,"NO"]
[null,null,null,{"$f":"IF(Riepilogo_Ordine!R128>0,Riepilogo_Ordine!R128,\"\")","v":""},{"$f":"IF(D136=\"\",\"\",CONCATENATE(Riepilogo_Ordine!Q128))","v":""},null,{"$f":"IF(Riepilogo_Ordine!S128>0,Riepilogo_Ordine!S128,\"\")","v":""},{"$f":"IF(G136=\"\",\"\",CONCATENATE(Riepilogo_Ordine!Q128))","v":""},null,{"$f":"IF(Riepilogo_Ordine!T128>0,Riepilogo_Ordine!T128,\"\")","v":""},{"$f":"IF(J136=\"\",\"\",CONCATENATE(Riepilogo_Ordine!Q128))","v":""},null,null,0,0,0,0,"NO"]
[null,null,null,{"$f":"IF(Riepilogo_Ordine!R129>0,Riepilogo_Ordine!R129,\"\")","v":""},{"$f":"IF(D137=\"\",\"\",CONCATENATE(Riepilogo_Ordine!Q129))","v":""},null,{"$f":"IF(Riepilogo_Ordine!S129>0,Riepilogo_Ordine!S129,\"\")","v":""},{"$f":"IF(G137=\"\",\"\",CONCATENATE(Riepilogo_Ordine!Q129))","v":""},null,{"$f":"IF(Riepilogo_Ordine!T129>0,Riepilogo_Ordine!T129,\"\")","v":""},{"$f":"IF(J137=\"\",\"\",CONCATENATE(Riepilogo_Ordine!Q129))","v":""},null,null,0,0,0,0,"NO"]
[null,null,null,{"$f":"IF(Riepilogo_Ordine!R130>0,Riepilogo_Ordine!R130,\"\")","v":""},{"$f":"IF(D138=\"\",\"\",CONCATENATE(Riepilogo_Ordine!Q130))","v":""},null,{"$f":"IF(Riepilogo_Ordine!S130>0,Riepilogo_Ordine!S130,\"\")","v":""},{"$f":"IF(G138=\"\",\"\",CONCATENATE(Riepilogo_Ordine!Q130))","v":""},null,{"$f":"IF(Riepilogo_Ordine!T130>0,Riepilogo_Ordine!T130,\"\")","v":""},{"$f":"IF(J138=\"\",\"\",CONCATENATE(Riepilogo_Ordine!Q130))","v":""},null,null,0,0,0,0,"NO"]
[null,null,null,{"$f":"IF(Riepilogo_Ordine!R131>0,Riepilogo_Ordine!R131,\"\")","v":""},{"$f":"IF(D139=\"\",\"\",CONCATENATE(Riepilogo_Ordine!Q131))","v":""},null,{"$f":"IF(Riepilogo_Ordine!S131>0,Riepilogo_Ordine!S131,\"\")","v":""},{"$f":"IF(G139=\"\",\"\",CONCATENATE(Riepilogo_Ordine!Q131))","v":""},null,{"$f":"IF(Riepilogo_Ordine!T131>0,Riepilogo_Ordine!T131,\"\")","v":""},{"$f":"IF(J139=\"\",\"\",CONCATENATE(Riepilogo_Ordine!Q131))","v":""},null,null,0,0,0,0,"NO"]
[null,null,null,{"$f":"IF(Riepilogo_Ordine!R132>0,Riepilogo_Ordine!R132,\"\")","v":""},{"$f":"IF(D140=\"\",\"\",CONCATENATE(Riepilogo_Ordine!Q132))","v":""},null,{"$f":"IF(Riepilogo_Ordine!S132>0,Riepilogo_Ordine!S132,\"\")","v":""},{"$f":"IF(G140=\"\",\"\",CONCATENATE(Riepilogo_Ordine!Q132))","v":""},null,{"$f":"IF(Riepilogo_Ordine!T132>0,Riepilogo_Ordine!T132,\"\")","v":""},{"$f":"IF(J140=\"\",\"\",CONCATENATE(Riepilogo_Ordine!Q132))","v":""},null,null,0,0,0,0,"NO"]
[null,null,null,{"$f":"IF(Riepilogo_Ordine!R133>0,Riepilogo_Ordine!R133,\"\")","v":""},{"$f":"IF(D141=\"\",\"\",CONCATENATE(Riepilogo_Ordine!Q133))","v":""},null,{"$f":"IF(Riepilogo_Ordine!S133>0,Riepilogo_Ordine!S133,\"\")","v":""},{"$f":"IF(G141=\"\",\"\",CONCATENATE(Riepilogo_Ordine!Q133))","v":""},null,{"$f":"IF(Riepilogo_Ordine!T133>0,Riepilogo_Ordine!T133,\"\")","v":""},{"$f":"IF(J141=\"\",\"\",CONCATENATE(Riepilogo_Ordine!Q133))","v":""},null,null,0,0,0,0,"NO"]
[null,null,null,{"$f":"IF(Riepilogo_Ordine!R134>0,Riepilogo_Ordine!R134,\"\")","v":""},{"$f":"IF(D142=\"\",\"\",CONCATENATE(Riepilogo_Ordine!Q134))","v":""},null,{"$f":"IF(Riepilogo_Ordine!S134>0,Riepilogo_Ordine!S134,\"\")","v":""},{"$f":"IF(G142=\"\",\"\",CONCATENATE(Riepilogo_Ordine!Q134))","v":""},null,{"$f":"IF(Riepilogo_Ordine!T134>0,Riepilogo_Ordine!T134,\"\")","v":""},{"$f":"IF(J142=\"\",\"\",CONCATENATE(Riepilogo_Ordine!Q134))","v":""},null,null,0,0,0,0,"NO"]
[null,null,null,{"$f":"IF(Riepilogo_Ordine!R135>0,Riepilogo_Ordine!R135,\"\")","v":""},{"$f":"IF(D143=\"\",\"\",CONCATENATE(Riepilogo_Ordine!Q135))","v":""},null,{"$f":"IF(Riepilogo_Ordine!S135>0,Riepilogo_Ordine!S135,\"\")","v":""},{"$f":"IF(G143=\"\",\"\",CONCATENATE(Riepilogo_Ordine!Q135))","v":""},null,{"$f":"IF(Riepilogo_Ordine!T135>0,Riepilogo_Ordine!T135,\"\")","v":""},{"$f":"IF(J143=\"\",\"\",CONCATENATE(Riepilogo_Ordine!Q135))","v":""},null,null,0,0,0,0,"NO"]
[null,null,null,null,"Altre Opzioni",null,null,null,null,null,null,null,null,null,null,null,{"$f":"SUM(D145:D148)","v":0},"NO"]
[null,null,null,{"$f":"IF(Riepilogo_Ordine!U40>0,Riepilogo_Ordine!U40,\"\")","v":""},{"$f":"IF(D145=\"\",\"\",CONCATENATE(Riepilogo_Ordine!Q40))","v":""},null,null,null,null,null,null,null,null,null,null,null,{"$f":"IF(D145<>\"\",1,0)","v":0},"NO"]
[null,null,null,{"$f":"IF(Riepilogo_Ordine!U41>0,Riepilogo_Ordine!U41,\"\")","v":""},{"$f":"IF(D146=\"\",\"\",CONCATENATE(Riepilogo_Ordine!Q41))","v":""},null,null,null,null,null,null,null,null,null,null,null,{"$f":"IF(D146<>\"\",1,0)","v":0},"NO"]
[null,null,null,{"$f":"IF(Riepilogo_Ordine!U42>0,Riepilogo_Ordine!U42,\"\")","v":""},{"$f":"IF(D147=\"\",\"\",CONCATENATE(Riepilogo_Ordine!Q42))","v":""},null,null,null,null,null,null,null,null,null,null,null,0,"NO"]
[null,null,null,{"$f":"IF(Riepilogo_Ordine!U53>0,Riepilogo_Ordine!U53,\"\")","v":""},{"$f":"IF(D148=\"\",\"\",CONCATENATE(Riepilogo_Ordine!Q53))","v":""},null,null,null,null,null,null,null,null,null,null,null,0,"NO"]

{"sheet":"ConfTS4L6","index":7,"n_rows":219,"n_cols":24,"rows_kept":219,"cut":false,"hidden":true,"merged":[[12,18,12,19],[12,20,12,21],[65,0,66,0],[194,3,194,4],[194,6,194,7],[12,14,12,15],[12,16,12,17]]}
[{"$f":"\"\"","v":""},{"$f":"\"\"","v":""},{"$f":"\"\"","v":""},{"$f":"\"\"","v":""},{"$f":"\"\"","v":""},{"$f":"\"\"","v":""},{"$f":"\"\"","v":""},{"$f":"\"\"","v":""},{"$f":"\"\"","v":""},{"$f":"\"\"","v":""},{"$f":"\"\"","v":""},{"$f":"\"\"","v":""},{"$f":"\"\"","v":""},{"$f":"\"\"","v":""},{"$f":"\"\"","v":""},{"$f":"\"\"","v":""},{"$f":"\"\"","v":""}]
[null,"Module Name","Option ID","Option Name","Option List Price","SKUs","Qty","SKU Customer Kit","Attributo","Valore inserito",null,"N°","Codice Convenzione"]
["PowerEdge R940 Server (General Purpose)","Chassis with Up to 12X 2.5 SAS/SATA + 12X 2.5 for 2CPU Configuration","Chassis with Up to 12X 2.5 SAS/SATA + 12X 2.5 for 4CPU Configuration",{"$f":"VLOOKUP(L3,Tabella_prezzi!$A$2:$L$91,8,FALSE)","v":"PowerEdge R940 Server"},null,null,null,{"$f":"VLOOKUP(L3,Tabella_prezzi!$A$2:$L$91,9,FALSE)","v":"PowerEdge R940 Server"},{"$f":"VLOOKUP(L3,Tabella_prezzi!$A$2:$L$91,3,FALSE)","v":"server\nrackable quad-processore (prestazionale)"},{"$f":"VLOOKUP(L3,Tabella_prezzi!$A$2:$L$91,4,FALSE)","v":5754.51},null,"L6N01","TS4L6-SRV"]
["PowerEdge R940 Server (nVME)","Chassis with Up to 12X 2.5 SAS/SATA + 12X 2.5 NVME for 2CPU Configuration","Chassis with Up to 12X 2.5 SAS/SATA + 12X 2.5 NVME for 4CPU Configuration",{"$f":"VLOOKUP(L4,Tabella_prezzi!$A$2:$L$91,8,FALSE)","v":"PowerEdge R940 Server-NVMe"},null,null,null,{"$f":"VLOOKUP(L4,Tabella_prezzi!$A$2:$L$91,9,FALSE)","v":"PowerEdge R940 Server"},{"$f":"VLOOKUP(L4,Tabella_prezzi!$A$2:$L$91,3,FALSE)","v":"server\nrackable quad-processore (prestazionale)"},{"$f":"J3*1.02","v":5869.6002000000008},null,"L6N01-NVMe","TS4L6-SRV-NVME"]
["PowerEdge R940 Server (vSAN Ready)","Chassis with Up to 12X 2.5 SAS/SATA + 12X 2.5 vSAN for 2CPU Configuration","Chassis with Up to 12X 2.5 SAS/SATA + 12X 2.5 vSAN for 4CPU Configuration",{"$f":"VLOOKUP(L5,Tabella_prezzi!$A$2:$L$91,8,FALSE)","v":"PowerEdge R940 Server-NVMe"},null,null,null,{"$f":"VLOOKUP(L5,Tabella_prezzi!$A$2:$L$91,9,FALSE)","v":"PowerEdge R940 Server"},{"$f":"VLOOKUP(L5,Tabella_prezzi!$A$2:$L$91,3,FALSE)","v":"server\nrackable quad-processore (prestazionale)"},{"$f":"J3*1.02","v":5869.6002000000008},null,"L6N01-NVme",{"$f":"VLOOKUP(L5,Tabella_prezzi!$A$2:$L$91,6,FALSE)","v":"TS4L6-SRV-NVMe"}]
["PowerEdge R940 Server (vSAN Ready) 64GB","Chassis with Up to 12X 2.5 SAS/SATA + 12X 2.5 vSAN for 2CPU Configuration","Chassis with Up to 12X 2.5 SAS/SATA + 12X 2.5 vSAN for 4CPU Configuration",{"$f":"VLOOKUP(L6,Tabella_prezzi!$A$2:$L$91,8,FALSE)","v":"PowerEdge R940 Server-NVMe"},null,null,null,{"$f":"VLOOKUP(L6,Tabella_prezzi!$A$2:$L$91,9,FALSE)","v":"PowerEdge R940 Server"},{"$f":"VLOOKUP(L6,Tabella_prezzi!$A$2:$L$91,3,FALSE)","v":"server\nrackable quad-processore (prestazionale)"},{"$f":"J3*1.02","v":5869.6002000000008},null,"L6N01-NVme",{"$f":"VLOOKUP(L6,Tabella_prezzi!$A$2:$L$91,6,FALSE)","v":"TS4L6-SRV-NVMe"}]
["PowerEdge R940 Server (BOSS 3TB 48x64 GB RAM)","Chassis with Up to 12X 2.5 SAS/SATA + 12X 2.5 vSAN for 4CPU Configuration 2TB RAM Comprensivo di BOSS e HBA 330+","Chassis with Up to 12X 2.5 SAS/SATA + 12X 2.5 vSAN for 4CPU Configuration 2TB RAM Comprensivo di BOSS e HBA 330+","PowerEdge R940 Server-NVMe",null,null,1,"PowerEdge R940 Server","server\nrackable quad-processore (prestazionale)",{"$f":"J3*1.02","v":5869.6002000000008},null,"L6N01-NVme",{"$f":"VLOOKUP(L7,Tabella_prezzi!$A$2:$L$91,6,FALSE)","v":"TS4L6-SRV-NVMe"}]
["PowerEdge R940 Server (vSAN Ready)","Chassis with Up to 16 x 2.5 Hard Drives for 2CPU, GPU Double-Wide Configuration",null,{"$f":"VLOOKUP(L8,Tabella_prezzi!$A$2:$L$91,8,FALSE)","v":"PowerEdge R940 Server-NVMe"},null,null,null,{"$f":"VLOOKUP(L8,Tabella_prezzi!$A$2:$L$91,9,FALSE)","v":"PowerEdge R940 Server"},{"$f":"VLOOKUP(L8,Tabella_prezzi!$A$2:$L$91,3,FALSE)","v":"server\nrackable quad-processore (prestazionale)"},{"$f":"VLOOKUP(L8,Tabella_prezzi!$A$2:$L$91,4,FALSE)","v":5869.6002000000008},null,"L6N01-NVMe",{"$f":"VLOOKUP(L8,Tabella_prezzi!$A$2:$L$91,6,FALSE)","v":"TS4L6-SRV-NVMe"}]
[]
["TS4L6_Chassis"]
["PowerEdge R940 Server (General Purpose)","Chassis with Up to 12X 2.5 SAS/SATA + 12X 2.5 for 2CPU Configuration","Chassis with Up to 12X 2.5 SAS/SATA + 12X 2.5 for 4CPU Configuration",0,null,{"$f":"\"\"","v":""},{"$f":"\"\"","v":""},"PowerEdge R940 Server","server\nrackable quad-processore (prestazionale)",null,null,null,{"$f":"\"\"","v":""}]
["PowerEdge R940 Server (nVME)","Chassis with Up to 12X 2.5 SAS/SATA + 12X 2.5 NVME for 2CPU Configuration","Chassis with Up to 12X 2.5 SAS/SATA + 12X 2.5 NVME for 4CPU Configuration","Kit vSAN Comprensivo di BOSS e HBA 330+",null,{"$f":"\"\"","v":""},{"$f":"\"\"","v":""},"Kit vSAN Comprensivo di BOSS e HBA 330+","OpzVSAN2TB",null,null,null,{"$f":"\"\"","v":""}]
["PowerEdge R940 Server (vSAN Ready)","Chassis with Up to 12X 2.5 SAS/SATA + 12X 2.5 vSAN for 2CPU Configuration Comprensivo di BOSS e HBA 330+","Chassis with Up to 12X 2.5 SAS/SATA + 12X 2.5 vSAN for 4CPU Configuration Comprensivo di BOSS e HBA 330+",{"$f":"VLOOKUP(L13,Tabella_prezzi!$A$2:$L$91,8,FALSE)","v":"Kit vSAN Comprensivo di BOSS e HBA 330+ (NO RAID) In sostituzione del base."},null,null,1,{"$f":"VLOOKUP(L13,Tabella_prezzi!$A$2:$L$91,9,FALSE)","v":"Kit vSAN Comprensivo di BOSS e HBA 330+"},{"$f":"VLOOKUP(L13,Tabella_prezzi!$A$2:$L$91,3,FALSE)","v":"OpzVSAN"},null,{"$f":"VLOOKUP(L13,Tabella_prezzi!$A$2:$L$91,4,FALSE)","v":716.6},"L6N110",{"$f":"VLOOKUP(L13,Tabella_prezzi!$A$2:$L$91,6,FALSE)","v":"TS4L6-2CPU-vSAN"},null,"1TB",null,"1,5TB",null,"2TB",null,"3TB"]
["PowerEdge R940 Server (vSAN Ready) 64GB","Chassis with Up to 12X 2.5 SAS/SATA + 12X 2.5 vSAN for 2CPU Configuration","Chassis with Up to 12X 2.5 SAS/SATA + 12X 2.5 vSAN for 4CPU Configuration",{"$f":"VLOOKUP(L14,Tabella_prezzi!$A$2:$L$91,8,FALSE)","v":"Kit vSAN Comprensivo di sostituzione controller con HBA Vsan ready ed aggiunta di BOSS card 2 x M2 480GB + kit abilitazione 1TB (16x64GB) 2CPU"},null,null,1,{"$f":"VLOOKUP(L14,Tabella_prezzi!$A$2:$L$91,9,FALSE)","v":"Kit vSAN Comprensivo di sostituzione controller con HBA Vsan ready ed aggiunta di BOSS card 2 x M2 480GB + kit abilitazione 1TB (16x64GB) 2CPU"},{"$f":"VLOOKUP(L14,Tabella_prezzi!$A$2:$L$91,3,FALSE)","v":"OpzVsan1TB"},null,{"$f":"VLOOKUP(L14,Tabella_prezzi!$A$2:$L$91,4,FALSE)","v":2721.48},"L6N123",{"$f":"VLOOKUP(L14,Tabella_prezzi!$A$2:$L$91,6,FALSE)","v":"TS4L6-vSAN-2CPU-1TB"}]
["PowerEdge R940 Server (BOSS 3TB 48x64 GB RAM)","Chassis with Up to 12X 2.5 SAS/SATA + 12X 2.5  for 4CPU 3TB RAM Comprensivo di BOSS","Chassis with Up to 12X 2.5 SAS/SATA + 12X 2.5  for 4CPU 3TB RAM Comprensivo di BOSS",{"$f":"VLOOKUP(L15,Tabella_prezzi!$A$2:$L$91,8,FALSE)","v":"Kit vSAN Comprensivo di sostituzione controller con HBA Vsan ready ed aggiunta di BOSS card 2 x M2 480GB + kit abilitazione 2TB (32x64GB) 4CPU"},null,null,1,{"$f":"VLOOKUP(L15,Tabella_prezzi!$A$2:$L$91,9,FALSE)","v":"Kit vSAN Comprensivo di sostituzione controller con HBA Vsan ready ed aggiunta di BOSS card 2 x M2 480GB + kit abilitazione 2TB (32x64GB) 4CPU"},{"$f":"VLOOKUP(L15,Tabella_prezzi!$A$2:$L$91,3,FALSE)","v":"OpzVsan2TB"},null,{"$f":"VLOOKUP(L15,Tabella_prezzi!$A$2:$L$91,4,FALSE)","v":4674.92},"L6N124",{"$f":"VLOOKUP(L15,Tabella_prezzi!$A$2:$L$91,6,FALSE)","v":"TS4L6-vSAN-4CPU-2TB"}]
["PowerEdge R7525 Server (GPU Double-Wide Ready)","Chassis with Up to 16 x 2.5 Hard Drives for 2CPU, GPU Double-Wide Configuration","Chassis with Up to 16 x 2.5 Hard Drives for 2CPU, GPU Double-Wide Configuration",{"$f":"VLOOKUP(L16,Tabella_prezzi!$A$2:$L$91,8,FALSE)","v":"Kit abilitazione 3TB (48x64GB) 4CPU con aggiunta di BOSS card 2 x M2 480GB"},null,null,1,{"$f":"VLOOKUP(L16,Tabella_prezzi!$A$2:$L$91,9,FALSE)","v":"Kit abilitazione 3TB (48x64GB) 4CPU con aggiunta di BOSS card 2 x M2 480GB"},{"$f":"VLOOKUP(L16,Tabella_prezzi!$A$2:$L$91,9,FALSE)","v":"Kit abilitazione 3TB (48x64GB) 4CPU con aggiunta di BOSS card 2 x M2 480GB"},null,{"$f":"VLOOKUP(L16,Tabella_prezzi!$A$2:$L$91,4,FALSE)","v":6473.12},"L6N125",{"$f":"VLOOKUP(L16,Tabella_prezzi!$A$2:$L$91,6,FALSE)","v":"TS4L6-BOSS-4CPU-3TB"}]
[]
["TS4L6_CPU"]
["No Additional Processor",null,null,null,null,null,0,null,{"$f":"\"\"","v":""},null,null,{"$f":"\"\"","v":""},{"$f":"\"\"","v":""}]
[{"$f":"D20","v":"2 x Intel Xeon Gold 6252N, 2.3G, 24C/48T, 10.4GT/s, 35.75M Cache, Turbo, HT (150W) DDR4-2933"},null,null,{"$f":"VLOOKUP(L20,Tabella_prezzi!$A$2:$L$91,8,FALSE)","v":"2 x Intel Xeon Gold 6252N, 2.3G, 24C/48T, 10.4GT/s, 35.75M Cache, Turbo, HT (150W) DDR4-2933"},null,null,1,{"$f":"VLOOKUP(L20,Tabella_prezzi!$A$2:$L$91,9,FALSE)","v":"2 x Intel Xeon Gold 6252N, 2.3G, 24C/48T, 10.4GT/s, 35.75M Cache, Turbo, HT (150W) DDR4-2933"},{"$f":"VLOOKUP(L20,Tabella_prezzi!$A$2:$L$91,3,FALSE)","v":"Kit n. 2 Processori\naggiuntivi"},{"$f":"VLOOKUP(L20,Tabella_prezzi!$A$2:$L$91,4,FALSE)","v":1908.9},null,"L6N02",{"$f":"VLOOKUP(L20,Tabella_prezzi!$A$2:$L$91,6,FALSE)","v":"TS4L6-CPU"}]
[]
["TS4L6_RAM (2CPU)"]
[]
[512,"Memory Capacity",null,{"$f":"VLOOKUP(L24,Tabella_prezzi!$A$2:$L$91,8,FALSE)","v":"32GB - 2Rx4 DDR4 RDIMM 3200MHz"},null,"370-AEVP",0,{"$f":"VLOOKUP(L24,Tabella_prezzi!$A$2:$L$91,9,FALSE)","v":"32GB - 2Rx4 DDR4 RDIMM 3200MHz"},{"$f":"VLOOKUP(L24,Tabella_prezzi!$A$2:$L$91,3,FALSE)","v":"OpzRAM32GB"},{"$f":"VLOOKUP(L24,Tabella_prezzi!$A$2:$L$91,4,FALSE)*G24","v":0},null,"L6N03",{"$f":"VLOOKUP(L24,Tabella_prezzi!$A$2:$L$91,6,FALSE)","v":"TS4L6-RAM32"},null,null,0]
[{"$f":"(32*G25)+$A$24","v":576},"Memory Capacity",null,{"$f":"VLOOKUP(L25,Tabella_prezzi!$A$2:$L$91,8,FALSE)","v":"32GB - 2Rx4 DDR4 RDIMM 3200MHz"},null,"370-AEVP",2,{"$f":"VLOOKUP(L25,Tabella_prezzi!$A$2:$L$91,9,FALSE)","v":"32GB - 2Rx4 DDR4 RDIMM 3200MHz"},{"$f":"VLOOKUP(L25,Tabella_prezzi!$A$2:$L$91,3,FALSE)","v":"OpzRAM32GB"},{"$f":"VLOOKUP(L25,Tabella_prezzi!$A$2:$L$91,4,FALSE)*G25","v":527.28},null,"L6N03",{"$f":"VLOOKUP(L25,Tabella_prezzi!$A$2:$L$91,6,FALSE)","v":"TS4L6-RAM32"},null,null,0]
[{"$f":"(32*G26)+$A$24","v":640},"Memory Capacity",null,{"$f":"VLOOKUP(L26,Tabella_prezzi!$A$2:$L$91,8,FALSE)","v":"32GB - 2Rx4 DDR4 RDIMM 3200MHz"},null,"370-AEVP",4,{"$f":"VLOOKUP(L26,Tabella_prezzi!$A$2:$L$91,9,FALSE)","v":"32GB - 2Rx4 DDR4 RDIMM 3200MHz"},{"$f":"VLOOKUP(L26,Tabella_prezzi!$A$2:$L$91,3,FALSE)","v":"OpzRAM32GB"},{"$f":"VLOOKUP(L26,Tabella_prezzi!$A$2:$L$91,4,FALSE)*G26","v":1054.56},null,"L6N03",{"$f":"VLOOKUP(L26,Tabella_prezzi!$A$2:$L$91,6,FALSE)","v":"TS4L6-RAM32"},null,null,0]
[{"$f":"(32*G27)+$A$24","v":704},"Memory Capacity",null,{"$f":"VLOOKUP(L27,Tabella_prezzi!$A$2:$L$91,8,FALSE)","v":"32GB - 2Rx4 DDR4 RDIMM 3200MHz"},null,"370-AEVP",6,{"$f":"VLOOKUP(L27,Tabella_prezzi!$A$2:$L$91,9,FALSE)","v":"32GB - 2Rx4 DDR4 RDIMM 3200MHz"},{"$f":"VLOOKUP(L27,Tabella_prezzi!$A$2:$L$91,3,FALSE)","v":"OpzRAM32GB"},{"$f":"VLOOKUP(L27,Tabella_prezzi!$A$2:$L$91,4,FALSE)*G27","v":1581.84},null,"L6N03",{"$f":"VLOOKUP(L27,Tabella_prezzi!$A$2:$L$91,6,FALSE)","v":"TS4L6-RAM32"},null,null,0]
[768,"Memory Capacity",null,{"$f":"VLOOKUP(L28,Tabella_prezzi!$A$2:$L$91,8,FALSE)","v":"32GB - 2Rx4 DDR4 RDIMM 3200MHz"},null,"370-AEVP",8,{"$f":"VLOOKUP(L28,Tabella_prezzi!$A$2:$L$91,9,FALSE)","v":"32GB - 2Rx4 DDR4 RDIMM 3200MHz"},{"$f":"VLOOKUP(L28,Tabella_prezzi!$A$2:$L$91,3,FALSE)","v":"OpzRAM32GB"},{"$f":"VLOOKUP(L28,Tabella_prezzi!$A$2:$L$91,4,FALSE)*G28","v":2109.12},null,"L6N03",{"$f":"VLOOKUP(L28,Tabella_prezzi!$A$2:$L$91,6,FALSE)","v":"TS4L6-RAM32"},null,null,0]
[832,"Memory Capacity",null,{"$f":"VLOOKUP(L29,Tabella_prezzi!$A$2:$L$91,8,FALSE)","v":"32GB - 2Rx4 DDR4 RDIMM 3200MHz"},null,"370-AEVP",10,{"$f":"VLOOKUP(L29,Tabella_prezzi!$A$2:$L$91,9,FALSE)","v":"32GB - 2Rx4 DDR4 RDIMM 3200MHz"},{"$f":"VLOOKUP(L29,Tabella_prezzi!$A$2:$L$91,3,FALSE)","v":"OpzRAM32GB"},{"$f":"VLOOKUP(L29,Tabella_prezzi!$A$2:$L$91,4,FALSE)*G29","v":2636.3999999999996},null,"L6N03",{"$f":"VLOOKUP(L29,Tabella_prezzi!$A$2:$L$91,6,FALSE)","v":"TS4L6-RAM32"},null,null,0]
[896,"Memory Capacity",null,{"$f":"VLOOKUP(L30,Tabella_prezzi!$A$2:$L$91,8,FALSE)","v":"32GB - 2Rx4 DDR4 RDIMM 3200MHz"},null,"370-AEVP",12,{"$f":"VLOOKUP(L30,Tabella_prezzi!$A$2:$L$91,9,FALSE)","v":"32GB - 2Rx4 DDR4 RDIMM 3200MHz"},{"$f":"VLOOKUP(L30,Tabella_prezzi!$A$2:$L$91,3,FALSE)","v":"OpzRAM32GB"},{"$f":"VLOOKUP(L30,Tabella_prezzi!$A$2:$L$91,4,FALSE)*G30","v":3163.68},null,"L6N03",{"$f":"VLOOKUP(L30,Tabella_prezzi!$A$2:$L$91,6,FALSE)","v":"TS4L6-RAM32"},null,null,0]
[960,"Memory Capacity",null,{"$f":"VLOOKUP(L31,Tabella_prezzi!$A$2:$L$91,8,FALSE)","v":"32GB - 2Rx4 DDR4 RDIMM 3200MHz"},null,"370-AEVP",14,{"$f":"VLOOKUP(L31,Tabella_prezzi!$A$2:$L$91,9,FALSE)","v":"32GB - 2Rx4 DDR4 RDIMM 3200MHz"},{"$f":"VLOOKUP(L31,Tabella_prezzi!$A$2:$L$91,3,FALSE)","v":"OpzRAM32GB"},{"$f":"VLOOKUP(L31,Tabella_prezzi!$A$2:$L$91,4,FALSE)*G31","v":3690.96},null,"L6N03",{"$f":"VLOOKUP(L31,Tabella_prezzi!$A$2:$L$91,6,FALSE)","v":"TS4L6-RAM32"},null,null,0]
[1024,"Memory Capacity",null,{"$f":"VLOOKUP(L32,Tabella_prezzi!$A$2:$L$91,8,FALSE)","v":"32GB - 2Rx4 DDR4 RDIMM 3200MHz"},null,"370-AEVP",16,{"$f":"VLOOKUP(L32,Tabella_prezzi!$A$2:$L$91,9,FALSE)","v":"32GB - 2Rx4 DDR4 RDIMM 3200MHz"},{"$f":"VLOOKUP(L32,Tabella_prezzi!$A$2:$L$91,3,FALSE)","v":"OpzRAM32GB"},{"$f":"VLOOKUP(L32,Tabella_prezzi!$A$2:$L$91,4,FALSE)*G32","v":4218.24},null,"L6N03",{"$f":"VLOOKUP(L32,Tabella_prezzi!$A$2:$L$91,6,FALSE)","v":"TS4L6-RAM32"},null,null,0]
[1088,"Memory Capacity",null,{"$f":"VLOOKUP(L33,Tabella_prezzi!$A$2:$L$91,8,FALSE)","v":"32GB - 2Rx4 DDR4 RDIMM 3200MHz"},null,"370-AEVP",18,{"$f":"VLOOKUP(L70,Tabella_prezzi!$A$2:$L$91,9,FALSE)","v":"64GB - 2RX4 DDR4 RDIMM 3200MHz"},{"$f":"VLOOKUP(L70,Tabella_prezzi!$A$2:$L$91,3,FALSE)","v":"OpzRAM64GB"},{"$f":"VLOOKUP(L70,Tabella_prezzi!$A$2:$L$91,4,FALSE)*G33","v":6108.4800000000005},null,"L6N03",{"$f":"VLOOKUP(L70,Tabella_prezzi!$A$2:$L$91,6,FALSE)","v":"TS4L6-RAM64"},null,null,0]
[1152,"Memory Capacity",null,{"$f":"VLOOKUP(L34,Tabella_prezzi!$A$2:$L$91,8,FALSE)","v":"32GB - 2Rx4 DDR4 RDIMM 3200MHz"},null,"370-AEVP",20,{"$f":"VLOOKUP(L71,Tabella_prezzi!$A$2:$L$91,9,FALSE)","v":"64GB - 2RX4 DDR4 RDIMM 3200MHz"},{"$f":"VLOOKUP(L71,Tabella_prezzi!$A$2:$L$91,3,FALSE)","v":"OpzRAM64GB"},{"$f":"VLOOKUP(L71,Tabella_prezzi!$A$2:$L$91,4,FALSE)*G34","v":6787.2000000000007},null,"L6N03",{"$f":"VLOOKUP(L71,Tabella_prezzi!$A$2:$L$91,6,FALSE)","v":"TS4L6-RAM64"},null,null,0]
[1216,"Memory Capacity",null,{"$f":"VLOOKUP(L35,Tabella_prezzi!$A$2:$L$91,8,FALSE)","v":"32GB - 2Rx4 DDR4 RDIMM 3200MHz"},null,"370-AEVP",22,{"$f":"VLOOKUP(L72,Tabella_prezzi!$A$2:$L$91,9,FALSE)","v":"64GB - 2RX4 DDR4 RDIMM 3200MHz"},{"$f":"VLOOKUP(L72,Tabella_prezzi!$A$2:$L$91,3,FALSE)","v":"OpzRAM64GB"},{"$f":"VLOOKUP(L72,Tabella_prezzi!$A$2:$L$91,4,FALSE)*G35","v":7465.92},null,"L6N03",{"$f":"VLOOKUP(L72,Tabella_prezzi!$A$2:$L$91,6,FALSE)","v":"TS4L6-RAM64"},null,null,0]
[1280,"Memory Capacity",null,{"$f":"VLOOKUP(L36,Tabella_prezzi!$A$2:$L$91,8,FALSE)","v":"32GB - 2Rx4 DDR4 RDIMM 3200MHz"},null,"370-AEVP",24,{"$f":"VLOOKUP(#REF!,Tabella_prezzi!$A$2:$L$91,9,FALSE)","v":{"$error":"#REF!"}},{"$f":"VLOOKUP(#REF!,Tabella_prezzi!$A$2:$L$91,3,FALSE)","v":{"$error":"#REF!"}},{"$f":"VLOOKUP(#REF!,Tabella_prezzi!$A$2:$L$91,4,FALSE)*G36","v":{"$error":"#REF!"}},null,"L6N03",{"$f":"VLOOKUP(#REF!,Tabella_prezzi!$A$2:$L$91,6,FALSE)","v":{"$error":"#REF!"}},null,null,0]
[1344,"Memory Capacity",null,{"$f":"VLOOKUP(L37,Tabella_prezzi!$A$2:$L$91,8,FALSE)","v":"32GB - 2Rx4 DDR4 RDIMM 3200MHz"},null,"370-AEVP",26,{"$f":"VLOOKUP(L73,Tabella_prezzi!$A$2:$L$91,9,FALSE)","v":"64GB - 2RX4 DDR4 RDIMM 3200MHz"},{"$f":"VLOOKUP(L73,Tabella_prezzi!$A$2:$L$91,3,FALSE)","v":"OpzRAM64GB"},{"$f":"VLOOKUP(L73,Tabella_prezzi!$A$2:$L$91,4,FALSE)*G37","v":8823.36},null,"L6N03",{"$f":"VLOOKUP(L73,Tabella_prezzi!$A$2:$L$91,6,FALSE)","v":"TS4L6-RAM64"},null,null,0]
[{"$f":"\"\"","v":""},0,0,0,0,0,0,0,0,0,0,0,0,0,{"$f":"\"\"","v":""},{"$f":"\"\"","v":""}]
["TS4L6_RAM_VSAN 512(2CPU)",null,null,null,null,null,null,null,null,null,null,null,null,null,null,0]
[512,"Memory Capacity",null,{"$f":"VLOOKUP(L40,Tabella_prezzi!$A$2:$L$91,8,FALSE)","v":"32GB - 2Rx4 DDR4 RDIMM 3200MHz"},null,"370-AEVP",0,{"$f":"VLOOKUP(L40,Tabella_prezzi!$A$2:$L$91,9,FALSE)","v":"32GB - 2Rx4 DDR4 RDIMM 3200MHz"},{"$f":"VLOOKUP(L40,Tabella_prezzi!$A$2:$L$91,3,FALSE)","v":"OpzRAM32GB"},{"$f":"VLOOKUP(L40,Tabella_prezzi!$A$2:$L$91,4,FALSE)*G40","v":0},null,"L6N03",{"$f":"VLOOKUP(L40,Tabella_prezzi!$A$2:$L$91,6,FALSE)","v":"TS4L6-RAM32"},null,null,0]
[{"$f":"(32*G41)+$A$24","v":768},"Memory Capacity",null,{"$f":"VLOOKUP(L41,Tabella_prezzi!$A$2:$L$91,8,FALSE)","v":"32GB - 2Rx4 DDR4 RDIMM 3200MHz"},null,"370-AEVP",8,{"$f":"VLOOKUP(L41,Tabella_prezzi!$A$2:$L$91,9,FALSE)","v":"32GB - 2Rx4 DDR4 RDIMM 3200MHz"},{"$f":"VLOOKUP(L41,Tabella_prezzi!$A$2:$L$91,3,FALSE)","v":"OpzRAM32GB"},{"$f":"VLOOKUP(L41,Tabella_prezzi!$A$2:$L$91,4,FALSE)*G41","v":2109.12},null,"L6N03",{"$f":"VLOOKUP(L41,Tabella_prezzi!$A$2:$L$91,6,FALSE)","v":"TS4L6-RAM32"}]
["TS4L6_RAM_VSAN 512(4CPU)"]
[{"$f":"(32*G43)+$A$24","v":1024},"Memory Capacity",null,{"$f":"VLOOKUP(L43,Tabella_prezzi!$A$2:$L$91,8,FALSE)","v":"32GB - 2Rx4 DDR4 RDIMM 3200MHz"},null,"370-AEVP",16,{"$f":"VLOOKUP(L43,Tabella_prezzi!$A$2:$L$91,9,FALSE)","v":"32GB - 2Rx4 DDR4 RDIMM 3200MHz"},{"$f":"VLOOKUP(L43,Tabella_prezzi!$A$2:$L$91,3,FALSE)","v":"OpzRAM32GB"},{"$f":"VLOOKUP(L43,Tabella_prezzi!$A$2:$L$91,4,FALSE)*G43","v":4218.24},null,"L6N03",{"$f":"VLOOKUP(L43,Tabella_prezzi!$A$2:$L$91,6,FALSE)","v":"TS4L6-RAM32"}]
[{"$f":"(32*G44)+$A$24","v":1536},"Memory Capacity",null,{"$f":"VLOOKUP(L44,Tabella_prezzi!$A$2:$L$91,8,FALSE)","v":"32GB - 2Rx4 DDR4 RDIMM 3200MHz"},null,"370-AEVP",32,{"$f":"VLOOKUP(L44,Tabella_prezzi!$A$2:$L$91,9,FALSE)","v":"32GB - 2Rx4 DDR4 RDIMM 3200MHz"},{"$f":"VLOOKUP(L44,Tabella_prezzi!$A$2:$L$91,3,FALSE)","v":"OpzRAM32GB"},{"$f":"VLOOKUP(L44,Tabella_prezzi!$A$2:$L$91,4,FALSE)*G44","v":8436.48},null,"L6N03",{"$f":"VLOOKUP(L44,Tabella_prezzi!$A$2:$L$91,6,FALSE)","v":"TS4L6-RAM32"}]
["TS4L6_RAM_VSAN1TB(2CPU)"]
[{"$f":"\"\"","v":""},{"$f":"\"\"","v":""},{"$f":"\"\"","v":""},{"$f":"\"\"","v":""},{"$f":"\"\"","v":""},{"$f":"\"\"","v":""},{"$f":"\"\"","v":""},{"$f":"\"\"","v":""},{"$f":"\"\"","v":""},{"$f":"\"\"","v":""},{"$f":"\"\"","v":""},{"$f":"\"\"","v":""},{"$f":"\"\"","v":""}]
[{"$f":"(64*G47)","v":1024},"Memory Capacity",null,{"$f":"VLOOKUP(L47,Tabella_prezzi!$A$2:$L$91,8,FALSE)","v":"64GB - 2RX4 DDR4 RDIMM 3200MHz"},null,"370-AEVP",16,{"$f":"VLOOKUP(L47,Tabella_prezzi!$A$2:$L$91,9,FALSE)","v":"64GB - 2RX4 DDR4 RDIMM 3200MHz"},{"$f":"VLOOKUP(L47,Tabella_prezzi!$A$2:$L$91,3,FALSE)","v":"OpzRAM64GB"},{"$f":"VLOOKUP(L47,Tabella_prezzi!$A$2:$L$91,4,FALSE)*G47","v":5429.76},null,"L6N04",{"$f":"VLOOKUP(L47,Tabella_prezzi!$A$2:$L$91,6,FALSE)","v":"TS4L6-RAM64"}]
[{"$f":"(64*G48)","v":1536},"Memory Capacity",null,{"$f":"VLOOKUP(L48,Tabella_prezzi!$A$2:$L$91,8,FALSE)","v":"64GB - 2RX4 DDR4 RDIMM 3200MHz"},null,"370-AEVP",24,{"$f":"VLOOKUP(L48,Tabella_prezzi!$A$2:$L$91,9,FALSE)","v":"64GB - 2RX4 DDR4 RDIMM 3200MHz"},{"$f":"VLOOKUP(L48,Tabella_prezzi!$A$2:$L$91,3,FALSE)","v":"OpzRAM64GB"},{"$f":"VLOOKUP(L48,Tabella_prezzi!$A$2:$L$91,4,FALSE)*G48","v":8144.64},null,"L6N04",{"$f":"VLOOKUP(L48,Tabella_prezzi!$A$2:$L$91,6,FALSE)","v":"TS4L6-RAM64"}]
["TS4L6_RAM_VSAN2TB(4CPU)64"]
[{"$f":"\"\"","v":""},0,0,0,0,0,0,0,0,0,0,0,{"$f":"\"\"","v":""}]
[{"$f":"(64*G51)","v":2048},"Memory Capacity",null,{"$f":"VLOOKUP(L51,Tabella_prezzi!$A$2:$L$91,8,FALSE)","v":"64GB - 2RX4 DDR4 RDIMM 3200MHz"},null,"370-AEVP",32,{"$f":"VLOOKUP(L51,Tabella_prezzi!$A$2:$L$91,9,FALSE)","v":"64GB - 2RX4 DDR4 RDIMM 3200MHz"},{"$f":"VLOOKUP(L51,Tabella_prezzi!$A$2:$L$91,3,FALSE)","v":"OpzRAM64GB"},{"$f":"VLOOKUP(L51,Tabella_prezzi!$A$2:$L$91,4,FALSE)*G51","v":10859.52},0,"L6N04",{"$f":"VLOOKUP(L51,Tabella_prezzi!$A$2:$L$91,6,FALSE)","v":"TS4L6-RAM64"}]
[{"$f":"(64*G52)","v":3072},"Memory Capacity",null,{"$f":"VLOOKUP(L52,Tabella_prezzi!$A$2:$L$91,8,FALSE)","v":"64GB - 2RX4 DDR4 RDIMM 3200MHz"},null,"370-AEVP",48,{"$f":"VLOOKUP(L52,Tabella_prezzi!$A$2:$L$91,9,FALSE)","v":"64GB - 2RX4 DDR4 RDIMM 3200MHz"},{"$f":"VLOOKUP(L52,Tabella_prezzi!$A$2:$L$91,3,FALSE)","v":"OpzRAM64GB"},{"$f":"VLOOKUP(L52,Tabella_prezzi!$A$2:$L$91,4,FALSE)*G52","v":16289.28},null,"L6N04",{"$f":"VLOOKUP(L52,Tabella_prezzi!$A$2:$L$91,6,FALSE)","v":"TS4L6-RAM64"}]
["TS4L6_RAM_VSAN 2tb(4CPU)"]
["Aggiungere Terzo e Quarto Processore",null,null,null,null,null,null,null,null,null,null,null,null,{"$f":"\"\"","v":""},{"$f":"\"\"","v":""},{"$f":"\"\"","v":""},{"$f":"\"\"","v":""},{"$f":"\"\"","v":""},{"$f":"\"\"","v":""}]
[{"$f":"((32*G55)+$A$24+(64*Q55))","v":2048},"Memory Capacity",null,{"$f":"VLOOKUP(L55,Tabella_prezzi!$A$2:$L$91,8,FALSE)","v":"32GB - 2Rx4 DDR4 RDIMM 3200MHz"},null,"370-AEVP",16,{"$f":"VLOOKUP(L55,Tabella_prezzi!$A$2:$L$91,9,FALSE)","v":"32GB - 2Rx4 DDR4 RDIMM 3200MHz"},{"$f":"VLOOKUP(L55,Tabella_prezzi!$A$2:$L$91,3,FALSE)","v":"OpzRAM32GB"},{"$f":"VLOOKUP(L55,Tabella_prezzi!$A$2:$L$91,4,FALSE)*G55","v":4218.24},null,"L6N03",{"$f":"VLOOKUP(L55,Tabella_prezzi!$A$2:$L$91,6,FALSE)","v":"TS4L6-RAM32"},{"$f":"A55","v":2048},{"$f":"VLOOKUP(S55,Tabella_prezzi!$A$2:$L$91,6,FALSE)","v":"TS4L6-RAM64"},{"$f":"VLOOKUP(S55,Tabella_prezzi!$A$2:$L$91,4,FALSE)*Q55","v":5429.76},16,{"$f":"VLOOKUP(S55,Tabella_prezzi!$A$2:$L$91,8,FALSE)","v":"64GB - 2RX4 DDR4 RDIMM 3200MHz"},"L6N04"]
["TS4L6_RAM (4CPU)"]
[512,"Memory Capacity",null,{"$f":"VLOOKUP(L57,Tabella_prezzi!$A$2:$L$91,8,FALSE)","v":"32GB - 2Rx4 DDR4 RDIMM 3200MHz"},null,"370-AEVP",0,{"$f":"VLOOKUP(L57,Tabella_prezzi!$A$2:$L$91,9,FALSE)","v":"32GB - 2Rx4 DDR4 RDIMM 3200MHz"},{"$f":"VLOOKUP(L57,Tabella_prezzi!$A$2:$L$91,3,FALSE)","v":"OpzRAM32GB"},{"$f":"VLOOKUP(L57,Tabella_prezzi!$A$2:$L$91,4,FALSE)*G57","v":0},null,"L6N03",{"$f":"VLOOKUP(L57,Tabella_prezzi!$A$2:$L$91,6,FALSE)","v":"TS4L6-RAM32"},{"$f":"A57","v":512},{"$f":"VLOOKUP(S57,Tabella_prezzi!$A$2:$L$91,6,FALSE)","v":"TS4L6-RAM64"},0,0,{"$f":"VLOOKUP(S57,Tabella_prezzi!$A$2:$L$91,8,FALSE)","v":"64GB - 2RX4 DDR4 RDIMM 3200MHz"},"L6N04"]
[{"$f":"(32*G58)+$A$57","v":640},"Memory Capacity",null,{"$f":"VLOOKUP(L58,Tabella_prezzi!$A$2:$L$91,8,FALSE)","v":"32GB - 2Rx4 DDR4 RDIMM 3200MHz"},null,"370-AEVP",4,{"$f":"VLOOKUP(L58,Tabella_prezzi!$A$2:$L$91,9,FALSE)","v":"32GB - 2Rx4 DDR4 RDIMM 3200MHz"},{"$f":"VLOOKUP(L58,Tabella_prezzi!$A$2:$L$91,3,FALSE)","v":"OpzRAM32GB"},{"$f":"VLOOKUP(L58,Tabella_prezzi!$A$2:$L$91,4,FALSE)*G58","v":1054.56},null,"L6N03",{"$f":"VLOOKUP(L58,Tabella_prezzi!$A$2:$L$91,6,FALSE)","v":"TS4L6-RAM32"},{"$f":"A58","v":640},{"$f":"VLOOKUP(S58,Tabella_prezzi!$A$2:$L$91,6,FALSE)","v":"TS4L6-RAM64"},0,0,{"$f":"VLOOKUP(S58,Tabella_prezzi!$A$2:$L$91,8,FALSE)","v":"64GB - 2RX4 DDR4 RDIMM 3200MHz"},"L6N04"]
[{"$f":"(32*G59)+$A$57","v":768},"Memory Capacity",null,{"$f":"VLOOKUP(L59,Tabella_prezzi!$A$2:$L$91,8,FALSE)","v":"32GB - 2Rx4 DDR4 RDIMM 3200MHz"},null,"370-AEVP",8,{"$f":"VLOOKUP(L59,Tabella_prezzi!$A$2:$L$91,9,FALSE)","v":"32GB - 2Rx4 DDR4 RDIMM 3200MHz"},{"$f":"VLOOKUP(L59,Tabella_prezzi!$A$2:$L$91,3,FALSE)","v":"OpzRAM32GB"},{"$f":"VLOOKUP(L59,Tabella_prezzi!$A$2:$L$91,4,FALSE)*G59","v":2109.12},null,"L6N03",{"$f":"VLOOKUP(L59,Tabella_prezzi!$A$2:$L$91,6,FALSE)","v":"TS4L6-RAM32"},768,{"$f":"VLOOKUP(S59,Tabella_prezzi!$A$2:$L$91,6,FALSE)","v":"TS4L6-RAM64"},0,0,{"$f":"VLOOKUP(S59,Tabella_prezzi!$A$2:$L$91,8,FALSE)","v":"64GB - 2RX4 DDR4 RDIMM 3200MHz"},"L6N04"]
[896,"Memory Capacity",null,{"$f":"VLOOKUP(L60,Tabella_prezzi!$A$2:$L$91,8,FALSE)","v":"32GB - 2Rx4 DDR4 RDIMM 3200MHz"},null,"370-AEVP",12,{"$f":"VLOOKUP(L60,Tabella_prezzi!$A$2:$L$91,9,FALSE)","v":"32GB - 2Rx4 DDR4 RDIMM 3200MHz"},{"$f":"VLOOKUP(L60,Tabella_prezzi!$A$2:$L$91,3,FALSE)","v":"OpzRAM32GB"},{"$f":"VLOOKUP(L60,Tabella_prezzi!$A$2:$L$91,4,FALSE)*G60","v":3163.68},null,"L6N03",{"$f":"VLOOKUP(L60,Tabella_prezzi!$A$2:$L$91,6,FALSE)","v":"TS4L6-RAM32"},896,{"$f":"VLOOKUP(S60,Tabella_prezzi!$A$2:$L$91,6,FALSE)","v":"TS4L6-RAM64"},0,0,{"$f":"VLOOKUP(S60,Tabella_prezzi!$A$2:$L$91,8,FALSE)","v":"64GB - 2RX4 DDR4 RDIMM 3200MHz"},"L6N04"]
[1024,"Memory Capacity",null,{"$f":"VLOOKUP(L61,Tabella_prezzi!$A$2:$L$91,8,FALSE)","v":"32GB - 2Rx4 DDR4 RDIMM 3200MHz"},null,"370-AEVP",16,{"$f":"VLOOKUP(L61,Tabella_prezzi!$A$2:$L$91,9,FALSE)","v":"32GB - 2Rx4 DDR4 RDIMM 3200MHz"},{"$f":"VLOOKUP(L61,Tabella_prezzi!$A$2:$L$91,3,FALSE)","v":"OpzRAM32GB"},{"$f":"VLOOKUP(L61,Tabella_prezzi!$A$2:$L$91,4,FALSE)*G61","v":4218.24},null,"L6N03",{"$f":"VLOOKUP(L61,Tabella_prezzi!$A$2:$L$91,6,FALSE)","v":"TS4L6-RAM32"},1024,{"$f":"VLOOKUP(S61,Tabella_prezzi!$A$2:$L$91,6,FALSE)","v":"TS4L6-RAM64"},0,0,{"$f":"VLOOKUP(S61,Tabella_prezzi!$A$2:$L$91,8,FALSE)","v":"64GB - 2RX4 DDR4 RDIMM 3200MHz"},"L6N04"]
[1152,"Memory Capacity",null,{"$f":"VLOOKUP(L62,Tabella_prezzi!$A$2:$L$91,8,FALSE)","v":"32GB - 2Rx4 DDR4 RDIMM 3200MHz"},null,"370-AEVP",20,{"$f":"VLOOKUP(L62,Tabella_prezzi!$A$2:$L$91,9,FALSE)","v":"32GB - 2Rx4 DDR4 RDIMM 3200MHz"},{"$f":"VLOOKUP(L62,Tabella_prezzi!$A$2:$L$91,3,FALSE)","v":"OpzRAM32GB"},{"$f":"VLOOKUP(L62,Tabella_prezzi!$A$2:$L$91,4,FALSE)*G62","v":5272.7999999999993},null,"L6N03",{"$f":"VLOOKUP(L62,Tabella_prezzi!$A$2:$L$91,6,FALSE)","v":"TS4L6-RAM32"},1152,{"$f":"VLOOKUP(S62,Tabella_prezzi!$A$2:$L$91,6,FALSE)","v":"TS4L6-RAM64"},0,0,{"$f":"VLOOKUP(S62,Tabella_prezzi!$A$2:$L$91,8,FALSE)","v":"64GB - 2RX4 DDR4 RDIMM 3200MHz"},"L6N04"]
[1280,"Memory Capacity",null,{"$f":"VLOOKUP(L63,Tabella_prezzi!$A$2:$L$91,8,FALSE)","v":"32GB - 2Rx4 DDR4 RDIMM 3200MHz"},null,"370-AEVP",24,{"$f":"VLOOKUP(L63,Tabella_prezzi!$A$2:$L$91,9,FALSE)","v":"32GB - 2Rx4 DDR4 RDIMM 3200MHz"},{"$f":"VLOOKUP(L63,Tabella_prezzi!$A$2:$L$91,3,FALSE)","v":"OpzRAM32GB"},{"$f":"VLOOKUP(L63,Tabella_prezzi!$A$2:$L$91,4,FALSE)*G63","v":6327.36},null,"L6N03",{"$f":"VLOOKUP(L63,Tabella_prezzi!$A$2:$L$91,6,FALSE)","v":"TS4L6-RAM32"},1280,{"$f":"VLOOKUP(S63,Tabella_prezzi!$A$2:$L$91,6,FALSE)","v":"TS4L6-RAM64"},0,0,{"$f":"VLOOKUP(S63,Tabella_prezzi!$A$2:$L$91,8,FALSE)","v":"64GB - 2RX4 DDR4 RDIMM 3200MHz"},"L6N04"]
[1408,"Memory Capacity",null,{"$f":"VLOOKUP(L64,Tabella_prezzi!$A$2:$L$91,8,FALSE)","v":"32GB - 2Rx4 DDR4 RDIMM 3200MHz"},null,"370-AEVP",28,{"$f":"VLOOKUP(L64,Tabella_prezzi!$A$2:$L$91,9,FALSE)","v":"32GB - 2Rx4 DDR4 RDIMM 3200MHz"},{"$f":"VLOOKUP(L64,Tabella_prezzi!$A$2:$L$91,3,FALSE)","v":"OpzRAM32GB"},{"$f":"VLOOKUP(L64,Tabella_prezzi!$A$2:$L$91,4,FALSE)*G64","v":7381.92},null,"L6N03",{"$f":"VLOOKUP(L64,Tabella_prezzi!$A$2:$L$91,6,FALSE)","v":"TS4L6-RAM32"},1408,{"$f":"VLOOKUP(S64,Tabella_prezzi!$A$2:$L$91,6,FALSE)","v":"TS4L6-RAM64"},0,0,{"$f":"VLOOKUP(S64,Tabella_prezzi!$A$2:$L$91,8,FALSE)","v":"64GB - 2RX4 DDR4 RDIMM 3200MHz"},"L6N04"]
[1536,"Memory Capacity",null,{"$f":"VLOOKUP(L65,Tabella_prezzi!$A$2:$L$91,8,FALSE)","v":"32GB - 2Rx4 DDR4 RDIMM 3200MHz"},null,"370-AEVP",32,{"$f":"VLOOKUP(L65,Tabella_prezzi!$A$2:$L$91,9,FALSE)","v":"32GB - 2Rx4 DDR4 RDIMM 3200MHz"},{"$f":"VLOOKUP(L65,Tabella_prezzi!$A$2:$L$91,3,FALSE)","v":"OpzRAM32GB"},{"$f":"VLOOKUP(L65,Tabella_prezzi!$A$2:$L$91,4,FALSE)*G65","v":8436.48},null,"L6N03",{"$f":"VLOOKUP(L65,Tabella_prezzi!$A$2:$L$91,6,FALSE)","v":"TS4L6-RAM32"},1536,{"$f":"VLOOKUP(S65,Tabella_prezzi!$A$2:$L$91,6,FALSE)","v":"TS4L6-RAM64"},0,0,{"$f":"VLOOKUP(S65,Tabella_prezzi!$A$2:$L$91,8,FALSE)","v":"64GB - 2RX4 DDR4 RDIMM 3200MHz"},"L6N04"]
[{"$f":"(32*G66)+(64*G67)","v":2048},"Memory Capacity",null,{"$f":"VLOOKUP(L66,Tabella_prezzi!$A$2:$L$91,8,FALSE)","v":"32GB - 2Rx4 DDR4 RDIMM 3200MHz"},null,"370-AEVP",32,{"$f":"VLOOKUP(L66,Tabella_prezzi!$A$2:$L$91,9,FALSE)","v":"32GB - 2Rx4 DDR4 RDIMM 3200MHz"},{"$f":"VLOOKUP(L66,Tabella_prezzi!$A$2:$L$91,3,FALSE)","v":"OpzRAM32GB"},{"$f":"VLOOKUP(L66,Tabella_prezzi!$A$2:$L$91,4,FALSE)*G66","v":8436.48},null,"L6N03",{"$f":"VLOOKUP(L66,Tabella_prezzi!$A$2:$L$91,6,FALSE)","v":"TS4L6-RAM32"},2048,{"$f":"VLOOKUP(S66,Tabella_prezzi!$A$2:$L$91,6,FALSE)","v":"TS4L6-RAM64"},0,16,{"$f":"VLOOKUP(S66,Tabella_prezzi!$A$2:$L$91,8,FALSE)","v":"64GB - 2RX4 DDR4 RDIMM 3200MHz"},"L6N04"]
[null,"Memory Capacity",null,{"$f":"VLOOKUP(L67,Tabella_prezzi!$A$2:$L$91,8,FALSE)","v":"32GB - 2Rx4 DDR4 RDIMM 3200MHz"},null,"370-AEVP",16,{"$f":"VLOOKUP(L67,Tabella_prezzi!$A$2:$L$91,9,FALSE)","v":"32GB - 2Rx4 DDR4 RDIMM 3200MHz"},{"$f":"VLOOKUP(L67,Tabella_prezzi!$A$2:$L$91,3,FALSE)","v":"OpzRAM32GB"},{"$f":"VLOOKUP(L67,Tabella_prezzi!$A$2:$L$91,4,FALSE)*G67","v":4218.24},null,"L6N03",{"$f":"VLOOKUP(L67,Tabella_prezzi!$A$2:$L$91,6,FALSE)","v":"TS4L6-RAM32"},0,{"$f":"VLOOKUP(S67,Tabella_prezzi!$A$2:$L$91,6,FALSE)","v":"TS4L6-RAM64"},0,16,{"$f":"VLOOKUP(S67,Tabella_prezzi!$A$2:$L$91,8,FALSE)","v":"64GB - 2RX4 DDR4 RDIMM 3200MHz"},"L6N04"]
[1920,"Memory Capacity",null,{"$f":"VLOOKUP(L68,Tabella_prezzi!$A$2:$L$91,8,FALSE)","v":"32GB - 2Rx4 DDR4 RDIMM 3200MHz"},null,"370-AEVP",44,{"$f":"VLOOKUP(L68,Tabella_prezzi!$A$2:$L$91,9,FALSE)","v":"32GB - 2Rx4 DDR4 RDIMM 3200MHz"},{"$f":"VLOOKUP(L68,Tabella_prezzi!$A$2:$L$91,3,FALSE)","v":"OpzRAM32GB"},{"$f":"VLOOKUP(L68,Tabella_prezzi!$A$2:$L$91,4,FALSE)*G68","v":11600.16},null,"L6N03",{"$f":"VLOOKUP(L68,Tabella_prezzi!$A$2:$L$91,6,FALSE)","v":"TS4L6-RAM32"},1920,{"$f":"VLOOKUP(S68,Tabella_prezzi!$A$2:$L$91,6,FALSE)","v":"TS4L6-RAM64"},{"$f":"VLOOKUP(S68,Tabella_prezzi!$A$2:$L$91,4,FALSE)*Q68","v":5429.76},16,{"$f":"VLOOKUP(S68,Tabella_prezzi!$A$2:$L$91,8,FALSE)","v":"64GB - 2RX4 DDR4 RDIMM 3200MHz"},"L6N04"]
[2048,"Memory Capacity",null,{"$f":"VLOOKUP(L69,Tabella_prezzi!$A$2:$L$91,8,FALSE)","v":"64GB - 2RX4 DDR4 RDIMM 3200MHz"},null,"370-AEVP",48,{"$f":"VLOOKUP(L69,Tabella_prezzi!$A$2:$L$91,9,FALSE)","v":"64GB - 2RX4 DDR4 RDIMM 3200MHz"},{"$f":"VLOOKUP(L69,Tabella_prezzi!$A$2:$L$91,3,FALSE)","v":"OpzRAM64GB"},{"$f":"VLOOKUP(L69,Tabella_prezzi!$A$2:$L$91,4,FALSE)*(G69)","v":16289.28},null,"L6N04",{"$f":"VLOOKUP(L69,Tabella_prezzi!$A$2:$L$91,6,FALSE)","v":"TS4L6-RAM64"},2048,{"$f":"VLOOKUP(S69,Tabella_prezzi!$A$2:$L$91,6,FALSE)","v":"TS4L6-RAM64"},{"$f":"VLOOKUP(S69,Tabella_prezzi!$A$2:$L$91,4,FALSE)*Q69","v":5429.76},16,{"$f":"VLOOKUP(S69,Tabella_prezzi!$A$2:$L$91,8,FALSE)","v":"64GB - 2RX4 DDR4 RDIMM 3200MHz"},"L6N04"]
[2176,"Memory Capacity",null,{"$f":"VLOOKUP(L70,Tabella_prezzi!$A$2:$L$91,8,FALSE)","v":"64GB - 2RX4 DDR4 RDIMM 3200MHz"},null,"370-AEVP",52,{"$f":"VLOOKUP(L70,Tabella_prezzi!$A$2:$L$91,9,FALSE)","v":"64GB - 2RX4 DDR4 RDIMM 3200MHz"},{"$f":"VLOOKUP(L70,Tabella_prezzi!$A$2:$L$91,3,FALSE)","v":"OpzRAM64GB"},{"$f":"VLOOKUP(L70,Tabella_prezzi!$A$2:$L$91,4,FALSE)*(G70)","v":17646.72},null,"L6N04",{"$f":"VLOOKUP(L70,Tabella_prezzi!$A$2:$L$91,6,FALSE)","v":"TS4L6-RAM64"},2176,{"$f":"VLOOKUP(S70,Tabella_prezzi!$A$2:$L$91,6,FALSE)","v":"TS4L6-RAM64"},{"$f":"VLOOKUP(S70,Tabella_prezzi!$A$2:$L$91,4,FALSE)*Q70","v":5429.76},16,{"$f":"VLOOKUP(S70,Tabella_prezzi!$A$2:$L$91,8,FALSE)","v":"64GB - 2RX4 DDR4 RDIMM 3200MHz"},"L6N04"]
[2304,"Memory Capacity",null,{"$f":"VLOOKUP(L71,Tabella_prezzi!$A$2:$L$91,8,FALSE)","v":"64GB - 2RX4 DDR4 RDIMM 3200MHz"},null,"370-AEVP",56,{"$f":"VLOOKUP(L71,Tabella_prezzi!$A$2:$L$91,9,FALSE)","v":"64GB - 2RX4 DDR4 RDIMM 3200MHz"},{"$f":"VLOOKUP(L71,Tabella_prezzi!$A$2:$L$91,3,FALSE)","v":"OpzRAM64GB"},{"$f":"VLOOKUP(L71,Tabella_prezzi!$A$2:$L$91,4,FALSE)*(G71)","v":19004.16},null,"L6N04",{"$f":"VLOOKUP(L71,Tabella_prezzi!$A$2:$L$91,6,FALSE)","v":"TS4L6-RAM64"},2304,{"$f":"VLOOKUP(S71,Tabella_prezzi!$A$2:$L$91,6,FALSE)","v":"TS4L6-RAM64"},{"$f":"VLOOKUP(S71,Tabella_prezzi!$A$2:$L$91,4,FALSE)*Q71","v":5429.76},16,{"$f":"VLOOKUP(S71,Tabella_prezzi!$A$2:$L$91,8,FALSE)","v":"64GB - 2RX4 DDR4 RDIMM 3200MHz"},"L6N04"]
[2432,"Memory Capacity",null,{"$f":"VLOOKUP(L72,Tabella_prezzi!$A$2:$L$91,8,FALSE)","v":"64GB - 2RX4 DDR4 RDIMM 3200MHz"},null,"370-AEVP",60,{"$f":"VLOOKUP(L72,Tabella_prezzi!$A$2:$L$91,9,FALSE)","v":"64GB - 2RX4 DDR4 RDIMM 3200MHz"},{"$f":"VLOOKUP(L72,Tabella_prezzi!$A$2:$L$91,3,FALSE)","v":"OpzRAM64GB"},{"$f":"VLOOKUP(L72,Tabella_prezzi!$A$2:$L$91,4,FALSE)*(G72)","v":20361.600000000002},null,"L6N04",{"$f":"VLOOKUP(L72,Tabella_prezzi!$A$2:$L$91,6,FALSE)","v":"TS4L6-RAM64"},2432,{"$f":"VLOOKUP(S72,Tabella_prezzi!$A$2:$L$91,6,FALSE)","v":"TS4L6-RAM64"},{"$f":"VLOOKUP(S72,Tabella_prezzi!$A$2:$L$91,4,FALSE)*Q72","v":5429.76},16,{"$f":"VLOOKUP(S72,Tabella_prezzi!$A$2:$L$91,8,FALSE)","v":"64GB - 2RX4 DDR4 RDIMM 3200MHz"},"L6N04"]
[2688,"Memory Capacity",null,{"$f":"VLOOKUP(L73,Tabella_prezzi!$A$2:$L$91,8,FALSE)","v":"64GB - 2RX4 DDR4 RDIMM 3200MHz"},null,"370-AEVP",68,{"$f":"VLOOKUP(L73,Tabella_prezzi!$A$2:$L$91,9,FALSE)","v":"64GB - 2RX4 DDR4 RDIMM 3200MHz"},{"$f":"VLOOKUP(L73,Tabella_prezzi!$A$2:$L$91,3,FALSE)","v":"OpzRAM64GB"},{"$f":"VLOOKUP(L73,Tabella_prezzi!$A$2:$L$91,4,FALSE)*(G73)","v":23076.48},null,"L6N04",{"$f":"VLOOKUP(L73,Tabella_prezzi!$A$2:$L$91,6,FALSE)","v":"TS4L6-RAM64"},2688,{"$f":"VLOOKUP(S73,Tabella_prezzi!$A$2:$L$91,6,FALSE)","v":"TS4L6-RAM64"},{"$f":"VLOOKUP(S73,Tabella_prezzi!$A$2:$L$91,4,FALSE)*Q73","v":5429.76},16,{"$f":"VLOOKUP(S73,Tabella_prezzi!$A$2:$L$91,8,FALSE)","v":"64GB - 2RX4 DDR4 RDIMM 3200MHz"},"L6N04"]
[2816,"Memory Capacity",null,{"$f":"VLOOKUP(L74,Tabella_prezzi!$A$2:$L$91,8,FALSE)","v":"64GB - 2RX4 DDR4 RDIMM 3200MHz"},null,"370-AEVP",72,{"$f":"VLOOKUP(L74,Tabella_prezzi!$A$2:$L$91,9,FALSE)","v":"64GB - 2RX4 DDR4 RDIMM 3200MHz"},{"$f":"VLOOKUP(L74,Tabella_prezzi!$A$2:$L$91,3,FALSE)","v":"OpzRAM64GB"},{"$f":"VLOOKUP(L74,Tabella_prezzi!$A$2:$L$91,4,FALSE)*(G74)","v":24433.920000000002},null,"L6N04",{"$f":"VLOOKUP(L74,Tabella_prezzi!$A$2:$L$91,6,FALSE)","v":"TS4L6-RAM64"},2816,{"$f":"VLOOKUP(S74,Tabella_prezzi!$A$2:$L$91,6,FALSE)","v":"TS4L6-RAM64"},{"$f":"VLOOKUP(S74,Tabella_prezzi!$A$2:$L$91,4,FALSE)*Q74","v":5429.76},16,{"$f":"VLOOKUP(S74,Tabella_prezzi!$A$2:$L$91,8,FALSE)","v":"64GB - 2RX4 DDR4 RDIMM 3200MHz"},"L6N04"]
[2944,"Memory Capacity",null,{"$f":"VLOOKUP(L75,Tabella_prezzi!$A$2:$L$91,8,FALSE)","v":"64GB - 2RX4 DDR4 RDIMM 3200MHz"},null,"370-AEVP",76,{"$f":"VLOOKUP(L75,Tabella_prezzi!$A$2:$L$91,9,FALSE)","v":"64GB - 2RX4 DDR4 RDIMM 3200MHz"},{"$f":"VLOOKUP(L75,Tabella_prezzi!$A$2:$L$91,3,FALSE)","v":"OpzRAM64GB"},{"$f":"VLOOKUP(L75,Tabella_prezzi!$A$2:$L$91,4,FALSE)*(G75)","v":25791.360000000001},null,"L6N04",{"$f":"VLOOKUP(L75,Tabella_prezzi!$A$2:$L$91,6,FALSE)","v":"TS4L6-RAM64"},2944,{"$f":"VLOOKUP(S75,Tabella_prezzi!$A$2:$L$91,6,FALSE)","v":"TS4L6-RAM64"},{"$f":"VLOOKUP(S75,Tabella_prezzi!$A$2:$L$91,4,FALSE)*Q75","v":5429.76},16,{"$f":"VLOOKUP(S75,Tabella_prezzi!$A$2:$L$91,8,FALSE)","v":"64GB - 2RX4 DDR4 RDIMM 3200MHz"},"L6N04"]
[1,2,3,4,5,6,7,8,9,10,11,12,13,null,14,0,16,17,18,19,20,21,22,23]
[null,null,null,null,null,null,null,null,null,null,null,null,null,null,null,0]
["TS4L6_OS",null,null,null,null,null,null,null,null,null,null,null,null,null,null,0]
["No Operating System","Operating System",null,null,null,null,0,null,{"$f":"\"\"","v":""},null,null,{"$f":"\"\"","v":""},{"$f":"\"\"","v":""},null,0,null,{"$f":"\"\"","v":""},{"$f":"\"\"","v":""},null,0,0,null,null,{"$f":"\"\"","v":""}]
[{"$f":"D80","v":"Windows Server 2022,Standard,ROK,16CORE"},"Operating System",null,{"$f":"VLOOKUP(L80,Tabella_prezzi!$A$2:$L$91,9,FALSE)","v":"Windows Server 2022,Standard,ROK,16CORE"},null,null,1,{"$f":"VLOOKUP(L80,Tabella_prezzi!$A$2:$L$91,9,FALSE)","v":"Windows Server 2022,Standard,ROK,16CORE"},{"$f":"VLOOKUP(L80,Tabella_prezzi!$A$2:$L$91,3,FALSE)","v":"OpzWinServSTD"},{"$f":"VLOOKUP(L80,Tabella_prezzi!$A$2:$L$91,4,FALSE)","v":728.56},null,"L6N22",{"$f":"VLOOKUP(L80,Tabella_prezzi!$A$2:$L$91,6,FALSE)","v":"TS4L6-WINSRVSTD"},null,16,{"$f":"VLOOKUP(U80,Tabella_prezzi!$A$2:$L$91,9,FALSE)","v":"1-pack of Windows Server 2022/2019 Device CALs (STD or DC)"},{"$f":"VLOOKUP(U80,Tabella_prezzi!$A$2:$L$91,3,FALSE)","v":"OpzDeviceCal"},{"$f":"VLOOKUP(U80,Tabella_prezzi!$A$2:$L$91,4,FALSE)*O80","v":407.2},null,6,"L6N23",{"$f":"VLOOKUP(U80,Tabella_prezzi!$A$2:$L$91,4,FALSE)*T80","v":152.69999999999999},null,{"$f":"VLOOKUP(U80,Tabella_prezzi!$A$2:$L$91,6,FALSE)","v":"TS4L6-WINDEVCAL"}]
[{"$f":"D81","v":"Ubuntu Server 22.04 LTS 64 Bit"},"Operating System",null,{"$f":"VLOOKUP(L81,Tabella_prezzi!$A$2:$L$91,9,FALSE)","v":"Ubuntu Server 22.04 LTS 64 Bit"},null,null,1,{"$f":"VLOOKUP(L81,Tabella_prezzi!$A$2:$L$91,9,FALSE)","v":"Ubuntu Server 22.04 LTS 64 Bit"},{"$f":"VLOOKUP(L81,Tabella_prezzi!$A$2:$L$91,3,FALSE)","v":"OpzOpenSource"},{"$f":"VLOOKUP(L81,Tabella_prezzi!$A$2:$L$91,4,FALSE)","v":37.119999999999997},null,"L6N28",{"$f":"VLOOKUP(L81,Tabella_prezzi!$A$2:$L$91,6,FALSE)","v":"TS4L6-LINUX"},null,20,{"$f":"VLOOKUP(U81,Tabella_prezzi!$A$2:$L$91,9,FALSE)","v":"1-pack of Windows Server 2022/2019 User CALs (STD or DC)"},{"$f":"VLOOKUP(U81,Tabella_prezzi!$A$2:$L$91,3,FALSE)","v":"OpzUserCal"},{"$f":"VLOOKUP(U81,Tabella_prezzi!$A$2:$L$91,4,FALSE)*O81","v":700},null,6,"L6N24",null,{"$f":"VLOOKUP(U81,Tabella_prezzi!$A$2:$L$91,4,FALSE)*T81","v":210},{"$f":"VLOOKUP(U81,Tabella_prezzi!$A$2:$L$91,6,FALSE)","v":"TS4L6-WINUSRCAL"}]
[{"$f":"D82","v":"Windows Server 2022 Standard Edition, Add License,2CORE"},"Operating System",null,{"$f":"VLOOKUP(L82,Tabella_prezzi!$A$2:$L$91,9,FALSE)","v":"Windows Server 2022 Standard Edition, Add License,2CORE"},null,null,1,{"$f":"VLOOKUP(L82,Tabella_prezzi!$A$2:$L$91,9,FALSE)","v":"Windows Server 2022 Standard Edition, Add License,2CORE"},{"$f":"VLOOKUP(L82,Tabella_prezzi!$A$2:$L$91,3,FALSE)","v":"OpzWinServSTD2core"},{"$f":"VLOOKUP(L82,Tabella_prezzi!$A$2:$L$91,4,FALSE)","v":97.28},null,"L6N25",{"$f":"VLOOKUP(L82,Tabella_prezzi!$A$2:$L$91,6,FALSE)","v":"TS4L6-WINSRV2C"},null,16,{"$f":"VLOOKUP(U82,Tabella_prezzi!$A$2:$L$91,9,FALSE)","v":"1-pack of Windows Server 2022/2019 Device CALs (STD or DC)"},{"$f":"VLOOKUP(U82,Tabella_prezzi!$A$2:$L$91,3,FALSE)","v":"OpzDeviceCal"},{"$f":"VLOOKUP(U82,Tabella_prezzi!$A$2:$L$91,4,FALSE)*O82","v":407.2},null,6,"L6N23",{"$f":"VLOOKUP(U82,Tabella_prezzi!$A$2:$L$91,4,FALSE)*T82","v":152.69999999999999},null,{"$f":"VLOOKUP(U82,Tabella_prezzi!$A$2:$L$91,6,FALSE)","v":"TS4L6-WINDEVCAL"}]
[{"$f":"D83","v":"1-pack of Windows Server 2022/2019 Device CALs (STD or DC)"},"Operating System",null,{"$f":"VLOOKUP(L83,Tabella_prezzi!$A$2:$L$91,9,FALSE)","v":"1-pack of Windows Server 2022/2019 Device CALs (STD or DC)"},null,null,1,{"$f":"VLOOKUP(L83,Tabella_prezzi!$A$2:$L$91,9,FALSE)","v":"1-pack of Windows Server 2022/2019 Device CALs (STD or DC)"},{"$f":"VLOOKUP(L83,Tabella_prezzi!$A$2:$L$91,3,FALSE)","v":"OpzDeviceCal"},{"$f":"VLOOKUP(L83,Tabella_prezzi!$A$2:$L$91,4,FALSE)","v":25.45},null,"L6N23",{"$f":"VLOOKUP(L83,Tabella_prezzi!$A$2:$L$91,6,FALSE)","v":"TS4L6-WINDEVCAL"},null,20,{"$f":"VLOOKUP(U83,Tabella_prezzi!$A$2:$L$91,9,FALSE)","v":"1-pack of Windows Server 2022/2019 User CALs (STD or DC)"},{"$f":"VLOOKUP(U83,Tabella_prezzi!$A$2:$L$91,3,FALSE)","v":"OpzUserCal"},{"$f":"VLOOKUP(U83,Tabella_prezzi!$A$2:$L$91,4,FALSE)*O83","v":700},null,6,"L6N24",null,{"$f":"VLOOKUP(U83,Tabella_prezzi!$A$2:$L$91,4,FALSE)*T83","v":210},{"$f":"VLOOKUP(U83,Tabella_prezzi!$A$2:$L$91,6,FALSE)","v":"TS4L6-WINUSRCAL"}]
[{"$f":"D84","v":"1-pack of Windows Server 2022/2019 User CALs (STD or DC)"},"Operating System",null,{"$f":"VLOOKUP(L84,Tabella_prezzi!$A$2:$L$91,9,FALSE)","v":"1-pack of Windows Server 2022/2019 User CALs (STD or DC)"},null,null,1,{"$f":"VLOOKUP(L84,Tabella_prezzi!$A$2:$L$91,9,FALSE)","v":"1-pack of Windows Server 2022/2019 User CALs (STD or DC)"},{"$f":"VLOOKUP(L84,Tabella_prezzi!$A$2:$L$91,3,FALSE)","v":"OpzUserCal"},{"$f":"VLOOKUP(L84,Tabella_prezzi!$A$2:$L$91,4,FALSE)","v":35},null,"L6N24",{"$f":"VLOOKUP(L84,Tabella_prezzi!$A$2:$L$91,6,FALSE)","v":"TS4L6-WINUSRCAL"},null,0,null,{"$f":"\"\"","v":""},{"$f":"\"\"","v":""},null,0,0,null,null,{"$f":"\"\"","v":""}]
["No Operating System","Operating System",null,null,null,null,0,null,{"$f":"\"\"","v":""},null,null,{"$f":"\"\"","v":""},{"$f":"\"\"","v":""},null,0,null,{"$f":"\"\"","v":""},{"$f":"\"\"","v":""},null,0,0,null,null,{"$f":"\"\"","v":""}]
[{"$f":"D86","v":"Windows Server 2022,Datacenter,ROK,16CORE"},"Operating System",null,{"$f":"VLOOKUP(L86,Tabella_prezzi!$A$2:$L$91,9,FALSE)","v":"Windows Server 2022,Datacenter,ROK,16CORE"},null,null,1,{"$f":"VLOOKUP(L86,Tabella_prezzi!$A$2:$L$91,9,FALSE)","v":"Windows Server 2022,Datacenter,ROK,16CORE"},{"$f":"VLOOKUP(L86,Tabella_prezzi!$A$2:$L$91,3,FALSE)","v":"OpzWinServDC"},{"$f":"VLOOKUP(L86,Tabella_prezzi!$A$2:$L$91,4,FALSE)","v":2230.59},null,"L6N26",{"$f":"VLOOKUP(L86,Tabella_prezzi!$A$2:$L$91,6,FALSE)","v":"TS4L6-WinServDC"},null,16,{"$f":"VLOOKUP(U86,Tabella_prezzi!$A$2:$L$91,9,FALSE)","v":"1-pack of Windows Server 2022/2019 Device CALs (STD or DC)"},{"$f":"VLOOKUP(U86,Tabella_prezzi!$A$2:$L$91,3,FALSE)","v":"OpzDeviceCal"},{"$f":"VLOOKUP(U86,Tabella_prezzi!$A$2:$L$91,4,FALSE)*O86","v":407.2},null,6,"L6N23",{"$f":"VLOOKUP(U86,Tabella_prezzi!$A$2:$L$91,4,FALSE)*T86","v":152.69999999999999},null,{"$f":"VLOOKUP(U86,Tabella_prezzi!$A$2:$L$91,6,FALSE)","v":"TS4L6-WINDEVCAL"}]
[{"$f":"D87","v":"Windows Server 2022 / 2019 Datacenter Edition,Add License,2CORE"},"Operating System",null,{"$f":"VLOOKUP(L87,Tabella_prezzi!$A$2:$L$91,9,FALSE)","v":"Windows Server 2022 / 2019 Datacenter Edition,Add License,2CORE"},null,null,1,{"$f":"VLOOKUP(L87,Tabella_prezzi!$A$2:$L$91,9,FALSE)","v":"Windows Server 2022 / 2019 Datacenter Edition,Add License,2CORE"},{"$f":"VLOOKUP(L87,Tabella_prezzi!$A$2:$L$91,3,FALSE)","v":"OpzWinServDC2core"},{"$f":"VLOOKUP(L87,Tabella_prezzi!$A$2:$L$91,4,FALSE)","v":438.85},null,"L6N27",{"$f":"VLOOKUP(L87,Tabella_prezzi!$A$2:$L$91,6,FALSE)","v":"TS4L6-WinServDC2core"},null,16,{"$f":"VLOOKUP(U87,Tabella_prezzi!$A$2:$L$91,9,FALSE)","v":"1-pack of Windows Server 2022/2019 Device CALs (STD or DC)"},{"$f":"VLOOKUP(U87,Tabella_prezzi!$A$2:$L$91,3,FALSE)","v":"OpzDeviceCal"},{"$f":"VLOOKUP(U87,Tabella_prezzi!$A$2:$L$91,4,FALSE)*O87","v":407.2},null,6,"L6N23",{"$f":"VLOOKUP(U87,Tabella_prezzi!$A$2:$L$91,4,FALSE)*T87","v":152.69999999999999},null,{"$f":"VLOOKUP(U87,Tabella_prezzi!$A$2:$L$91,6,FALSE)","v":"TS4L6-WINDEVCAL"}]
[]
["TS4L6_HDD"]
[{"$f":"\"\"","v":""},null,null,null,null,null,{"$f":"\"\"","v":""},null,{"$f":"\"\"","v":""},null,null,{"$f":"\"\"","v":""},{"$f":"\"\"","v":""}]
[{"$f":"VLOOKUP(L91,Tabella_prezzi!$A$2:$L$91,8,FALSE)","v":"2.4TB 10k SAS ISE 12Gbps"},"Hard Drives",null,{"$f":"VLOOKUP(L91,Tabella_prezzi!$A$2:$L$91,9,FALSE)","v":"2.4TB 10k 512e SAS ISE 12Gbps 2.5in Hot Plug Hard Drive"},null,null,1,{"$f":"VLOOKUP(L91,Tabella_prezzi!$A$2:$L$91,9,FALSE)","v":"2.4TB 10k 512e SAS ISE 12Gbps 2.5in Hot Plug Hard Drive"},{"$f":"VLOOKUP(L91,Tabella_prezzi!$A$2:$L$91,3,FALSE)","v":"OpzHDD2TB"},{"$f":"VLOOKUP(L91,Tabella_prezzi!$A$2:$L$91,4,FALSE)","v":137.87},null,"L6N11",{"$f":"VLOOKUP(L91,Tabella_prezzi!$A$2:$L$91,6,FALSE)","v":"TS4L6-HDD2TB"}]
[{"$f":"VLOOKUP(L92,Tabella_prezzi!$A$2:$L$91,8,FALSE)","v":"1.2TB 10K RPM SAS ISE 12Gbps"},"Hard Drives",null,{"$f":"VLOOKUP(L92,Tabella_prezzi!$A$2:$L$91,9,FALSE)","v":"1.2TB 10k 512n SAS ISE 12Gbps 2.5in Hot Plug Hard Drive"},null,null,1,{"$f":"VLOOKUP(L92,Tabella_prezzi!$A$2:$L$91,9,FALSE)","v":"1.2TB 10k 512n SAS ISE 12Gbps 2.5in Hot Plug Hard Drive"},{"$f":"VLOOKUP(L92,Tabella_prezzi!$A$2:$L$91,3,FALSE)","v":"OpzHDD1TB"},{"$f":"VLOOKUP(L92,Tabella_prezzi!$A$2:$L$91,4,FALSE)","v":79.540000000000006},null,"L6N12",{"$f":"VLOOKUP(L92,Tabella_prezzi!$A$2:$L$91,6,FALSE)","v":"TS4L6-HDD1TB"}]
[{"$f":"VLOOKUP(L93,Tabella_prezzi!$A$2:$L$91,8,FALSE)","v":"3.84TB SSD SAS ISE RI 12Gbps"},"Hard Drives",null,{"$f":"VLOOKUP(L93,Tabella_prezzi!$A$2:$L$91,9,FALSE)","v":"3.84TB SSD SAS ISE RI 12Gbps 512e 2.5in PM6 Hot-Plug 1 DWPD"},null,null,1,{"$f":"VLOOKUP(L93,Tabella_prezzi!$A$2:$L$91,9,FALSE)","v":"3.84TB SSD SAS ISE RI 12Gbps 512e 2.5in PM6 Hot-Plug 1 DWPD"},{"$f":"VLOOKUP(L93,Tabella_prezzi!$A$2:$L$91,3,FALSE)","v":"OpzSSD-RI3,8TB"},{"$f":"VLOOKUP(L93,Tabella_prezzi!$A$2:$L$91,4,FALSE)","v":944.35},null,"L6N13",{"$f":"VLOOKUP(L93,Tabella_prezzi!$A$2:$L$91,6,FALSE)","v":"TS4L6-SSD-RI3,8TB"}]
[{"$f":"VLOOKUP(L94,Tabella_prezzi!$A$2:$L$91,8,FALSE)","v":"1.92TB SSD SAS ISE RI 12Gbps"},"Hard Drives",null,{"$f":"VLOOKUP(L94,Tabella_prezzi!$A$2:$L$91,9,FALSE)","v":"1.92TB SSD SAS ISE RI 12Gbps 512e 2.5in Hot-Plug 1 DWP"},null,null,1,{"$f":"VLOOKUP(L94,Tabella_prezzi!$A$2:$L$91,9,FALSE)","v":"1.92TB SSD SAS ISE RI 12Gbps 512e 2.5in Hot-Plug 1 DWP"},{"$f":"VLOOKUP(L94,Tabella_prezzi!$A$2:$L$91,3,FALSE)","v":"OpzSSD-RI1,6TB"},{"$f":"VLOOKUP(L94,Tabella_prezzi!$A$2:$L$91,4,FALSE)","v":445.41},null,"L6N14",{"$f":"VLOOKUP(L94,Tabella_prezzi!$A$2:$L$91,6,FALSE)","v":"TS4L6-SSD-RI1,6TB"}]
[{"$f":"VLOOKUP(L95,Tabella_prezzi!$A$2:$L$91,8,FALSE)","v":"1.6TB SSD SAS ISE MU 12Gbps"},"Hard Drives",null,{"$f":"VLOOKUP(L95,Tabella_prezzi!$A$2:$L$91,9,FALSE)","v":"1.6TB SSD SAS ISE MU 12Gbps 512e 2.5in Hot-Plug PM6 3 DWPD"},null,null,1,{"$f":"VLOOKUP(L95,Tabella_prezzi!$A$2:$L$91,9,FALSE)","v":"1.6TB SSD SAS ISE MU 12Gbps 512e 2.5in Hot-Plug PM6 3 DWPD"},{"$f":"VLOOKUP(L95,Tabella_prezzi!$A$2:$L$91,3,FALSE)","v":"OpzSSD-MU1,6TB"},{"$f":"VLOOKUP(L95,Tabella_prezzi!$A$2:$L$91,4,FALSE)","v":442.13},null,"L6N15",{"$f":"VLOOKUP(L95,Tabella_prezzi!$A$2:$L$91,6,FALSE)","v":"TS4L6-SSD-MU1,6TB"}]
[{"$f":"VLOOKUP(L96,Tabella_prezzi!$A$2:$L$91,8,FALSE)","v":"960GB SSD SAS ISE RI 12Gbps"},"Hard Drives",null,{"$f":"VLOOKUP(L96,Tabella_prezzi!$A$2:$L$91,9,FALSE)","v":"960GB SSD SAS ISE RI 12Gbps 512e 2.5in Hot-Plug 1 DWPD"},null,null,1,{"$f":"VLOOKUP(L96,Tabella_prezzi!$A$2:$L$91,9,FALSE)","v":"960GB SSD SAS ISE RI 12Gbps 512e 2.5in Hot-Plug 1 DWPD"},{"$f":"VLOOKUP(L96,Tabella_prezzi!$A$2:$L$91,3,FALSE)","v":"OpzSSD-RI800GB"},{"$f":"VLOOKUP(L96,Tabella_prezzi!$A$2:$L$91,4,FALSE)","v":265.13},null,"L6N16",{"$f":"VLOOKUP(L96,Tabella_prezzi!$A$2:$L$91,6,FALSE)","v":"TS4L6-SSD-RI800GB"}]
[{"$f":"VLOOKUP(L97,Tabella_prezzi!$A$2:$L$91,8,FALSE)","v":"800GB SSD SAS ISE Mix Use 12Gbps"},"Hard Drives",null,{"$f":"VLOOKUP(L97,Tabella_prezzi!$A$2:$L$91,9,FALSE)","v":"800GB SSD SAS ISE Mix Use 12Gbps 512e 2.5in Hot-plug, 3 DWPD"},null,null,1,{"$f":"VLOOKUP(L97,Tabella_prezzi!$A$2:$L$91,9,FALSE)","v":"800GB SSD SAS ISE Mix Use 12Gbps 512e 2.5in Hot-plug, 3 DWPD"},{"$f":"VLOOKUP(L97,Tabella_prezzi!$A$2:$L$91,3,FALSE)","v":"OpzSSD-MU800GB"},{"$f":"VLOOKUP(L97,Tabella_prezzi!$A$2:$L$91,4,FALSE)","v":275.73},null,"L6N17",{"$f":"VLOOKUP(L97,Tabella_prezzi!$A$2:$L$91,6,FALSE)","v":"TS4L6-SSD-MU800GB"}]
[{"$f":"VLOOKUP(L98,Tabella_prezzi!$A$2:$L$91,8,FALSE)","v":"1.6TB Enterprise NVMe Mixed Use Drive U.2"},"Hard Drives",null,{"$f":"VLOOKUP(L98,Tabella_prezzi!$A$2:$L$91,9,FALSE)","v":"1.6TB, Enterprise, NVMe, Mixed Use Drive, U.2, Gen4 with carrier"},null,null,1,{"$f":"VLOOKUP(L98,Tabella_prezzi!$A$2:$L$91,9,FALSE)","v":"1.6TB, Enterprise, NVMe, Mixed Use Drive, U.2, Gen4 with carrier"},{"$f":"VLOOKUP(L98,Tabella_prezzi!$A$2:$L$91,3,FALSE)","v":"OpzNVME1,6TB"},{"$f":"VLOOKUP(L98,Tabella_prezzi!$A$2:$L$91,4,FALSE)","v":566.61},null,"L6N18",{"$f":"VLOOKUP(L98,Tabella_prezzi!$A$2:$L$91,6,FALSE)","v":"TS4L6-NVME1,6TB"}]
[{"$f":"VLOOKUP(L99,Tabella_prezzi!$A$2:$L$91,8,FALSE)","v":"7.68TB SSD RI SAS ISE 12Gbps"},"Hard Drives",null,{"$f":"VLOOKUP(L99,Tabella_prezzi!$A$2:$L$91,9,FALSE)","v":"7.68TB SSD RI SAS ISE 12Gbps 512e 2.5in PM1643a Hot-Plug 1 DWPD"},null,null,1,{"$f":"VLOOKUP(L99,Tabella_prezzi!$A$2:$L$91,9,FALSE)","v":"7.68TB SSD RI SAS ISE 12Gbps 512e 2.5in PM1643a Hot-Plug 1 DWPD"},{"$f":"VLOOKUP(L99,Tabella_prezzi!$A$2:$L$91,3,FALSE)","v":"OpzSSD7,68"},{"$f":"VLOOKUP(L99,Tabella_prezzi!$A$2:$L$91,4,FALSE)","v":2844.45},null,"L6N32",{"$f":"VLOOKUP(L99,Tabella_prezzi!$A$2:$L$91,6,FALSE)","v":"TS4L6-SSD7.68RI"}]
[{"$f":"VLOOKUP(L100,Tabella_prezzi!$A$2:$L$91,8,FALSE)","v":"3.2TB, Enterprise, NVMe, Mixed Use"},"Hard Drives",null,{"$f":"VLOOKUP(L100,Tabella_prezzi!$A$2:$L$91,9,FALSE)","v":"3.2TB, Enterprise, NVMe, Mixed Use, U2, G4, P5600 with carrier"},null,null,1,{"$f":"VLOOKUP(L100,Tabella_prezzi!$A$2:$L$91,9,FALSE)","v":"3.2TB, Enterprise, NVMe, Mixed Use, U2, G4, P5600 with carrier"},{"$f":"VLOOKUP(L100,Tabella_prezzi!$A$2:$L$91,3,FALSE)","v":"OpzNVMe3,2"},{"$f":"VLOOKUP(L100,Tabella_prezzi!$A$2:$L$91,4,FALSE)","v":1578.15},null,"L6N33",{"$f":"VLOOKUP(L100,Tabella_prezzi!$A$2:$L$91,6,FALSE)","v":"TS4L6-NVMe3.2MU"}]
[{"$f":"VLOOKUP(L101,Tabella_prezzi!$A$2:$L$91,8,FALSE)","v":"1.92TB, Enterprise, NVMe, Read Intensive"},"Hard Drives",null,{"$f":"VLOOKUP(L101,Tabella_prezzi!$A$2:$L$91,9,FALSE)","v":"1.92TB, Enterprise, NVMe, Read Intensive, U2, G4, P5500"},null,null,1,{"$f":"VLOOKUP(L101,Tabella_prezzi!$A$2:$L$91,9,FALSE)","v":"1.92TB, Enterprise, NVMe, Read Intensive, U2, G4, P5500"},{"$f":"VLOOKUP(L101,Tabella_prezzi!$A$2:$L$91,3,FALSE)","v":"OpzNVMe1,92"},{"$f":"VLOOKUP(L101,Tabella_prezzi!$A$2:$L$91,4,FALSE)","v":938.25},null,"L6N34",{"$f":"VLOOKUP(L101,Tabella_prezzi!$A$2:$L$91,6,FALSE)","v":"TS4L6-NVMe1.92RI"}]
[{"$f":"VLOOKUP(L102,Tabella_prezzi!$A$2:$L$91,8,FALSE)","v":"3.84TB, Enterprise, NVMe, Read Intensive"},"Hard Drives",null,{"$f":"VLOOKUP(L102,Tabella_prezzi!$A$2:$L$91,9,FALSE)","v":"3.84TB, Enterprise, NVMe, Read Intensive, U2, G4, P5500"},null,null,1,{"$f":"VLOOKUP(L102,Tabella_prezzi!$A$2:$L$91,9,FALSE)","v":"3.84TB, Enterprise, NVMe, Read Intensive, U2, G4, P5500"},{"$f":"VLOOKUP(L102,Tabella_prezzi!$A$2:$L$91,3,FALSE)","v":"OpzNVMe3,84"},{"$f":"VLOOKUP(L102,Tabella_prezzi!$A$2:$L$91,4,FALSE)","v":1576.8},null,"L6N35",{"$f":"VLOOKUP(L102,Tabella_prezzi!$A$2:$L$91,6,FALSE)","v":"TS4L6-NVMe3.84RI"}]
[]
["TS4L6_PSU"]
["Dual, Hot-plug, Redundant Power Supply (1+1), 750W","Power Supply",null,"Dual, Hot-plug, Redundant Power Supply (1+1), 750W",null,null,{"$f":"\"\"","v":""},null,{"$f":"\"\"","v":""},null,null,{"$f":"\"\"","v":""},{"$f":"\"\"","v":""}]
["Dual, Hot-plug Power Supply (1+1), 1400W","Power Supply",null,{"$f":"VLOOKUP(L106,Tabella_prezzi!$A$2:$L$91,8,FALSE)","v":"Dual, Hot-plug Power Supply (1+1), 1400W in sostituzione di quelli in configurazione BASE"},null,null,1,{"$f":"VLOOKUP(L106,Tabella_prezzi!$A$2:$L$91,9,FALSE)","v":"Dual, Hot-plug Power Supply (1+1), 1400W in sostituzione di quelli in configurazione BASE"},{"$f":"VLOOKUP(L106,Tabella_prezzi!$A$2:$L$91,3,FALSE)","v":"OpzPSU1400W"},null,{"$f":"VLOOKUP(L106,Tabella_prezzi!$A$2:$L$91,4,FALSE)","v":0},"L6N49",{"$f":"VLOOKUP(L106,Tabella_prezzi!$A$2:$L$91,6,FALSE)","v":"TS4L6-PSU1400W"}]
["Dual, Hot-plug Power Supply (1+1), 2000W","Power Supply",null,{"$f":"VLOOKUP(L107,Tabella_prezzi!$A$2:$L$91,8,FALSE)","v":"SFP+ SR Optic for all SFP+ ports except high temp validation warning cards"},null,null,1,{"$f":"VLOOKUP(L107,Tabella_prezzi!$A$2:$L$91,9,FALSE)","v":"SFP+ SR Optic for all SFP+ ports except high temp validation warning cards"},{"$f":"VLOOKUP(L107,Tabella_prezzi!$A$2:$L$91,3,FALSE)","v":"OpzSFP+"},null,{"$f":"VLOOKUP(L107,Tabella_prezzi!$A$2:$L$91,4,FALSE)","v":17.55},"L6N50",{"$f":"VLOOKUP(L107,Tabella_prezzi!$A$2:$L$91,6,FALSE)","v":"TS4L6-OT10GB"}]
[]
["TS4L6_AddCPU",null,null,null,null,null,null,null,null,null,{"$f":"\"\"","v":""}]
[{"$f":"\"\"","v":""},{"$f":"\"\"","v":""},{"$f":"\"\"","v":""},{"$f":"\"\"","v":""},{"$f":"\"\"","v":""},{"$f":"\"\"","v":""},{"$f":"\"\"","v":""},{"$f":"\"\"","v":""},{"$f":"\"\"","v":""},{"$f":"\"\"","v":""},{"$f":"\"\"","v":""}]
["Aggiungere Secondo Processore",{"$f":"\"\"","v":""},{"$f":"\"\"","v":""},{"$f":"\"\"","v":""},{"$f":"\"\"","v":""},{"$f":"\"\"","v":""},{"$f":"\"\"","v":""},{"$f":"\"\"","v":""},{"$f":"\"\"","v":""},{"$f":"\"\"","v":""},0,{"$f":"\"\"","v":""},{"$f":"\"\"","v":""}]
[]
["TS4L6_CTRL"]
[null,null,null,null,null,null,{"$f":"\"\"","v":""},null,{"$f":"\"\"","v":""},null,null,{"$f":"\"\"","v":""},{"$f":"\"\"","v":""}]
[{"$f":"D115","v":"PERC H740P RAID Controller, 8Gb NV Cache, Adapter, Full Height"},{"$f":"D115","v":"PERC H740P RAID Controller, 8Gb NV Cache, Adapter, Full Height"},null,{"$f":"VLOOKUP(L115,Tabella_prezzi!$A$2:$L$91,9,FALSE)","v":"PERC H740P RAID Controller, 8Gb NV Cache, Adapter, Full Height"},null,null,{"$f":"\"\"","v":""},{"$f":"VLOOKUP(L115,Tabella_prezzi!$A$2:$L$91,9,FALSE)","v":"PERC H740P RAID Controller, 8Gb NV Cache, Adapter, Full Height"},{"$f":"\"\"","v":""},null,null,"L6N44",{"$f":"\"\"","v":""}]
[{"$f":"D116","v":"HBA330+ Adapter FH for R940"},{"$f":"D116","v":"HBA330+ Adapter FH for R940"},null,{"$f":"VLOOKUP(L116,Tabella_prezzi!$A$2:$L$91,9,FALSE)","v":"HBA330+ Adapter FH for R940"},null,null,1,{"$f":"VLOOKUP(L116,Tabella_prezzi!$A$2:$L$91,9,FALSE)","v":"HBA330+ Adapter FH for R940"},{"$f":"\"\"","v":""},null,{"$f":"VLOOKUP(L116,Tabella_prezzi!$A$2:$L$91,4,FALSE)","v":0},"L6N53",{"$f":"VLOOKUP(L116,Tabella_prezzi!$A$2:$L$91,6,FALSE)","v":"TS4L6-HBA"}]
[]
["TS4L6_ISDM"]
["No Boss card",null,null,null,null,null,{"$f":"\"\"","v":""},null,{"$f":"\"\"","v":""},null,null,{"$f":"\"\"","v":""},{"$f":"\"\"","v":""}]
["Opzioni 20%",null,null,null,null,null,"Selezionare BOSS card",null,{"$f":"\"\"","v":""},null,null,{"$f":"\"\"","v":""},{"$f":"\"\"","v":""}]
["BOSS controller card + with 2 M.2 Sticks 480GB (RAID 1),FH",null,null,{"$f":"VLOOKUP(L121,Tabella_Prezzi,8,FALSE)","v":"BOSS controller card + with 2 M.2 Sticks 480GB (RAID 1),FH"},null,null,1,{"$f":"VLOOKUP(L121,Tabella_prezzi!$A$2:$L$91,9,FALSE)","v":"BOSS controller card + with 2 M.2 Sticks 480GB (RAID 1),FH"},{"$f":"VLOOKUP(L121,Tabella_prezzi!$A$2:$L$91,3,FALSE)","v":"OpzBOSS"},null,{"$f":"VLOOKUP(L121,Tabella_prezzi!$A$2:$L$91,4,FALSE)","v":0},"L6N42",{"$f":"VLOOKUP(L121,Tabella_prezzi!$A$2:$L$91,6,FALSE)","v":"TS4L6-OpzBOSS"}]
[]
["TS4L6_OME"]
["No OMEA",null,null,null,null,null,{"$f":"\"\"","v":""},null,{"$f":"\"\"","v":""},null,null,{"$f":"\"\"","v":""},{"$f":"\"\"","v":""}]
["[TS4L6-OMEA] OpenManage Enterprise Advanced","OpenManage Enterprise Advanced","TS4L6-OMEA","OpenManage Enterprise Advanced",null,null,1,{"$f":"VLOOKUP(L125,Tabella_prezzi!$A$2:$L$91,9,FALSE)","v":{"$error":"#N/A"}},{"$f":"VLOOKUP(L125,Tabella_prezzi!$A$2:$L$91,3,FALSE)","v":{"$error":"#N/A"}},null,{"$f":"VLOOKUP(L125,Tabella_prezzi!$A$2:$L$91,4,FALSE)","v":{"$error":"#N/A"}},"L6N96",{"$f":"VLOOKUP(L125,Tabella_prezzi!$A$2:$L$91,6,FALSE)","v":{"$error":"#N/A"}}]
[]
["TS4L6_WARRANTY"]
["Manutenzione in garanzia (36 mesi)","Dell Services: Extended Service",null,"RESTRICTED:ProSupport One Data Center and Next Business Day Onsite Service Volume Low, 39 Month(s)",null,null,{"$f":"\"\"","v":""},null,{"$f":"\"\"","v":""},null,null,{"$f":"\"\"","v":""},{"$f":"\"\"","v":""}]
[{"$f":"D129","v":"Estensione della manutenzione in garanzia per ulteriori 24 mesi"},"Dell Services: Extended Service",null,{"$f":"VLOOKUP(L129,Tabella_prezzi!$A$2:$L$91,8,FALSE)","v":"Estensione della manutenzione in garanzia per ulteriori 24 mesi"},null,null,1,{"$f":"VLOOKUP(L129,Tabella_prezzi!$A$2:$L$286,9,FALSE)","v":"Estensione della manutenzione in garanzia per ulteriori 24 mesi"},{"$f":"VLOOKUP(L129,Tabella_prezzi!$A$2:$L$286,3,FALSE)","v":"OpzEstensione24"},{"$f":"VLOOKUP(L129,Tabella_prezzi!$A$2:$L$286,4,FALSE)","v":522.78},null,"L6N30",{"$f":"VLOOKUP(L129,Tabella_prezzi!$A$2:$L$91,6,FALSE)","v":"TS4L6-OpzEst24"}]
[]
["TS4L6_HDDRET"]
[{"$f":"\"\"","v":""},{"$f":"\"\"","v":""},{"$f":"\"\"","v":""},{"$f":"\"\"","v":""},{"$f":"\"\"","v":""},{"$f":"\"\"","v":""},{"$f":"\"\"","v":""},{"$f":"\"\"","v":""},{"$f":"\"\"","v":""},{"$f":"\"\"","v":""},{"$f":"\"\"","v":""},{"$f":"\"\"","v":""},{"$f":"\"\"","v":""}]
[{"$f":"D133","v":"Hard Disk Retention 36 mesi"},"Dell Services: Extended Service",null,{"$f":"Tabella_prezzi!H51","v":"Hard Disk Retention 36 mesi"},null,null,1,{"$f":"VLOOKUP(L133,Tabella_prezzi!$A$2:$L$286,9,FALSE)","v":"Hard Disk Retention 36 mesi"},{"$f":"VLOOKUP(L133,Tabella_prezzi!$A$2:$L$286,3,FALSE)","v":"OpzHDDRetention"},{"$f":"VLOOKUP(L133,Tabella_prezzi!$A$2:$L$286,4,FALSE)","v":31.82},null,"L6N29",{"$f":"VLOOKUP(L133,Tabella_prezzi!$A$2:$L$91,6,FALSE)","v":"TS4L6-HDRTN36"}]
[{"$f":"D134","v":"Hard Disk Retention 60 mesi"},"Dell Services: Extended Service",null,{"$f":"VLOOKUP(L134,Tabella_prezzi!$A$2:$L$91,8,FALSE)","v":"Hard Disk Retention 60 mesi"},null,null,1,{"$f":"VLOOKUP(L134,Tabella_prezzi!$A$2:$L$286,9,FALSE)","v":"Hard Disk Retention 60 mesi"},{"$f":"VLOOKUP(L134,Tabella_prezzi!$A$2:$L$286,3,FALSE)","v":"OpzHDDRetention"},{"$f":"VLOOKUP(L134,Tabella_prezzi!$A$2:$L$286,4,FALSE)","v":52.82},null,"L6N29b",{"$f":"VLOOKUP(L134,Tabella_prezzi!$A$2:$L$91,6,FALSE)","v":"TS4L6-HDRTN60"}]
["TS44_KYHDD"]
[{"$f":"D136","v":"Dispositivo UPS di tipo On-line doppia conversione, strutturato per il montaggio a rack da 19”"},null,null,{"$f":"VLOOKUP(L136,Tabella_prezzi!$A$2:$L$91,8,FALSE)","v":"Dispositivo UPS di tipo On-line doppia conversione, strutturato per il montaggio a rack da 19”"},null,null,1,{"$f":"VLOOKUP(L136,Tabella_prezzi!$A$2:$L$91,9,FALSE)","v":"Dispositivo UPS di tipo On-line doppia conversione, strutturato per il montaggio a rack da 19”"},{"$f":"VLOOKUP(L136,Tabella_prezzi!$A$2:$L$91,3,FALSE)","v":"OpzUps (3000VA)"},{"$f":"VLOOKUP(L136,Tabella_prezzi!$A$2:$L$91,4,FALSE)","v":386.02},null,"L6N19",{"$f":"VLOOKUP(L136,Tabella_prezzi!$A$2:$L$91,6,FALSE)","v":"TS4L6-UPS"}]
[{"$f":"D137","v":"Unità KVM - monitor 17\", cavo combi PS/2&USB da 1,8mt, tastiera italiana, touch pad"},null,null,{"$f":"VLOOKUP(L137,Tabella_prezzi!$A$2:$L$91,9,FALSE)","v":"Unità KVM - monitor 17\", cavo combi PS/2&USB da 1,8mt, tastiera italiana, touch pad"},null,null,1,{"$f":"VLOOKUP(L137,Tabella_prezzi!$A$2:$L$91,9,FALSE)","v":"Unità KVM - monitor 17\", cavo combi PS/2&USB da 1,8mt, tastiera italiana, touch pad"},{"$f":"VLOOKUP(L137,Tabella_prezzi!$A$2:$L$91,3,FALSE)","v":"OpzGUI"},{"$f":"VLOOKUP(L137,Tabella_prezzi!$A$2:$L$91,4,FALSE)","v":491.62},null,"L6N20",{"$f":"VLOOKUP(L137,Tabella_prezzi!$A$2:$L$91,6,FALSE)","v":"TS4L6-GUI"}]
[{"$f":"D138","v":"KVM Switch IP per GUI 16P"},null,null,{"$f":"VLOOKUP(L138,Tabella_prezzi!$A$2:$L$91,9,FALSE)","v":"KVM Switch IP per GUI 16P"},null,null,1,{"$f":"VLOOKUP(L138,Tabella_prezzi!$A$2:$L$91,9,FALSE)","v":"KVM Switch IP per GUI 16P"},{"$f":"VLOOKUP(L138,Tabella_prezzi!$A$2:$L$91,3,FALSE)","v":"OpzKVM"},{"$f":"VLOOKUP(L138,Tabella_prezzi!$A$2:$L$91,4,FALSE)","v":552.47},null,"L6N21",{"$f":"VLOOKUP(L138,Tabella_prezzi!$A$2:$L$91,6,FALSE)","v":"TS4L6-KVM"}]
["1-pack of Windows Server 2019/2016 Device CALs (STD or DC)",null,null,{"$f":"VLOOKUP(L139,Tabella_prezzi!$A$2:$L$91,9,FALSE)","v":"1-pack of Windows Server 2022/2019 Device CALs (STD or DC)"},null,null,1,{"$f":"VLOOKUP(L139,Tabella_prezzi!$A$2:$L$91,9,FALSE)","v":"1-pack of Windows Server 2022/2019 Device CALs (STD or DC)"},{"$f":"VLOOKUP(L139,Tabella_prezzi!$A$2:$L$91,3,FALSE)","v":"OpzDeviceCal"},{"$f":"VLOOKUP(L139,Tabella_prezzi!$A$2:$L$91,4,FALSE)","v":25.45},null,"L6N23",{"$f":"VLOOKUP(L139,Tabella_prezzi!$A$2:$L$91,6,FALSE)","v":"TS4L6-WINDEVCAL"}]
["1-pack of Windows Server 2019/2016 User CALs (STD or DC)",null,null,{"$f":"VLOOKUP(L140,Tabella_prezzi!$A$2:$L$91,9,FALSE)","v":"1-pack of Windows Server 2022/2019 User CALs (STD or DC)"},null,null,1,{"$f":"VLOOKUP(L140,Tabella_prezzi!$A$2:$L$91,9,FALSE)","v":"1-pack of Windows Server 2022/2019 User CALs (STD or DC)"},{"$f":"VLOOKUP(L140,Tabella_prezzi!$A$2:$L$91,3,FALSE)","v":"OpzUserCal"},{"$f":"VLOOKUP(L140,Tabella_prezzi!$A$2:$L$91,4,FALSE)","v":35},null,"L6N24",{"$f":"VLOOKUP(L140,Tabella_prezzi!$A$2:$L$91,6,FALSE)","v":"TS4L6-WINUSRCAL"}]
["Armadio Rack 42U",null,null,{"$f":"VLOOKUP(L141,Tabella_prezzi!$A$2:$L$91,9,FALSE)","v":"Armadio Rack 42U"},null,null,1,{"$f":"VLOOKUP(L141,Tabella_prezzi!$A$2:$L$91,9,FALSE)","v":"Armadio Rack 42U"},{"$f":"VLOOKUP(L141,Tabella_prezzi!$A$2:$L$91,3,FALSE)","v":"OpzRack"},{"$f":"VLOOKUP(L141,Tabella_prezzi!$A$2:$L$91,4,FALSE)","v":579.63},null,"L6N31",{"$f":"VLOOKUP(L141,Tabella_prezzi!$A$2:$L$91,6,FALSE)","v":"TS4L6-RACK"}]
[]
["TS4L2_PCI_A"]
[{"$f":"\"\"","v":""},{"$f":"\"\"","v":""},{"$f":"\"\"","v":""},{"$f":"\"\"","v":""},{"$f":"\"\"","v":""},{"$f":"\"\"","v":""},{"$f":"\"\"","v":""},{"$f":"\"\"","v":""},{"$f":"\"\"","v":""},{"$f":"\"\"","v":""},{"$f":"\"\"","v":""},{"$f":"\"\"","v":""},{"$f":"\"\"","v":""}]
[{"$f":"D145","v":"Broadcom 5720 DP 1Gb Network Interface Card,Full Height"},null,null,{"$f":"VLOOKUP(L145,Tabella_Prezzi,9,FALSE)","v":"Broadcom 5720 DP 1Gb Network Interface Card,Full Height"},null,"540-BBCX",1,{"$f":"VLOOKUP(L145,Tabella_Prezzi,9,FALSE)","v":"Broadcom 5720 DP 1Gb Network Interface Card,Full Height"},{"$f":"VLOOKUP(L145,Tabella_Prezzi,3,FALSE)","v":"OpzGigabit"},{"$f":"VLOOKUP(L145,Tabella_Prezzi,4,FALSE)","v":27.27},null,"L6N05",{"$f":"VLOOKUP(L145,Tabella_Prezzi,6,FALSE)","v":"TS4L6-LAN1"}]
["Broadcom 57412 Dual Port 10Gb, SFP+, PCIe Adapter, Full Height + Optics",null,null,"Broadcom 57412 Dual Port 10Gb, SFP+, PCIe Adapter, Full Height + Optics",null,"540-BBCX",1,"Broadcom 57412 Dual Port 10Gb, SFP+, PCIe Adapter, Full Height + Optics","OpzGigabit10Gbps",149.99,null,"L6N06","TS4L6-LAN10"]
["Intel Ethernet XXV710 Dual Port 10/25GbE SFP28 Adapter, PCIe Full Height + Optics",null,null,"Intel Ethernet XXV710 Dual Port 10/25GbE SFP28 Adapter, PCIe Full Height + Optics",null,"540-BBCX",1,"Intel Ethernet XXV710 Dual Port 10/25GbE SFP28 Adapter, PCIe Full Height + Optics","OpzGigabit25Gbps",233.31,null,"L6N07","TS4L6-LAN25"]
["CNA QLogic 41262 Dual Port 10Gb SFP28 Adapter, Full Height +10 Gbps Optics",null,null,"CNA QLogic 41262 Dual Port 10Gb SFP28 Adapter, Full Height +10 Gbps Optics",null,"540-BBCX",1,"CNA QLogic 41262 Dual Port 10Gb SFP28 Adapter, Full Height +10 Gbps Optics","OpzGigabit10Gbps CNA",143.16999999999999,null,"L6N08","TS4L6-CNA10"]
["Intel X710-T2L Dual Port 10GbE BASE-T Adapter, PCIe Full Height",null,null,"Intel X710-T2L Dual Port 10GbE BASE-T Adapter, PCIe Full Height",null,"540-BBCX",1,"Intel X710-T2L Dual Port 10GbE BASE-T Adapter, PCIe Full Height","Opz10Gigabit BaseT",137.87,null,"L6N09","TS4L6-BaseT"]
["QLogic 2772 Dual Port 32Gb Fibre Channel HBA, PCIe Full Height + Optics",null,null,"QLogic 2772 Dual Port 32Gb Fibre Channel HBA, PCIe Full Height + Optics",null,"540-BBCX",1,"QLogic 2772 Dual Port 32Gb Fibre Channel HBA, PCIe Full Height + Optics","OpzFibreChannel",414.1,null,"L6N10","TS4L6- FibreChannel"]
[]
["Opzioni 20 %"]
[{"$f":"\"\"","v":""}]
[{"$f":"D154","v":"Intel X710 Quad Port 10Gb Direct Attach, SFP+, PCIe Full height"},null,null,{"$f":"VLOOKUP(L154,Tabella_Prezzi,9,FALSE)","v":"Intel X710 Quad Port 10Gb Direct Attach, SFP+, PCIe Full height"},null,null,1,{"$f":"VLOOKUP(L154,Tabella_Prezzi,9,FALSE)","v":"Intel X710 Quad Port 10Gb Direct Attach, SFP+, PCIe Full height"},{"$f":"VLOOKUP(L154,Tabella_Prezzi,3,FALSE)","v":"Opz10GBQP"},null,{"$f":"VLOOKUP(L154,Tabella_Prezzi,4,FALSE)","v":541.35},"L6N36",{"$f":"VLOOKUP(L154,Tabella_Prezzi,6,FALSE)","v":"TS4L6-10GBs-INTQP"}]
["Broadcom 57508 Dual Port 100GbE QSFP Adapter, PCIe Full Height",null,null,"Broadcom 57508 Dual Port 100GbE QSFP Adapter, PCIe Full Height",null,null,1,"Broadcom 57508 Dual Port 100GbE QSFP Adapter, PCIe Full Height","Opz100GB",null,683.1,"L6N39","TS4L6-100GBs-B"]
["Intel E810 Dual Port 100GbE QSFP28 Adapter, PCIe Full Height, 100GbE max bandwidth",null,null,"Intel E810 Dual Port 100GbE QSFP28 Adapter, PCIe Full Height, 100GbE max bandwidth",null,null,1,"Intel E810 Dual Port 100GbE QSFP28 Adapter, PCIe Full Height, 100GbE max bandwidth","Opz100GB_I",null,711.45,"L6N40","TS4L6-100GBs-INT"]
["ROCK Port 100Gbs (include scheda pci, cavo, patch panel e manutenzione)",null,null,"ROCK Port 100Gbs (include scheda pci, cavo, patch panel e manutenzione)",null,null,1,"ROCK Port 100Gbs (include scheda pci, cavo, patch panel e manutenzione)","OpzRock",null,3780,"L6N116","TS4L6-ROCK"]
["Mellanox ConnectX-6 Single Port HDR100 QSFP56 Infiniband Adapter, PCIe Full Height",null,null,{"$f":"VLOOKUP(L158,Tabella_Prezzi,9,FALSE)","v":"Mellanox ConnectX-6 Single Port HDR100 QSFP56 Infiniband Adapter, PCIe Full Height"},null,null,1,{"$f":"VLOOKUP(L158,Tabella_Prezzi,9,FALSE)","v":"Mellanox ConnectX-6 Single Port HDR100 QSFP56 Infiniband Adapter, PCIe Full Height"},{"$f":"VLOOKUP(L158,Tabella_Prezzi,3,FALSE)","v":"Opz100GB_M"},null,1017.9,"L6N41",{"$f":"VLOOKUP(L158,Tabella_Prezzi,6,FALSE)","v":"TS4L6-100GBs-INF"}]
["Riservato Boss Card",{"$f":"\"\"","v":""},{"$f":"\"\"","v":""},{"$f":"\"\"","v":""},{"$f":"\"\"","v":""},{"$f":"\"\"","v":""},{"$f":"\"\"","v":""},{"$f":"\"\"","v":""},{"$f":"\"\"","v":""},0,0,{"$f":"\"\"","v":""},{"$f":"\"\"","v":""}]
[]
["Non utilizzabile in Configurazione 2CPU"]
[{"$f":"\"\"","v":""}]
["Non utilizzabile in Configurazione 4CPU"]
["TS4L6_SFP"]
[{"$f":"D165","v":"SFP+ SR Optic for all SFP+ ports except high temp validation warning cards"},null,null,{"$f":"VLOOKUP(L165,Tabella_Prezzi,9,FALSE)","v":"SFP+ SR Optic for all SFP+ ports except high temp validation warning cards"},null,null,null,{"$f":"VLOOKUP(L165,Tabella_Prezzi,9,FALSE)","v":"SFP+ SR Optic for all SFP+ ports except high temp validation warning cards"},{"$f":"VLOOKUP(L165,Tabella_Prezzi,3,FALSE)","v":"OpzSFP+"},null,{"$f":"VLOOKUP(L165,Tabella_Prezzi,4,FALSE)","v":17.55},"L6N50",{"$f":"VLOOKUP(L165,Tabella_Prezzi,6,FALSE)","v":"TS4L6-OT10GB"}]
[{"$f":"D166","v":"SFP28 SR Optic, 25GbE, 85C, for all SFP28 ports"},null,null,{"$f":"VLOOKUP(L166,Tabella_Prezzi,9,FALSE)","v":"SFP28 SR Optic, 25GbE, 85C, for all SFP28 ports"},null,null,null,{"$f":"VLOOKUP(L166,Tabella_Prezzi,9,FALSE)","v":"SFP28 SR Optic, 25GbE, 85C, for all SFP28 ports"},{"$f":"VLOOKUP(L166,Tabella_Prezzi,3,FALSE)","v":"OpzSFP25"},null,{"$f":"VLOOKUP(L166,Tabella_Prezzi,4,FALSE)","v":112.05},"L6N51",{"$f":"VLOOKUP(L166,Tabella_Prezzi,6,FALSE)","v":"TS4L6-OT25GB"}]
["Dell EMC PowerEdge QSFP28 SR4 100GbE 85C optic",null,null,"Dell EMC PowerEdge QSFP28 SR4 100GbE 85C optic",null,null,null,"Dell EMC PowerEdge QSFP28 SR4 100GbE 85C optic","OpzSFP100",null,{"$f":"VLOOKUP(L167,Tabella_Prezzi,4,FALSE)","v":484.65},"L6N52","TS4L6-OT100GB"]
[]
[]
[]
["TS4L6_CMA"]
[]
[{"$f":"D173","v":{"$error":"#N/A"}},null,null,{"$f":"VLOOKUP(L173,Tabella_Prezzi,9,FALSE)","v":{"$error":"#N/A"}},null,null,null,{"$f":"VLOOKUP(L173,Tabella_Prezzi,9,FALSE)","v":{"$error":"#N/A"}},{"$f":"VLOOKUP(L173,Tabella_Prezzi,3,FALSE)","v":{"$error":"#N/A"}},null,{"$f":"VLOOKUP(L173,Tabella_Prezzi,4,FALSE)","v":{"$error":"#N/A"}},"L6N54",{"$f":"VLOOKUP(L173,Tabella_Prezzi,6,FALSE)","v":{"$error":"#N/A"}}]
[]
["TS4L6_20%"]
[]
[{"$f":"D177","v":"Rack 42RU DellEmc"},null,null,{"$f":"VLOOKUP(L177,Tabella_Prezzi,9,FALSE)","v":"Rack 42RU DellEmc"},null,null,null,{"$f":"VLOOKUP(L177,Tabella_Prezzi,9,FALSE)","v":"Rack 42RU DellEmc"},{"$f":"VLOOKUP(L177,Tabella_Prezzi,3,FALSE)","v":"OpzRackD"},null,{"$f":"VLOOKUP(L177,Tabella_Prezzi,4,FALSE)","v":2929.5},"L6N112",{"$f":"VLOOKUP(L177,Tabella_Prezzi,6,FALSE)","v":"TS4L6-RACK-D"}]
["PDU 220 mono output 20-C13 + 4-C19 IEC 320, input C20",null,null,"PDU 220 mono output 20-C13 + 4-C19 IEC 320, input C20",null,null,null,"PDU 220 mono output 20-C13 + 4-C19 IEC 320, input C20","OpzPDUT",null,540,"L6N113","TS4L6-PDU-M"]
[{"$f":"D179","v":"PDU 220 Trifase output 6-C19 e 36-C13, input Spina 3P+T 400V 16A"},null,null,{"$f":"VLOOKUP(L179,Tabella_Prezzi,9,FALSE)","v":"PDU 220 Trifase output 6-C19 e 36-C13, input Spina 3P+T 400V 16A"},null,null,null,{"$f":"VLOOKUP(L179,Tabella_Prezzi,9,FALSE)","v":"PDU 220 Trifase output 6-C19 e 36-C13, input Spina 3P+T 400V 16A"},{"$f":"VLOOKUP(L179,Tabella_Prezzi,3,FALSE)","v":"OpzPDUT"},null,1080,"L6N114",{"$f":"VLOOKUP(L179,Tabella_Prezzi,6,FALSE)","v":"TS4L6-PDU-T"}]
[{"$f":"D180","v":"Dell KVM + Switch 8 porte + cavi "},null,null,{"$f":"VLOOKUP(L180,Tabella_Prezzi,9,FALSE)","v":"Dell KVM + Switch 8 porte + cavi "},null,null,null,{"$f":"VLOOKUP(L180,Tabella_Prezzi,9,FALSE)","v":"Dell KVM + Switch 8 porte + cavi "},{"$f":"VLOOKUP(L180,Tabella_Prezzi,3,FALSE)","v":"OpzKVMD"},null,3300.75,"L6N115",{"$f":"VLOOKUP(L180,Tabella_Prezzi,6,FALSE)","v":"TS4L6-KVM-D"}]
["ROCK Port 100Gbs (include scheda pci, cavo, patch panel e manutenzione)",null,null,"ROCK Port 100Gbs (include scheda pci, cavo, patch panel e manutenzione)",null,null,null,"ROCK Port 100Gbs (include scheda pci, cavo, patch panel e manutenzione)","OpzRock",null,3780,"L6N116","TS4L6-ROCK"]
["Cable Management Arm for PowerEdge Systems",null,null,"Cable Management Arm for PowerEdge Systems",null,null,null,"Cable Management Arm for PowerEdge Systems","OpzCMA",null,54,"L6N117","TS4L6-CMA"]
["Enclosure di espansione JBOD 12 slot 3,5'' + HBA (H840)",null,null,"Enclosure di espansione JBOD 12 slot 3,5'' + HBA (H840)",null,null,null,"Enclosure di espansione JBOD 12 slot 3,5'' + HBA (H840)","OpzJBOD",null,5838.75,"L6N118","TS4L6-JBOD"]
[{"$f":"D184","v":"12TB 7.2K RPM NLSAS ISE 12Gbps 512e 3.5in Hot-plug Hard\nDrive"},null,null,{"$f":"VLOOKUP(L184,Tabella_Prezzi,9,FALSE)","v":"12TB 7.2K RPM NLSAS ISE 12Gbps 512e 3.5in Hot-plug Hard\nDrive"},null,null,null,{"$f":"VLOOKUP(L184,Tabella_Prezzi,9,FALSE)","v":"12TB 7.2K RPM NLSAS ISE 12Gbps 512e 3.5in Hot-plug Hard\nDrive"},{"$f":"VLOOKUP(L184,Tabella_Prezzi,3,FALSE)","v":"Opz12TBNLSAS"},null,405,"L6N119",{"$f":"VLOOKUP(L184,Tabella_Prezzi,6,FALSE)","v":"TS4L6-12TBNLSAS"}]
["16TB Hard Drive SAS ISE 12Gbps 7.2K 512e 3.5in Hot-Plug",null,null,"16TB Hard Drive SAS ISE 12Gbps 7.2K 512e 3.5in Hot-Plug",null,null,null,"16TB Hard Drive SAS ISE 12Gbps 7.2K 512e 3.5in Hot-Plug","Opz16TBSAS",null,438.75,"L6N120","TS4L6-16TBSAS"]
[{"$f":"D186","v":"20TB HDD SAS ISE 12Gbps 7.2K 512e 3.5in Hot-Plug"},null,null,{"$f":"VLOOKUP(L186,Tabella_Prezzi,9,FALSE)","v":"20TB HDD SAS ISE 12Gbps 7.2K 512e 3.5in Hot-Plug"},null,null,null,{"$f":"VLOOKUP(L186,Tabella_Prezzi,9,FALSE)","v":"20TB HDD SAS ISE 12Gbps 7.2K 512e 3.5in Hot-Plug"},{"$f":"VLOOKUP(L186,Tabella_Prezzi,3,FALSE)","v":"Opz20TBSAS"},null,594,"L6N121",{"$f":"VLOOKUP(L186,Tabella_Prezzi,6,FALSE)","v":"TS4L6-20TBSAS"}]
[]
[]
[]
[]
[]
["Aggiungere Terzo e Quarto Processore"]
[0,null,"Riservato per PERC"]
[2]
[4,null,null,"Standard",null,null,"Datacenter"]
[6,null,null,"2CPU","4CPU",null,"2CPU","4CPU"]
["Illimitate",null,null,48,96,null,48,96]
[]
[]
[1,3,null,16,40,null,16,40]
[3,6,null,40,88,null,40,88]
[4,9,null,64,136,null,64,136]
[]
[1]
[2]
[3]
[4]
[5]
[6]
[7]
[8]
[9]
[10]
[11]
[12]
[13]
[14]
[15]
[16]

{"sheet":"Tabella_prezzi","index":8,"n_rows":88,"n_cols":18,"rows_kept":88,"cut":false,"hidden":true,"merged":[[23,12,24,12],[25,12,26,12],[39,12,40,12],[4,12,10,12],[15,12,16,12],[17,12,18,12],[19,12,20,12],[21,12,22,12],[39,10,40,10],[4,0,10,0],[4,1,10,1],[4,3,10,3],[4,4,10,4],[4,5,10,5],[4,9,10,9],[39,8,40,8],[39,6,40,6],[17,4,18,4],[4,2,10,2],[19,5,20,5],[21,5,22,5],[15,4,16,4],[17,5,18,5],[19,4,20,4],[15,0,16,0],[15,1,16,1],[15,2,16,2],[15,3,16,3],[21,0,22,0],[21,1,22,1],[21,2,22,2],[21,3,22,3],[19,0,20,0],[19,1,20,1],[17,0,18,0],[17,1,18,1],[17,2,18,2],[17,3,18,3],[19,2,20,2],[19,3,20,3],[25,4,26,4],[25,5,26,5],[15,9,16,9],[17,9,18,9],[19,9,20,9],[21,9,22,9],[23,9,24,9],[25,9,26,9],[15,5,16,5],[23,4,24,4],[23,5,24,5],[21,4,22,4],[23,2,24,2],[25,0,26,0],[25,1,26,1],[25,2,26,2],[25,3,26,3],[23,0,24,0],[23,1,24,1],[23,3,24,3],[39,9,40,9],[39,5,40,5],[39,0,40,0],[39,1,40,1],[39,4,40,4],[39,2,40,2],[39,3,40,3]]}
["N°",null,"Attributo","Valore inserito","N°","Codice Convenzione","Qty:",null,"Description:","Manufacturer Part","Sku Number:","Brand"]
["L6N01",1,"server\nrackable quad-processore (prestazionale)",5754.51,"L6N01","TS4L6-SRV",1,"PowerEdge R940 Server","PowerEdge R940 Server","L6N01-ServerR940","210-AMTE","DELL","TS4L6-SRV",null,null,null,"210-321-BCPX","-"]
["L6N01-NVMe",1,"server\nrackable quad-processore (prestazionale)",{"$f":"D2*1.02","v":5869.6002000000008},"L6N01","TS4L6-SRV-NVMe",1,"PowerEdge R940 Server-NVMe","PowerEdge R940 Server","L6N01-ServerR940-NVMe","210-AMTE","DELL","TS4L6-SRV-NVME",null,null,null,"210-321-BCPX","-"]
["L6N01-NVMe",1,"server\nrackable quad-processore (prestazionale)",{"$f":"D2*1.02","v":5869.6002000000008},"L6N01","TS4L6-SRV-NVMe",1,"PowerEdge R940 Server-NVMe","PowerEdge R940 Server","L6N01-ServerR940-NVMe","210-AMTE","DELL","TS4L6-SRV-vSAN",null,null,null,"210-321-BCPX","-"]
["L6N02",2,"Kit n. 2 Processori\naggiuntivi",1908.9,"L6N02","TS4L6-CPU",1,"2 x Intel Xeon Gold 6252N, 2.3G, 24C/48T, 10.4GT/s, 35.75M Cache, Turbo, HT (150W) DDR4-2933","2 x Intel Xeon Gold 6252N, 2.3G, 24C/48T, 10.4GT/s, 35.75M Cache, Turbo, HT (150W) DDR4-2933","L6N02-OpzCPU","338-BZSB","DELL","TS4L6-CPU-NVME",null,null,null,"338-BZSB","WX6G7"]
[null,null,null,null,null,null,1,"L Shape Heatsink for 2nd CPU equal to or greater than 180W,PowerEdge R6525/R7525, Customer Install","L Shape Heatsink for 2nd CPU equal to or greater than 180W,PowerEdge R6525/R7525, Customer Install",null,"412-AASW","DELL",null,null,null,null,"412-AASW","4RCGC"]
[null,null,null,null,null,null,1,"PowerEdge R7525 High Performance Fan Customer Kit V3","PowerEdge R7525 High Performance Fan Customer Kit V3",null,"121-BBBI","DELL",null,null,null,null,"121-BBBI","HVVRP"]
[null,null,null,null,null,null,1,"Riser with Two x8(x16 connector) PCIe Gen4 (Slots 4 & 5), Customer Install","Riser with Two x8(x16 connector) PCIe Gen4 (Slots 4 & 5), Customer Install",null,"330-BBTM","DELL",null,null,null,null,"330-BBTM","234T7"]
[null,null,null,null,null,null,1,"Riser 4B, PCIe Gen4 1x16 (x16 connector), Half Length, PowerEdge R7525, CK","Riser 4B, PCIe Gen4 1x16 (x16 connector), Half Length, PowerEdge R7525, CK",null,"330-BBPR","DELL",null,null,null,null,"330-BBPR"]
[null,null,null,null,null,null,1,"Riser 1B, PCIe Gen4 2x8 (x16 connector), Half Length, PowerEdge R7525, CK","Riser 1B, PCIe Gen4 2x8 (x16 connector), Half Length, PowerEdge R7525, CK",null,"330-BBPV","DELL",null,null,null,null,"330-BBPV","R80PP"]
[null,null,null,null,null,null,1,"Riser 2A, PCIe Gen4 2x16 (x16 connector), PowerEdge R7525, CK","Riser 2A, PCIe Gen4 2x16 (x16 connector), PowerEdge R7525, CK",null,"330-BBPO","DELL",null,null,null,null,"330-BBPO"]
["L6N03",3,"OpzRAM32GB",263.64,"L6N03","TS4L6-RAM32",1,"32GB - 2Rx4 DDR4 RDIMM 3200MHz","32GB - 2Rx4 DDR4 RDIMM 3200MHz","L6N03-OpzRAM32GB","AA799087","DELL","TS4L6-RAM32-NVME",null,null,null,"AA79SNP75X1VC/32G","SNP75X1VC/32G"]
["L6N04",4,"OpzRAM64GB",339.36,"L6N04","TS4L6-RAM64",1,"64GB - 2RX4 DDR4 RDIMM 3200MHz","64GB - 2RX4 DDR4 RDIMM 3200MHz","L6N04-OpzRAM64GB","AA799110","DELL","TS4L6-RAM64-NVME",null,null,null,"AA79SNPP2MYXC/64G","SNPP2MYXC/64G"]
["L6N05",5,"OpzGigabit",27.27,"L6N05","TS4L6-LAN1",1,"Broadcom 5720 DP 1Gb Network Interface Card,Full Height","Broadcom 5720 DP 1Gb Network Interface Card,Full Height","L6N05-OpzGigabit","540-BBGX","DELL","TS4L6-LAN1-NVME",1,2,3,"540-XF9VF","XF9VF"]
["L6N75",5,"OpzGigabit",27.27,"L6N05b","TS4L6-LAN1-L",1,"Broadcom 5719 Quad Port 1Gb Network Interface Card, Low Profile ","Broadcom 5719 Quad Port 1Gb Network Interface Card, Low Profile ","L6N75-OpzGigabitLP","540-BBHB","DELL","TS4L6-LAN1-L-NVME",4,null,null,"540-W0N4T","W0N4T"]
["L6N06",6,"OpzGigabit10Gbps",149.99,"L6N06","TS4L6-LAN10",1,"Broadcom 57412 Dual Port 10Gb, SFP+, PCIe Adapter, Full Height + Optics","Broadcom 57412 Dual Port 10Gb, SFP+, PCIe Adapter, Full Height + Optics","L6N06-OpzGigabit10Gbps","540-BBUP","DELL","TS4L6-LAN10-NVME",1,2,3,"540-H6N50","H6N50"]
[null,null,null,null,null,null,2,"Dell Networking, Transceiver, SFP+, 10GbE, SR, 850nm Wavelength, 300m Reach - Kit","Dell Networking, Transceiver, SFP+, 10GbE, SR, 850nm Wavelength, 300m Reach - Kit",null,"407-BBOU","DELL",null,null,null,null,"407-4Y8DN","4Y8DN"]
["L6N76",6,"OpzGigabit10Gbps",149.99,"L6N06b","TS4L6-LAN10-L",1,"Broadcom 57414 Dual Port 25Gb, SFP28, PCIe Adapter, LOW PROFILE + Optics","Broadcom 57414 Dual Port 25Gb, SFP28, PCIe Adapter, LOW PROFILE + Optics","L6N76-OpzGigabit10GbpsLP","540-BBVL","DELL","TS4L6-LAN10-L-NVME",4,null,null,"540-N7R67","N7R67"]
[null,null,null,null,null,null,2,"Dell Networking, Transceiver, SFP+, 10GbE, SR, 850nm Wavelength, 300m Reach","Dell Networking, Transceiver, SFP+, 10GbE, SR, 850nm Wavelength, 300m Reach",null,"407-BBOU","DELL",null,null,null,null,"407-4Y8DN","4Y8DN"]
["L6N07",7,"OpzGigabit25Gbps",233.31,"L6N07","TS4L6-LAN25",1,"Intel Ethernet XXV710 Dual Port 10/25GbE SFP28 Adapter, PCIe Full Height + Optics","Intel Ethernet XXV710 Dual Port 10/25GbE SFP28 Adapter, PCIe Full Height + Optics","L6N07-OpzGigabit25Gbps","540-BBYI","DELL","TS4L6-LAN25-NVME",1,2,3,"540-86P4V","86P4V"]
[null,null,null,null,null,null,2,"Dell Networking, Transceiver, 25GbE SFP28 SR, No FEC, MMF, Duplex LC","Dell Networking, Transceiver, 25GbE SFP28 SR, No FEC, MMF, Duplex LC",null,"407-BCHI","DELL",null,null,null,null,"407-PY7V9","PY7V9"]
["L6N77",7,"OpzGigabit25Gbps",233.31,"L6N07b","TS4L6-LAN25-L",1,"Intel Ethernet XXV710 Dual Port 10/25GbE SFP28 Adapter, PCIe Low Profile + Optics","Intel Ethernet XXV710 Dual Port 10/25GbE SFP28 Adapter, PCIe Low Profile + Optics","L6N77-OpzGigabit25GbpsLP","540-BBZO","DELL","TS4L6-LAN25-L-NVME",4,null,null,"540-9RVF0","9RVF0"]
[null,null,null,null,null,null,2,"Dell Networking, Transceiver, 25GbE SFP28 SR, No FEC, MMF, Duplex LC","Dell Networking, Transceiver, 25GbE SFP28 SR, No FEC, MMF, Duplex LC",null,"407-BBXU","DELL",null,null,null,null,"407-PY7V9","PY7V9"]
["L6N08",8,"OpzGigabit10Gbps CNA",143.16999999999999,"L6N08","TS4L6-CNA10",1,"CNA QLogic 41262 Dual Port 10Gb SFP28 Adapter, Full Height +10 Gbps Optics","CNA QLogic 41262 Dual Port 10Gb SFP28 Adapter, Full Height +10 Gbps Optics","L6N08-OpzCNA10Gbps","540-BBYH","DELL","TS4L6-CNA10-NVME",1,2,3,"540-42H35","42H35"]
[null,null,null,null,null,null,2,"Dell Networking, Transceiver, SFP+, 10GbE, SR, 850nm Wavelength, 300m Reach - Kit","Dell Networking, Transceiver, SFP+, 10GbE, SR, 850nm Wavelength, 300m Reach - Kit",null,"407-BBOU","DELL",null,null,null,null,"407-4Y8DN","4Y8DN"]
["L6N78",8,"OpzGigabit10Gbps CNA",143.16999999999999,"L6N08b","TS4L6-CNA10-L",1,"CNA QLogic 41262 Dual Port 10Gb SFP28 Adapter, Low Profile + 10 Gbps Optics","CNA QLogic 41262 Dual Port 10Gb SFP28 Adapter, Low Profile + 10 Gbps Optics","L6N78-OpzCNA10GbpsLP","540-BBZM","DELL","TS4L6-CNA10-L-NVME",4,null,null,"540-01CN1","01CN1"]
[null,null,null,null,null,null,2,"Dell Networking, Transceiver, SFP+, 10GbE, SR, 850nm Wavelength, 300m Reach - Kit","Dell Networking, Transceiver, SFP+, 10GbE, SR, 850nm Wavelength, 300m Reach - Kit",null,"407-BBOU","DELL",null,null,null,null,"407-4Y8DN","4Y8DN"]
["L6N09",9,"Opz10Gigabit BaseT",137.87,"L6N09","TS4L6-BaseT",1,"Intel X710-T2L Dual Port 10GbE BASE-T Adapter, PCIe Full Height","Intel X710-T2L Dual Port 10GbE BASE-T Adapter, PCIe Full Height","L6N09-Opz-BaseT","540-BCSC","DELL","TS4L6-BaseT-NVME",1,2,3,"403-YH1DK","YH1DK"]
["L6N79",9,"Opz10Gigabit BaseT",137.87,"L6N09b","TS4L6- BaseT-L",1,"Intel X710-T2L Dual Port 10GbE BASE-T Adapter, PCIe LP","Intel X710-T2L Dual Port 10GbE BASE-T Adapter, PCIe LP","L6N79-Opz-BaseT","403-BBMT","DELL","TS4L6- BaseT-L-NVME",4,null,null,"403-P0TRP","P0TRP"]
["L6N10",10,"OpzFibreChannel",414.1,"L6N10","TS4L6- FibreChannel",1,"QLogic 2772 Dual Port 32Gb Fibre Channel HBA, PCIe Full Height + Optics","QLogic 2772 Dual Port 32Gb Fibre Channel HBA, PCIe Full Height + Optics","L6N10-OpzFibreChannel","540-BDHC","DELL","TS4L6- FibreChannel-NVME",4,null,null,"403-P0TRP","P0TRP"]
["L6N101",10,"OpzFibreChannel",414.1,"L6N10","TS4L6- FibreChannel",1,"QLogic 2772 Dual Port 32GbE Fibre Channel HBA, PCIe Low Profile + Optics","QLogic 2772 Dual Port 32GbE Fibre Channel HBA, PCIe Low Profile + Optics","L6N10-OpzFibreChannel","540-BDGU","DELL","TS4L6- FibreChannel-NVME",4,null,null,"403-P0TRP","P0TRP"]
["L6N11",11,"OpzHDD2TB",137.87,"L6N11","TS4L6-HDD2TB",1,"2.4TB 10k SAS ISE 12Gbps","2.4TB 10k 512e SAS ISE 12Gbps 2.5in Hot Plug Hard Drive","L6N10-OpzHDD2TB","400-BEGI","DELL","TS4L6-HDD2TB-NVME",null,null,null,"400-HTMGW","HTMGW"]
["L6N12",12,"OpzHDD1TB",79.540000000000006,"L6N12","TS4L6-HDD1TB",1,"1.2TB 10K RPM SAS ISE 12Gbps","1.2TB 10k 512n SAS ISE 12Gbps 2.5in Hot Plug Hard Drive","L6N11-OpzHDD1TB","400-ATJL","DELL","TS4L6-HDD1TB-NVME",null,null,null,"400-400-ATJL","400-ATJL"]
["L6N13",13,"OpzSSD-RI3,8TB",944.35,"L6N13","TS4L6-SSD-RI3,8TB",1,"3.84TB SSD SAS ISE RI 12Gbps","3.84TB SSD SAS ISE RI 12Gbps 512e 2.5in PM6 Hot-Plug 1 DWPD","L6N12-OpzSSD-RI3,8TB","345-BBXY","DELL","TS4L6-SSD-RI3,8TB-NVME",null,null,null,"400-PDNT1","PDNT1"]
["L6N14",14,"OpzSSD-RI1,6TB",445.41,"L6N14","TS4L6-SSD-RI1,6TB",1,"1.92TB SSD SAS ISE RI 12Gbps","1.92TB SSD SAS ISE RI 12Gbps 512e 2.5in Hot-Plug 1 DWP","L6N13-OpzSSD-RI1,6TB","345-BBYK","DELL","TS4L6-SSD-RI1,6TB-NVME",null,null,null,"400-2H59H","2H59H"]
["L6N15",15,"OpzSSD-MU1,6TB",442.13,"L6N15","TS4L6-SSD-MU1,6TB",1,"1.6TB SSD SAS ISE MU 12Gbps","1.6TB SSD SAS ISE MU 12Gbps 512e 2.5in Hot-Plug PM6 3 DWPD","L6N14-OpzSSD-MU1,6TB","345-BCIP","DELL","TS4L6-SSD-MU1,6TB-NVME",null,null,null,"400-CDPWY","CDPWY"]
["L6N16",16,"OpzSSD-RI800GB",265.13,"L6N16","TS4L6-SSD-RI800GB",1,"960GB SSD SAS ISE RI 12Gbps","960GB SSD SAS ISE RI 12Gbps 512e 2.5in Hot-Plug 1 DWPD","L6N15-OpzSSD-RI800GB","345-BBYU","DELL","TS4L6-SSD-RI800GB-NVME",null,null,null,"400-VPV60","VPV60"]
["L6N17",17,"OpzSSD-MU800GB",275.73,"L6N17","TS4L6-SSD-MU800GB",1,"800GB SSD SAS ISE Mix Use 12Gbps","800GB SSD SAS ISE Mix Use 12Gbps 512e 2.5in Hot-plug, 3 DWPD","L6N16-OpzSSD-MU800GB","400-AZII","DELL","TS4L6-SSD-MU800GB-NVME",null,null,null,"400-MW0DK","MW0DK"]
["L6N18",18,"OpzNVME1,6TB",566.61,"L6N18","TS4L6-NVME1,6TB",1,"1.6TB Enterprise NVMe Mixed Use Drive U.2","1.6TB, Enterprise, NVMe, Mixed Use Drive, U.2, Gen4 with carrier","L6N18-OpzNVME1,6TB","400-BMVP","DELL","TS4L6-NVME1,6TB-NVME",null,null,null,"403-C359R","C359R"]
["L6N19",19,"OpzUps (3000VA)",386.02,"L6N19","TS4L6-UPS",1,"Dispositivo UPS di tipo On-line doppia conversione, strutturato per il montaggio a rack da 19”","Dispositivo UPS di tipo On-line doppia conversione, strutturato per il montaggio a rack da 19”","L6N19-OpzUps","RPMM9/3K",null,"TS4L6-UPS-NVME",null,null,null,"RPMMRPMM9/3K","RPMM9/3K"]
[null,null,null,null,null,null,null,null,null,null,null,null,null,null,null,null,""]
["L6N20",20,"OpzGUI",491.62,"L6N20","TS4L6-GUI",1,"Unità KVM - monitor 17\", cavo combi PS/2&USB da 1,8mt, tastiera italiana, touch pad","Unità KVM - monitor 17\", cavo combi PS/2&USB da 1,8mt, tastiera italiana, touch pad","L6N20-OpzGUI","F9857N",null,"TS4L6-GUI-NVME",null,null,null,"F985F9857N","F9857N"]
["L6N21",21,"OpzKVM",552.47,"L6N21","TS4L6-KVM",1,"KVM Switch IP per GUI 16P","KVM Switch IP per GUI 16P","L6N21-OpzKVM","T9816NIP",null,"TS4L6-KVM-NVME",null,null,null,"T981T9816NIP","T9816NIP"]
["L6N22",22,"OpzWinServSTD",728.56,"L6N22","TS4L6-WINSRVSTD",1,"Windows Server 2022,Standard,ROK,16CORE","Windows Server 2022,Standard,ROK,16CORE","L6N22-OpzWinServSTD","634-BYKR","DELL","TS4L6-WINSRVSTD-NVME",null,null,null,"634-634-BSFX","634-BSFX"]
["L6N23",23,"OpzDeviceCal",25.45,"L6N23","TS4L6-WINDEVCAL",1,"1-pack of Windows Server 2022/2019 Device CALs (STD or DC)","1-pack of Windows Server 2022/2019 Device CALs (STD or DC)","L6N23-OpzDeviceCal","634-BYLD","DELL","TS4L6-WINDEVCAL-NVME",null,null,null,"623-623-BBCV","623-BBCV"]
["L6N24",24,"OpzUserCal",35,"L6N24","TS4L6-WINUSRCAL",1,"1-pack of Windows Server 2022/2019 User CALs (STD or DC)","1-pack of Windows Server 2022/2019 User CALs (STD or DC)","L6N24-OpzUserCal","634-BYKZ","DELL","TS4L6-WINUSRCAL-NVME",null,null,null,"623-623-BBCT","623-BBCT"]
["L6N25",25,"OpzWinServSTD2core",97.28,"L6N25","TS4L6-WINSRV2C",1,"Windows Server 2022 Standard Edition, Add License,2CORE","Windows Server 2022 Standard Edition, Add License,2CORE","L6N25-OpzWinServSTD2core","634-BYKQ","DELL","TS4L6-WINSRV2C-NVME",null,null,null,"634-634-BSGS","634-BSGS"]
["L6N26",27,"OpzWinServDC",2230.59,"L6N27","TS4L6-WinServDC",1,"Windows Server 2022,Datacenter,ROK,16CORE","Windows Server 2022,Datacenter,ROK,16CORE","L6N27-OpzWinServDC","634-BYLC","DELL","TS4L6-WinServDC-NVME",null,null,null,"785-785-10921","785-10921"]
["L6N27",28,"OpzWinServDC2core",438.85,"L6N28","TS4L6-WinServDC2core",1,"Windows Server 2022 / 2019 Datacenter Edition,Add License,2CORE","Windows Server 2022 / 2019 Datacenter Edition,Add License,2CORE","L6N28-OpzWinServDC2core","634-BYKX","DELL","TS4L6-WinServDC2core-NVME",null,null,null,"742-742-10105","742-10105"]
["L6N28",26,"OpzOpenSource",37.119999999999997,"L6N26","TS4L6-LINUX",1,"Ubuntu Server 22.04 LTS 64 Bit","Ubuntu Server 22.04 LTS 64 Bit","L6N26-OpzOpenSource",null,null,"TS4L6-LINUX-NVME",null,null,null,""]
["L6N29",29,"OpzHDDRetention",31.82,"L6N29","TS4L6-HDRTN36",1,"Hard Disk Retention 36 mesi","Hard Disk Retention 36 mesi","L6N29-OpzHDDRetention36","785-10921","DELL","TS4L6-HDRTN60-NVME",1,2,3,"405-V5FKR","V5FKR"]
["L6N29b",29,"OpzHDDRetention",52.82,"L6N29b","TS4L6-HDRTN60",1,"Hard Disk Retention 60 mesi","Hard Disk Retention 60 mesi","L6N29-OpzHDDRetention60","785-10921","DELL","TS4L6-HDRTN60-NVME",1,2,3,"405-V5FKR","V5FKR"]
["L6N30",30,"OpzEstensione24",522.78,"L6N30","TS4L6-OpzEst24",1,"Estensione della manutenzione in garanzia per ulteriori 24 mesi","Estensione della manutenzione in garanzia per ulteriori 24 mesi","L6N30-OpzEst24","P6142NCONSIP",null,"TS4L6-OpzEst24-NVME",null,null,null,"P614P6142NCONSIP","P6142NCONSIP"]
["L6N31",31,"OpzRack",579.63,"L6N31","TS4L6-RACK",1,"Armadio Rack 42U","Armadio Rack 42U","L6N31-OpzRack","P6142NCONSIP",null,"TS4L6-RACK-NVME",null,null,null,"P614P6142NCONSIP","P6142NCONSIP"]
["L6N44",44,null,null,"L6N44",null,1,"PERC H740P RAID Controller, 8Gb NV Cache, Adapter, Full Height","PERC H740P RAID Controller, 8Gb NV Cache, Adapter, Full Height",null,"405-AAMX","DELL",null,4,null,null,"405-39M19","39M19"]
["L6N45",45,null,null,"L6N45",null,1,"Customer Kit,Card,Controller,H740P,Minicard","Customer Kit,Card,Controller,H740P,Minicard",null,"405-AANL","DELL",null,"int",null,null,"405-4R84R","4R84R"]
["L6N49",49,"OpzPSU1400W",0,"L6N49","TS4L6-PSU1400W",1,"Dual, Hot-plug Power Supply (1+1), 1400W in sostituzione di quelli in configurazione BASE","Dual, Hot-plug Power Supply (1+1), 1400W in sostituzione di quelli in configurazione BASE","TS4-OpzA201100W","450-AEBL","DELL",null,null,null,null,"450-T4RTF","T4RTF"]
["L6N32",32,"OpzSSD7,68",2844.45,"L6N32","TS4L6-SSD7.68RI",1,"7.68TB SSD RI SAS ISE 12Gbps","7.68TB SSD RI SAS ISE 12Gbps 512e 2.5in PM1643a Hot-Plug 1 DWPD","L6N32-OpzSSD7.68RI","345-BBCL",null,{"$f":"CONCATENATE(F58,\"-NVME\")","v":"TS4L6-SSD7.68RI-NVME"}]
["L6N33",33,"OpzNVMe3,2",1578.15,"L6N33","TS4L6-NVMe3.2MU",1,"3.2TB, Enterprise, NVMe, Mixed Use","3.2TB, Enterprise, NVMe, Mixed Use, U2, G4, P5600 with carrier","L6N33-OpzNVMe3.2MU","400-BLJB",null,{"$f":"CONCATENATE(F59,\"-NVME\")","v":"TS4L6-NVMe3.2MU-NVME"}]
["L6N34",34,"OpzNVMe1,92",938.25,"L6N34","TS4L6-NVMe1.92RI",1,"1.92TB, Enterprise, NVMe, Read Intensive","1.92TB, Enterprise, NVMe, Read Intensive, U2, G4, P5500","L6N34-OpzNVMe1.92RI","400-BLJV",null,"TS4L6-NVMe1.92RI-NVME"]
["L6N35",35,"OpzNVMe3,84",1576.8,"L6N35","TS4L6-NVMe3.84RI",1,"3.84TB, Enterprise, NVMe, Read Intensive","3.84TB, Enterprise, NVMe, Read Intensive, U2, G4, P5500","L6N35-OpzNVMe3.84RI","400-BLJO",null,"TS4L6-NVMe3.84RI-NVME"]
["L6N36",36,"Opz10GBQP",541.35,"L6N36","TS4L6-10GBs-INTQP",1,"Intel X710 Quad Port 10Gb Direct Attach, SFP+, PCIe Full height","Intel X710 Quad Port 10Gb Direct Attach, SFP+, PCIe Full height","L6N36-Opz10GBs-INTQP","540-BBIW",null,"TS4L6-10GBs-INTQP-NVME"]
["L6N38",38,"Opz100GBCX",742.5,"L6N38","TS4L6-100GBs-M",1,"Mellanox ConnectX-6 DX Dual Port 100GbE QSFP56 Network Adapter, Full Height","Mellanox ConnectX-6 DX Dual Port 100GbE QSFP56 Network Adapter, Full Height","L6N38-Opz100GBs-M","540-BCXP",null,"TS4L6-100GBs-M-NVME"]
["L6N39",39,"Opz100GB",683.1,"L6N39","TS4L6-100GBs-B",1,"Broadcom 57508 Dual Port 100GbE QSFP Adapter, PCIe Full Height","Broadcom 57508 Dual Port 100GbE QSFP Adapter, PCIe Full Height","L6N39-Opz100GBs-B","540-BDEC",null,"TS4L6-100GBs-B-NVME"]
["L6N40",40,"Opz100GB_I",711.45,"L6N40","TS4L6-100GBs-INT",1,"Intel E810 Dual Port 100GbE QSFP28 Adapter, PCIe Full Height, 100GbE max bandwidth","Intel E810 Dual Port 100GbE QSFP28 Adapter, PCIe Full Height, 100GbE max bandwidth","L6N40-Opz100GBs-INT","540-BDDW",null,"TS4L6-100GBs-INT-NVME"]
["L6N41",41,"Opz100GB_M",1017.9,"L6N41","TS4L6-100GBs-INF",1,"Mellanox ConnectX-6 Single Port HDR100 QSFP56 Infiniband Adapter","Mellanox ConnectX-6 Single Port HDR100 QSFP56 Infiniband Adapter, PCIe Full Height","L6N41-Opz100GBs-INF","540-BCMU",null,"TS4L6-100GBs-INF-NVME"]
["L6N42",42,"OpzBOSS",0,"L6N42","TS4L6-OpzBOSS",1,"BOSS controller card + with 2 M.2 Sticks 480GB (RAID 1),FH","BOSS controller card + with 2 M.2 Sticks 480GB (RAID 1),FH","L6N42-BOSS",null,null,"TS4L6-OpzBOSS-NVME"]
["L6N50",50,"OpzSFP+",17.55,"L6N50","TS4L6-OT10GB",1,"SFP+ SR Optic for all SFP+ ports except high temp validation warning cards","SFP+ SR Optic for all SFP+ ports except high temp validation warning cards","L6N50-OpzOT10GB","407-BCBN",null,"TS4L6-OT10GB-NVME"]
["L6N51",51,"OpzSFP25",112.05,"L6N51","TS4L6-OT25GB",1,"SFP28 SR Optic, 25GbE, 85C, for all SFP28 ports","SFP28 SR Optic, 25GbE, 85C, for all SFP28 ports","L6N51-OpzOT25GB","407-BCHI",null,"TS4L6-OT25GB-NVME"]
["L6N52",52,"OpzSFP100",484.65,"L6N52","TS4L6-OT100GB",1,"Dell EMC PowerEdge QSFP28 SR4 100GbE 85C optic","Dell EMC PowerEdge QSFP28 SR4 100GbE 85C optic","L6N52-OpzOT100GB","407-BCEX",null,"TS4L6-OT100GB-NVME"]
["L6N53",53,"OpzHBA",0,"L6N53","TS4L6-HBA",1,"HBA330+ Adapter FH for R940","HBA330+ Adapter FH for R940","L6N53-OpzHBA",null,null,"TS4L6-HBA-NVME"]
[null,53,"OpzCMA",0,"L6N54","TS4L6-OpzCMA",1,"\tCable Management Arm for PowerEdge Systems - Kit","\tCable Management Arm for PowerEdge Systems - Kit","L6N54-CMA",null,null,"TS4L6-OpzCMA-NVME"]
["L6N110",101,"OpzVSAN",716.6,"L6N110","TS4L6-2CPU-vSAN",1,"Kit vSAN Comprensivo di BOSS e HBA 330+ (NO RAID) In sostituzione del base.","Kit vSAN Comprensivo di BOSS e HBA 330+","L6N110-Opz2CPU-vSAN",null,null,"TS4L6-2CPU-vSAN-NVME"]
["L6N111",102,"OpzVSAN2TB",2104.37,"L6N111","TS4L6-4CPU-vSAN-2TB",1,"Kit vSAN Comprensivo di BOSS e HBA 330+ (NO RAID) In sostituzione del base.","Kit vSAN Comprensivo di BOSS e HBA 330+","L6N111-Opz4CPU-vSAN-2TB",null,null,"TS4L6-4CPU-vSAN-2TB-NVME"]
["L6N112",103,"OpzRackD",2929.5,"L6N103","TS4L6-RACK-D",1,"Rack 42RU DellEmc","Rack 42RU DellEmc",{"$f":"CONCATENATE(A74,\"-\",C75)","v":"L6N111-OpzRackD"},null,null,"TS4L6-RACK-D-NVME"]
["L6N113",104,"OpzPDUT",540,"L6N103","TS4L6-PDU-M",1,"PDU 220 mono output 20-C13 + 4-C19 IEC 320, input C20","PDU 220 mono output 20-C13 + 4-C19 IEC 320, input C20",{"$f":"CONCATENATE(A75,\"-\",C76)","v":"L6N112-OpzPDUT"},null,null,"TS4L6-PDU-M"]
["L6N114",105,"OpzPDUT",1080,"L6N103","TS4L6-PDU-T",1,"PDU 220 Trifase output 6-C19 e 36-C13, input Spina 3P+T 400V 16A","PDU 220 Trifase output 6-C19 e 36-C13, input Spina 3P+T 400V 16A","L6N113-OpzPDUT",null,null,"TS4L6-PDU-T"]
["L6N115",106,"OpzKVMD",3300.75,"L6N103","TS4L6-KVM-D",1,"Dell KVM + Switch 8 porte + cavi ","Dell KVM + Switch 8 porte + cavi ","L6N114-OpzKVMD",null,null,"TS4L6-KVM-D"]
["L6N116",107,"OpzRock",3780,"L6N103","TS4L6-ROCK",1,"ROCK Port 100Gbs (include scheda pci, cavo, patch panel e manutenzione)","ROCK Port 100Gbs (include scheda pci, cavo, patch panel e manutenzione)","L6N115-OpzRock",null,null,"TS4L6-ROCK"]
["L6N117",108,"OpzCMA",54,"L6N103","TS4L6-CMA",1,"Cable Management Arm for PowerEdge Systems","Cable Management Arm for PowerEdge Systems","L6N116-OpzCMA",null,null,"TS4L6-CMA"]
["L6N118",109,"OpzJBOD",5838.75,"L6N103","TS4L6-JBOD",1,"Enclosure di espansione JBOD 12 slot 3,5'' + HBA (H840)","Enclosure di espansione JBOD 12 slot 3,5'' + HBA (H840)","L6N117-OpzJBOD",null,null,"TS4L6-JBOD"]
["L6N119",110,"Opz12TBNLSAS",405,"L6N103","TS4L6-12TBNLSAS",1,"12TB 7.2K RPM NLSAS ISE 12Gbps 512e 3.5in Hot-plug Hard Drive","12TB 7.2K RPM NLSAS ISE 12Gbps 512e 3.5in Hot-plug Hard\nDrive","L6N118-Opz12TBNLSAS",null,null,"TS4L6-12TBNLSAS"]
["L6N120",111,"Opz16TBSAS",438.75,"L6N103","TS4L6-16TBSAS",1,"16TB Hard Drive SAS ISE 12Gbps 7.2K 512e 3.5in Hot-Plug","16TB Hard Drive SAS ISE 12Gbps 7.2K 512e 3.5in Hot-Plug","L6N119-Opz16TBSAS",null,null,"TS4L6-16TBSAS"]
["L6N121",112,"Opz20TBSAS",594,"L6N103","TS4L6-20TBSAS",1,"20TB HDD SAS ISE 12Gbps 7.2K 512e 3.5in Hot-Plug","20TB HDD SAS ISE 12Gbps 7.2K 512e 3.5in Hot-Plug","L6N120-Opz20TBSAS",null,null,"TS4L6-20TBSAS"]
["L6N122",113,"OpzVsan1,5TB",3698.15,"L6N103","TS4L6-vSAN-2CPU-1.5TB",1,"Kit vSAN Comprensivo di sostituzione controller con HBA Vsan ready ed aggiunta di BOSS card 2 x M2 480GB + kit abilitazione 1,5TB (24x64GB) 2CPU","Kit vSAN Comprensivo di sostituzione controller con HBA Vsan ready ed aggiunta di BOSS card 2 x M2 480GB + kit abilitazione 1,5TB (24x64GB) 2CPU","L6N121-OpzVsan1,5TB",null,null,"TS4L6-vSAN-2CPU-1.5TB"]
["L6N123",114,"OpzVsan1TB",2721.48,"L6N103","TS4L6-vSAN-2CPU-1TB",1,"Kit vSAN Comprensivo di sostituzione controller con HBA Vsan ready ed aggiunta di BOSS card 2 x M2 480GB + kit abilitazione 1TB (16x64GB) 2CPU","Kit vSAN Comprensivo di sostituzione controller con HBA Vsan ready ed aggiunta di BOSS card 2 x M2 480GB + kit abilitazione 1TB (16x64GB) 2CPU","L6N122-OpzVsan1TB",null,null,"TS4L6-vSAN-2CPU-1TB"]
["L6N124",115,"OpzVsan2TB",4674.92,"L6N103","TS4L6-vSAN-4CPU-2TB",1,"Kit vSAN Comprensivo di sostituzione controller con HBA Vsan ready ed aggiunta di BOSS card 2 x M2 480GB + kit abilitazione 2TB (32x64GB) 4CPU","Kit vSAN Comprensivo di sostituzione controller con HBA Vsan ready ed aggiunta di BOSS card 2 x M2 480GB + kit abilitazione 2TB (32x64GB) 4CPU","L6N123-OpzVsan2TB",null,null,"TS4L6-vSAN-4CPU-2TB"]
["L6N125",116,"OpzBOSS3TB",6473.12,"L6N103","TS4L6-BOSS-4CPU-3TB",1,"Kit abilitazione 3TB (48x64GB) 4CPU con aggiunta di BOSS card 2 x M2 480GB","Kit abilitazione 3TB (48x64GB) 4CPU con aggiunta di BOSS card 2 x M2 480GB","L6N124-OpzBOSS3TB",null,null,"TS4L6-BOSS-4CPU-3TB"]